Workbook

Sheet Mode d'emploi
A1: Mode d'emploi
A2: 1 | B2: Objectifs :
A3: 1.1 | B3: Permettre l'enregistrement des mouvements de stocks mois par mois
A4: 1.2 | B4: Etablir une synthèse semestrielle de ces mouvements
A5: 2 | B5: Onlgets mensuels
A6: 2.1 | B6: Les onglets mensuels contiennent les données mois par mois de stock de départ par articles ainsi que des mouvelments d'entrées et de sorties et enfin une situation de stock théorique dit "comptable" ainsi qu'un inventaire "physique". Il est dégagé la différence entre ces 2 inventaires en 2 colonnes (gains et pertes) pour avoir une meilleure vue des écarts.
A7: 2.2 | B7: Ces onglets sont nommés sous la forme "AAAAMM" où AAAA est l'année et MM le mois. Attention : ces noms d'onglets sont utilisés par les formules dans chaque tableaux. Il est donc primordial de respecter cette forme ainsi que l'ordre croissant mensuel. Pour éviter toute erreur, une macro a été créée qui générera un nouvel onglet et nommera cet onglet du nom du dernier mois utilisé + 1. Quelque soit l'endroit où vous cliquerez sur le bouton macro "Créer mois", la macro se positionnera sur le dernier onglet et créera un nouvel onglet en dernière position avec pour nom le mois suivant (l'année sera également adaptée lors du passage d'une année à l'autre)
A8: 2.3 | B8: La colonne B "étiquettes produits" est alimentée automatiquement à partir de l'onglet de synthèse "Sem.flottant" QUI DOIT CONTENIR TOUS LES ARTICLES DE MANIÈRE EXHAUSTIVE. Cet onglet contient donc la base de données articles (colonne A et B)
A9: 2.4 | B9: Comme dans toute chose, il faut un début… comme tu souhaitais démarrer avec les informations de 2015, le premier onglet devait impérativment être de 201412 pour obtenir l'inventaire de départ de 2015. Dans l'avenir, si le classeur devient trop volumineux, il faudra supprimer des onglets. Je propose de toujours démarrer avec le mois de décembre. Ainsi quand on sera en 2017 : Sauver le classeur sous un autre nom et ensuite détruire les onglets de 201412 à 201511 (conserver le 201512) et continuer à créer les onglets.
A10: 3 | B10: Onglet SEM_FLOTTANT
B11: Cet onglet a 2 vocations :
A12: 3.1 | B12: Base de données articles (colonne A et B). Les articles sont classés de manière alphabétique sur la colonne A. Il est possible de trier cette colonne si nécessaire mais il faut faire attention de bien toujours trier en même temps la colonne B pour que les étiquettes restent bien attachées à la référence de base.
A13: 3.2 | B13: Compilation des mouvements de 6 mois flottants. Cette compilation se fera sur base de la fourchette de date à préciser par l'opérateur en B1 (la date de fin se calcule automatiquement).
A14: 3.3 | B14: Seuls la cellule B1 (pour la date départ de la compilation) et les colonnes A et B sont "encodables". Toutes les autres cellules contiennent des formules. La feuille est protégée pour éviter toute maladresse. Il est toutefois possible d'enlever cette protection (pour éventuellement agrandir le fichier par exemple) en allant sous l'onglet Révision : Oter la protection. Attention : à partir de ce moment tout peux être écraser ! Conseil : - faire une copie du classeur avant de se lancer ; - ne pas oublier de reprotéger après les modifications.
A16: Comment cela marche
B17: Les explications ci-dessous sont forcément succintes et se contentent d'inventorier et décrire les principes les paramètres utilisés. Pour obtenir plus amples informations sur les fonctions utilisées, il faut consulter l'aide d'Excel qui décrit plus longuement la façon d'utilisr ces diverses fonctions.
A18: 1 | B18: Onglets mensuels
A19: 1.1 | B19: Sur base du nom de l'onglet, il est calculé en A1 la date du premier jour du mois concerné. Grâce à la fonction CELLULE avec le type "nom de fichier" on obtient le nom du classeur et l'onglet en cours d'utilisation. Après il suffit d'extraire le nom de l'onglet et de le mettre en forme grâce aux fonctions GAUCHE et DROITE et enfin calculer la date grâce à la fonction DATE
A20: 1.20 | B20: Recherche du stock physique du mois précédent. Pour permettre de standardiser les formules et ainsi permettre leur duplication en permettant leur adaptation aux nouvelles données (année et mois), il faut rendre les formules paramétrables. Pour ce faire, nous utilisons les fonctions ADRESSE et INDIRECT.
A21: 1.21 | B21: ADRESSE : est une fonction qui permet de construire l'adresse d'une référence en paramétrant tous ses éléments. Ce qui veut donc dire que l'adresse variera en fonction des paramètres que le tableur calcule par ailleurs. Dans notre cas, nous allons calculer 2 adresses de l'onglet du mois - 1 pour aller chercher le stock physique de la fin du mois -1 grâce à la fonction RECHERV. Pour chercher cette information, nous avons besoin de l'adresse de départde la plage de recherche et de l'adresse de fin. Comme ces 2 adresses seront valable pour toutes les lignes de recherche et pour ne pas alourdir les formules inutilement, le calcul de ces adresses se fera dans 2 cellules isolées du tableau (elle n'apporte rien aux utilisateurs du tableau : elles ne servent que techniquement pour les calculs et nous allons les masquer pour ne pas encombrer la vision du tableau. Dans le cas présent, il a été choisi arbitrairement d'utiliser les cellules Q1 et Q2 respectivement pour l'adresse début et fin.
B22: =ADRESSE(7;1;1;1;CONCATENER(TEXTE(ANNEE($A$1-1);"####");TEXTE(MOIS($A$1-1);"00")))
B35: Comme le montre l'assistant d'Excel, tous les éléments sont paramétrables y compris ce qui nous intéresse particulièrement, l'onglet ou la feuille sur laquelle il faut aller chercher l'information. En effet les paramètres de ligne ; colonne ; No_abs (spécifie si l'adresse doit être relative ou absolue selon un code 1 ; 2 ; 3 ou 4 - voir aide excel) et A1 (qui détermine sous quelle forme l'adresse doit être donnée (A1 ou L1C1). Ce que nous allons paramétrer c'est la 'Feuille_texte ou le nom de l'onglet sous lequel il faut aller chercher l'information. Donc pour construire l'adresse de début de plage de recherche, nous allons préciser de manière fixe : Adresse(7;1;1;1 ce qui se traduit par ligne 7 ; colonne 1 ; valeur absolue càd code 1 et enfin 1 pour avoir l'adresse sous la forme A.
B36: Il nous reste le paramétrage de l'onglet qui lui doit s'adapter en fonction de la date de l'onglet dans lequel nous trouvons pour aller chercher l'information dans le mois -1. Comme le nom de l'onglet comporte l'année et le mois, il ne suffit pas de faire moins 1 au mois en cours (quand on est en janvier : mois en cours -1 = 0...) et puis il calculer l'autre année bref un tas de tests à faire. Il est beaucoup plus simple de prendre la date de l'onglet en cours qui est toujours le 1 du mois et de lui enlever 1 jour. La date obtenue est forcément le dernier jour du mois précédent (et de l'année précédente pour le 1 janvier). Ensuite il suffit d'extraire l'année et le mois g"âce aux fonctions ANNEE et MOIS ; de les transformer en texte grâce à la fonction TEXTE et de préciser le format. on obtient ainsi : '201501'!$A$7 par exemple à partir de l'onglet du mois de février. Nous faison la même chose en Q2 pour l'adresse fin en changeant simplement la ligne (206) et la colonne 11 pour K.
A37: 1.22 | B37: INDIRECT Nous avons maintenant à notre dispostion les 2 adresses de la plage de recherche mais comment les faire accepter par excel pour entrer dans la fonction de recherche ? C'est là qu'intervient la fonction INDIRECT qui permet d'aller chercher une information (ou des informatiosn dans une plage) à l'adresse précisée par les calculs en Q1 et Q2
B38: =SIERREUR(RECHERCHEV(A7;INDIRECT($Q$1):INDIRECT($Q$2);11;FAUX);"")
B39: Dans cette formule, nous commençons à dire à Excel que, s'il ne trouve pas (erreur) il met "" càd rien et s'il trouve il met le contenu de la cellule de la colonne 11 (K) sur la ligne trouvée par la recherche en colonne A avec le paramètre A7 càd la référence cherchée. Ouf ... c'est fini... C'est qu'il faut retenir son soufle quand on dit une chose comme ça...
B40: J'espère avoir été clair et encore une fois il faut plonger dans et l'assistant fonction et l'aide d'Excel qui donne la manière de paramétrer ces différentes fonctions.
A41: 1.23 | B41: La colonne B est alimentée automatiquement grâce à la fonction de RECHERCHEV qui va chercher l'étiquette dans l'onglet SEM_FLOTTANT
A42: 2 | B42: Onglet SEM_FLOTTANT
A43: 2.1 | B43: Cet onglet contient la base de données des références articles et de leurs étiquettes en colonne A et B. Ces éléments doivent être encoder manuellement.
A44: 2.2 | B44: La fourchette de date des 6 mois désirés est définie en B1 (encodé) et C1 (calculé)
A45: 2.3 | B45: Pour pouvoir rendre le calcul des diverses colonnes "flottant", il faudra également paramétrer les adresses des différentes cellules et surtout leur dire dans quel onglet aller chercher les informations. Comme nous allons devoir travailler sur 6 mois, il sera nécessaire de calculer l'adresse de tous les onglets concernés. Cela se fera également dans la colonne Q (de Q1 à Q18). En plus d'une adresse de début de plage et de fin (multiplié par 6) il nous faudra aussi une adresse de fin de plage en colonne A pour la recherche EQUIV soit 6 * 3 adresses = 18
A46: 2.4 | B46: Colonne Q : même type de calcul qu'expliquer précédemment au point 1.21 mais adapter aux 6 onglets concernés par la fourchette de dates définie en B1 et C1
A47: 2.5 | B47: Colonnes D à I Comme cette formule sera forcément longue, nous allons plutôt utiliser les fonctions EQUIV et INDEX qui sont plus courte et plus rapide que la RECHERCHV.
B48: =SIERREUR(INDEX(INDIRECT($Q$1):INDIRECT($Q$2);EQUIV($A7;INDIRECT($Q$1):INDIRECT($Q$3);0);COLONNE());0)+...
B49: La formule est donc très longue car elle additionne les 6 mois et il faut donc aller chercher les informatiosn dans les 6 onglets. Toutefois pour la comprendre, il suffit de prendre la section concernant un des mois car c'est la même chose pour les autres mois si ce n'est que nous faisons évoluer l'adresse en prenant la cellule ad hoc dans la colonne Q (qui correspond au mois à traiter).
B50: Comme toujours on commence par traiter les erreurs (on ne trouve pas l'information) pour mettre à "rien". Ensuite on va chercher l'information grâce à la fonction INDEX qui permet d'aller chercher dans une matrice, des informatiosn à la ligne et la colonne précisée. Alors la matrice est précisée par INDIRECT($Q$1):INDIRECT($Q$2) (déjà expliqué précédemment) et la ligne est précisée par la fonction EQUIV qui va chercher le numéro de ligne dans la plage de la colonne A : EQUIV($A7;INDIRECT($Q$1):INDIRECT($Q$3);0). Enfin on désigne la colonne grâce à la fonction COLONNE() - dans notre cas de figure c'est assez simple puisque les colonnes des différents tableaux correspondent, il suffit donc de préciser la colonne en cours. Je suppose que tu dois déjà en être à ta troisième tasse de cafè fort...
A51: 2.6 | B51: C'est pas fini mais la fin est beaucoup plus simple : il s'agit des colonnes C et K qui ne font appels qu'à de simples RECHERCHV avec toujours le même paramétrage grâce aux calculs d'adresse de la colonne Q en prenant le premier et le dernier mois du semstre.
A52: 2.7 | B52: La macro n'appelle, à mon avis, aucun commentaire et elle est expliquée dans le mode d'emploi.
A53: 2.8 | B53: C'EST FINI !!!!
B55: Digère ces informations et reviens vers moi avec les questions éventuelles.
B56: Bon courage
B57: Chris
B59: PS : je n'ai pas protégé les onglets mensuels : ce serait peutêtre intéressant de le faire ?
B60: PS2 : j'ai réglé l'impression du tableau de synthèse mais pas les autres : si tu comptes imprimer, il vaudrait mieux le faire.
B61: PS3 : toujours pour l'impression éventuelle : les tableaux comportent 206 lignes : si tu comptes les remplire toutes : pas de problèmes mais si tu n'en utilises disons qu'une centaire au début, il faudra faire quelque chose au niveau des lignes à imprimer sinon tu vas imprimer pour rien des colonnes vides. Soit tu le fais à la main (tu définis la plage à imprimer). Soit je peux te faire une petite macro qui règle ce problème en calculant les lignes utiles et en paramétrant l'impression.
B62: Cette fois ci s'est réellement fini !

Sheet SEM_FLOTTANT
A1: SEMESTRE | B1: 2015-09-01 | C1: =EDATE(B1,6)-1 -> 2016-02-29 | Q1: =ADDRESS(7,1,1,1,CONCATENATE(TEXT(YEAR($B$1),"####"),TEXT(MONTH($B$1),"00"))) -> '201509'!$A$7
E2: ENTREES | H2: SORTIES | Q2: =ADDRESS(206,11,1,1,CONCATENATE(TEXT(YEAR($B$1),"####"),TEXT(MONTH($B$1),"00"))) -> '201509'!$K$206
C3: Stock | J3: Stock | K3: Stock | L3: Mois (2)-(1) | Q3: =ADDRESS(206,1,1,1,CONCATENATE(TEXT(YEAR($B$1),"####"),TEXT(MONTH($B$1),"00"))) -> '201509'!$A$206
C4: physique | D4: Fabrication | G4: Expédition | J4: comptable | K4: physique | Q4: =ADDRESS(7,1,1,1,CONCATENATE(TEXT(YEAR(EDATE($B$1,1)),"####"),TEXT(MONTH(EDATE($B$1,1)),"00"))) -> '201510'!$A$7
C5: au | J5: au | K5: au | L5: Gain | M5: Perte | Q5: =ADDRESS(206,11,1,1,CONCATENATE(TEXT(YEAR(EDATE($B$1,1)),"####"),TEXT(MONTH(EDATE($B$1,1)),"00"))) -> '201510'!$K$206
C6: =B1 -> 2015-09-01 | J6: =EOMONTH(C1,0) -> 2016-02-29 | K6: =J6 -> 2016-02-29 | L6: (+) | M6: (-) | Q6: =ADDRESS(206,1,1,1,CONCATENATE(TEXT(YEAR(EDATE($B$1,1)),"####"),TEXT(MONTH(EDATE($B$1,1)),"00"))) -> '201510'!$A$206
A7: F01 | B7: A | C7: =IFERROR(VLOOKUP($A7,INDIRECT($Q$1):INDIRECT($Q$2),11,FALSE),0) -> 176211 | D7: =IFERROR(INDEX(INDIRECT($Q$1):INDIRECT($Q$2),MATCH($A7,INDIRECT($Q$1):INDIRECT($Q$3),0),COLUMN()),0)+IFERROR(INDEX(INDIRECT($Q$4):INDIRECT($Q$5),MATCH($A7,INDIRECT($Q$4):INDIRECT($Q$6),0),COLUMN()),0)+IFERROR(INDEX(INDIRECT($Q$7):INDIRECT($Q$8),MATCH($A7,INDIRECT($Q$7):INDIRECT($Q$9),0),COLUMN()),0)+IFERROR(INDEX(INDIRECT($Q$10):INDIRECT($Q$11),MATCH($A7,INDIRECT($Q$10):INDIRECT($Q$12),0),COLUMN()),0)+IFERROR(INDEX(INDIRECT($Q$13):INDIRECT($Q$14),MATCH($A7,INDIRECT($Q$13):INDIRECT($Q$15),0),COLUMN()),0)+IFERROR(INDEX(INDIRECT($Q$16):INDIRECT($Q$17),MATCH($A7,INDIRECT($Q$16):INDIRECT($Q$18),0),COLUMN()),0) -> 757884 | E7: =IFERROR(INDEX(INDIRECT($Q$1):INDIRECT($Q$2),MATCH($A7,INDIRECT($Q$1):INDIRECT($Q$3),0),COLUMN()),0)+IFERROR(INDEX(INDIRECT($Q$4):INDIRECT($Q$5),MATCH($A7,INDIRECT($Q$4):INDIRECT($Q$6),0),COLUMN()),0)+IFERROR(INDEX(INDIRECT($Q$7):INDIRECT($Q$8),MATCH($A7,INDIRECT($Q$7):INDIRECT($Q$9),0),COLUMN()),0)+IFERROR(INDEX(INDIRECT($Q$10):INDIRECT($Q$11),MATCH($A7,INDIRECT($Q$10):INDIRECT($Q$12),0),COLUMN()),0)+IFERROR(INDEX(INDIRECT($Q$13):INDIRECT($Q$14),MATCH($A7,INDIRECT($Q$13):INDIRECT($Q$15),0),COLUMN()),0)+IFERROR(INDEX(INDIRECT($Q$16):INDIRECT($Q$17),MATCH($A7,INDIRECT($Q$16):INDIRECT($Q$18),0),COLUMN()),0) -> 0 | F7: =IFERROR(INDEX(INDIRECT($Q$1):INDIRECT($Q$2),MATCH($A7,INDIRECT($Q$1):INDIRECT($Q$3),0),COLUMN()),0)+IFERROR(INDEX(INDIRECT($Q$4):INDIRECT($Q$5),MATCH($A7,INDIRECT($Q$4):INDIRECT($Q$6),0),COLUMN()),0)+IFERROR(INDEX(INDIRECT($Q$7):INDIRECT($Q$8),MATCH($A7,INDIRECT($Q$7):INDIRECT($Q$9),0),COLUMN()),0)+IFERROR(INDEX(INDIRECT($Q$10):INDIRECT($Q$11),MATCH($A7,INDIRECT($Q$10):INDIRECT($Q$12),0),COLUMN()),0)+IFERROR(INDEX(INDIRECT($Q$13):INDIRECT($Q$14),MATCH($A7,INDIRECT($Q$13):INDIRECT($Q$15),0),COLUMN()),0)+IFERROR(INDEX(INDIRECT($Q$16):INDIRECT($Q$17),MATCH($A7,INDIRECT($Q$16):INDIRECT($Q$18),0),COLUMN()),0) -> 0 | G7: =IFERROR(INDEX(INDIRECT($Q$1):INDIRECT($Q$2),MATCH($A7,INDIRECT($Q$1):INDIRECT($Q$3),0),COLUMN()),0)+IFERROR(INDEX(INDIRECT($Q$4):INDIRECT($Q$5),MATCH($A7,INDIRECT($Q$4):INDIRECT($Q$6),0),COLUMN()),0)+IFERROR(INDEX(INDIRECT($Q$7):INDIRECT($Q$8),MATCH($A7,INDIRECT($Q$7):INDIRECT($Q$9),0),COLUMN()),0)+IFERROR(INDEX(INDIRECT($Q$10):INDIRECT($Q$11),MATCH($A7,INDIRECT($Q$10):INDIRECT($Q$12),0),COLUMN()),0)+IFERROR(INDEX(INDIRECT($Q$13):INDIRECT($Q$14),MATCH($A7,INDIRECT($Q$13):INDIRECT($Q$15),0),COLUMN()),0)+IFERROR(INDEX(INDIRECT($Q$16):INDIRECT($Q$17),MATCH($A7,INDIRECT($Q$16):INDIRECT($Q$18),0),COLUMN()),0) -> 758904 | H7: =IFERROR(INDEX(INDIRECT($Q$1):INDIRECT($Q$2),MATCH($A7,INDIRECT($Q$1):INDIRECT($Q$3),0),COLUMN()),0)+IFERROR(INDEX(INDIRECT($Q$4):INDIRECT($Q$5),MATCH($A7,INDIRECT($Q$4):INDIRECT($Q$6),0),COLUMN()),0)+IFERROR(INDEX(INDIRECT($Q$7):INDIRECT($Q$8),MATCH($A7,INDIRECT($Q$7):INDIRECT($Q$9),0),COLUMN()),0)+IFERROR(INDEX(INDIRECT($Q$10):INDIRECT($Q$11),MATCH($A7,INDIRECT($Q$10):INDIRECT($Q$12),0),COLUMN()),0)+IFERROR(INDEX(INDIRECT($Q$13):INDIRECT($Q$14),MATCH($A7,INDIRECT($Q$13):INDIRECT($Q$15),0),COLUMN()),0)+IFERROR(INDEX(INDIRECT($Q$16):INDIRECT($Q$17),MATCH($A7,INDIRECT($Q$16):INDIRECT($Q$18),0),COLUMN()),0) -> 0 | I7: =IFERROR(INDEX(INDIRECT($Q$1):INDIRECT($Q$2),MATCH($A7,INDIRECT($Q$1):INDIRECT($Q$3),0),COLUMN()),0)+IFERROR(INDEX(INDIRECT($Q$4):INDIRECT($Q$5),MATCH($A7,INDIRECT($Q$4):INDIRECT($Q$6),0),COLUMN()),0)+IFERROR(INDEX(INDIRECT($Q$7):INDIRECT($Q$8),MATCH($A7,INDIRECT($Q$7):INDIRECT($Q$9),0),COLUMN()),0)+IFERROR(INDEX(INDIRECT($Q$10):INDIRECT($Q$11),MATCH($A7,INDIRECT($Q$10):INDIRECT($Q$12),0),COLUMN()),0)+IFERROR(INDEX(INDIRECT($Q$13):INDIRECT($Q$14),MATCH($A7,INDIRECT($Q$13):INDIRECT($Q$15),0),COLUMN()),0)+IFERROR(INDEX(INDIRECT($Q$16):INDIRECT($Q$17),MATCH($A7,INDIRECT($Q$16):INDIRECT($Q$18),0),COLUMN()),0) -> 0 | J7: =(C7+D7+E7+F7)-(G7+H7+I7) -> 175191 | K7: =IFERROR(VLOOKUP($A7,INDIRECT($Q$16):INDIRECT($Q$17),11,FALSE),0) -> 175000 | L7: =IF($K7>$J7,$K7-$J7,0) -> 0 | M7: =IF($K7<$J7,$J7-$K7,0) -> 191 | Q7: =ADDRESS(7,1,1,1,CONCATENATE(TEXT(YEAR(EDATE($B$1,2)),"####"),TEXT(MONTH(EDATE($B$1,2)),"00"))) -> '201511'!$A$7
A8: F02 | B8: B | C8: =IFERROR(VLOOKUP($A8,INDIRECT($Q$1):INDIRECT($Q$2),11,FALSE),0) -> 4500 | D8: =IFERROR(INDEX(INDIRECT($Q$1):INDIRECT($Q$2),MATCH($A8,INDIRECT($Q$1):INDIRECT($Q$3),0),COLUMN()),0)+IFERROR(INDEX(INDIRECT($Q$4):INDIRECT($Q$5),MATCH($A8,INDIRECT($Q$4):INDIRECT($Q$6),0),COLUMN()),0)+IFERROR(INDEX(INDIRECT($Q$7):INDIRECT($Q$8),MATCH($A8,INDIRECT($Q$7):INDIRECT($Q$9),0),COLUMN()),0)+IFERROR(INDEX(INDIRECT($Q$10):INDIRECT($Q$11),MATCH($A8,INDIRECT($Q$10):INDIRECT($Q$12),0),COLUMN()),0)+IFERROR(INDEX(INDIRECT($Q$13):INDIRECT($Q$14),MATCH($A8,INDIRECT($Q$13):INDIRECT($Q$15),0),COLUMN()),0)+IFERROR(INDEX(INDIRECT($Q$16):INDIRECT($Q$17),MATCH($A8,INDIRECT($Q$16):INDIRECT($Q$18),0),COLUMN()),0) -> 0 | E8: =IFERROR(INDEX(INDIRECT($Q$1):INDIRECT($Q$2),MATCH($A8,INDIRECT($Q$1):INDIRECT($Q$3),0),COLUMN()),0)+IFERROR(INDEX(INDIRECT($Q$4):INDIRECT($Q$5),MATCH($A8,INDIRECT($Q$4):INDIRECT($Q$6),0),COLUMN()),0)+IFERROR(INDEX(INDIRECT($Q$7):INDIRECT($Q$8),MATCH($A8,INDIRECT($Q$7):INDIRECT($Q$9),0),COLUMN()),0)+IFERROR(INDEX(INDIRECT($Q$10):INDIRECT($Q$11),MATCH($A8,INDIRECT($Q$10):INDIRECT($Q$12),0),COLUMN()),0)+IFERROR(INDEX(INDIRECT($Q$13):INDIRECT($Q$14),MATCH($A8,INDIRECT($Q$13):INDIRECT($Q$15),0),COLUMN()),0)+IFERROR(INDEX(INDIRECT($Q$16):INDIRECT($Q$17),MATCH($A8,INDIRECT($Q$16):INDIRECT($Q$18),0),COLUMN()),0) -> 0 | F8: =IFERROR(INDEX(INDIRECT($Q$1):INDIRECT($Q$2),MATCH($A8,INDIRECT($Q$1):INDIRECT($Q$3),0),COLUMN()),0)+IFERROR(INDEX(INDIRECT($Q$4):INDIRECT($Q$5),MATCH($A8,INDIRECT($Q$4):INDIRECT($Q$6),0),COLUMN()),0)+IFERROR(INDEX(INDIRECT($Q$7):INDIRECT($Q$8),MATCH($A8,INDIRECT($Q$7):INDIRECT($Q$9),0),COLUMN()),0)+IFERROR(INDEX(INDIRECT($Q$10):INDIRECT($Q$11),MATCH($A8,INDIRECT($Q$10):INDIRECT($Q$12),0),COLUMN()),0)+IFERROR(INDEX(INDIRECT($Q$13):INDIRECT($Q$14),MATCH($A8,INDIRECT($Q$13):INDIRECT($Q$15),0),COLUMN()),0)+IFERROR(INDEX(INDIRECT($Q$16):INDIRECT($Q$17),MATCH($A8,INDIRECT($Q$16):INDIRECT($Q$18),0),COLUMN()),0) -> 0 | G8: =IFERROR(INDEX(INDIRECT($Q$1):INDIRECT($Q$2),MATCH($A8,INDIRECT($Q$1):INDIRECT($Q$3),0),COLUMN()),0)+IFERROR(INDEX(INDIRECT($Q$4):INDIRECT($Q$5),MATCH($A8,INDIRECT($Q$4):INDIRECT($Q$6),0),COLUMN()),0)+IFERROR(INDEX(INDIRECT($Q$7):INDIRECT($Q$8),MATCH($A8,INDIRECT($Q$7):INDIRECT($Q$9),0),COLUMN()),0)+IFERROR(INDEX(INDIRECT($Q$10):INDIRECT($Q$11),MATCH($A8,INDIRECT($Q$10):INDIRECT($Q$12),0),COLUMN()),0)+IFERROR(INDEX(INDIRECT($Q$13):INDIRECT($Q$14),MATCH($A8,INDIRECT($Q$13):INDIRECT($Q$15),0),COLUMN()),0)+IFERROR(INDEX(INDIRECT($Q$16):INDIRECT($Q$17),MATCH($A8,INDIRECT($Q$16):INDIRECT($Q$18),0),COLUMN()),0) -> 252 | H8: =IFERROR(INDEX(INDIRECT($Q$1):INDIRECT($Q$2),MATCH($A8,INDIRECT($Q$1):INDIRECT($Q$3),0),COLUMN()),0)+IFERROR(INDEX(INDIRECT($Q$4):INDIRECT($Q$5),MATCH($A8,INDIRECT($Q$4):INDIRECT($Q$6),0),COLUMN()),0)+IFERROR(INDEX(INDIRECT($Q$7):INDIRECT($Q$8),MATCH($A8,INDIRECT($Q$7):INDIRECT($Q$9),0),COLUMN()),0)+IFERROR(INDEX(INDIRECT($Q$10):INDIRECT($Q$11),MATCH($A8,INDIRECT($Q$10):INDIRECT($Q$12),0),COLUMN()),0)+IFERROR(INDEX(INDIRECT($Q$13):INDIRECT($Q$14),MATCH($A8,INDIRECT($Q$13):INDIRECT($Q$15),0),COLUMN()),0)+IFERROR(INDEX(INDIRECT($Q$16):INDIRECT($Q$17),MATCH($A8,INDIRECT($Q$16):INDIRECT($Q$18),0),COLUMN()),0) -> 0 | I8: =IFERROR(INDEX(INDIRECT($Q$1):INDIRECT($Q$2),MATCH($A8,INDIRECT($Q$1):INDIRECT($Q$3),0),COLUMN()),0)+IFERROR(INDEX(INDIRECT($Q$4):INDIRECT($Q$5),MATCH($A8,INDIRECT($Q$4):INDIRECT($Q$6),0),COLUMN()),0)+IFERROR(INDEX(INDIRECT($Q$7):INDIRECT($Q$8),MATCH($A8,INDIRECT($Q$7):INDIRECT($Q$9),0),COLUMN()),0)+IFERROR(INDEX(INDIRECT($Q$10):INDIRECT($Q$11),MATCH($A8,INDIRECT($Q$10):INDIRECT($Q$12),0),COLUMN()),0)+IFERROR(INDEX(INDIRECT($Q$13):INDIRECT($Q$14),MATCH($A8,INDIRECT($Q$13):INDIRECT($Q$15),0),COLUMN()),0)+IFERROR(INDEX(INDIRECT($Q$16):INDIRECT($Q$17),MATCH($A8,INDIRECT($Q$16):INDIRECT($Q$18),0),COLUMN()),0) -> 0 | J8: 4248 | K8: =IFERROR(VLOOKUP($A8,INDIRECT($Q$16):INDIRECT($Q$17),11,FALSE),0) -> 4500 | L8: 252 | M8: 0 | Q8: =ADDRESS(206,11,1,1,CONCATENATE(TEXT(YEAR(EDATE($B$1,2)),"####"),TEXT(MONTH(EDATE($B$1,2)),"00"))) -> '201511'!$K$206
A9: F03 | B9: C | C9: =IFERROR(VLOOKUP($A9,INDIRECT($Q$1):INDIRECT($Q$2),11,FALSE),0) -> 148000 | D9: =IFERROR(INDEX(INDIRECT($Q$1):INDIRECT($Q$2),MATCH($A9,INDIRECT($Q$1):INDIRECT($Q$3),0),COLUMN()),0)+IFERROR(INDEX(INDIRECT($Q$4):INDIRECT($Q$5),MATCH($A9,INDIRECT($Q$4):INDIRECT($Q$6),0),COLUMN()),0)+IFERROR(INDEX(INDIRECT($Q$7):INDIRECT($Q$8),MATCH($A9,INDIRECT($Q$7):INDIRECT($Q$9),0),COLUMN()),0)+IFERROR(INDEX(INDIRECT($Q$10):INDIRECT($Q$11),MATCH($A9,INDIRECT($Q$10):INDIRECT($Q$12),0),COLUMN()),0)+IFERROR(INDEX(INDIRECT($Q$13):INDIRECT($Q$14),MATCH($A9,INDIRECT($Q$13):INDIRECT($Q$15),0),COLUMN()),0)+IFERROR(INDEX(INDIRECT($Q$16):INDIRECT($Q$17),MATCH($A9,INDIRECT($Q$16):INDIRECT($Q$18),0),COLUMN()),0) -> 25026 | E9: =IFERROR(INDEX(INDIRECT($Q$1):INDIRECT($Q$2),MATCH($A9,INDIRECT($Q$1):INDIRECT($Q$3),0),COLUMN()),0)+IFERROR(INDEX(INDIRECT($Q$4):INDIRECT($Q$5),MATCH($A9,INDIRECT($Q$4):INDIRECT($Q$6),0),COLUMN()),0)+IFERROR(INDEX(INDIRECT($Q$7):INDIRECT($Q$8),MATCH($A9,INDIRECT($Q$7):INDIRECT($Q$9),0),COLUMN()),0)+IFERROR(INDEX(INDIRECT($Q$10):INDIRECT($Q$11),MATCH($A9,INDIRECT($Q$10):INDIRECT($Q$12),0),COLUMN()),0)+IFERROR(INDEX(INDIRECT($Q$13):INDIRECT($Q$14),MATCH($A9,INDIRECT($Q$13):INDIRECT($Q$15),0),COLUMN()),0)+IFERROR(INDEX(INDIRECT($Q$16):INDIRECT($Q$17),MATCH($A9,INDIRECT($Q$16):INDIRECT($Q$18),0),COLUMN()),0) -> 0 | F9: =IFERROR(INDEX(INDIRECT($Q$1):INDIRECT($Q$2),MATCH($A9,INDIRECT($Q$1):INDIRECT($Q$3),0),COLUMN()),0)+IFERROR(INDEX(INDIRECT($Q$4):INDIRECT($Q$5),MATCH($A9,INDIRECT($Q$4):INDIRECT($Q$6),0),COLUMN()),0)+IFERROR(INDEX(INDIRECT($Q$7):INDIRECT($Q$8),MATCH($A9,INDIRECT($Q$7):INDIRECT($Q$9),0),COLUMN()),0)+IFERROR(INDEX(INDIRECT($Q$10):INDIRECT($Q$11),MATCH($A9,INDIRECT($Q$10):INDIRECT($Q$12),0),COLUMN()),0)+IFERROR(INDEX(INDIRECT($Q$13):INDIRECT($Q$14),MATCH($A9,INDIRECT($Q$13):INDIRECT($Q$15),0),COLUMN()),0)+IFERROR(INDEX(INDIRECT($Q$16):INDIRECT($Q$17),MATCH($A9,INDIRECT($Q$16):INDIRECT($Q$18),0),COLUMN()),0) -> 0 | G9: =IFERROR(INDEX(INDIRECT($Q$1):INDIRECT($Q$2),MATCH($A9,INDIRECT($Q$1):INDIRECT($Q$3),0),COLUMN()),0)+IFERROR(INDEX(INDIRECT($Q$4):INDIRECT($Q$5),MATCH($A9,INDIRECT($Q$4):INDIRECT($Q$6),0),COLUMN()),0)+IFERROR(INDEX(INDIRECT($Q$7):INDIRECT($Q$8),MATCH($A9,INDIRECT($Q$7):INDIRECT($Q$9),0),COLUMN()),0)+IFERROR(INDEX(INDIRECT($Q$10):INDIRECT($Q$11),MATCH($A9,INDIRECT($Q$10):INDIRECT($Q$12),0),COLUMN()),0)+IFERROR(INDEX(INDIRECT($Q$13):INDIRECT($Q$14),MATCH($A9,INDIRECT($Q$13):INDIRECT($Q$15),0),COLUMN()),0)+IFERROR(INDEX(INDIRECT($Q$16):INDIRECT($Q$17),MATCH($A9,INDIRECT($Q$16):INDIRECT($Q$18),0),COLUMN()),0) -> 246 | H9: =IFERROR(INDEX(INDIRECT($Q$1):INDIRECT($Q$2),MATCH($A9,INDIRECT($Q$1):INDIRECT($Q$3),0),COLUMN()),0)+IFERROR(INDEX(INDIRECT($Q$4):INDIRECT($Q$5),MATCH($A9,INDIRECT($Q$4):INDIRECT($Q$6),0),COLUMN()),0)+IFERROR(INDEX(INDIRECT($Q$7):INDIRECT($Q$8),MATCH($A9,INDIRECT($Q$7):INDIRECT($Q$9),0),COLUMN()),0)+IFERROR(INDEX(INDIRECT($Q$10):INDIRECT($Q$11),MATCH($A9,INDIRECT($Q$10):INDIRECT($Q$12),0),COLUMN()),0)+IFERROR(INDEX(INDIRECT($Q$13):INDIRECT($Q$14),MATCH($A9,INDIRECT($Q$13):INDIRECT($Q$15),0),COLUMN()),0)+IFERROR(INDEX(INDIRECT($Q$16):INDIRECT($Q$17),MATCH($A9,INDIRECT($Q$16):INDIRECT($Q$18),0),COLUMN()),0) -> 0 | I9: =IFERROR(INDEX(INDIRECT($Q$1):INDIRECT($Q$2),MATCH($A9,INDIRECT($Q$1):INDIRECT($Q$3),0),COLUMN()),0)+IFERROR(INDEX(INDIRECT($Q$4):INDIRECT($Q$5),MATCH($A9,INDIRECT($Q$4):INDIRECT($Q$6),0),COLUMN()),0)+IFERROR(INDEX(INDIRECT($Q$7):INDIRECT($Q$8),MATCH($A9,INDIRECT($Q$7):INDIRECT($Q$9),0),COLUMN()),0)+IFERROR(INDEX(INDIRECT($Q$10):INDIRECT($Q$11),MATCH($A9,INDIRECT($Q$10):INDIRECT($Q$12),0),COLUMN()),0)+IFERROR(INDEX(INDIRECT($Q$13):INDIRECT($Q$14),MATCH($A9,INDIRECT($Q$13):INDIRECT($Q$15),0),COLUMN()),0)+IFERROR(INDEX(INDIRECT($Q$16):INDIRECT($Q$17),MATCH($A9,INDIRECT($Q$16):INDIRECT($Q$18),0),COLUMN()),0) -> 0 | J9: 172780 | K9: =IFERROR(VLOOKUP($A9,INDIRECT($Q$16):INDIRECT($Q$17),11,FALSE),0) -> 153000 | L9: 0 | M9: 19780 | Q9: =ADDRESS(206,1,1,1,CONCATENATE(TEXT(YEAR(EDATE($B$1,2)),"####"),TEXT(MONTH(EDATE($B$1,2)),"00"))) -> '201511'!$A$206
A10: F04 | B10: D | C10: =IFERROR(VLOOKUP($A10,INDIRECT($Q$1):INDIRECT($Q$2),11,FALSE),0) -> 152713 | D10: =IFERROR(INDEX(INDIRECT($Q$1):INDIRECT($Q$2),MATCH($A10,INDIRECT($Q$1):INDIRECT($Q$3),0),COLUMN()),0)+IFERROR(INDEX(INDIRECT($Q$4):INDIRECT($Q$5),MATCH($A10,INDIRECT($Q$4):INDIRECT($Q$6),0),COLUMN()),0)+IFERROR(INDEX(INDIRECT($Q$7):INDIRECT($Q$8),MATCH($A10,INDIRECT($Q$7):INDIRECT($Q$9),0),COLUMN()),0)+IFERROR(INDEX(INDIRECT($Q$10):INDIRECT($Q$11),MATCH($A10,INDIRECT($Q$10):INDIRECT($Q$12),0),COLUMN()),0)+IFERROR(INDEX(INDIRECT($Q$13):INDIRECT($Q$14),MATCH($A10,INDIRECT($Q$13):INDIRECT($Q$15),0),COLUMN()),0)+IFERROR(INDEX(INDIRECT($Q$16):INDIRECT($Q$17),MATCH($A10,INDIRECT($Q$16):INDIRECT($Q$18),0),COLUMN()),0) -> 43452 | E10: =IFERROR(INDEX(INDIRECT($Q$1):INDIRECT($Q$2),MATCH($A10,INDIRECT($Q$1):INDIRECT($Q$3),0),COLUMN()),0)+IFERROR(INDEX(INDIRECT($Q$4):INDIRECT($Q$5),MATCH($A10,INDIRECT($Q$4):INDIRECT($Q$6),0),COLUMN()),0)+IFERROR(INDEX(INDIRECT($Q$7):INDIRECT($Q$8),MATCH($A10,INDIRECT($Q$7):INDIRECT($Q$9),0),COLUMN()),0)+IFERROR(INDEX(INDIRECT($Q$10):INDIRECT($Q$11),MATCH($A10,INDIRECT($Q$10):INDIRECT($Q$12),0),COLUMN()),0)+IFERROR(INDEX(INDIRECT($Q$13):INDIRECT($Q$14),MATCH($A10,INDIRECT($Q$13):INDIRECT($Q$15),0),COLUMN()),0)+IFERROR(INDEX(INDIRECT($Q$16):INDIRECT($Q$17),MATCH($A10,INDIRECT($Q$16):INDIRECT($Q$18),0),COLUMN()),0) -> 24846 | F10: =IFERROR(INDEX(INDIRECT($Q$1):INDIRECT($Q$2),MATCH($A10,INDIRECT($Q$1):INDIRECT($Q$3),0),COLUMN()),0)+IFERROR(INDEX(INDIRECT($Q$4):INDIRECT($Q$5),MATCH($A10,INDIRECT($Q$4):INDIRECT($Q$6),0),COLUMN()),0)+IFERROR(INDEX(INDIRECT($Q$7):INDIRECT($Q$8),MATCH($A10,INDIRECT($Q$7):INDIRECT($Q$9),0),COLUMN()),0)+IFERROR(INDEX(INDIRECT($Q$10):INDIRECT($Q$11),MATCH($A10,INDIRECT($Q$10):INDIRECT($Q$12),0),COLUMN()),0)+IFERROR(INDEX(INDIRECT($Q$13):INDIRECT($Q$14),MATCH($A10,INDIRECT($Q$13):INDIRECT($Q$15),0),COLUMN()),0)+IFERROR(INDEX(INDIRECT($Q$16):INDIRECT($Q$17),MATCH($A10,INDIRECT($Q$16):INDIRECT($Q$18),0),COLUMN()),0) -> 0 | G10: =IFERROR(INDEX(INDIRECT($Q$1):INDIRECT($Q$2),MATCH($A10,INDIRECT($Q$1):INDIRECT($Q$3),0),COLUMN()),0)+IFERROR(INDEX(INDIRECT($Q$4):INDIRECT($Q$5),MATCH($A10,INDIRECT($Q$4):INDIRECT($Q$6),0),COLUMN()),0)+IFERROR(INDEX(INDIRECT($Q$7):INDIRECT($Q$8),MATCH($A10,INDIRECT($Q$7):INDIRECT($Q$9),0),COLUMN()),0)+IFERROR(INDEX(INDIRECT($Q$10):INDIRECT($Q$11),MATCH($A10,INDIRECT($Q$10):INDIRECT($Q$12),0),COLUMN()),0)+IFERROR(INDEX(INDIRECT($Q$13):INDIRECT($Q$14),MATCH($A10,INDIRECT($Q$13):INDIRECT($Q$15),0),COLUMN()),0)+IFERROR(INDEX(INDIRECT($Q$16):INDIRECT($Q$17),MATCH($A10,INDIRECT($Q$16):INDIRECT($Q$18),0),COLUMN()),0) -> 846 | H10: =IFERROR(INDEX(INDIRECT($Q$1):INDIRECT($Q$2),MATCH($A10,INDIRECT($Q$1):INDIRECT($Q$3),0),COLUMN()),0)+IFERROR(INDEX(INDIRECT($Q$4):INDIRECT($Q$5),MATCH($A10,INDIRECT($Q$4):INDIRECT($Q$6),0),COLUMN()),0)+IFERROR(INDEX(INDIRECT($Q$7):INDIRECT($Q$8),MATCH($A10,INDIRECT($Q$7):INDIRECT($Q$9),0),COLUMN()),0)+IFERROR(INDEX(INDIRECT($Q$10):INDIRECT($Q$11),MATCH($A10,INDIRECT($Q$10):INDIRECT($Q$12),0),COLUMN()),0)+IFERROR(INDEX(INDIRECT($Q$13):INDIRECT($Q$14),MATCH($A10,INDIRECT($Q$13):INDIRECT($Q$15),0),COLUMN()),0)+IFERROR(INDEX(INDIRECT($Q$16):INDIRECT($Q$17),MATCH($A10,INDIRECT($Q$16):INDIRECT($Q$18),0),COLUMN()),0) -> 0 | I10: =IFERROR(INDEX(INDIRECT($Q$1):INDIRECT($Q$2),MATCH($A10,INDIRECT($Q$1):INDIRECT($Q$3),0),COLUMN()),0)+IFERROR(INDEX(INDIRECT($Q$4):INDIRECT($Q$5),MATCH($A10,INDIRECT($Q$4):INDIRECT($Q$6),0),COLUMN()),0)+IFERROR(INDEX(INDIRECT($Q$7):INDIRECT($Q$8),MATCH($A10,INDIRECT($Q$7):INDIRECT($Q$9),0),COLUMN()),0)+IFERROR(INDEX(INDIRECT($Q$10):INDIRECT($Q$11),MATCH($A10,INDIRECT($Q$10):INDIRECT($Q$12),0),COLUMN()),0)+IFERROR(INDEX(INDIRECT($Q$13):INDIRECT($Q$14),MATCH($A10,INDIRECT($Q$13):INDIRECT($Q$15),0),COLUMN()),0)+IFERROR(INDEX(INDIRECT($Q$16):INDIRECT($Q$17),MATCH($A10,INDIRECT($Q$16):INDIRECT($Q$18),0),COLUMN()),0) -> 0 | J10: 220165 | K10: =IFERROR(VLOOKUP($A10,INDIRECT($Q$16):INDIRECT($Q$17),11,FALSE),0) -> 163000 | L10: 0 | M10: 57165 | Q10: =ADDRESS(7,1,1,1,CONCATENATE(TEXT(YEAR(EDATE($B$1,3)),"####"),TEXT(MONTH(EDATE($B$1,3)),"00"))) -> '201512'!$A$7
A11: F05 | B11: E | C11: =IFERROR(VLOOKUP($A11,INDIRECT($Q$1):INDIRECT($Q$2),11,FALSE),0) -> 24471 | D11: =IFERROR(INDEX(INDIRECT($Q$1):INDIRECT($Q$2),MATCH($A11,INDIRECT($Q$1):INDIRECT($Q$3),0),COLUMN()),0)+IFERROR(INDEX(INDIRECT($Q$4):INDIRECT($Q$5),MATCH($A11,INDIRECT($Q$4):INDIRECT($Q$6),0),COLUMN()),0)+IFERROR(INDEX(INDIRECT($Q$7):INDIRECT($Q$8),MATCH($A11,INDIRECT($Q$7):INDIRECT($Q$9),0),COLUMN()),0)+IFERROR(INDEX(INDIRECT($Q$10):INDIRECT($Q$11),MATCH($A11,INDIRECT($Q$10):INDIRECT($Q$12),0),COLUMN()),0)+IFERROR(INDEX(INDIRECT($Q$13):INDIRECT($Q$14),MATCH($A11,INDIRECT($Q$13):INDIRECT($Q$15),0),COLUMN()),0)+IFERROR(INDEX(INDIRECT($Q$16):INDIRECT($Q$17),MATCH($A11,INDIRECT($Q$16):INDIRECT($Q$18),0),COLUMN()),0) -> 0 | E11: =IFERROR(INDEX(INDIRECT($Q$1):INDIRECT($Q$2),MATCH($A11,INDIRECT($Q$1):INDIRECT($Q$3),0),COLUMN()),0)+IFERROR(INDEX(INDIRECT($Q$4):INDIRECT($Q$5),MATCH($A11,INDIRECT($Q$4):INDIRECT($Q$6),0),COLUMN()),0)+IFERROR(INDEX(INDIRECT($Q$7):INDIRECT($Q$8),MATCH($A11,INDIRECT($Q$7):INDIRECT($Q$9),0),COLUMN()),0)+IFERROR(INDEX(INDIRECT($Q$10):INDIRECT($Q$11),MATCH($A11,INDIRECT($Q$10):INDIRECT($Q$12),0),COLUMN()),0)+IFERROR(INDEX(INDIRECT($Q$13):INDIRECT($Q$14),MATCH($A11,INDIRECT($Q$13):INDIRECT($Q$15),0),COLUMN()),0)+IFERROR(INDEX(INDIRECT($Q$16):INDIRECT($Q$17),MATCH($A11,INDIRECT($Q$16):INDIRECT($Q$18),0),COLUMN()),0) -> 0 | F11: =IFERROR(INDEX(INDIRECT($Q$1):INDIRECT($Q$2),MATCH($A11,INDIRECT($Q$1):INDIRECT($Q$3),0),COLUMN()),0)+IFERROR(INDEX(INDIRECT($Q$4):INDIRECT($Q$5),MATCH($A11,INDIRECT($Q$4):INDIRECT($Q$6),0),COLUMN()),0)+IFERROR(INDEX(INDIRECT($Q$7):INDIRECT($Q$8),MATCH($A11,INDIRECT($Q$7):INDIRECT($Q$9),0),COLUMN()),0)+IFERROR(INDEX(INDIRECT($Q$10):INDIRECT($Q$11),MATCH($A11,INDIRECT($Q$10):INDIRECT($Q$12),0),COLUMN()),0)+IFERROR(INDEX(INDIRECT($Q$13):INDIRECT($Q$14),MATCH($A11,INDIRECT($Q$13):INDIRECT($Q$15),0),COLUMN()),0)+IFERROR(INDEX(INDIRECT($Q$16):INDIRECT($Q$17),MATCH($A11,INDIRECT($Q$16):INDIRECT($Q$18),0),COLUMN()),0) -> 0 | G11: =IFERROR(INDEX(INDIRECT($Q$1):INDIRECT($Q$2),MATCH($A11,INDIRECT($Q$1):INDIRECT($Q$3),0),COLUMN()),0)+IFERROR(INDEX(INDIRECT($Q$4):INDIRECT($Q$5),MATCH($A11,INDIRECT($Q$4):INDIRECT($Q$6),0),COLUMN()),0)+IFERROR(INDEX(INDIRECT($Q$7):INDIRECT($Q$8),MATCH($A11,INDIRECT($Q$7):INDIRECT($Q$9),0),COLUMN()),0)+IFERROR(INDEX(INDIRECT($Q$10):INDIRECT($Q$11),MATCH($A11,INDIRECT($Q$10):INDIRECT($Q$12),0),COLUMN()),0)+IFERROR(INDEX(INDIRECT($Q$13):INDIRECT($Q$14),MATCH($A11,INDIRECT($Q$13):INDIRECT($Q$15),0),COLUMN()),0)+IFERROR(INDEX(INDIRECT($Q$16):INDIRECT($Q$17),MATCH($A11,INDIRECT($Q$16):INDIRECT($Q$18),0),COLUMN()),0) -> 0 | H11: =IFERROR(INDEX(INDIRECT($Q$1):INDIRECT($Q$2),MATCH($A11,INDIRECT($Q$1):INDIRECT($Q$3),0),COLUMN()),0)+IFERROR(INDEX(INDIRECT($Q$4):INDIRECT($Q$5),MATCH($A11,INDIRECT($Q$4):INDIRECT($Q$6),0),COLUMN()),0)+IFERROR(INDEX(INDIRECT($Q$7):INDIRECT($Q$8),MATCH($A11,INDIRECT($Q$7):INDIRECT($Q$9),0),COLUMN()),0)+IFERROR(INDEX(INDIRECT($Q$10):INDIRECT($Q$11),MATCH($A11,INDIRECT($Q$10):INDIRECT($Q$12),0),COLUMN()),0)+IFERROR(INDEX(INDIRECT($Q$13):INDIRECT($Q$14),MATCH($A11,INDIRECT($Q$13):INDIRECT($Q$15),0),COLUMN()),0)+IFERROR(INDEX(INDIRECT($Q$16):INDIRECT($Q$17),MATCH($A11,INDIRECT($Q$16):INDIRECT($Q$18),0),COLUMN()),0) -> 0 | I11: =IFERROR(INDEX(INDIRECT($Q$1):INDIRECT($Q$2),MATCH($A11,INDIRECT($Q$1):INDIRECT($Q$3),0),COLUMN()),0)+IFERROR(INDEX(INDIRECT($Q$4):INDIRECT($Q$5),MATCH($A11,INDIRECT($Q$4):INDIRECT($Q$6),0),COLUMN()),0)+IFERROR(INDEX(INDIRECT($Q$7):INDIRECT($Q$8),MATCH($A11,INDIRECT($Q$7):INDIRECT($Q$9),0),COLUMN()),0)+IFERROR(INDEX(INDIRECT($Q$10):INDIRECT($Q$11),MATCH($A11,INDIRECT($Q$10):INDIRECT($Q$12),0),COLUMN()),0)+IFERROR(INDEX(INDIRECT($Q$13):INDIRECT($Q$14),MATCH($A11,INDIRECT($Q$13):INDIRECT($Q$15),0),COLUMN()),0)+IFERROR(INDEX(INDIRECT($Q$16):INDIRECT($Q$17),MATCH($A11,INDIRECT($Q$16):INDIRECT($Q$18),0),COLUMN()),0) -> 0 | J11: 24471 | K11: =IFERROR(VLOOKUP($A11,INDIRECT($Q$16):INDIRECT($Q$17),11,FALSE),0) -> 24471 | L11: 0 | M11: 0 | Q11: =ADDRESS(206,11,1,1,CONCATENATE(TEXT(YEAR(EDATE($B$1,3)),"####"),TEXT(MONTH(EDATE($B$1,3)),"00"))) -> '201512'!$K$206
A12: F06 | B12: K | C12: =IFERROR(VLOOKUP($A12,INDIRECT($Q$1):INDIRECT($Q$2),11,FALSE),0) -> 1952 | D12: =IFERROR(INDEX(INDIRECT($Q$1):INDIRECT($Q$2),MATCH($A12,INDIRECT($Q$1):INDIRECT($Q$3),0),COLUMN()),0)+IFERROR(INDEX(INDIRECT($Q$4):INDIRECT($Q$5),MATCH($A12,INDIRECT($Q$4):INDIRECT($Q$6),0),COLUMN()),0)+IFERROR(INDEX(INDIRECT($Q$7):INDIRECT($Q$8),MATCH($A12,INDIRECT($Q$7):INDIRECT($Q$9),0),COLUMN()),0)+IFERROR(INDEX(INDIRECT($Q$10):INDIRECT($Q$11),MATCH($A12,INDIRECT($Q$10):INDIRECT($Q$12),0),COLUMN()),0)+IFERROR(INDEX(INDIRECT($Q$13):INDIRECT($Q$14),MATCH($A12,INDIRECT($Q$13):INDIRECT($Q$15),0),COLUMN()),0)+IFERROR(INDEX(INDIRECT($Q$16):INDIRECT($Q$17),MATCH($A12,INDIRECT($Q$16):INDIRECT($Q$18),0),COLUMN()),0) -> 14544 | E12: =IFERROR(INDEX(INDIRECT($Q$1):INDIRECT($Q$2),MATCH($A12,INDIRECT($Q$1):INDIRECT($Q$3),0),COLUMN()),0)+IFERROR(INDEX(INDIRECT($Q$4):INDIRECT($Q$5),MATCH($A12,INDIRECT($Q$4):INDIRECT($Q$6),0),COLUMN()),0)+IFERROR(INDEX(INDIRECT($Q$7):INDIRECT($Q$8),MATCH($A12,INDIRECT($Q$7):INDIRECT($Q$9),0),COLUMN()),0)+IFERROR(INDEX(INDIRECT($Q$10):INDIRECT($Q$11),MATCH($A12,INDIRECT($Q$10):INDIRECT($Q$12),0),COLUMN()),0)+IFERROR(INDEX(INDIRECT($Q$13):INDIRECT($Q$14),MATCH($A12,INDIRECT($Q$13):INDIRECT($Q$15),0),COLUMN()),0)+IFERROR(INDEX(INDIRECT($Q$16):INDIRECT($Q$17),MATCH($A12,INDIRECT($Q$16):INDIRECT($Q$18),0),COLUMN()),0) -> 0 | F12: =IFERROR(INDEX(INDIRECT($Q$1):INDIRECT($Q$2),MATCH($A12,INDIRECT($Q$1):INDIRECT($Q$3),0),COLUMN()),0)+IFERROR(INDEX(INDIRECT($Q$4):INDIRECT($Q$5),MATCH($A12,INDIRECT($Q$4):INDIRECT($Q$6),0),COLUMN()),0)+IFERROR(INDEX(INDIRECT($Q$7):INDIRECT($Q$8),MATCH($A12,INDIRECT($Q$7):INDIRECT($Q$9),0),COLUMN()),0)+IFERROR(INDEX(INDIRECT($Q$10):INDIRECT($Q$11),MATCH($A12,INDIRECT($Q$10):INDIRECT($Q$12),0),COLUMN()),0)+IFERROR(INDEX(INDIRECT($Q$13):INDIRECT($Q$14),MATCH($A12,INDIRECT($Q$13):INDIRECT($Q$15),0),COLUMN()),0)+IFERROR(INDEX(INDIRECT($Q$16):INDIRECT($Q$17),MATCH($A12,INDIRECT($Q$16):INDIRECT($Q$18),0),COLUMN()),0) -> 0 | G12: =IFERROR(INDEX(INDIRECT($Q$1):INDIRECT($Q$2),MATCH($A12,INDIRECT($Q$1):INDIRECT($Q$3),0),COLUMN()),0)+IFERROR(INDEX(INDIRECT($Q$4):INDIRECT($Q$5),MATCH($A12,INDIRECT($Q$4):INDIRECT($Q$6),0),COLUMN()),0)+IFERROR(INDEX(INDIRECT($Q$7):INDIRECT($Q$8),MATCH($A12,INDIRECT($Q$7):INDIRECT($Q$9),0),COLUMN()),0)+IFERROR(INDEX(INDIRECT($Q$10):INDIRECT($Q$11),MATCH($A12,INDIRECT($Q$10):INDIRECT($Q$12),0),COLUMN()),0)+IFERROR(INDEX(INDIRECT($Q$13):INDIRECT($Q$14),MATCH($A12,INDIRECT($Q$13):INDIRECT($Q$15),0),COLUMN()),0)+IFERROR(INDEX(INDIRECT($Q$16):INDIRECT($Q$17),MATCH($A12,INDIRECT($Q$16):INDIRECT($Q$18),0),COLUMN()),0) -> 2832 | H12: =IFERROR(INDEX(INDIRECT($Q$1):INDIRECT($Q$2),MATCH($A12,INDIRECT($Q$1):INDIRECT($Q$3),0),COLUMN()),0)+IFERROR(INDEX(INDIRECT($Q$4):INDIRECT($Q$5),MATCH($A12,INDIRECT($Q$4):INDIRECT($Q$6),0),COLUMN()),0)+IFERROR(INDEX(INDIRECT($Q$7):INDIRECT($Q$8),MATCH($A12,INDIRECT($Q$7):INDIRECT($Q$9),0),COLUMN()),0)+IFERROR(INDEX(INDIRECT($Q$10):INDIRECT($Q$11),MATCH($A12,INDIRECT($Q$10):INDIRECT($Q$12),0),COLUMN()),0)+IFERROR(INDEX(INDIRECT($Q$13):INDIRECT($Q$14),MATCH($A12,INDIRECT($Q$13):INDIRECT($Q$15),0),COLUMN()),0)+IFERROR(INDEX(INDIRECT($Q$16):INDIRECT($Q$17),MATCH($A12,INDIRECT($Q$16):INDIRECT($Q$18),0),COLUMN()),0) -> 0 | I12: =IFERROR(INDEX(INDIRECT($Q$1):INDIRECT($Q$2),MATCH($A12,INDIRECT($Q$1):INDIRECT($Q$3),0),COLUMN()),0)+IFERROR(INDEX(INDIRECT($Q$4):INDIRECT($Q$5),MATCH($A12,INDIRECT($Q$4):INDIRECT($Q$6),0),COLUMN()),0)+IFERROR(INDEX(INDIRECT($Q$7):INDIRECT($Q$8),MATCH($A12,INDIRECT($Q$7):INDIRECT($Q$9),0),COLUMN()),0)+IFERROR(INDEX(INDIRECT($Q$10):INDIRECT($Q$11),MATCH($A12,INDIRECT($Q$10):INDIRECT($Q$12),0),COLUMN()),0)+IFERROR(INDEX(INDIRECT($Q$13):INDIRECT($Q$14),MATCH($A12,INDIRECT($Q$13):INDIRECT($Q$15),0),COLUMN()),0)+IFERROR(INDEX(INDIRECT($Q$16):INDIRECT($Q$17),MATCH($A12,INDIRECT($Q$16):INDIRECT($Q$18),0),COLUMN()),0) -> 0 | J12: 13664 | K12: =IFERROR(VLOOKUP($A12,INDIRECT($Q$16):INDIRECT($Q$17),11,FALSE),0) -> 3800 | L12: 0 | M12: 9864 | Q12: =ADDRESS(206,1,1,1,CONCATENATE(TEXT(YEAR(EDATE($B$1,3)),"####"),TEXT(MONTH(EDATE($B$1,3)),"00"))) -> '201512'!$A$206
A13: F07 | B13: G | C13: =IFERROR(VLOOKUP($A13,INDIRECT($Q$1):INDIRECT($Q$2),11,FALSE),0) -> 351 | D13: =IFERROR(INDEX(INDIRECT($Q$1):INDIRECT($Q$2),MATCH($A13,INDIRECT($Q$1):INDIRECT($Q$3),0),COLUMN()),0)+IFERROR(INDEX(INDIRECT($Q$4):INDIRECT($Q$5),MATCH($A13,INDIRECT($Q$4):INDIRECT($Q$6),0),COLUMN()),0)+IFERROR(INDEX(INDIRECT($Q$7):INDIRECT($Q$8),MATCH($A13,INDIRECT($Q$7):INDIRECT($Q$9),0),COLUMN()),0)+IFERROR(INDEX(INDIRECT($Q$10):INDIRECT($Q$11),MATCH($A13,INDIRECT($Q$10):INDIRECT($Q$12),0),COLUMN()),0)+IFERROR(INDEX(INDIRECT($Q$13):INDIRECT($Q$14),MATCH($A13,INDIRECT($Q$13):INDIRECT($Q$15),0),COLUMN()),0)+IFERROR(INDEX(INDIRECT($Q$16):INDIRECT($Q$17),MATCH($A13,INDIRECT($Q$16):INDIRECT($Q$18),0),COLUMN()),0) -> 744 | E13: =IFERROR(INDEX(INDIRECT($Q$1):INDIRECT($Q$2),MATCH($A13,INDIRECT($Q$1):INDIRECT($Q$3),0),COLUMN()),0)+IFERROR(INDEX(INDIRECT($Q$4):INDIRECT($Q$5),MATCH($A13,INDIRECT($Q$4):INDIRECT($Q$6),0),COLUMN()),0)+IFERROR(INDEX(INDIRECT($Q$7):INDIRECT($Q$8),MATCH($A13,INDIRECT($Q$7):INDIRECT($Q$9),0),COLUMN()),0)+IFERROR(INDEX(INDIRECT($Q$10):INDIRECT($Q$11),MATCH($A13,INDIRECT($Q$10):INDIRECT($Q$12),0),COLUMN()),0)+IFERROR(INDEX(INDIRECT($Q$13):INDIRECT($Q$14),MATCH($A13,INDIRECT($Q$13):INDIRECT($Q$15),0),COLUMN()),0)+IFERROR(INDEX(INDIRECT($Q$16):INDIRECT($Q$17),MATCH($A13,INDIRECT($Q$16):INDIRECT($Q$18),0),COLUMN()),0) -> 0 | F13: =IFERROR(INDEX(INDIRECT($Q$1):INDIRECT($Q$2),MATCH($A13,INDIRECT($Q$1):INDIRECT($Q$3),0),COLUMN()),0)+IFERROR(INDEX(INDIRECT($Q$4):INDIRECT($Q$5),MATCH($A13,INDIRECT($Q$4):INDIRECT($Q$6),0),COLUMN()),0)+IFERROR(INDEX(INDIRECT($Q$7):INDIRECT($Q$8),MATCH($A13,INDIRECT($Q$7):INDIRECT($Q$9),0),COLUMN()),0)+IFERROR(INDEX(INDIRECT($Q$10):INDIRECT($Q$11),MATCH($A13,INDIRECT($Q$10):INDIRECT($Q$12),0),COLUMN()),0)+IFERROR(INDEX(INDIRECT($Q$13):INDIRECT($Q$14),MATCH($A13,INDIRECT($Q$13):INDIRECT($Q$15),0),COLUMN()),0)+IFERROR(INDEX(INDIRECT($Q$16):INDIRECT($Q$17),MATCH($A13,INDIRECT($Q$16):INDIRECT($Q$18),0),COLUMN()),0) -> 0 | G13: =IFERROR(INDEX(INDIRECT($Q$1):INDIRECT($Q$2),MATCH($A13,INDIRECT($Q$1):INDIRECT($Q$3),0),COLUMN()),0)+IFERROR(INDEX(INDIRECT($Q$4):INDIRECT($Q$5),MATCH($A13,INDIRECT($Q$4):INDIRECT($Q$6),0),COLUMN()),0)+IFERROR(INDEX(INDIRECT($Q$7):INDIRECT($Q$8),MATCH($A13,INDIRECT($Q$7):INDIRECT($Q$9),0),COLUMN()),0)+IFERROR(INDEX(INDIRECT($Q$10):INDIRECT($Q$11),MATCH($A13,INDIRECT($Q$10):INDIRECT($Q$12),0),COLUMN()),0)+IFERROR(INDEX(INDIRECT($Q$13):INDIRECT($Q$14),MATCH($A13,INDIRECT($Q$13):INDIRECT($Q$15),0),COLUMN()),0)+IFERROR(INDEX(INDIRECT($Q$16):INDIRECT($Q$17),MATCH($A13,INDIRECT($Q$16):INDIRECT($Q$18),0),COLUMN()),0) -> 84 | H13: =IFERROR(INDEX(INDIRECT($Q$1):INDIRECT($Q$2),MATCH($A13,INDIRECT($Q$1):INDIRECT($Q$3),0),COLUMN()),0)+IFERROR(INDEX(INDIRECT($Q$4):INDIRECT($Q$5),MATCH($A13,INDIRECT($Q$4):INDIRECT($Q$6),0),COLUMN()),0)+IFERROR(INDEX(INDIRECT($Q$7):INDIRECT($Q$8),MATCH($A13,INDIRECT($Q$7):INDIRECT($Q$9),0),COLUMN()),0)+IFERROR(INDEX(INDIRECT($Q$10):INDIRECT($Q$11),MATCH($A13,INDIRECT($Q$10):INDIRECT($Q$12),0),COLUMN()),0)+IFERROR(INDEX(INDIRECT($Q$13):INDIRECT($Q$14),MATCH($A13,INDIRECT($Q$13):INDIRECT($Q$15),0),COLUMN()),0)+IFERROR(INDEX(INDIRECT($Q$16):INDIRECT($Q$17),MATCH($A13,INDIRECT($Q$16):INDIRECT($Q$18),0),COLUMN()),0) -> 0 | I13: =IFERROR(INDEX(INDIRECT($Q$1):INDIRECT($Q$2),MATCH($A13,INDIRECT($Q$1):INDIRECT($Q$3),0),COLUMN()),0)+IFERROR(INDEX(INDIRECT($Q$4):INDIRECT($Q$5),MATCH($A13,INDIRECT($Q$4):INDIRECT($Q$6),0),COLUMN()),0)+IFERROR(INDEX(INDIRECT($Q$7):INDIRECT($Q$8),MATCH($A13,INDIRECT($Q$7):INDIRECT($Q$9),0),COLUMN()),0)+IFERROR(INDEX(INDIRECT($Q$10):INDIRECT($Q$11),MATCH($A13,INDIRECT($Q$10):INDIRECT($Q$12),0),COLUMN()),0)+IFERROR(INDEX(INDIRECT($Q$13):INDIRECT($Q$14),MATCH($A13,INDIRECT($Q$13):INDIRECT($Q$15),0),COLUMN()),0)+IFERROR(INDEX(INDIRECT($Q$16):INDIRECT($Q$17),MATCH($A13,INDIRECT($Q$16):INDIRECT($Q$18),0),COLUMN()),0) -> 0 | J13: 1011 | K13: =IFERROR(VLOOKUP($A13,INDIRECT($Q$16):INDIRECT($Q$17),11,FALSE),0) -> 470 | L13: 0 | M13: 541 | Q13: =ADDRESS(7,1,1,1,CONCATENATE(TEXT(YEAR(EDATE($B$1,4)),"####"),TEXT(MONTH(EDATE($B$1,4)),"00"))) -> '201601'!$A$7
A14: F08 | B14: H | C14: =IFERROR(VLOOKUP($A14,INDIRECT($Q$1):INDIRECT($Q$2),11,FALSE),0) -> 197 | D14: =IFERROR(INDEX(INDIRECT($Q$1):INDIRECT($Q$2),MATCH($A14,INDIRECT($Q$1):INDIRECT($Q$3),0),COLUMN()),0)+IFERROR(INDEX(INDIRECT($Q$4):INDIRECT($Q$5),MATCH($A14,INDIRECT($Q$4):INDIRECT($Q$6),0),COLUMN()),0)+IFERROR(INDEX(INDIRECT($Q$7):INDIRECT($Q$8),MATCH($A14,INDIRECT($Q$7):INDIRECT($Q$9),0),COLUMN()),0)+IFERROR(INDEX(INDIRECT($Q$10):INDIRECT($Q$11),MATCH($A14,INDIRECT($Q$10):INDIRECT($Q$12),0),COLUMN()),0)+IFERROR(INDEX(INDIRECT($Q$13):INDIRECT($Q$14),MATCH($A14,INDIRECT($Q$13):INDIRECT($Q$15),0),COLUMN()),0)+IFERROR(INDEX(INDIRECT($Q$16):INDIRECT($Q$17),MATCH($A14,INDIRECT($Q$16):INDIRECT($Q$18),0),COLUMN()),0) -> 882 | E14: =IFERROR(INDEX(INDIRECT($Q$1):INDIRECT($Q$2),MATCH($A14,INDIRECT($Q$1):INDIRECT($Q$3),0),COLUMN()),0)+IFERROR(INDEX(INDIRECT($Q$4):INDIRECT($Q$5),MATCH($A14,INDIRECT($Q$4):INDIRECT($Q$6),0),COLUMN()),0)+IFERROR(INDEX(INDIRECT($Q$7):INDIRECT($Q$8),MATCH($A14,INDIRECT($Q$7):INDIRECT($Q$9),0),COLUMN()),0)+IFERROR(INDEX(INDIRECT($Q$10):INDIRECT($Q$11),MATCH($A14,INDIRECT($Q$10):INDIRECT($Q$12),0),COLUMN()),0)+IFERROR(INDEX(INDIRECT($Q$13):INDIRECT($Q$14),MATCH($A14,INDIRECT($Q$13):INDIRECT($Q$15),0),COLUMN()),0)+IFERROR(INDEX(INDIRECT($Q$16):INDIRECT($Q$17),MATCH($A14,INDIRECT($Q$16):INDIRECT($Q$18),0),COLUMN()),0) -> 0 | F14: =IFERROR(INDEX(INDIRECT($Q$1):INDIRECT($Q$2),MATCH($A14,INDIRECT($Q$1):INDIRECT($Q$3),0),COLUMN()),0)+IFERROR(INDEX(INDIRECT($Q$4):INDIRECT($Q$5),MATCH($A14,INDIRECT($Q$4):INDIRECT($Q$6),0),COLUMN()),0)+IFERROR(INDEX(INDIRECT($Q$7):INDIRECT($Q$8),MATCH($A14,INDIRECT($Q$7):INDIRECT($Q$9),0),COLUMN()),0)+IFERROR(INDEX(INDIRECT($Q$10):INDIRECT($Q$11),MATCH($A14,INDIRECT($Q$10):INDIRECT($Q$12),0),COLUMN()),0)+IFERROR(INDEX(INDIRECT($Q$13):INDIRECT($Q$14),MATCH($A14,INDIRECT($Q$13):INDIRECT($Q$15),0),COLUMN()),0)+IFERROR(INDEX(INDIRECT($Q$16):INDIRECT($Q$17),MATCH($A14,INDIRECT($Q$16):INDIRECT($Q$18),0),COLUMN()),0) -> 0 | G14: =IFERROR(INDEX(INDIRECT($Q$1):INDIRECT($Q$2),MATCH($A14,INDIRECT($Q$1):INDIRECT($Q$3),0),COLUMN()),0)+IFERROR(INDEX(INDIRECT($Q$4):INDIRECT($Q$5),MATCH($A14,INDIRECT($Q$4):INDIRECT($Q$6),0),COLUMN()),0)+IFERROR(INDEX(INDIRECT($Q$7):INDIRECT($Q$8),MATCH($A14,INDIRECT($Q$7):INDIRECT($Q$9),0),COLUMN()),0)+IFERROR(INDEX(INDIRECT($Q$10):INDIRECT($Q$11),MATCH($A14,INDIRECT($Q$10):INDIRECT($Q$12),0),COLUMN()),0)+IFERROR(INDEX(INDIRECT($Q$13):INDIRECT($Q$14),MATCH($A14,INDIRECT($Q$13):INDIRECT($Q$15),0),COLUMN()),0)+IFERROR(INDEX(INDIRECT($Q$16):INDIRECT($Q$17),MATCH($A14,INDIRECT($Q$16):INDIRECT($Q$18),0),COLUMN()),0) -> 2305 | H14: =IFERROR(INDEX(INDIRECT($Q$1):INDIRECT($Q$2),MATCH($A14,INDIRECT($Q$1):INDIRECT($Q$3),0),COLUMN()),0)+IFERROR(INDEX(INDIRECT($Q$4):INDIRECT($Q$5),MATCH($A14,INDIRECT($Q$4):INDIRECT($Q$6),0),COLUMN()),0)+IFERROR(INDEX(INDIRECT($Q$7):INDIRECT($Q$8),MATCH($A14,INDIRECT($Q$7):INDIRECT($Q$9),0),COLUMN()),0)+IFERROR(INDEX(INDIRECT($Q$10):INDIRECT($Q$11),MATCH($A14,INDIRECT($Q$10):INDIRECT($Q$12),0),COLUMN()),0)+IFERROR(INDEX(INDIRECT($Q$13):INDIRECT($Q$14),MATCH($A14,INDIRECT($Q$13):INDIRECT($Q$15),0),COLUMN()),0)+IFERROR(INDEX(INDIRECT($Q$16):INDIRECT($Q$17),MATCH($A14,INDIRECT($Q$16):INDIRECT($Q$18),0),COLUMN()),0) -> 0 | I14: =IFERROR(INDEX(INDIRECT($Q$1):INDIRECT($Q$2),MATCH($A14,INDIRECT($Q$1):INDIRECT($Q$3),0),COLUMN()),0)+IFERROR(INDEX(INDIRECT($Q$4):INDIRECT($Q$5),MATCH($A14,INDIRECT($Q$4):INDIRECT($Q$6),0),COLUMN()),0)+IFERROR(INDEX(INDIRECT($Q$7):INDIRECT($Q$8),MATCH($A14,INDIRECT($Q$7):INDIRECT($Q$9),0),COLUMN()),0)+IFERROR(INDEX(INDIRECT($Q$10):INDIRECT($Q$11),MATCH($A14,INDIRECT($Q$10):INDIRECT($Q$12),0),COLUMN()),0)+IFERROR(INDEX(INDIRECT($Q$13):INDIRECT($Q$14),MATCH($A14,INDIRECT($Q$13):INDIRECT($Q$15),0),COLUMN()),0)+IFERROR(INDEX(INDIRECT($Q$16):INDIRECT($Q$17),MATCH($A14,INDIRECT($Q$16):INDIRECT($Q$18),0),COLUMN()),0) -> 0 | J14: -1226 | K14: =IFERROR(VLOOKUP($A14,INDIRECT($Q$16):INDIRECT($Q$17),11,FALSE),0) -> 197 | L14: 1423 | M14: 0 | Q14: =ADDRESS(206,11,1,1,CONCATENATE(TEXT(YEAR(EDATE($B$1,4)),"####"),TEXT(MONTH(EDATE($B$1,4)),"00"))) -> '201601'!$K$206
A15: F09 | B15: I | C15: =IFERROR(VLOOKUP($A15,INDIRECT($Q$1):INDIRECT($Q$2),11,FALSE),0) -> 2253 | D15: =IFERROR(INDEX(INDIRECT($Q$1):INDIRECT($Q$2),MATCH($A15,INDIRECT($Q$1):INDIRECT($Q$3),0),COLUMN()),0)+IFERROR(INDEX(INDIRECT($Q$4):INDIRECT($Q$5),MATCH($A15,INDIRECT($Q$4):INDIRECT($Q$6),0),COLUMN()),0)+IFERROR(INDEX(INDIRECT($Q$7):INDIRECT($Q$8),MATCH($A15,INDIRECT($Q$7):INDIRECT($Q$9),0),COLUMN()),0)+IFERROR(INDEX(INDIRECT($Q$10):INDIRECT($Q$11),MATCH($A15,INDIRECT($Q$10):INDIRECT($Q$12),0),COLUMN()),0)+IFERROR(INDEX(INDIRECT($Q$13):INDIRECT($Q$14),MATCH($A15,INDIRECT($Q$13):INDIRECT($Q$15),0),COLUMN()),0)+IFERROR(INDEX(INDIRECT($Q$16):INDIRECT($Q$17),MATCH($A15,INDIRECT($Q$16):INDIRECT($Q$18),0),COLUMN()),0) -> 16344 | E15: =IFERROR(INDEX(INDIRECT($Q$1):INDIRECT($Q$2),MATCH($A15,INDIRECT($Q$1):INDIRECT($Q$3),0),COLUMN()),0)+IFERROR(INDEX(INDIRECT($Q$4):INDIRECT($Q$5),MATCH($A15,INDIRECT($Q$4):INDIRECT($Q$6),0),COLUMN()),0)+IFERROR(INDEX(INDIRECT($Q$7):INDIRECT($Q$8),MATCH($A15,INDIRECT($Q$7):INDIRECT($Q$9),0),COLUMN()),0)+IFERROR(INDEX(INDIRECT($Q$10):INDIRECT($Q$11),MATCH($A15,INDIRECT($Q$10):INDIRECT($Q$12),0),COLUMN()),0)+IFERROR(INDEX(INDIRECT($Q$13):INDIRECT($Q$14),MATCH($A15,INDIRECT($Q$13):INDIRECT($Q$15),0),COLUMN()),0)+IFERROR(INDEX(INDIRECT($Q$16):INDIRECT($Q$17),MATCH($A15,INDIRECT($Q$16):INDIRECT($Q$18),0),COLUMN()),0) -> 0 | F15: =IFERROR(INDEX(INDIRECT($Q$1):INDIRECT($Q$2),MATCH($A15,INDIRECT($Q$1):INDIRECT($Q$3),0),COLUMN()),0)+IFERROR(INDEX(INDIRECT($Q$4):INDIRECT($Q$5),MATCH($A15,INDIRECT($Q$4):INDIRECT($Q$6),0),COLUMN()),0)+IFERROR(INDEX(INDIRECT($Q$7):INDIRECT($Q$8),MATCH($A15,INDIRECT($Q$7):INDIRECT($Q$9),0),COLUMN()),0)+IFERROR(INDEX(INDIRECT($Q$10):INDIRECT($Q$11),MATCH($A15,INDIRECT($Q$10):INDIRECT($Q$12),0),COLUMN()),0)+IFERROR(INDEX(INDIRECT($Q$13):INDIRECT($Q$14),MATCH($A15,INDIRECT($Q$13):INDIRECT($Q$15),0),COLUMN()),0)+IFERROR(INDEX(INDIRECT($Q$16):INDIRECT($Q$17),MATCH($A15,INDIRECT($Q$16):INDIRECT($Q$18),0),COLUMN()),0) -> 0 | G15: =IFERROR(INDEX(INDIRECT($Q$1):INDIRECT($Q$2),MATCH($A15,INDIRECT($Q$1):INDIRECT($Q$3),0),COLUMN()),0)+IFERROR(INDEX(INDIRECT($Q$4):INDIRECT($Q$5),MATCH($A15,INDIRECT($Q$4):INDIRECT($Q$6),0),COLUMN()),0)+IFERROR(INDEX(INDIRECT($Q$7):INDIRECT($Q$8),MATCH($A15,INDIRECT($Q$7):INDIRECT($Q$9),0),COLUMN()),0)+IFERROR(INDEX(INDIRECT($Q$10):INDIRECT($Q$11),MATCH($A15,INDIRECT($Q$10):INDIRECT($Q$12),0),COLUMN()),0)+IFERROR(INDEX(INDIRECT($Q$13):INDIRECT($Q$14),MATCH($A15,INDIRECT($Q$13):INDIRECT($Q$15),0),COLUMN()),0)+IFERROR(INDEX(INDIRECT($Q$16):INDIRECT($Q$17),MATCH($A15,INDIRECT($Q$16):INDIRECT($Q$18),0),COLUMN()),0) -> 2826 | H15: =IFERROR(INDEX(INDIRECT($Q$1):INDIRECT($Q$2),MATCH($A15,INDIRECT($Q$1):INDIRECT($Q$3),0),COLUMN()),0)+IFERROR(INDEX(INDIRECT($Q$4):INDIRECT($Q$5),MATCH($A15,INDIRECT($Q$4):INDIRECT($Q$6),0),COLUMN()),0)+IFERROR(INDEX(INDIRECT($Q$7):INDIRECT($Q$8),MATCH($A15,INDIRECT($Q$7):INDIRECT($Q$9),0),COLUMN()),0)+IFERROR(INDEX(INDIRECT($Q$10):INDIRECT($Q$11),MATCH($A15,INDIRECT($Q$10):INDIRECT($Q$12),0),COLUMN()),0)+IFERROR(INDEX(INDIRECT($Q$13):INDIRECT($Q$14),MATCH($A15,INDIRECT($Q$13):INDIRECT($Q$15),0),COLUMN()),0)+IFERROR(INDEX(INDIRECT($Q$16):INDIRECT($Q$17),MATCH($A15,INDIRECT($Q$16):INDIRECT($Q$18),0),COLUMN()),0) -> 0 | I15: =IFERROR(INDEX(INDIRECT($Q$1):INDIRECT($Q$2),MATCH($A15,INDIRECT($Q$1):INDIRECT($Q$3),0),COLUMN()),0)+IFERROR(INDEX(INDIRECT($Q$4):INDIRECT($Q$5),MATCH($A15,INDIRECT($Q$4):INDIRECT($Q$6),0),COLUMN()),0)+IFERROR(INDEX(INDIRECT($Q$7):INDIRECT($Q$8),MATCH($A15,INDIRECT($Q$7):INDIRECT($Q$9),0),COLUMN()),0)+IFERROR(INDEX(INDIRECT($Q$10):INDIRECT($Q$11),MATCH($A15,INDIRECT($Q$10):INDIRECT($Q$12),0),COLUMN()),0)+IFERROR(INDEX(INDIRECT($Q$13):INDIRECT($Q$14),MATCH($A15,INDIRECT($Q$13):INDIRECT($Q$15),0),COLUMN()),0)+IFERROR(INDEX(INDIRECT($Q$16):INDIRECT($Q$17),MATCH($A15,INDIRECT($Q$16):INDIRECT($Q$18),0),COLUMN()),0) -> 0 | J15: 15771 | K15: =IFERROR(VLOOKUP($A15,INDIRECT($Q$16):INDIRECT($Q$17),11,FALSE),0) -> 4506 | L15: 0 | M15: 11265 | Q15: =ADDRESS(206,1,1,1,CONCATENATE(TEXT(YEAR(EDATE($B$1,4)),"####"),TEXT(MONTH(EDATE($B$1,4)),"00"))) -> '201601'!$A$206
A16: F10 | B16: J | C16: =IFERROR(VLOOKUP($A16,INDIRECT($Q$1):INDIRECT($Q$2),11,FALSE),0) -> 27198 | D16: =IFERROR(INDEX(INDIRECT($Q$1):INDIRECT($Q$2),MATCH($A16,INDIRECT($Q$1):INDIRECT($Q$3),0),COLUMN()),0)+IFERROR(INDEX(INDIRECT($Q$4):INDIRECT($Q$5),MATCH($A16,INDIRECT($Q$4):INDIRECT($Q$6),0),COLUMN()),0)+IFERROR(INDEX(INDIRECT($Q$7):INDIRECT($Q$8),MATCH($A16,INDIRECT($Q$7):INDIRECT($Q$9),0),COLUMN()),0)+IFERROR(INDEX(INDIRECT($Q$10):INDIRECT($Q$11),MATCH($A16,INDIRECT($Q$10):INDIRECT($Q$12),0),COLUMN()),0)+IFERROR(INDEX(INDIRECT($Q$13):INDIRECT($Q$14),MATCH($A16,INDIRECT($Q$13):INDIRECT($Q$15),0),COLUMN()),0)+IFERROR(INDEX(INDIRECT($Q$16):INDIRECT($Q$17),MATCH($A16,INDIRECT($Q$16):INDIRECT($Q$18),0),COLUMN()),0) -> 248832 | E16: =IFERROR(INDEX(INDIRECT($Q$1):INDIRECT($Q$2),MATCH($A16,INDIRECT($Q$1):INDIRECT($Q$3),0),COLUMN()),0)+IFERROR(INDEX(INDIRECT($Q$4):INDIRECT($Q$5),MATCH($A16,INDIRECT($Q$4):INDIRECT($Q$6),0),COLUMN()),0)+IFERROR(INDEX(INDIRECT($Q$7):INDIRECT($Q$8),MATCH($A16,INDIRECT($Q$7):INDIRECT($Q$9),0),COLUMN()),0)+IFERROR(INDEX(INDIRECT($Q$10):INDIRECT($Q$11),MATCH($A16,INDIRECT($Q$10):INDIRECT($Q$12),0),COLUMN()),0)+IFERROR(INDEX(INDIRECT($Q$13):INDIRECT($Q$14),MATCH($A16,INDIRECT($Q$13):INDIRECT($Q$15),0),COLUMN()),0)+IFERROR(INDEX(INDIRECT($Q$16):INDIRECT($Q$17),MATCH($A16,INDIRECT($Q$16):INDIRECT($Q$18),0),COLUMN()),0) -> 0 | F16: =IFERROR(INDEX(INDIRECT($Q$1):INDIRECT($Q$2),MATCH($A16,INDIRECT($Q$1):INDIRECT($Q$3),0),COLUMN()),0)+IFERROR(INDEX(INDIRECT($Q$4):INDIRECT($Q$5),MATCH($A16,INDIRECT($Q$4):INDIRECT($Q$6),0),COLUMN()),0)+IFERROR(INDEX(INDIRECT($Q$7):INDIRECT($Q$8),MATCH($A16,INDIRECT($Q$7):INDIRECT($Q$9),0),COLUMN()),0)+IFERROR(INDEX(INDIRECT($Q$10):INDIRECT($Q$11),MATCH($A16,INDIRECT($Q$10):INDIRECT($Q$12),0),COLUMN()),0)+IFERROR(INDEX(INDIRECT($Q$13):INDIRECT($Q$14),MATCH($A16,INDIRECT($Q$13):INDIRECT($Q$15),0),COLUMN()),0)+IFERROR(INDEX(INDIRECT($Q$16):INDIRECT($Q$17),MATCH($A16,INDIRECT($Q$16):INDIRECT($Q$18),0),COLUMN()),0) -> 0 | G16: =IFERROR(INDEX(INDIRECT($Q$1):INDIRECT($Q$2),MATCH($A16,INDIRECT($Q$1):INDIRECT($Q$3),0),COLUMN()),0)+IFERROR(INDEX(INDIRECT($Q$4):INDIRECT($Q$5),MATCH($A16,INDIRECT($Q$4):INDIRECT($Q$6),0),COLUMN()),0)+IFERROR(INDEX(INDIRECT($Q$7):INDIRECT($Q$8),MATCH($A16,INDIRECT($Q$7):INDIRECT($Q$9),0),COLUMN()),0)+IFERROR(INDEX(INDIRECT($Q$10):INDIRECT($Q$11),MATCH($A16,INDIRECT($Q$10):INDIRECT($Q$12),0),COLUMN()),0)+IFERROR(INDEX(INDIRECT($Q$13):INDIRECT($Q$14),MATCH($A16,INDIRECT($Q$13):INDIRECT($Q$15),0),COLUMN()),0)+IFERROR(INDEX(INDIRECT($Q$16):INDIRECT($Q$17),MATCH($A16,INDIRECT($Q$16):INDIRECT($Q$18),0),COLUMN()),0) -> 114605 | H16: =IFERROR(INDEX(INDIRECT($Q$1):INDIRECT($Q$2),MATCH($A16,INDIRECT($Q$1):INDIRECT($Q$3),0),COLUMN()),0)+IFERROR(INDEX(INDIRECT($Q$4):INDIRECT($Q$5),MATCH($A16,INDIRECT($Q$4):INDIRECT($Q$6),0),COLUMN()),0)+IFERROR(INDEX(INDIRECT($Q$7):INDIRECT($Q$8),MATCH($A16,INDIRECT($Q$7):INDIRECT($Q$9),0),COLUMN()),0)+IFERROR(INDEX(INDIRECT($Q$10):INDIRECT($Q$11),MATCH($A16,INDIRECT($Q$10):INDIRECT($Q$12),0),COLUMN()),0)+IFERROR(INDEX(INDIRECT($Q$13):INDIRECT($Q$14),MATCH($A16,INDIRECT($Q$13):INDIRECT($Q$15),0),COLUMN()),0)+IFERROR(INDEX(INDIRECT($Q$16):INDIRECT($Q$17),MATCH($A16,INDIRECT($Q$16):INDIRECT($Q$18),0),COLUMN()),0) -> 0 | I16: =IFERROR(INDEX(INDIRECT($Q$1):INDIRECT($Q$2),MATCH($A16,INDIRECT($Q$1):INDIRECT($Q$3),0),COLUMN()),0)+IFERROR(INDEX(INDIRECT($Q$4):INDIRECT($Q$5),MATCH($A16,INDIRECT($Q$4):INDIRECT($Q$6),0),COLUMN()),0)+IFERROR(INDEX(INDIRECT($Q$7):INDIRECT($Q$8),MATCH($A16,INDIRECT($Q$7):INDIRECT($Q$9),0),COLUMN()),0)+IFERROR(INDEX(INDIRECT($Q$10):INDIRECT($Q$11),MATCH($A16,INDIRECT($Q$10):INDIRECT($Q$12),0),COLUMN()),0)+IFERROR(INDEX(INDIRECT($Q$13):INDIRECT($Q$14),MATCH($A16,INDIRECT($Q$13):INDIRECT($Q$15),0),COLUMN()),0)+IFERROR(INDEX(INDIRECT($Q$16):INDIRECT($Q$17),MATCH($A16,INDIRECT($Q$16):INDIRECT($Q$18),0),COLUMN()),0) -> 0 | J16: 161425 | K16: =IFERROR(VLOOKUP($A16,INDIRECT($Q$16):INDIRECT($Q$17),11,FALSE),0) -> 27000 | L16: 0 | M16: 134425 | Q16: =ADDRESS(7,1,1,1,CONCATENATE(TEXT(YEAR(EDATE($B$1,5)),"####"),TEXT(MONTH(EDATE($B$1,5)),"00"))) -> '201602'!$A$7
A17: F11 | B17: K | C17: =IFERROR(VLOOKUP($A17,INDIRECT($Q$1):INDIRECT($Q$2),11,FALSE),0) -> 4241 | D17: =IFERROR(INDEX(INDIRECT($Q$1):INDIRECT($Q$2),MATCH($A17,INDIRECT($Q$1):INDIRECT($Q$3),0),COLUMN()),0)+IFERROR(INDEX(INDIRECT($Q$4):INDIRECT($Q$5),MATCH($A17,INDIRECT($Q$4):INDIRECT($Q$6),0),COLUMN()),0)+IFERROR(INDEX(INDIRECT($Q$7):INDIRECT($Q$8),MATCH($A17,INDIRECT($Q$7):INDIRECT($Q$9),0),COLUMN()),0)+IFERROR(INDEX(INDIRECT($Q$10):INDIRECT($Q$11),MATCH($A17,INDIRECT($Q$10):INDIRECT($Q$12),0),COLUMN()),0)+IFERROR(INDEX(INDIRECT($Q$13):INDIRECT($Q$14),MATCH($A17,INDIRECT($Q$13):INDIRECT($Q$15),0),COLUMN()),0)+IFERROR(INDEX(INDIRECT($Q$16):INDIRECT($Q$17),MATCH($A17,INDIRECT($Q$16):INDIRECT($Q$18),0),COLUMN()),0) -> 25446 | E17: =IFERROR(INDEX(INDIRECT($Q$1):INDIRECT($Q$2),MATCH($A17,INDIRECT($Q$1):INDIRECT($Q$3),0),COLUMN()),0)+IFERROR(INDEX(INDIRECT($Q$4):INDIRECT($Q$5),MATCH($A17,INDIRECT($Q$4):INDIRECT($Q$6),0),COLUMN()),0)+IFERROR(INDEX(INDIRECT($Q$7):INDIRECT($Q$8),MATCH($A17,INDIRECT($Q$7):INDIRECT($Q$9),0),COLUMN()),0)+IFERROR(INDEX(INDIRECT($Q$10):INDIRECT($Q$11),MATCH($A17,INDIRECT($Q$10):INDIRECT($Q$12),0),COLUMN()),0)+IFERROR(INDEX(INDIRECT($Q$13):INDIRECT($Q$14),MATCH($A17,INDIRECT($Q$13):INDIRECT($Q$15),0),COLUMN()),0)+IFERROR(INDEX(INDIRECT($Q$16):INDIRECT($Q$17),MATCH($A17,INDIRECT($Q$16):INDIRECT($Q$18),0),COLUMN()),0) -> 0 | F17: =IFERROR(INDEX(INDIRECT($Q$1):INDIRECT($Q$2),MATCH($A17,INDIRECT($Q$1):INDIRECT($Q$3),0),COLUMN()),0)+IFERROR(INDEX(INDIRECT($Q$4):INDIRECT($Q$5),MATCH($A17,INDIRECT($Q$4):INDIRECT($Q$6),0),COLUMN()),0)+IFERROR(INDEX(INDIRECT($Q$7):INDIRECT($Q$8),MATCH($A17,INDIRECT($Q$7):INDIRECT($Q$9),0),COLUMN()),0)+IFERROR(INDEX(INDIRECT($Q$10):INDIRECT($Q$11),MATCH($A17,INDIRECT($Q$10):INDIRECT($Q$12),0),COLUMN()),0)+IFERROR(INDEX(INDIRECT($Q$13):INDIRECT($Q$14),MATCH($A17,INDIRECT($Q$13):INDIRECT($Q$15),0),COLUMN()),0)+IFERROR(INDEX(INDIRECT($Q$16):INDIRECT($Q$17),MATCH($A17,INDIRECT($Q$16):INDIRECT($Q$18),0),COLUMN()),0) -> 0 | G17: =IFERROR(INDEX(INDIRECT($Q$1):INDIRECT($Q$2),MATCH($A17,INDIRECT($Q$1):INDIRECT($Q$3),0),COLUMN()),0)+IFERROR(INDEX(INDIRECT($Q$4):INDIRECT($Q$5),MATCH($A17,INDIRECT($Q$4):INDIRECT($Q$6),0),COLUMN()),0)+IFERROR(INDEX(INDIRECT($Q$7):INDIRECT($Q$8),MATCH($A17,INDIRECT($Q$7):INDIRECT($Q$9),0),COLUMN()),0)+IFERROR(INDEX(INDIRECT($Q$10):INDIRECT($Q$11),MATCH($A17,INDIRECT($Q$10):INDIRECT($Q$12),0),COLUMN()),0)+IFERROR(INDEX(INDIRECT($Q$13):INDIRECT($Q$14),MATCH($A17,INDIRECT($Q$13):INDIRECT($Q$15),0),COLUMN()),0)+IFERROR(INDEX(INDIRECT($Q$16):INDIRECT($Q$17),MATCH($A17,INDIRECT($Q$16):INDIRECT($Q$18),0),COLUMN()),0) -> 3000 | H17: =IFERROR(INDEX(INDIRECT($Q$1):INDIRECT($Q$2),MATCH($A17,INDIRECT($Q$1):INDIRECT($Q$3),0),COLUMN()),0)+IFERROR(INDEX(INDIRECT($Q$4):INDIRECT($Q$5),MATCH($A17,INDIRECT($Q$4):INDIRECT($Q$6),0),COLUMN()),0)+IFERROR(INDEX(INDIRECT($Q$7):INDIRECT($Q$8),MATCH($A17,INDIRECT($Q$7):INDIRECT($Q$9),0),COLUMN()),0)+IFERROR(INDEX(INDIRECT($Q$10):INDIRECT($Q$11),MATCH($A17,INDIRECT($Q$10):INDIRECT($Q$12),0),COLUMN()),0)+IFERROR(INDEX(INDIRECT($Q$13):INDIRECT($Q$14),MATCH($A17,INDIRECT($Q$13):INDIRECT($Q$15),0),COLUMN()),0)+IFERROR(INDEX(INDIRECT($Q$16):INDIRECT($Q$17),MATCH($A17,INDIRECT($Q$16):INDIRECT($Q$18),0),COLUMN()),0) -> 0 | I17: =IFERROR(INDEX(INDIRECT($Q$1):INDIRECT($Q$2),MATCH($A17,INDIRECT($Q$1):INDIRECT($Q$3),0),COLUMN()),0)+IFERROR(INDEX(INDIRECT($Q$4):INDIRECT($Q$5),MATCH($A17,INDIRECT($Q$4):INDIRECT($Q$6),0),COLUMN()),0)+IFERROR(INDEX(INDIRECT($Q$7):INDIRECT($Q$8),MATCH($A17,INDIRECT($Q$7):INDIRECT($Q$9),0),COLUMN()),0)+IFERROR(INDEX(INDIRECT($Q$10):INDIRECT($Q$11),MATCH($A17,INDIRECT($Q$10):INDIRECT($Q$12),0),COLUMN()),0)+IFERROR(INDEX(INDIRECT($Q$13):INDIRECT($Q$14),MATCH($A17,INDIRECT($Q$13):INDIRECT($Q$15),0),COLUMN()),0)+IFERROR(INDEX(INDIRECT($Q$16):INDIRECT($Q$17),MATCH($A17,INDIRECT($Q$16):INDIRECT($Q$18),0),COLUMN()),0) -> 0 | J17: 26687 | K17: =IFERROR(VLOOKUP($A17,INDIRECT($Q$16):INDIRECT($Q$17),11,FALSE),0) -> 5500 | L17: 0 | M17: 21187 | Q17: =ADDRESS(206,11,1,1,CONCATENATE(TEXT(YEAR(EDATE($B$1,5)),"####"),TEXT(MONTH(EDATE($B$1,5)),"00"))) -> '201602'!$K$206
C18: =IFERROR(VLOOKUP($A18,INDIRECT($Q$1):INDIRECT($Q$2),11,FALSE),0) -> 0 | D18: =IFERROR(INDEX(INDIRECT($Q$1):INDIRECT($Q$2),MATCH($A18,INDIRECT($Q$1):INDIRECT($Q$3),0),COLUMN()),0)+IFERROR(INDEX(INDIRECT($Q$4):INDIRECT($Q$5),MATCH($A18,INDIRECT($Q$4):INDIRECT($Q$6),0),COLUMN()),0)+IFERROR(INDEX(INDIRECT($Q$7):INDIRECT($Q$8),MATCH($A18,INDIRECT($Q$7):INDIRECT($Q$9),0),COLUMN()),0)+IFERROR(INDEX(INDIRECT($Q$10):INDIRECT($Q$11),MATCH($A18,INDIRECT($Q$10):INDIRECT($Q$12),0),COLUMN()),0)+IFERROR(INDEX(INDIRECT($Q$13):INDIRECT($Q$14),MATCH($A18,INDIRECT($Q$13):INDIRECT($Q$15),0),COLUMN()),0)+IFERROR(INDEX(INDIRECT($Q$16):INDIRECT($Q$17),MATCH($A18,INDIRECT($Q$16):INDIRECT($Q$18),0),COLUMN()),0) -> 0 | E18: =IFERROR(INDEX(INDIRECT($Q$1):INDIRECT($Q$2),MATCH($A18,INDIRECT($Q$1):INDIRECT($Q$3),0),COLUMN()),0)+IFERROR(INDEX(INDIRECT($Q$4):INDIRECT($Q$5),MATCH($A18,INDIRECT($Q$4):INDIRECT($Q$6),0),COLUMN()),0)+IFERROR(INDEX(INDIRECT($Q$7):INDIRECT($Q$8),MATCH($A18,INDIRECT($Q$7):INDIRECT($Q$9),0),COLUMN()),0)+IFERROR(INDEX(INDIRECT($Q$10):INDIRECT($Q$11),MATCH($A18,INDIRECT($Q$10):INDIRECT($Q$12),0),COLUMN()),0)+IFERROR(INDEX(INDIRECT($Q$13):INDIRECT($Q$14),MATCH($A18,INDIRECT($Q$13):INDIRECT($Q$15),0),COLUMN()),0)+IFERROR(INDEX(INDIRECT($Q$16):INDIRECT($Q$17),MATCH($A18,INDIRECT($Q$16):INDIRECT($Q$18),0),COLUMN()),0) -> 0 | F18: =IFERROR(INDEX(INDIRECT($Q$1):INDIRECT($Q$2),MATCH($A18,INDIRECT($Q$1):INDIRECT($Q$3),0),COLUMN()),0)+IFERROR(INDEX(INDIRECT($Q$4):INDIRECT($Q$5),MATCH($A18,INDIRECT($Q$4):INDIRECT($Q$6),0),COLUMN()),0)+IFERROR(INDEX(INDIRECT($Q$7):INDIRECT($Q$8),MATCH($A18,INDIRECT($Q$7):INDIRECT($Q$9),0),COLUMN()),0)+IFERROR(INDEX(INDIRECT($Q$10):INDIRECT($Q$11),MATCH($A18,INDIRECT($Q$10):INDIRECT($Q$12),0),COLUMN()),0)+IFERROR(INDEX(INDIRECT($Q$13):INDIRECT($Q$14),MATCH($A18,INDIRECT($Q$13):INDIRECT($Q$15),0),COLUMN()),0)+IFERROR(INDEX(INDIRECT($Q$16):INDIRECT($Q$17),MATCH($A18,INDIRECT($Q$16):INDIRECT($Q$18),0),COLUMN()),0) -> 0 | G18: =IFERROR(INDEX(INDIRECT($Q$1):INDIRECT($Q$2),MATCH($A18,INDIRECT($Q$1):INDIRECT($Q$3),0),COLUMN()),0)+IFERROR(INDEX(INDIRECT($Q$4):INDIRECT($Q$5),MATCH($A18,INDIRECT($Q$4):INDIRECT($Q$6),0),COLUMN()),0)+IFERROR(INDEX(INDIRECT($Q$7):INDIRECT($Q$8),MATCH($A18,INDIRECT($Q$7):INDIRECT($Q$9),0),COLUMN()),0)+IFERROR(INDEX(INDIRECT($Q$10):INDIRECT($Q$11),MATCH($A18,INDIRECT($Q$10):INDIRECT($Q$12),0),COLUMN()),0)+IFERROR(INDEX(INDIRECT($Q$13):INDIRECT($Q$14),MATCH($A18,INDIRECT($Q$13):INDIRECT($Q$15),0),COLUMN()),0)+IFERROR(INDEX(INDIRECT($Q$16):INDIRECT($Q$17),MATCH($A18,INDIRECT($Q$16):INDIRECT($Q$18),0),COLUMN()),0) -> 0 | H18: =IFERROR(INDEX(INDIRECT($Q$1):INDIRECT($Q$2),MATCH($A18,INDIRECT($Q$1):INDIRECT($Q$3),0),COLUMN()),0)+IFERROR(INDEX(INDIRECT($Q$4):INDIRECT($Q$5),MATCH($A18,INDIRECT($Q$4):INDIRECT($Q$6),0),COLUMN()),0)+IFERROR(INDEX(INDIRECT($Q$7):INDIRECT($Q$8),MATCH($A18,INDIRECT($Q$7):INDIRECT($Q$9),0),COLUMN()),0)+IFERROR(INDEX(INDIRECT($Q$10):INDIRECT($Q$11),MATCH($A18,INDIRECT($Q$10):INDIRECT($Q$12),0),COLUMN()),0)+IFERROR(INDEX(INDIRECT($Q$13):INDIRECT($Q$14),MATCH($A18,INDIRECT($Q$13):INDIRECT($Q$15),0),COLUMN()),0)+IFERROR(INDEX(INDIRECT($Q$16):INDIRECT($Q$17),MATCH($A18,INDIRECT($Q$16):INDIRECT($Q$18),0),COLUMN()),0) -> 0 | I18: =IFERROR(INDEX(INDIRECT($Q$1):INDIRECT($Q$2),MATCH($A18,INDIRECT($Q$1):INDIRECT($Q$3),0),COLUMN()),0)+IFERROR(INDEX(INDIRECT($Q$4):INDIRECT($Q$5),MATCH($A18,INDIRECT($Q$4):INDIRECT($Q$6),0),COLUMN()),0)+IFERROR(INDEX(INDIRECT($Q$7):INDIRECT($Q$8),MATCH($A18,INDIRECT($Q$7):INDIRECT($Q$9),0),COLUMN()),0)+IFERROR(INDEX(INDIRECT($Q$10):INDIRECT($Q$11),MATCH($A18,INDIRECT($Q$10):INDIRECT($Q$12),0),COLUMN()),0)+IFERROR(INDEX(INDIRECT($Q$13):INDIRECT($Q$14),MATCH($A18,INDIRECT($Q$13):INDIRECT($Q$15),0),COLUMN()),0)+IFERROR(INDEX(INDIRECT($Q$16):INDIRECT($Q$17),MATCH($A18,INDIRECT($Q$16):INDIRECT($Q$18),0),COLUMN()),0) -> 0 | K18: =IFERROR(VLOOKUP($A18,INDIRECT($Q$16):INDIRECT($Q$17),11,FALSE),0) -> 0 | L18: =IF($K18>$J18,$K18-$J18,0) -> 0 | M18: =IF($K18<$J18,$J18-$K18,0) -> 0 | Q18: =ADDRESS(206,1,1,1,CONCATENATE(TEXT(YEAR(EDATE($B$1,5)),"####"),TEXT(MONTH(EDATE($B$1,5)),"00"))) -> '201602'!$A$206
C19: =IFERROR(VLOOKUP($A19,INDIRECT($Q$1):INDIRECT($Q$2),11,FALSE),0) -> 0 | D19: =IFERROR(INDEX(INDIRECT($Q$1):INDIRECT($Q$2),MATCH($A19,INDIRECT($Q$1):INDIRECT($Q$3),0),COLUMN()),0)+IFERROR(INDEX(INDIRECT($Q$4):INDIRECT($Q$5),MATCH($A19,INDIRECT($Q$4):INDIRECT($Q$6),0),COLUMN()),0)+IFERROR(INDEX(INDIRECT($Q$7):INDIRECT($Q$8),MATCH($A19,INDIRECT($Q$7):INDIRECT($Q$9),0),COLUMN()),0)+IFERROR(INDEX(INDIRECT($Q$10):INDIRECT($Q$11),MATCH($A19,INDIRECT($Q$10):INDIRECT($Q$12),0),COLUMN()),0)+IFERROR(INDEX(INDIRECT($Q$13):INDIRECT($Q$14),MATCH($A19,INDIRECT($Q$13):INDIRECT($Q$15),0),COLUMN()),0)+IFERROR(INDEX(INDIRECT($Q$16):INDIRECT($Q$17),MATCH($A19,INDIRECT($Q$16):INDIRECT($Q$18),0),COLUMN()),0) -> 0 | E19: =IFERROR(INDEX(INDIRECT($Q$1):INDIRECT($Q$2),MATCH($A19,INDIRECT($Q$1):INDIRECT($Q$3),0),COLUMN()),0)+IFERROR(INDEX(INDIRECT($Q$4):INDIRECT($Q$5),MATCH($A19,INDIRECT($Q$4):INDIRECT($Q$6),0),COLUMN()),0)+IFERROR(INDEX(INDIRECT($Q$7):INDIRECT($Q$8),MATCH($A19,INDIRECT($Q$7):INDIRECT($Q$9),0),COLUMN()),0)+IFERROR(INDEX(INDIRECT($Q$10):INDIRECT($Q$11),MATCH($A19,INDIRECT($Q$10):INDIRECT($Q$12),0),COLUMN()),0)+IFERROR(INDEX(INDIRECT($Q$13):INDIRECT($Q$14),MATCH($A19,INDIRECT($Q$13):INDIRECT($Q$15),0),COLUMN()),0)+IFERROR(INDEX(INDIRECT($Q$16):INDIRECT($Q$17),MATCH($A19,INDIRECT($Q$16):INDIRECT($Q$18),0),COLUMN()),0) -> 0 | F19: =IFERROR(INDEX(INDIRECT($Q$1):INDIRECT($Q$2),MATCH($A19,INDIRECT($Q$1):INDIRECT($Q$3),0),COLUMN()),0)+IFERROR(INDEX(INDIRECT($Q$4):INDIRECT($Q$5),MATCH($A19,INDIRECT($Q$4):INDIRECT($Q$6),0),COLUMN()),0)+IFERROR(INDEX(INDIRECT($Q$7):INDIRECT($Q$8),MATCH($A19,INDIRECT($Q$7):INDIRECT($Q$9),0),COLUMN()),0)+IFERROR(INDEX(INDIRECT($Q$10):INDIRECT($Q$11),MATCH($A19,INDIRECT($Q$10):INDIRECT($Q$12),0),COLUMN()),0)+IFERROR(INDEX(INDIRECT($Q$13):INDIRECT($Q$14),MATCH($A19,INDIRECT($Q$13):INDIRECT($Q$15),0),COLUMN()),0)+IFERROR(INDEX(INDIRECT($Q$16):INDIRECT($Q$17),MATCH($A19,INDIRECT($Q$16):INDIRECT($Q$18),0),COLUMN()),0) -> 0 | G19: =IFERROR(INDEX(INDIRECT($Q$1):INDIRECT($Q$2),MATCH($A19,INDIRECT($Q$1):INDIRECT($Q$3),0),COLUMN()),0)+IFERROR(INDEX(INDIRECT($Q$4):INDIRECT($Q$5),MATCH($A19,INDIRECT($Q$4):INDIRECT($Q$6),0),COLUMN()),0)+IFERROR(INDEX(INDIRECT($Q$7):INDIRECT($Q$8),MATCH($A19,INDIRECT($Q$7):INDIRECT($Q$9),0),COLUMN()),0)+IFERROR(INDEX(INDIRECT($Q$10):INDIRECT($Q$11),MATCH($A19,INDIRECT($Q$10):INDIRECT($Q$12),0),COLUMN()),0)+IFERROR(INDEX(INDIRECT($Q$13):INDIRECT($Q$14),MATCH($A19,INDIRECT($Q$13):INDIRECT($Q$15),0),COLUMN()),0)+IFERROR(INDEX(INDIRECT($Q$16):INDIRECT($Q$17),MATCH($A19,INDIRECT($Q$16):INDIRECT($Q$18),0),COLUMN()),0) -> 0 | H19: =IFERROR(INDEX(INDIRECT($Q$1):INDIRECT($Q$2),MATCH($A19,INDIRECT($Q$1):INDIRECT($Q$3),0),COLUMN()),0)+IFERROR(INDEX(INDIRECT($Q$4):INDIRECT($Q$5),MATCH($A19,INDIRECT($Q$4):INDIRECT($Q$6),0),COLUMN()),0)+IFERROR(INDEX(INDIRECT($Q$7):INDIRECT($Q$8),MATCH($A19,INDIRECT($Q$7):INDIRECT($Q$9),0),COLUMN()),0)+IFERROR(INDEX(INDIRECT($Q$10):INDIRECT($Q$11),MATCH($A19,INDIRECT($Q$10):INDIRECT($Q$12),0),COLUMN()),0)+IFERROR(INDEX(INDIRECT($Q$13):INDIRECT($Q$14),MATCH($A19,INDIRECT($Q$13):INDIRECT($Q$15),0),COLUMN()),0)+IFERROR(INDEX(INDIRECT($Q$16):INDIRECT($Q$17),MATCH($A19,INDIRECT($Q$16):INDIRECT($Q$18),0),COLUMN()),0) -> 0 | I19: =IFERROR(INDEX(INDIRECT($Q$1):INDIRECT($Q$2),MATCH($A19,INDIRECT($Q$1):INDIRECT($Q$3),0),COLUMN()),0)+IFERROR(INDEX(INDIRECT($Q$4):INDIRECT($Q$5),MATCH($A19,INDIRECT($Q$4):INDIRECT($Q$6),0),COLUMN()),0)+IFERROR(INDEX(INDIRECT($Q$7):INDIRECT($Q$8),MATCH($A19,INDIRECT($Q$7):INDIRECT($Q$9),0),COLUMN()),0)+IFERROR(INDEX(INDIRECT($Q$10):INDIRECT($Q$11),MATCH($A19,INDIRECT($Q$10):INDIRECT($Q$12),0),COLUMN()),0)+IFERROR(INDEX(INDIRECT($Q$13):INDIRECT($Q$14),MATCH($A19,INDIRECT($Q$13):INDIRECT($Q$15),0),COLUMN()),0)+IFERROR(INDEX(INDIRECT($Q$16):INDIRECT($Q$17),MATCH($A19,INDIRECT($Q$16):INDIRECT($Q$18),0),COLUMN()),0) -> 0 | K19: =IFERROR(VLOOKUP($A19,INDIRECT($Q$16):INDIRECT($Q$17),11,FALSE),0) -> 0 | L19: 0 | M19: 0
C20: =IFERROR(VLOOKUP($A20,INDIRECT($Q$1):INDIRECT($Q$2),11,FALSE),0) -> 0 | D20: =IFERROR(INDEX(INDIRECT($Q$1):INDIRECT($Q$2),MATCH($A20,INDIRECT($Q$1):INDIRECT($Q$3),0),COLUMN()),0)+IFERROR(INDEX(INDIRECT($Q$4):INDIRECT($Q$5),MATCH($A20,INDIRECT($Q$4):INDIRECT($Q$6),0),COLUMN()),0)+IFERROR(INDEX(INDIRECT($Q$7):INDIRECT($Q$8),MATCH($A20,INDIRECT($Q$7):INDIRECT($Q$9),0),COLUMN()),0)+IFERROR(INDEX(INDIRECT($Q$10):INDIRECT($Q$11),MATCH($A20,INDIRECT($Q$10):INDIRECT($Q$12),0),COLUMN()),0)+IFERROR(INDEX(INDIRECT($Q$13):INDIRECT($Q$14),MATCH($A20,INDIRECT($Q$13):INDIRECT($Q$15),0),COLUMN()),0)+IFERROR(INDEX(INDIRECT($Q$16):INDIRECT($Q$17),MATCH($A20,INDIRECT($Q$16):INDIRECT($Q$18),0),COLUMN()),0) -> 0 | E20: =IFERROR(INDEX(INDIRECT($Q$1):INDIRECT($Q$2),MATCH($A20,INDIRECT($Q$1):INDIRECT($Q$3),0),COLUMN()),0)+IFERROR(INDEX(INDIRECT($Q$4):INDIRECT($Q$5),MATCH($A20,INDIRECT($Q$4):INDIRECT($Q$6),0),COLUMN()),0)+IFERROR(INDEX(INDIRECT($Q$7):INDIRECT($Q$8),MATCH($A20,INDIRECT($Q$7):INDIRECT($Q$9),0),COLUMN()),0)+IFERROR(INDEX(INDIRECT($Q$10):INDIRECT($Q$11),MATCH($A20,INDIRECT($Q$10):INDIRECT($Q$12),0),COLUMN()),0)+IFERROR(INDEX(INDIRECT($Q$13):INDIRECT($Q$14),MATCH($A20,INDIRECT($Q$13):INDIRECT($Q$15),0),COLUMN()),0)+IFERROR(INDEX(INDIRECT($Q$16):INDIRECT($Q$17),MATCH($A20,INDIRECT($Q$16):INDIRECT($Q$18),0),COLUMN()),0) -> 0 | F20: =IFERROR(INDEX(INDIRECT($Q$1):INDIRECT($Q$2),MATCH($A20,INDIRECT($Q$1):INDIRECT($Q$3),0),COLUMN()),0)+IFERROR(INDEX(INDIRECT($Q$4):INDIRECT($Q$5),MATCH($A20,INDIRECT($Q$4):INDIRECT($Q$6),0),COLUMN()),0)+IFERROR(INDEX(INDIRECT($Q$7):INDIRECT($Q$8),MATCH($A20,INDIRECT($Q$7):INDIRECT($Q$9),0),COLUMN()),0)+IFERROR(INDEX(INDIRECT($Q$10):INDIRECT($Q$11),MATCH($A20,INDIRECT($Q$10):INDIRECT($Q$12),0),COLUMN()),0)+IFERROR(INDEX(INDIRECT($Q$13):INDIRECT($Q$14),MATCH($A20,INDIRECT($Q$13):INDIRECT($Q$15),0),COLUMN()),0)+IFERROR(INDEX(INDIRECT($Q$16):INDIRECT($Q$17),MATCH($A20,INDIRECT($Q$16):INDIRECT($Q$18),0),COLUMN()),0) -> 0 | G20: =IFERROR(INDEX(INDIRECT($Q$1):INDIRECT($Q$2),MATCH($A20,INDIRECT($Q$1):INDIRECT($Q$3),0),COLUMN()),0)+IFERROR(INDEX(INDIRECT($Q$4):INDIRECT($Q$5),MATCH($A20,INDIRECT($Q$4):INDIRECT($Q$6),0),COLUMN()),0)+IFERROR(INDEX(INDIRECT($Q$7):INDIRECT($Q$8),MATCH($A20,INDIRECT($Q$7):INDIRECT($Q$9),0),COLUMN()),0)+IFERROR(INDEX(INDIRECT($Q$10):INDIRECT($Q$11),MATCH($A20,INDIRECT($Q$10):INDIRECT($Q$12),0),COLUMN()),0)+IFERROR(INDEX(INDIRECT($Q$13):INDIRECT($Q$14),MATCH($A20,INDIRECT($Q$13):INDIRECT($Q$15),0),COLUMN()),0)+IFERROR(INDEX(INDIRECT($Q$16):INDIRECT($Q$17),MATCH($A20,INDIRECT($Q$16):INDIRECT($Q$18),0),COLUMN()),0) -> 0 | H20: =IFERROR(INDEX(INDIRECT($Q$1):INDIRECT($Q$2),MATCH($A20,INDIRECT($Q$1):INDIRECT($Q$3),0),COLUMN()),0)+IFERROR(INDEX(INDIRECT($Q$4):INDIRECT($Q$5),MATCH($A20,INDIRECT($Q$4):INDIRECT($Q$6),0),COLUMN()),0)+IFERROR(INDEX(INDIRECT($Q$7):INDIRECT($Q$8),MATCH($A20,INDIRECT($Q$7):INDIRECT($Q$9),0),COLUMN()),0)+IFERROR(INDEX(INDIRECT($Q$10):INDIRECT($Q$11),MATCH($A20,INDIRECT($Q$10):INDIRECT($Q$12),0),COLUMN()),0)+IFERROR(INDEX(INDIRECT($Q$13):INDIRECT($Q$14),MATCH($A20,INDIRECT($Q$13):INDIRECT($Q$15),0),COLUMN()),0)+IFERROR(INDEX(INDIRECT($Q$16):INDIRECT($Q$17),MATCH($A20,INDIRECT($Q$16):INDIRECT($Q$18),0),COLUMN()),0) -> 0 | I20: =IFERROR(INDEX(INDIRECT($Q$1):INDIRECT($Q$2),MATCH($A20,INDIRECT($Q$1):INDIRECT($Q$3),0),COLUMN()),0)+IFERROR(INDEX(INDIRECT($Q$4):INDIRECT($Q$5),MATCH($A20,INDIRECT($Q$4):INDIRECT($Q$6),0),COLUMN()),0)+IFERROR(INDEX(INDIRECT($Q$7):INDIRECT($Q$8),MATCH($A20,INDIRECT($Q$7):INDIRECT($Q$9),0),COLUMN()),0)+IFERROR(INDEX(INDIRECT($Q$10):INDIRECT($Q$11),MATCH($A20,INDIRECT($Q$10):INDIRECT($Q$12),0),COLUMN()),0)+IFERROR(INDEX(INDIRECT($Q$13):INDIRECT($Q$14),MATCH($A20,INDIRECT($Q$13):INDIRECT($Q$15),0),COLUMN()),0)+IFERROR(INDEX(INDIRECT($Q$16):INDIRECT($Q$17),MATCH($A20,INDIRECT($Q$16):INDIRECT($Q$18),0),COLUMN()),0) -> 0 | K20: =IFERROR(VLOOKUP($A20,INDIRECT($Q$16):INDIRECT($Q$17),11,FALSE),0) -> 0 | L20: 0 | M20: 0
C21: =IFERROR(VLOOKUP($A21,INDIRECT($Q$1):INDIRECT($Q$2),11,FALSE),0) -> 0 | D21: =IFERROR(INDEX(INDIRECT($Q$1):INDIRECT($Q$2),MATCH($A21,INDIRECT($Q$1):INDIRECT($Q$3),0),COLUMN()),0)+IFERROR(INDEX(INDIRECT($Q$4):INDIRECT($Q$5),MATCH($A21,INDIRECT($Q$4):INDIRECT($Q$6),0),COLUMN()),0)+IFERROR(INDEX(INDIRECT($Q$7):INDIRECT($Q$8),MATCH($A21,INDIRECT($Q$7):INDIRECT($Q$9),0),COLUMN()),0)+IFERROR(INDEX(INDIRECT($Q$10):INDIRECT($Q$11),MATCH($A21,INDIRECT($Q$10):INDIRECT($Q$12),0),COLUMN()),0)+IFERROR(INDEX(INDIRECT($Q$13):INDIRECT($Q$14),MATCH($A21,INDIRECT($Q$13):INDIRECT($Q$15),0),COLUMN()),0)+IFERROR(INDEX(INDIRECT($Q$16):INDIRECT($Q$17),MATCH($A21,INDIRECT($Q$16):INDIRECT($Q$18),0),COLUMN()),0) -> 0 | E21: =IFERROR(INDEX(INDIRECT($Q$1):INDIRECT($Q$2),MATCH($A21,INDIRECT($Q$1):INDIRECT($Q$3),0),COLUMN()),0)+IFERROR(INDEX(INDIRECT($Q$4):INDIRECT($Q$5),MATCH($A21,INDIRECT($Q$4):INDIRECT($Q$6),0),COLUMN()),0)+IFERROR(INDEX(INDIRECT($Q$7):INDIRECT($Q$8),MATCH($A21,INDIRECT($Q$7):INDIRECT($Q$9),0),COLUMN()),0)+IFERROR(INDEX(INDIRECT($Q$10):INDIRECT($Q$11),MATCH($A21,INDIRECT($Q$10):INDIRECT($Q$12),0),COLUMN()),0)+IFERROR(INDEX(INDIRECT($Q$13):INDIRECT($Q$14),MATCH($A21,INDIRECT($Q$13):INDIRECT($Q$15),0),COLUMN()),0)+IFERROR(INDEX(INDIRECT($Q$16):INDIRECT($Q$17),MATCH($A21,INDIRECT($Q$16):INDIRECT($Q$18),0),COLUMN()),0) -> 0 | F21: =IFERROR(INDEX(INDIRECT($Q$1):INDIRECT($Q$2),MATCH($A21,INDIRECT($Q$1):INDIRECT($Q$3),0),COLUMN()),0)+IFERROR(INDEX(INDIRECT($Q$4):INDIRECT($Q$5),MATCH($A21,INDIRECT($Q$4):INDIRECT($Q$6),0),COLUMN()),0)+IFERROR(INDEX(INDIRECT($Q$7):INDIRECT($Q$8),MATCH($A21,INDIRECT($Q$7):INDIRECT($Q$9),0),COLUMN()),0)+IFERROR(INDEX(INDIRECT($Q$10):INDIRECT($Q$11),MATCH($A21,INDIRECT($Q$10):INDIRECT($Q$12),0),COLUMN()),0)+IFERROR(INDEX(INDIRECT($Q$13):INDIRECT($Q$14),MATCH($A21,INDIRECT($Q$13):INDIRECT($Q$15),0),COLUMN()),0)+IFERROR(INDEX(INDIRECT($Q$16):INDIRECT($Q$17),MATCH($A21,INDIRECT($Q$16):INDIRECT($Q$18),0),COLUMN()),0) -> 0 | G21: =IFERROR(INDEX(INDIRECT($Q$1):INDIRECT($Q$2),MATCH($A21,INDIRECT($Q$1):INDIRECT($Q$3),0),COLUMN()),0)+IFERROR(INDEX(INDIRECT($Q$4):INDIRECT($Q$5),MATCH($A21,INDIRECT($Q$4):INDIRECT($Q$6),0),COLUMN()),0)+IFERROR(INDEX(INDIRECT($Q$7):INDIRECT($Q$8),MATCH($A21,INDIRECT($Q$7):INDIRECT($Q$9),0),COLUMN()),0)+IFERROR(INDEX(INDIRECT($Q$10):INDIRECT($Q$11),MATCH($A21,INDIRECT($Q$10):INDIRECT($Q$12),0),COLUMN()),0)+IFERROR(INDEX(INDIRECT($Q$13):INDIRECT($Q$14),MATCH($A21,INDIRECT($Q$13):INDIRECT($Q$15),0),COLUMN()),0)+IFERROR(INDEX(INDIRECT($Q$16):INDIRECT($Q$17),MATCH($A21,INDIRECT($Q$16):INDIRECT($Q$18),0),COLUMN()),0) -> 0 | H21: =IFERROR(INDEX(INDIRECT($Q$1):INDIRECT($Q$2),MATCH($A21,INDIRECT($Q$1):INDIRECT($Q$3),0),COLUMN()),0)+IFERROR(INDEX(INDIRECT($Q$4):INDIRECT($Q$5),MATCH($A21,INDIRECT($Q$4):INDIRECT($Q$6),0),COLUMN()),0)+IFERROR(INDEX(INDIRECT($Q$7):INDIRECT($Q$8),MATCH($A21,INDIRECT($Q$7):INDIRECT($Q$9),0),COLUMN()),0)+IFERROR(INDEX(INDIRECT($Q$10):INDIRECT($Q$11),MATCH($A21,INDIRECT($Q$10):INDIRECT($Q$12),0),COLUMN()),0)+IFERROR(INDEX(INDIRECT($Q$13):INDIRECT($Q$14),MATCH($A21,INDIRECT($Q$13):INDIRECT($Q$15),0),COLUMN()),0)+IFERROR(INDEX(INDIRECT($Q$16):INDIRECT($Q$17),MATCH($A21,INDIRECT($Q$16):INDIRECT($Q$18),0),COLUMN()),0) -> 0 | I21: =IFERROR(INDEX(INDIRECT($Q$1):INDIRECT($Q$2),MATCH($A21,INDIRECT($Q$1):INDIRECT($Q$3),0),COLUMN()),0)+IFERROR(INDEX(INDIRECT($Q$4):INDIRECT($Q$5),MATCH($A21,INDIRECT($Q$4):INDIRECT($Q$6),0),COLUMN()),0)+IFERROR(INDEX(INDIRECT($Q$7):INDIRECT($Q$8),MATCH($A21,INDIRECT($Q$7):INDIRECT($Q$9),0),COLUMN()),0)+IFERROR(INDEX(INDIRECT($Q$10):INDIRECT($Q$11),MATCH($A21,INDIRECT($Q$10):INDIRECT($Q$12),0),COLUMN()),0)+IFERROR(INDEX(INDIRECT($Q$13):INDIRECT($Q$14),MATCH($A21,INDIRECT($Q$13):INDIRECT($Q$15),0),COLUMN()),0)+IFERROR(INDEX(INDIRECT($Q$16):INDIRECT($Q$17),MATCH($A21,INDIRECT($Q$16):INDIRECT($Q$18),0),COLUMN()),0) -> 0 | K21: =IFERROR(VLOOKUP($A21,INDIRECT($Q$16):INDIRECT($Q$17),11,FALSE),0) -> 0 | L21: 0 | M21: 0
C22: =IFERROR(VLOOKUP($A22,INDIRECT($Q$1):INDIRECT($Q$2),11,FALSE),0) -> 0 | D22: =IFERROR(INDEX(INDIRECT($Q$1):INDIRECT($Q$2),MATCH($A22,INDIRECT($Q$1):INDIRECT($Q$3),0),COLUMN()),0)+IFERROR(INDEX(INDIRECT($Q$4):INDIRECT($Q$5),MATCH($A22,INDIRECT($Q$4):INDIRECT($Q$6),0),COLUMN()),0)+IFERROR(INDEX(INDIRECT($Q$7):INDIRECT($Q$8),MATCH($A22,INDIRECT($Q$7):INDIRECT($Q$9),0),COLUMN()),0)+IFERROR(INDEX(INDIRECT($Q$10):INDIRECT($Q$11),MATCH($A22,INDIRECT($Q$10):INDIRECT($Q$12),0),COLUMN()),0)+IFERROR(INDEX(INDIRECT($Q$13):INDIRECT($Q$14),MATCH($A22,INDIRECT($Q$13):INDIRECT($Q$15),0),COLUMN()),0)+IFERROR(INDEX(INDIRECT($Q$16):INDIRECT($Q$17),MATCH($A22,INDIRECT($Q$16):INDIRECT($Q$18),0),COLUMN()),0) -> 0 | E22: =IFERROR(INDEX(INDIRECT($Q$1):INDIRECT($Q$2),MATCH($A22,INDIRECT($Q$1):INDIRECT($Q$3),0),COLUMN()),0)+IFERROR(INDEX(INDIRECT($Q$4):INDIRECT($Q$5),MATCH($A22,INDIRECT($Q$4):INDIRECT($Q$6),0),COLUMN()),0)+IFERROR(INDEX(INDIRECT($Q$7):INDIRECT($Q$8),MATCH($A22,INDIRECT($Q$7):INDIRECT($Q$9),0),COLUMN()),0)+IFERROR(INDEX(INDIRECT($Q$10):INDIRECT($Q$11),MATCH($A22,INDIRECT($Q$10):INDIRECT($Q$12),0),COLUMN()),0)+IFERROR(INDEX(INDIRECT($Q$13):INDIRECT($Q$14),MATCH($A22,INDIRECT($Q$13):INDIRECT($Q$15),0),COLUMN()),0)+IFERROR(INDEX(INDIRECT($Q$16):INDIRECT($Q$17),MATCH($A22,INDIRECT($Q$16):INDIRECT($Q$18),0),COLUMN()),0) -> 0 | F22: =IFERROR(INDEX(INDIRECT($Q$1):INDIRECT($Q$2),MATCH($A22,INDIRECT($Q$1):INDIRECT($Q$3),0),COLUMN()),0)+IFERROR(INDEX(INDIRECT($Q$4):INDIRECT($Q$5),MATCH($A22,INDIRECT($Q$4):INDIRECT($Q$6),0),COLUMN()),0)+IFERROR(INDEX(INDIRECT($Q$7):INDIRECT($Q$8),MATCH($A22,INDIRECT($Q$7):INDIRECT($Q$9),0),COLUMN()),0)+IFERROR(INDEX(INDIRECT($Q$10):INDIRECT($Q$11),MATCH($A22,INDIRECT($Q$10):INDIRECT($Q$12),0),COLUMN()),0)+IFERROR(INDEX(INDIRECT($Q$13):INDIRECT($Q$14),MATCH($A22,INDIRECT($Q$13):INDIRECT($Q$15),0),COLUMN()),0)+IFERROR(INDEX(INDIRECT($Q$16):INDIRECT($Q$17),MATCH($A22,INDIRECT($Q$16):INDIRECT($Q$18),0),COLUMN()),0) -> 0 | G22: =IFERROR(INDEX(INDIRECT($Q$1):INDIRECT($Q$2),MATCH($A22,INDIRECT($Q$1):INDIRECT($Q$3),0),COLUMN()),0)+IFERROR(INDEX(INDIRECT($Q$4):INDIRECT($Q$5),MATCH($A22,INDIRECT($Q$4):INDIRECT($Q$6),0),COLUMN()),0)+IFERROR(INDEX(INDIRECT($Q$7):INDIRECT($Q$8),MATCH($A22,INDIRECT($Q$7):INDIRECT($Q$9),0),COLUMN()),0)+IFERROR(INDEX(INDIRECT($Q$10):INDIRECT($Q$11),MATCH($A22,INDIRECT($Q$10):INDIRECT($Q$12),0),COLUMN()),0)+IFERROR(INDEX(INDIRECT($Q$13):INDIRECT($Q$14),MATCH($A22,INDIRECT($Q$13):INDIRECT($Q$15),0),COLUMN()),0)+IFERROR(INDEX(INDIRECT($Q$16):INDIRECT($Q$17),MATCH($A22,INDIRECT($Q$16):INDIRECT($Q$18),0),COLUMN()),0) -> 0 | H22: =IFERROR(INDEX(INDIRECT($Q$1):INDIRECT($Q$2),MATCH($A22,INDIRECT($Q$1):INDIRECT($Q$3),0),COLUMN()),0)+IFERROR(INDEX(INDIRECT($Q$4):INDIRECT($Q$5),MATCH($A22,INDIRECT($Q$4):INDIRECT($Q$6),0),COLUMN()),0)+IFERROR(INDEX(INDIRECT($Q$7):INDIRECT($Q$8),MATCH($A22,INDIRECT($Q$7):INDIRECT($Q$9),0),COLUMN()),0)+IFERROR(INDEX(INDIRECT($Q$10):INDIRECT($Q$11),MATCH($A22,INDIRECT($Q$10):INDIRECT($Q$12),0),COLUMN()),0)+IFERROR(INDEX(INDIRECT($Q$13):INDIRECT($Q$14),MATCH($A22,INDIRECT($Q$13):INDIRECT($Q$15),0),COLUMN()),0)+IFERROR(INDEX(INDIRECT($Q$16):INDIRECT($Q$17),MATCH($A22,INDIRECT($Q$16):INDIRECT($Q$18),0),COLUMN()),0) -> 0 | I22: =IFERROR(INDEX(INDIRECT($Q$1):INDIRECT($Q$2),MATCH($A22,INDIRECT($Q$1):INDIRECT($Q$3),0),COLUMN()),0)+IFERROR(INDEX(INDIRECT($Q$4):INDIRECT($Q$5),MATCH($A22,INDIRECT($Q$4):INDIRECT($Q$6),0),COLUMN()),0)+IFERROR(INDEX(INDIRECT($Q$7):INDIRECT($Q$8),MATCH($A22,INDIRECT($Q$7):INDIRECT($Q$9),0),COLUMN()),0)+IFERROR(INDEX(INDIRECT($Q$10):INDIRECT($Q$11),MATCH($A22,INDIRECT($Q$10):INDIRECT($Q$12),0),COLUMN()),0)+IFERROR(INDEX(INDIRECT($Q$13):INDIRECT($Q$14),MATCH($A22,INDIRECT($Q$13):INDIRECT($Q$15),0),COLUMN()),0)+IFERROR(INDEX(INDIRECT($Q$16):INDIRECT($Q$17),MATCH($A22,INDIRECT($Q$16):INDIRECT($Q$18),0),COLUMN()),0) -> 0 | K22: =IFERROR(VLOOKUP($A22,INDIRECT($Q$16):INDIRECT($Q$17),11,FALSE),0) -> 0 | L22: 0 | M22: 0
C23: =IFERROR(VLOOKUP($A23,INDIRECT($Q$1):INDIRECT($Q$2),11,FALSE),0) -> 0 | D23: =IFERROR(INDEX(INDIRECT($Q$1):INDIRECT($Q$2),MATCH($A23,INDIRECT($Q$1):INDIRECT($Q$3),0),COLUMN()),0)+IFERROR(INDEX(INDIRECT($Q$4):INDIRECT($Q$5),MATCH($A23,INDIRECT($Q$4):INDIRECT($Q$6),0),COLUMN()),0)+IFERROR(INDEX(INDIRECT($Q$7):INDIRECT($Q$8),MATCH($A23,INDIRECT($Q$7):INDIRECT($Q$9),0),COLUMN()),0)+IFERROR(INDEX(INDIRECT($Q$10):INDIRECT($Q$11),MATCH($A23,INDIRECT($Q$10):INDIRECT($Q$12),0),COLUMN()),0)+IFERROR(INDEX(INDIRECT($Q$13):INDIRECT($Q$14),MATCH($A23,INDIRECT($Q$13):INDIRECT($Q$15),0),COLUMN()),0)+IFERROR(INDEX(INDIRECT($Q$16):INDIRECT($Q$17),MATCH($A23,INDIRECT($Q$16):INDIRECT($Q$18),0),COLUMN()),0) -> 0 | E23: =IFERROR(INDEX(INDIRECT($Q$1):INDIRECT($Q$2),MATCH($A23,INDIRECT($Q$1):INDIRECT($Q$3),0),COLUMN()),0)+IFERROR(INDEX(INDIRECT($Q$4):INDIRECT($Q$5),MATCH($A23,INDIRECT($Q$4):INDIRECT($Q$6),0),COLUMN()),0)+IFERROR(INDEX(INDIRECT($Q$7):INDIRECT($Q$8),MATCH($A23,INDIRECT($Q$7):INDIRECT($Q$9),0),COLUMN()),0)+IFERROR(INDEX(INDIRECT($Q$10):INDIRECT($Q$11),MATCH($A23,INDIRECT($Q$10):INDIRECT($Q$12),0),COLUMN()),0)+IFERROR(INDEX(INDIRECT($Q$13):INDIRECT($Q$14),MATCH($A23,INDIRECT($Q$13):INDIRECT($Q$15),0),COLUMN()),0)+IFERROR(INDEX(INDIRECT($Q$16):INDIRECT($Q$17),MATCH($A23,INDIRECT($Q$16):INDIRECT($Q$18),0),COLUMN()),0) -> 0 | F23: =IFERROR(INDEX(INDIRECT($Q$1):INDIRECT($Q$2),MATCH($A23,INDIRECT($Q$1):INDIRECT($Q$3),0),COLUMN()),0)+IFERROR(INDEX(INDIRECT($Q$4):INDIRECT($Q$5),MATCH($A23,INDIRECT($Q$4):INDIRECT($Q$6),0),COLUMN()),0)+IFERROR(INDEX(INDIRECT($Q$7):INDIRECT($Q$8),MATCH($A23,INDIRECT($Q$7):INDIRECT($Q$9),0),COLUMN()),0)+IFERROR(INDEX(INDIRECT($Q$10):INDIRECT($Q$11),MATCH($A23,INDIRECT($Q$10):INDIRECT($Q$12),0),COLUMN()),0)+IFERROR(INDEX(INDIRECT($Q$13):INDIRECT($Q$14),MATCH($A23,INDIRECT($Q$13):INDIRECT($Q$15),0),COLUMN()),0)+IFERROR(INDEX(INDIRECT($Q$16):INDIRECT($Q$17),MATCH($A23,INDIRECT($Q$16):INDIRECT($Q$18),0),COLUMN()),0) -> 0 | G23: =IFERROR(INDEX(INDIRECT($Q$1):INDIRECT($Q$2),MATCH($A23,INDIRECT($Q$1):INDIRECT($Q$3),0),COLUMN()),0)+IFERROR(INDEX(INDIRECT($Q$4):INDIRECT($Q$5),MATCH($A23,INDIRECT($Q$4):INDIRECT($Q$6),0),COLUMN()),0)+IFERROR(INDEX(INDIRECT($Q$7):INDIRECT($Q$8),MATCH($A23,INDIRECT($Q$7):INDIRECT($Q$9),0),COLUMN()),0)+IFERROR(INDEX(INDIRECT($Q$10):INDIRECT($Q$11),MATCH($A23,INDIRECT($Q$10):INDIRECT($Q$12),0),COLUMN()),0)+IFERROR(INDEX(INDIRECT($Q$13):INDIRECT($Q$14),MATCH($A23,INDIRECT($Q$13):INDIRECT($Q$15),0),COLUMN()),0)+IFERROR(INDEX(INDIRECT($Q$16):INDIRECT($Q$17),MATCH($A23,INDIRECT($Q$16):INDIRECT($Q$18),0),COLUMN()),0) -> 0 | H23: =IFERROR(INDEX(INDIRECT($Q$1):INDIRECT($Q$2),MATCH($A23,INDIRECT($Q$1):INDIRECT($Q$3),0),COLUMN()),0)+IFERROR(INDEX(INDIRECT($Q$4):INDIRECT($Q$5),MATCH($A23,INDIRECT($Q$4):INDIRECT($Q$6),0),COLUMN()),0)+IFERROR(INDEX(INDIRECT($Q$7):INDIRECT($Q$8),MATCH($A23,INDIRECT($Q$7):INDIRECT($Q$9),0),COLUMN()),0)+IFERROR(INDEX(INDIRECT($Q$10):INDIRECT($Q$11),MATCH($A23,INDIRECT($Q$10):INDIRECT($Q$12),0),COLUMN()),0)+IFERROR(INDEX(INDIRECT($Q$13):INDIRECT($Q$14),MATCH($A23,INDIRECT($Q$13):INDIRECT($Q$15),0),COLUMN()),0)+IFERROR(INDEX(INDIRECT($Q$16):INDIRECT($Q$17),MATCH($A23,INDIRECT($Q$16):INDIRECT($Q$18),0),COLUMN()),0) -> 0 | I23: =IFERROR(INDEX(INDIRECT($Q$1):INDIRECT($Q$2),MATCH($A23,INDIRECT($Q$1):INDIRECT($Q$3),0),COLUMN()),0)+IFERROR(INDEX(INDIRECT($Q$4):INDIRECT($Q$5),MATCH($A23,INDIRECT($Q$4):INDIRECT($Q$6),0),COLUMN()),0)+IFERROR(INDEX(INDIRECT($Q$7):INDIRECT($Q$8),MATCH($A23,INDIRECT($Q$7):INDIRECT($Q$9),0),COLUMN()),0)+IFERROR(INDEX(INDIRECT($Q$10):INDIRECT($Q$11),MATCH($A23,INDIRECT($Q$10):INDIRECT($Q$12),0),COLUMN()),0)+IFERROR(INDEX(INDIRECT($Q$13):INDIRECT($Q$14),MATCH($A23,INDIRECT($Q$13):INDIRECT($Q$15),0),COLUMN()),0)+IFERROR(INDEX(INDIRECT($Q$16):INDIRECT($Q$17),MATCH($A23,INDIRECT($Q$16):INDIRECT($Q$18),0),COLUMN()),0) -> 0 | K23: =IFERROR(VLOOKUP($A23,INDIRECT($Q$16):INDIRECT($Q$17),11,FALSE),0) -> 0 | L23: 0 | M23: 0
C24: =IFERROR(VLOOKUP($A24,INDIRECT($Q$1):INDIRECT($Q$2),11,FALSE),0) -> 0 | D24: =IFERROR(INDEX(INDIRECT($Q$1):INDIRECT($Q$2),MATCH($A24,INDIRECT($Q$1):INDIRECT($Q$3),0),COLUMN()),0)+IFERROR(INDEX(INDIRECT($Q$4):INDIRECT($Q$5),MATCH($A24,INDIRECT($Q$4):INDIRECT($Q$6),0),COLUMN()),0)+IFERROR(INDEX(INDIRECT($Q$7):INDIRECT($Q$8),MATCH($A24,INDIRECT($Q$7):INDIRECT($Q$9),0),COLUMN()),0)+IFERROR(INDEX(INDIRECT($Q$10):INDIRECT($Q$11),MATCH($A24,INDIRECT($Q$10):INDIRECT($Q$12),0),COLUMN()),0)+IFERROR(INDEX(INDIRECT($Q$13):INDIRECT($Q$14),MATCH($A24,INDIRECT($Q$13):INDIRECT($Q$15),0),COLUMN()),0)+IFERROR(INDEX(INDIRECT($Q$16):INDIRECT($Q$17),MATCH($A24,INDIRECT($Q$16):INDIRECT($Q$18),0),COLUMN()),0) -> 0 | E24: =IFERROR(INDEX(INDIRECT($Q$1):INDIRECT($Q$2),MATCH($A24,INDIRECT($Q$1):INDIRECT($Q$3),0),COLUMN()),0)+IFERROR(INDEX(INDIRECT($Q$4):INDIRECT($Q$5),MATCH($A24,INDIRECT($Q$4):INDIRECT($Q$6),0),COLUMN()),0)+IFERROR(INDEX(INDIRECT($Q$7):INDIRECT($Q$8),MATCH($A24,INDIRECT($Q$7):INDIRECT($Q$9),0),COLUMN()),0)+IFERROR(INDEX(INDIRECT($Q$10):INDIRECT($Q$11),MATCH($A24,INDIRECT($Q$10):INDIRECT($Q$12),0),COLUMN()),0)+IFERROR(INDEX(INDIRECT($Q$13):INDIRECT($Q$14),MATCH($A24,INDIRECT($Q$13):INDIRECT($Q$15),0),COLUMN()),0)+IFERROR(INDEX(INDIRECT($Q$16):INDIRECT($Q$17),MATCH($A24,INDIRECT($Q$16):INDIRECT($Q$18),0),COLUMN()),0) -> 0 | F24: =IFERROR(INDEX(INDIRECT($Q$1):INDIRECT($Q$2),MATCH($A24,INDIRECT($Q$1):INDIRECT($Q$3),0),COLUMN()),0)+IFERROR(INDEX(INDIRECT($Q$4):INDIRECT($Q$5),MATCH($A24,INDIRECT($Q$4):INDIRECT($Q$6),0),COLUMN()),0)+IFERROR(INDEX(INDIRECT($Q$7):INDIRECT($Q$8),MATCH($A24,INDIRECT($Q$7):INDIRECT($Q$9),0),COLUMN()),0)+IFERROR(INDEX(INDIRECT($Q$10):INDIRECT($Q$11),MATCH($A24,INDIRECT($Q$10):INDIRECT($Q$12),0),COLUMN()),0)+IFERROR(INDEX(INDIRECT($Q$13):INDIRECT($Q$14),MATCH($A24,INDIRECT($Q$13):INDIRECT($Q$15),0),COLUMN()),0)+IFERROR(INDEX(INDIRECT($Q$16):INDIRECT($Q$17),MATCH($A24,INDIRECT($Q$16):INDIRECT($Q$18),0),COLUMN()),0) -> 0 | G24: =IFERROR(INDEX(INDIRECT($Q$1):INDIRECT($Q$2),MATCH($A24,INDIRECT($Q$1):INDIRECT($Q$3),0),COLUMN()),0)+IFERROR(INDEX(INDIRECT($Q$4):INDIRECT($Q$5),MATCH($A24,INDIRECT($Q$4):INDIRECT($Q$6),0),COLUMN()),0)+IFERROR(INDEX(INDIRECT($Q$7):INDIRECT($Q$8),MATCH($A24,INDIRECT($Q$7):INDIRECT($Q$9),0),COLUMN()),0)+IFERROR(INDEX(INDIRECT($Q$10):INDIRECT($Q$11),MATCH($A24,INDIRECT($Q$10):INDIRECT($Q$12),0),COLUMN()),0)+IFERROR(INDEX(INDIRECT($Q$13):INDIRECT($Q$14),MATCH($A24,INDIRECT($Q$13):INDIRECT($Q$15),0),COLUMN()),0)+IFERROR(INDEX(INDIRECT($Q$16):INDIRECT($Q$17),MATCH($A24,INDIRECT($Q$16):INDIRECT($Q$18),0),COLUMN()),0) -> 0 | H24: =IFERROR(INDEX(INDIRECT($Q$1):INDIRECT($Q$2),MATCH($A24,INDIRECT($Q$1):INDIRECT($Q$3),0),COLUMN()),0)+IFERROR(INDEX(INDIRECT($Q$4):INDIRECT($Q$5),MATCH($A24,INDIRECT($Q$4):INDIRECT($Q$6),0),COLUMN()),0)+IFERROR(INDEX(INDIRECT($Q$7):INDIRECT($Q$8),MATCH($A24,INDIRECT($Q$7):INDIRECT($Q$9),0),COLUMN()),0)+IFERROR(INDEX(INDIRECT($Q$10):INDIRECT($Q$11),MATCH($A24,INDIRECT($Q$10):INDIRECT($Q$12),0),COLUMN()),0)+IFERROR(INDEX(INDIRECT($Q$13):INDIRECT($Q$14),MATCH($A24,INDIRECT($Q$13):INDIRECT($Q$15),0),COLUMN()),0)+IFERROR(INDEX(INDIRECT($Q$16):INDIRECT($Q$17),MATCH($A24,INDIRECT($Q$16):INDIRECT($Q$18),0),COLUMN()),0) -> 0 | I24: =IFERROR(INDEX(INDIRECT($Q$1):INDIRECT($Q$2),MATCH($A24,INDIRECT($Q$1):INDIRECT($Q$3),0),COLUMN()),0)+IFERROR(INDEX(INDIRECT($Q$4):INDIRECT($Q$5),MATCH($A24,INDIRECT($Q$4):INDIRECT($Q$6),0),COLUMN()),0)+IFERROR(INDEX(INDIRECT($Q$7):INDIRECT($Q$8),MATCH($A24,INDIRECT($Q$7):INDIRECT($Q$9),0),COLUMN()),0)+IFERROR(INDEX(INDIRECT($Q$10):INDIRECT($Q$11),MATCH($A24,INDIRECT($Q$10):INDIRECT($Q$12),0),COLUMN()),0)+IFERROR(INDEX(INDIRECT($Q$13):INDIRECT($Q$14),MATCH($A24,INDIRECT($Q$13):INDIRECT($Q$15),0),COLUMN()),0)+IFERROR(INDEX(INDIRECT($Q$16):INDIRECT($Q$17),MATCH($A24,INDIRECT($Q$16):INDIRECT($Q$18),0),COLUMN()),0) -> 0 | K24: =IFERROR(VLOOKUP($A24,INDIRECT($Q$16):INDIRECT($Q$17),11,FALSE),0) -> 0 | L24: 0 | M24: 0
C25: =IFERROR(VLOOKUP($A25,INDIRECT($Q$1):INDIRECT($Q$2),11,FALSE),0) -> 0 | D25: =IFERROR(INDEX(INDIRECT($Q$1):INDIRECT($Q$2),MATCH($A25,INDIRECT($Q$1):INDIRECT($Q$3),0),COLUMN()),0)+IFERROR(INDEX(INDIRECT($Q$4):INDIRECT($Q$5),MATCH($A25,INDIRECT($Q$4):INDIRECT($Q$6),0),COLUMN()),0)+IFERROR(INDEX(INDIRECT($Q$7):INDIRECT($Q$8),MATCH($A25,INDIRECT($Q$7):INDIRECT($Q$9),0),COLUMN()),0)+IFERROR(INDEX(INDIRECT($Q$10):INDIRECT($Q$11),MATCH($A25,INDIRECT($Q$10):INDIRECT($Q$12),0),COLUMN()),0)+IFERROR(INDEX(INDIRECT($Q$13):INDIRECT($Q$14),MATCH($A25,INDIRECT($Q$13):INDIRECT($Q$15),0),COLUMN()),0)+IFERROR(INDEX(INDIRECT($Q$16):INDIRECT($Q$17),MATCH($A25,INDIRECT($Q$16):INDIRECT($Q$18),0),COLUMN()),0) -> 0 | E25: =IFERROR(INDEX(INDIRECT($Q$1):INDIRECT($Q$2),MATCH($A25,INDIRECT($Q$1):INDIRECT($Q$3),0),COLUMN()),0)+IFERROR(INDEX(INDIRECT($Q$4):INDIRECT($Q$5),MATCH($A25,INDIRECT($Q$4):INDIRECT($Q$6),0),COLUMN()),0)+IFERROR(INDEX(INDIRECT($Q$7):INDIRECT($Q$8),MATCH($A25,INDIRECT($Q$7):INDIRECT($Q$9),0),COLUMN()),0)+IFERROR(INDEX(INDIRECT($Q$10):INDIRECT($Q$11),MATCH($A25,INDIRECT($Q$10):INDIRECT($Q$12),0),COLUMN()),0)+IFERROR(INDEX(INDIRECT($Q$13):INDIRECT($Q$14),MATCH($A25,INDIRECT($Q$13):INDIRECT($Q$15),0),COLUMN()),0)+IFERROR(INDEX(INDIRECT($Q$16):INDIRECT($Q$17),MATCH($A25,INDIRECT($Q$16):INDIRECT($Q$18),0),COLUMN()),0) -> 0 | F25: =IFERROR(INDEX(INDIRECT($Q$1):INDIRECT($Q$2),MATCH($A25,INDIRECT($Q$1):INDIRECT($Q$3),0),COLUMN()),0)+IFERROR(INDEX(INDIRECT($Q$4):INDIRECT($Q$5),MATCH($A25,INDIRECT($Q$4):INDIRECT($Q$6),0),COLUMN()),0)+IFERROR(INDEX(INDIRECT($Q$7):INDIRECT($Q$8),MATCH($A25,INDIRECT($Q$7):INDIRECT($Q$9),0),COLUMN()),0)+IFERROR(INDEX(INDIRECT($Q$10):INDIRECT($Q$11),MATCH($A25,INDIRECT($Q$10):INDIRECT($Q$12),0),COLUMN()),0)+IFERROR(INDEX(INDIRECT($Q$13):INDIRECT($Q$14),MATCH($A25,INDIRECT($Q$13):INDIRECT($Q$15),0),COLUMN()),0)+IFERROR(INDEX(INDIRECT($Q$16):INDIRECT($Q$17),MATCH($A25,INDIRECT($Q$16):INDIRECT($Q$18),0),COLUMN()),0) -> 0 | G25: =IFERROR(INDEX(INDIRECT($Q$1):INDIRECT($Q$2),MATCH($A25,INDIRECT($Q$1):INDIRECT($Q$3),0),COLUMN()),0)+IFERROR(INDEX(INDIRECT($Q$4):INDIRECT($Q$5),MATCH($A25,INDIRECT($Q$4):INDIRECT($Q$6),0),COLUMN()),0)+IFERROR(INDEX(INDIRECT($Q$7):INDIRECT($Q$8),MATCH($A25,INDIRECT($Q$7):INDIRECT($Q$9),0),COLUMN()),0)+IFERROR(INDEX(INDIRECT($Q$10):INDIRECT($Q$11),MATCH($A25,INDIRECT($Q$10):INDIRECT($Q$12),0),COLUMN()),0)+IFERROR(INDEX(INDIRECT($Q$13):INDIRECT($Q$14),MATCH($A25,INDIRECT($Q$13):INDIRECT($Q$15),0),COLUMN()),0)+IFERROR(INDEX(INDIRECT($Q$16):INDIRECT($Q$17),MATCH($A25,INDIRECT($Q$16):INDIRECT($Q$18),0),COLUMN()),0) -> 0 | H25: =IFERROR(INDEX(INDIRECT($Q$1):INDIRECT($Q$2),MATCH($A25,INDIRECT($Q$1):INDIRECT($Q$3),0),COLUMN()),0)+IFERROR(INDEX(INDIRECT($Q$4):INDIRECT($Q$5),MATCH($A25,INDIRECT($Q$4):INDIRECT($Q$6),0),COLUMN()),0)+IFERROR(INDEX(INDIRECT($Q$7):INDIRECT($Q$8),MATCH($A25,INDIRECT($Q$7):INDIRECT($Q$9),0),COLUMN()),0)+IFERROR(INDEX(INDIRECT($Q$10):INDIRECT($Q$11),MATCH($A25,INDIRECT($Q$10):INDIRECT($Q$12),0),COLUMN()),0)+IFERROR(INDEX(INDIRECT($Q$13):INDIRECT($Q$14),MATCH($A25,INDIRECT($Q$13):INDIRECT($Q$15),0),COLUMN()),0)+IFERROR(INDEX(INDIRECT($Q$16):INDIRECT($Q$17),MATCH($A25,INDIRECT($Q$16):INDIRECT($Q$18),0),COLUMN()),0) -> 0 | I25: =IFERROR(INDEX(INDIRECT($Q$1):INDIRECT($Q$2),MATCH($A25,INDIRECT($Q$1):INDIRECT($Q$3),0),COLUMN()),0)+IFERROR(INDEX(INDIRECT($Q$4):INDIRECT($Q$5),MATCH($A25,INDIRECT($Q$4):INDIRECT($Q$6),0),COLUMN()),0)+IFERROR(INDEX(INDIRECT($Q$7):INDIRECT($Q$8),MATCH($A25,INDIRECT($Q$7):INDIRECT($Q$9),0),COLUMN()),0)+IFERROR(INDEX(INDIRECT($Q$10):INDIRECT($Q$11),MATCH($A25,INDIRECT($Q$10):INDIRECT($Q$12),0),COLUMN()),0)+IFERROR(INDEX(INDIRECT($Q$13):INDIRECT($Q$14),MATCH($A25,INDIRECT($Q$13):INDIRECT($Q$15),0),COLUMN()),0)+IFERROR(INDEX(INDIRECT($Q$16):INDIRECT($Q$17),MATCH($A25,INDIRECT($Q$16):INDIRECT($Q$18),0),COLUMN()),0) -> 0 | K25: =IFERROR(VLOOKUP($A25,INDIRECT($Q$16):INDIRECT($Q$17),11,FALSE),0) -> 0 | L25: 0 | M25: 0
C26: =IFERROR(VLOOKUP($A26,INDIRECT($Q$1):INDIRECT($Q$2),11,FALSE),0) -> 0 | D26: =IFERROR(INDEX(INDIRECT($Q$1):INDIRECT($Q$2),MATCH($A26,INDIRECT($Q$1):INDIRECT($Q$3),0),COLUMN()),0)+IFERROR(INDEX(INDIRECT($Q$4):INDIRECT($Q$5),MATCH($A26,INDIRECT($Q$4):INDIRECT($Q$6),0),COLUMN()),0)+IFERROR(INDEX(INDIRECT($Q$7):INDIRECT($Q$8),MATCH($A26,INDIRECT($Q$7):INDIRECT($Q$9),0),COLUMN()),0)+IFERROR(INDEX(INDIRECT($Q$10):INDIRECT($Q$11),MATCH($A26,INDIRECT($Q$10):INDIRECT($Q$12),0),COLUMN()),0)+IFERROR(INDEX(INDIRECT($Q$13):INDIRECT($Q$14),MATCH($A26,INDIRECT($Q$13):INDIRECT($Q$15),0),COLUMN()),0)+IFERROR(INDEX(INDIRECT($Q$16):INDIRECT($Q$17),MATCH($A26,INDIRECT($Q$16):INDIRECT($Q$18),0),COLUMN()),0) -> 0 | E26: =IFERROR(INDEX(INDIRECT($Q$1):INDIRECT($Q$2),MATCH($A26,INDIRECT($Q$1):INDIRECT($Q$3),0),COLUMN()),0)+IFERROR(INDEX(INDIRECT($Q$4):INDIRECT($Q$5),MATCH($A26,INDIRECT($Q$4):INDIRECT($Q$6),0),COLUMN()),0)+IFERROR(INDEX(INDIRECT($Q$7):INDIRECT($Q$8),MATCH($A26,INDIRECT($Q$7):INDIRECT($Q$9),0),COLUMN()),0)+IFERROR(INDEX(INDIRECT($Q$10):INDIRECT($Q$11),MATCH($A26,INDIRECT($Q$10):INDIRECT($Q$12),0),COLUMN()),0)+IFERROR(INDEX(INDIRECT($Q$13):INDIRECT($Q$14),MATCH($A26,INDIRECT($Q$13):INDIRECT($Q$15),0),COLUMN()),0)+IFERROR(INDEX(INDIRECT($Q$16):INDIRECT($Q$17),MATCH($A26,INDIRECT($Q$16):INDIRECT($Q$18),0),COLUMN()),0) -> 0 | F26: =IFERROR(INDEX(INDIRECT($Q$1):INDIRECT($Q$2),MATCH($A26,INDIRECT($Q$1):INDIRECT($Q$3),0),COLUMN()),0)+IFERROR(INDEX(INDIRECT($Q$4):INDIRECT($Q$5),MATCH($A26,INDIRECT($Q$4):INDIRECT($Q$6),0),COLUMN()),0)+IFERROR(INDEX(INDIRECT($Q$7):INDIRECT($Q$8),MATCH($A26,INDIRECT($Q$7):INDIRECT($Q$9),0),COLUMN()),0)+IFERROR(INDEX(INDIRECT($Q$10):INDIRECT($Q$11),MATCH($A26,INDIRECT($Q$10):INDIRECT($Q$12),0),COLUMN()),0)+IFERROR(INDEX(INDIRECT($Q$13):INDIRECT($Q$14),MATCH($A26,INDIRECT($Q$13):INDIRECT($Q$15),0),COLUMN()),0)+IFERROR(INDEX(INDIRECT($Q$16):INDIRECT($Q$17),MATCH($A26,INDIRECT($Q$16):INDIRECT($Q$18),0),COLUMN()),0) -> 0 | G26: =IFERROR(INDEX(INDIRECT($Q$1):INDIRECT($Q$2),MATCH($A26,INDIRECT($Q$1):INDIRECT($Q$3),0),COLUMN()),0)+IFERROR(INDEX(INDIRECT($Q$4):INDIRECT($Q$5),MATCH($A26,INDIRECT($Q$4):INDIRECT($Q$6),0),COLUMN()),0)+IFERROR(INDEX(INDIRECT($Q$7):INDIRECT($Q$8),MATCH($A26,INDIRECT($Q$7):INDIRECT($Q$9),0),COLUMN()),0)+IFERROR(INDEX(INDIRECT($Q$10):INDIRECT($Q$11),MATCH($A26,INDIRECT($Q$10):INDIRECT($Q$12),0),COLUMN()),0)+IFERROR(INDEX(INDIRECT($Q$13):INDIRECT($Q$14),MATCH($A26,INDIRECT($Q$13):INDIRECT($Q$15),0),COLUMN()),0)+IFERROR(INDEX(INDIRECT($Q$16):INDIRECT($Q$17),MATCH($A26,INDIRECT($Q$16):INDIRECT($Q$18),0),COLUMN()),0) -> 0 | H26: =IFERROR(INDEX(INDIRECT($Q$1):INDIRECT($Q$2),MATCH($A26,INDIRECT($Q$1):INDIRECT($Q$3),0),COLUMN()),0)+IFERROR(INDEX(INDIRECT($Q$4):INDIRECT($Q$5),MATCH($A26,INDIRECT($Q$4):INDIRECT($Q$6),0),COLUMN()),0)+IFERROR(INDEX(INDIRECT($Q$7):INDIRECT($Q$8),MATCH($A26,INDIRECT($Q$7):INDIRECT($Q$9),0),COLUMN()),0)+IFERROR(INDEX(INDIRECT($Q$10):INDIRECT($Q$11),MATCH($A26,INDIRECT($Q$10):INDIRECT($Q$12),0),COLUMN()),0)+IFERROR(INDEX(INDIRECT($Q$13):INDIRECT($Q$14),MATCH($A26,INDIRECT($Q$13):INDIRECT($Q$15),0),COLUMN()),0)+IFERROR(INDEX(INDIRECT($Q$16):INDIRECT($Q$17),MATCH($A26,INDIRECT($Q$16):INDIRECT($Q$18),0),COLUMN()),0) -> 0 | I26: =IFERROR(INDEX(INDIRECT($Q$1):INDIRECT($Q$2),MATCH($A26,INDIRECT($Q$1):INDIRECT($Q$3),0),COLUMN()),0)+IFERROR(INDEX(INDIRECT($Q$4):INDIRECT($Q$5),MATCH($A26,INDIRECT($Q$4):INDIRECT($Q$6),0),COLUMN()),0)+IFERROR(INDEX(INDIRECT($Q$7):INDIRECT($Q$8),MATCH($A26,INDIRECT($Q$7):INDIRECT($Q$9),0),COLUMN()),0)+IFERROR(INDEX(INDIRECT($Q$10):INDIRECT($Q$11),MATCH($A26,INDIRECT($Q$10):INDIRECT($Q$12),0),COLUMN()),0)+IFERROR(INDEX(INDIRECT($Q$13):INDIRECT($Q$14),MATCH($A26,INDIRECT($Q$13):INDIRECT($Q$15),0),COLUMN()),0)+IFERROR(INDEX(INDIRECT($Q$16):INDIRECT($Q$17),MATCH($A26,INDIRECT($Q$16):INDIRECT($Q$18),0),COLUMN()),0) -> 0 | K26: =IFERROR(VLOOKUP($A26,INDIRECT($Q$16):INDIRECT($Q$17),11,FALSE),0) -> 0 | L26: 0 | M26: 0
C27: =IFERROR(VLOOKUP($A27,INDIRECT($Q$1):INDIRECT($Q$2),11,FALSE),0) -> 0 | D27: =IFERROR(INDEX(INDIRECT($Q$1):INDIRECT($Q$2),MATCH($A27,INDIRECT($Q$1):INDIRECT($Q$3),0),COLUMN()),0)+IFERROR(INDEX(INDIRECT($Q$4):INDIRECT($Q$5),MATCH($A27,INDIRECT($Q$4):INDIRECT($Q$6),0),COLUMN()),0)+IFERROR(INDEX(INDIRECT($Q$7):INDIRECT($Q$8),MATCH($A27,INDIRECT($Q$7):INDIRECT($Q$9),0),COLUMN()),0)+IFERROR(INDEX(INDIRECT($Q$10):INDIRECT($Q$11),MATCH($A27,INDIRECT($Q$10):INDIRECT($Q$12),0),COLUMN()),0)+IFERROR(INDEX(INDIRECT($Q$13):INDIRECT($Q$14),MATCH($A27,INDIRECT($Q$13):INDIRECT($Q$15),0),COLUMN()),0)+IFERROR(INDEX(INDIRECT($Q$16):INDIRECT($Q$17),MATCH($A27,INDIRECT($Q$16):INDIRECT($Q$18),0),COLUMN()),0) -> 0 | E27: =IFERROR(INDEX(INDIRECT($Q$1):INDIRECT($Q$2),MATCH($A27,INDIRECT($Q$1):INDIRECT($Q$3),0),COLUMN()),0)+IFERROR(INDEX(INDIRECT($Q$4):INDIRECT($Q$5),MATCH($A27,INDIRECT($Q$4):INDIRECT($Q$6),0),COLUMN()),0)+IFERROR(INDEX(INDIRECT($Q$7):INDIRECT($Q$8),MATCH($A27,INDIRECT($Q$7):INDIRECT($Q$9),0),COLUMN()),0)+IFERROR(INDEX(INDIRECT($Q$10):INDIRECT($Q$11),MATCH($A27,INDIRECT($Q$10):INDIRECT($Q$12),0),COLUMN()),0)+IFERROR(INDEX(INDIRECT($Q$13):INDIRECT($Q$14),MATCH($A27,INDIRECT($Q$13):INDIRECT($Q$15),0),COLUMN()),0)+IFERROR(INDEX(INDIRECT($Q$16):INDIRECT($Q$17),MATCH($A27,INDIRECT($Q$16):INDIRECT($Q$18),0),COLUMN()),0) -> 0 | F27: =IFERROR(INDEX(INDIRECT($Q$1):INDIRECT($Q$2),MATCH($A27,INDIRECT($Q$1):INDIRECT($Q$3),0),COLUMN()),0)+IFERROR(INDEX(INDIRECT($Q$4):INDIRECT($Q$5),MATCH($A27,INDIRECT($Q$4):INDIRECT($Q$6),0),COLUMN()),0)+IFERROR(INDEX(INDIRECT($Q$7):INDIRECT($Q$8),MATCH($A27,INDIRECT($Q$7):INDIRECT($Q$9),0),COLUMN()),0)+IFERROR(INDEX(INDIRECT($Q$10):INDIRECT($Q$11),MATCH($A27,INDIRECT($Q$10):INDIRECT($Q$12),0),COLUMN()),0)+IFERROR(INDEX(INDIRECT($Q$13):INDIRECT($Q$14),MATCH($A27,INDIRECT($Q$13):INDIRECT($Q$15),0),COLUMN()),0)+IFERROR(INDEX(INDIRECT($Q$16):INDIRECT($Q$17),MATCH($A27,INDIRECT($Q$16):INDIRECT($Q$18),0),COLUMN()),0) -> 0 | G27: =IFERROR(INDEX(INDIRECT($Q$1):INDIRECT($Q$2),MATCH($A27,INDIRECT($Q$1):INDIRECT($Q$3),0),COLUMN()),0)+IFERROR(INDEX(INDIRECT($Q$4):INDIRECT($Q$5),MATCH($A27,INDIRECT($Q$4):INDIRECT($Q$6),0),COLUMN()),0)+IFERROR(INDEX(INDIRECT($Q$7):INDIRECT($Q$8),MATCH($A27,INDIRECT($Q$7):INDIRECT($Q$9),0),COLUMN()),0)+IFERROR(INDEX(INDIRECT($Q$10):INDIRECT($Q$11),MATCH($A27,INDIRECT($Q$10):INDIRECT($Q$12),0),COLUMN()),0)+IFERROR(INDEX(INDIRECT($Q$13):INDIRECT($Q$14),MATCH($A27,INDIRECT($Q$13):INDIRECT($Q$15),0),COLUMN()),0)+IFERROR(INDEX(INDIRECT($Q$16):INDIRECT($Q$17),MATCH($A27,INDIRECT($Q$16):INDIRECT($Q$18),0),COLUMN()),0) -> 0 | H27: =IFERROR(INDEX(INDIRECT($Q$1):INDIRECT($Q$2),MATCH($A27,INDIRECT($Q$1):INDIRECT($Q$3),0),COLUMN()),0)+IFERROR(INDEX(INDIRECT($Q$4):INDIRECT($Q$5),MATCH($A27,INDIRECT($Q$4):INDIRECT($Q$6),0),COLUMN()),0)+IFERROR(INDEX(INDIRECT($Q$7):INDIRECT($Q$8),MATCH($A27,INDIRECT($Q$7):INDIRECT($Q$9),0),COLUMN()),0)+IFERROR(INDEX(INDIRECT($Q$10):INDIRECT($Q$11),MATCH($A27,INDIRECT($Q$10):INDIRECT($Q$12),0),COLUMN()),0)+IFERROR(INDEX(INDIRECT($Q$13):INDIRECT($Q$14),MATCH($A27,INDIRECT($Q$13):INDIRECT($Q$15),0),COLUMN()),0)+IFERROR(INDEX(INDIRECT($Q$16):INDIRECT($Q$17),MATCH($A27,INDIRECT($Q$16):INDIRECT($Q$18),0),COLUMN()),0) -> 0 | I27: =IFERROR(INDEX(INDIRECT($Q$1):INDIRECT($Q$2),MATCH($A27,INDIRECT($Q$1):INDIRECT($Q$3),0),COLUMN()),0)+IFERROR(INDEX(INDIRECT($Q$4):INDIRECT($Q$5),MATCH($A27,INDIRECT($Q$4):INDIRECT($Q$6),0),COLUMN()),0)+IFERROR(INDEX(INDIRECT($Q$7):INDIRECT($Q$8),MATCH($A27,INDIRECT($Q$7):INDIRECT($Q$9),0),COLUMN()),0)+IFERROR(INDEX(INDIRECT($Q$10):INDIRECT($Q$11),MATCH($A27,INDIRECT($Q$10):INDIRECT($Q$12),0),COLUMN()),0)+IFERROR(INDEX(INDIRECT($Q$13):INDIRECT($Q$14),MATCH($A27,INDIRECT($Q$13):INDIRECT($Q$15),0),COLUMN()),0)+IFERROR(INDEX(INDIRECT($Q$16):INDIRECT($Q$17),MATCH($A27,INDIRECT($Q$16):INDIRECT($Q$18),0),COLUMN()),0) -> 0 | K27: =IFERROR(VLOOKUP($A27,INDIRECT($Q$16):INDIRECT($Q$17),11,FALSE),0) -> 0 | L27: 0 | M27: 0
C28: =IFERROR(VLOOKUP($A28,INDIRECT($Q$1):INDIRECT($Q$2),11,FALSE),0) -> 0 | D28: =IFERROR(INDEX(INDIRECT($Q$1):INDIRECT($Q$2),MATCH($A28,INDIRECT($Q$1):INDIRECT($Q$3),0),COLUMN()),0)+IFERROR(INDEX(INDIRECT($Q$4):INDIRECT($Q$5),MATCH($A28,INDIRECT($Q$4):INDIRECT($Q$6),0),COLUMN()),0)+IFERROR(INDEX(INDIRECT($Q$7):INDIRECT($Q$8),MATCH($A28,INDIRECT($Q$7):INDIRECT($Q$9),0),COLUMN()),0)+IFERROR(INDEX(INDIRECT($Q$10):INDIRECT($Q$11),MATCH($A28,INDIRECT($Q$10):INDIRECT($Q$12),0),COLUMN()),0)+IFERROR(INDEX(INDIRECT($Q$13):INDIRECT($Q$14),MATCH($A28,INDIRECT($Q$13):INDIRECT($Q$15),0),COLUMN()),0)+IFERROR(INDEX(INDIRECT($Q$16):INDIRECT($Q$17),MATCH($A28,INDIRECT($Q$16):INDIRECT($Q$18),0),COLUMN()),0) -> 0 | E28: =IFERROR(INDEX(INDIRECT($Q$1):INDIRECT($Q$2),MATCH($A28,INDIRECT($Q$1):INDIRECT($Q$3),0),COLUMN()),0)+IFERROR(INDEX(INDIRECT($Q$4):INDIRECT($Q$5),MATCH($A28,INDIRECT($Q$4):INDIRECT($Q$6),0),COLUMN()),0)+IFERROR(INDEX(INDIRECT($Q$7):INDIRECT($Q$8),MATCH($A28,INDIRECT($Q$7):INDIRECT($Q$9),0),COLUMN()),0)+IFERROR(INDEX(INDIRECT($Q$10):INDIRECT($Q$11),MATCH($A28,INDIRECT($Q$10):INDIRECT($Q$12),0),COLUMN()),0)+IFERROR(INDEX(INDIRECT($Q$13):INDIRECT($Q$14),MATCH($A28,INDIRECT($Q$13):INDIRECT($Q$15),0),COLUMN()),0)+IFERROR(INDEX(INDIRECT($Q$16):INDIRECT($Q$17),MATCH($A28,INDIRECT($Q$16):INDIRECT($Q$18),0),COLUMN()),0) -> 0 | F28: =IFERROR(INDEX(INDIRECT($Q$1):INDIRECT($Q$2),MATCH($A28,INDIRECT($Q$1):INDIRECT($Q$3),0),COLUMN()),0)+IFERROR(INDEX(INDIRECT($Q$4):INDIRECT($Q$5),MATCH($A28,INDIRECT($Q$4):INDIRECT($Q$6),0),COLUMN()),0)+IFERROR(INDEX(INDIRECT($Q$7):INDIRECT($Q$8),MATCH($A28,INDIRECT($Q$7):INDIRECT($Q$9),0),COLUMN()),0)+IFERROR(INDEX(INDIRECT($Q$10):INDIRECT($Q$11),MATCH($A28,INDIRECT($Q$10):INDIRECT($Q$12),0),COLUMN()),0)+IFERROR(INDEX(INDIRECT($Q$13):INDIRECT($Q$14),MATCH($A28,INDIRECT($Q$13):INDIRECT($Q$15),0),COLUMN()),0)+IFERROR(INDEX(INDIRECT($Q$16):INDIRECT($Q$17),MATCH($A28,INDIRECT($Q$16):INDIRECT($Q$18),0),COLUMN()),0) -> 0 | G28: =IFERROR(INDEX(INDIRECT($Q$1):INDIRECT($Q$2),MATCH($A28,INDIRECT($Q$1):INDIRECT($Q$3),0),COLUMN()),0)+IFERROR(INDEX(INDIRECT($Q$4):INDIRECT($Q$5),MATCH($A28,INDIRECT($Q$4):INDIRECT($Q$6),0),COLUMN()),0)+IFERROR(INDEX(INDIRECT($Q$7):INDIRECT($Q$8),MATCH($A28,INDIRECT($Q$7):INDIRECT($Q$9),0),COLUMN()),0)+IFERROR(INDEX(INDIRECT($Q$10):INDIRECT($Q$11),MATCH($A28,INDIRECT($Q$10):INDIRECT($Q$12),0),COLUMN()),0)+IFERROR(INDEX(INDIRECT($Q$13):INDIRECT($Q$14),MATCH($A28,INDIRECT($Q$13):INDIRECT($Q$15),0),COLUMN()),0)+IFERROR(INDEX(INDIRECT($Q$16):INDIRECT($Q$17),MATCH($A28,INDIRECT($Q$16):INDIRECT($Q$18),0),COLUMN()),0) -> 0 | H28: =IFERROR(INDEX(INDIRECT($Q$1):INDIRECT($Q$2),MATCH($A28,INDIRECT($Q$1):INDIRECT($Q$3),0),COLUMN()),0)+IFERROR(INDEX(INDIRECT($Q$4):INDIRECT($Q$5),MATCH($A28,INDIRECT($Q$4):INDIRECT($Q$6),0),COLUMN()),0)+IFERROR(INDEX(INDIRECT($Q$7):INDIRECT($Q$8),MATCH($A28,INDIRECT($Q$7):INDIRECT($Q$9),0),COLUMN()),0)+IFERROR(INDEX(INDIRECT($Q$10):INDIRECT($Q$11),MATCH($A28,INDIRECT($Q$10):INDIRECT($Q$12),0),COLUMN()),0)+IFERROR(INDEX(INDIRECT($Q$13):INDIRECT($Q$14),MATCH($A28,INDIRECT($Q$13):INDIRECT($Q$15),0),COLUMN()),0)+IFERROR(INDEX(INDIRECT($Q$16):INDIRECT($Q$17),MATCH($A28,INDIRECT($Q$16):INDIRECT($Q$18),0),COLUMN()),0) -> 0 | I28: =IFERROR(INDEX(INDIRECT($Q$1):INDIRECT($Q$2),MATCH($A28,INDIRECT($Q$1):INDIRECT($Q$3),0),COLUMN()),0)+IFERROR(INDEX(INDIRECT($Q$4):INDIRECT($Q$5),MATCH($A28,INDIRECT($Q$4):INDIRECT($Q$6),0),COLUMN()),0)+IFERROR(INDEX(INDIRECT($Q$7):INDIRECT($Q$8),MATCH($A28,INDIRECT($Q$7):INDIRECT($Q$9),0),COLUMN()),0)+IFERROR(INDEX(INDIRECT($Q$10):INDIRECT($Q$11),MATCH($A28,INDIRECT($Q$10):INDIRECT($Q$12),0),COLUMN()),0)+IFERROR(INDEX(INDIRECT($Q$13):INDIRECT($Q$14),MATCH($A28,INDIRECT($Q$13):INDIRECT($Q$15),0),COLUMN()),0)+IFERROR(INDEX(INDIRECT($Q$16):INDIRECT($Q$17),MATCH($A28,INDIRECT($Q$16):INDIRECT($Q$18),0),COLUMN()),0) -> 0 | K28: =IFERROR(VLOOKUP($A28,INDIRECT($Q$16):INDIRECT($Q$17),11,FALSE),0) -> 0 | L28: 0 | M28: 0
C29: =IFERROR(VLOOKUP($A29,INDIRECT($Q$1):INDIRECT($Q$2),11,FALSE),0) -> 0 | D29: =IFERROR(INDEX(INDIRECT($Q$1):INDIRECT($Q$2),MATCH($A29,INDIRECT($Q$1):INDIRECT($Q$3),0),COLUMN()),0)+IFERROR(INDEX(INDIRECT($Q$4):INDIRECT($Q$5),MATCH($A29,INDIRECT($Q$4):INDIRECT($Q$6),0),COLUMN()),0)+IFERROR(INDEX(INDIRECT($Q$7):INDIRECT($Q$8),MATCH($A29,INDIRECT($Q$7):INDIRECT($Q$9),0),COLUMN()),0)+IFERROR(INDEX(INDIRECT($Q$10):INDIRECT($Q$11),MATCH($A29,INDIRECT($Q$10):INDIRECT($Q$12),0),COLUMN()),0)+IFERROR(INDEX(INDIRECT($Q$13):INDIRECT($Q$14),MATCH($A29,INDIRECT($Q$13):INDIRECT($Q$15),0),COLUMN()),0)+IFERROR(INDEX(INDIRECT($Q$16):INDIRECT($Q$17),MATCH($A29,INDIRECT($Q$16):INDIRECT($Q$18),0),COLUMN()),0) -> 0 | E29: =IFERROR(INDEX(INDIRECT($Q$1):INDIRECT($Q$2),MATCH($A29,INDIRECT($Q$1):INDIRECT($Q$3),0),COLUMN()),0)+IFERROR(INDEX(INDIRECT($Q$4):INDIRECT($Q$5),MATCH($A29,INDIRECT($Q$4):INDIRECT($Q$6),0),COLUMN()),0)+IFERROR(INDEX(INDIRECT($Q$7):INDIRECT($Q$8),MATCH($A29,INDIRECT($Q$7):INDIRECT($Q$9),0),COLUMN()),0)+IFERROR(INDEX(INDIRECT($Q$10):INDIRECT($Q$11),MATCH($A29,INDIRECT($Q$10):INDIRECT($Q$12),0),COLUMN()),0)+IFERROR(INDEX(INDIRECT($Q$13):INDIRECT($Q$14),MATCH($A29,INDIRECT($Q$13):INDIRECT($Q$15),0),COLUMN()),0)+IFERROR(INDEX(INDIRECT($Q$16):INDIRECT($Q$17),MATCH($A29,INDIRECT($Q$16):INDIRECT($Q$18),0),COLUMN()),0) -> 0 | F29: =IFERROR(INDEX(INDIRECT($Q$1):INDIRECT($Q$2),MATCH($A29,INDIRECT($Q$1):INDIRECT($Q$3),0),COLUMN()),0)+IFERROR(INDEX(INDIRECT($Q$4):INDIRECT($Q$5),MATCH($A29,INDIRECT($Q$4):INDIRECT($Q$6),0),COLUMN()),0)+IFERROR(INDEX(INDIRECT($Q$7):INDIRECT($Q$8),MATCH($A29,INDIRECT($Q$7):INDIRECT($Q$9),0),COLUMN()),0)+IFERROR(INDEX(INDIRECT($Q$10):INDIRECT($Q$11),MATCH($A29,INDIRECT($Q$10):INDIRECT($Q$12),0),COLUMN()),0)+IFERROR(INDEX(INDIRECT($Q$13):INDIRECT($Q$14),MATCH($A29,INDIRECT($Q$13):INDIRECT($Q$15),0),COLUMN()),0)+IFERROR(INDEX(INDIRECT($Q$16):INDIRECT($Q$17),MATCH($A29,INDIRECT($Q$16):INDIRECT($Q$18),0),COLUMN()),0) -> 0 | G29: =IFERROR(INDEX(INDIRECT($Q$1):INDIRECT($Q$2),MATCH($A29,INDIRECT($Q$1):INDIRECT($Q$3),0),COLUMN()),0)+IFERROR(INDEX(INDIRECT($Q$4):INDIRECT($Q$5),MATCH($A29,INDIRECT($Q$4):INDIRECT($Q$6),0),COLUMN()),0)+IFERROR(INDEX(INDIRECT($Q$7):INDIRECT($Q$8),MATCH($A29,INDIRECT($Q$7):INDIRECT($Q$9),0),COLUMN()),0)+IFERROR(INDEX(INDIRECT($Q$10):INDIRECT($Q$11),MATCH($A29,INDIRECT($Q$10):INDIRECT($Q$12),0),COLUMN()),0)+IFERROR(INDEX(INDIRECT($Q$13):INDIRECT($Q$14),MATCH($A29,INDIRECT($Q$13):INDIRECT($Q$15),0),COLUMN()),0)+IFERROR(INDEX(INDIRECT($Q$16):INDIRECT($Q$17),MATCH($A29,INDIRECT($Q$16):INDIRECT($Q$18),0),COLUMN()),0) -> 0 | H29: =IFERROR(INDEX(INDIRECT($Q$1):INDIRECT($Q$2),MATCH($A29,INDIRECT($Q$1):INDIRECT($Q$3),0),COLUMN()),0)+IFERROR(INDEX(INDIRECT($Q$4):INDIRECT($Q$5),MATCH($A29,INDIRECT($Q$4):INDIRECT($Q$6),0),COLUMN()),0)+IFERROR(INDEX(INDIRECT($Q$7):INDIRECT($Q$8),MATCH($A29,INDIRECT($Q$7):INDIRECT($Q$9),0),COLUMN()),0)+IFERROR(INDEX(INDIRECT($Q$10):INDIRECT($Q$11),MATCH($A29,INDIRECT($Q$10):INDIRECT($Q$12),0),COLUMN()),0)+IFERROR(INDEX(INDIRECT($Q$13):INDIRECT($Q$14),MATCH($A29,INDIRECT($Q$13):INDIRECT($Q$15),0),COLUMN()),0)+IFERROR(INDEX(INDIRECT($Q$16):INDIRECT($Q$17),MATCH($A29,INDIRECT($Q$16):INDIRECT($Q$18),0),COLUMN()),0) -> 0 | I29: =IFERROR(INDEX(INDIRECT($Q$1):INDIRECT($Q$2),MATCH($A29,INDIRECT($Q$1):INDIRECT($Q$3),0),COLUMN()),0)+IFERROR(INDEX(INDIRECT($Q$4):INDIRECT($Q$5),MATCH($A29,INDIRECT($Q$4):INDIRECT($Q$6),0),COLUMN()),0)+IFERROR(INDEX(INDIRECT($Q$7):INDIRECT($Q$8),MATCH($A29,INDIRECT($Q$7):INDIRECT($Q$9),0),COLUMN()),0)+IFERROR(INDEX(INDIRECT($Q$10):INDIRECT($Q$11),MATCH($A29,INDIRECT($Q$10):INDIRECT($Q$12),0),COLUMN()),0)+IFERROR(INDEX(INDIRECT($Q$13):INDIRECT($Q$14),MATCH($A29,INDIRECT($Q$13):INDIRECT($Q$15),0),COLUMN()),0)+IFERROR(INDEX(INDIRECT($Q$16):INDIRECT($Q$17),MATCH($A29,INDIRECT($Q$16):INDIRECT($Q$18),0),COLUMN()),0) -> 0 | K29: =IFERROR(VLOOKUP($A29,INDIRECT($Q$16):INDIRECT($Q$17),11,FALSE),0) -> 0 | L29: 0 | M29: 0
C30: =IFERROR(VLOOKUP($A30,INDIRECT($Q$1):INDIRECT($Q$2),11,FALSE),0) -> 0 | D30: =IFERROR(INDEX(INDIRECT($Q$1):INDIRECT($Q$2),MATCH($A30,INDIRECT($Q$1):INDIRECT($Q$3),0),COLUMN()),0)+IFERROR(INDEX(INDIRECT($Q$4):INDIRECT($Q$5),MATCH($A30,INDIRECT($Q$4):INDIRECT($Q$6),0),COLUMN()),0)+IFERROR(INDEX(INDIRECT($Q$7):INDIRECT($Q$8),MATCH($A30,INDIRECT($Q$7):INDIRECT($Q$9),0),COLUMN()),0)+IFERROR(INDEX(INDIRECT($Q$10):INDIRECT($Q$11),MATCH($A30,INDIRECT($Q$10):INDIRECT($Q$12),0),COLUMN()),0)+IFERROR(INDEX(INDIRECT($Q$13):INDIRECT($Q$14),MATCH($A30,INDIRECT($Q$13):INDIRECT($Q$15),0),COLUMN()),0)+IFERROR(INDEX(INDIRECT($Q$16):INDIRECT($Q$17),MATCH($A30,INDIRECT($Q$16):INDIRECT($Q$18),0),COLUMN()),0) -> 0 | E30: =IFERROR(INDEX(INDIRECT($Q$1):INDIRECT($Q$2),MATCH($A30,INDIRECT($Q$1):INDIRECT($Q$3),0),COLUMN()),0)+IFERROR(INDEX(INDIRECT($Q$4):INDIRECT($Q$5),MATCH($A30,INDIRECT($Q$4):INDIRECT($Q$6),0),COLUMN()),0)+IFERROR(INDEX(INDIRECT($Q$7):INDIRECT($Q$8),MATCH($A30,INDIRECT($Q$7):INDIRECT($Q$9),0),COLUMN()),0)+IFERROR(INDEX(INDIRECT($Q$10):INDIRECT($Q$11),MATCH($A30,INDIRECT($Q$10):INDIRECT($Q$12),0),COLUMN()),0)+IFERROR(INDEX(INDIRECT($Q$13):INDIRECT($Q$14),MATCH($A30,INDIRECT($Q$13):INDIRECT($Q$15),0),COLUMN()),0)+IFERROR(INDEX(INDIRECT($Q$16):INDIRECT($Q$17),MATCH($A30,INDIRECT($Q$16):INDIRECT($Q$18),0),COLUMN()),0) -> 0 | F30: =IFERROR(INDEX(INDIRECT($Q$1):INDIRECT($Q$2),MATCH($A30,INDIRECT($Q$1):INDIRECT($Q$3),0),COLUMN()),0)+IFERROR(INDEX(INDIRECT($Q$4):INDIRECT($Q$5),MATCH($A30,INDIRECT($Q$4):INDIRECT($Q$6),0),COLUMN()),0)+IFERROR(INDEX(INDIRECT($Q$7):INDIRECT($Q$8),MATCH($A30,INDIRECT($Q$7):INDIRECT($Q$9),0),COLUMN()),0)+IFERROR(INDEX(INDIRECT($Q$10):INDIRECT($Q$11),MATCH($A30,INDIRECT($Q$10):INDIRECT($Q$12),0),COLUMN()),0)+IFERROR(INDEX(INDIRECT($Q$13):INDIRECT($Q$14),MATCH($A30,INDIRECT($Q$13):INDIRECT($Q$15),0),COLUMN()),0)+IFERROR(INDEX(INDIRECT($Q$16):INDIRECT($Q$17),MATCH($A30,INDIRECT($Q$16):INDIRECT($Q$18),0),COLUMN()),0) -> 0 | G30: =IFERROR(INDEX(INDIRECT($Q$1):INDIRECT($Q$2),MATCH($A30,INDIRECT($Q$1):INDIRECT($Q$3),0),COLUMN()),0)+IFERROR(INDEX(INDIRECT($Q$4):INDIRECT($Q$5),MATCH($A30,INDIRECT($Q$4):INDIRECT($Q$6),0),COLUMN()),0)+IFERROR(INDEX(INDIRECT($Q$7):INDIRECT($Q$8),MATCH($A30,INDIRECT($Q$7):INDIRECT($Q$9),0),COLUMN()),0)+IFERROR(INDEX(INDIRECT($Q$10):INDIRECT($Q$11),MATCH($A30,INDIRECT($Q$10):INDIRECT($Q$12),0),COLUMN()),0)+IFERROR(INDEX(INDIRECT($Q$13):INDIRECT($Q$14),MATCH($A30,INDIRECT($Q$13):INDIRECT($Q$15),0),COLUMN()),0)+IFERROR(INDEX(INDIRECT($Q$16):INDIRECT($Q$17),MATCH($A30,INDIRECT($Q$16):INDIRECT($Q$18),0),COLUMN()),0) -> 0 | H30: =IFERROR(INDEX(INDIRECT($Q$1):INDIRECT($Q$2),MATCH($A30,INDIRECT($Q$1):INDIRECT($Q$3),0),COLUMN()),0)+IFERROR(INDEX(INDIRECT($Q$4):INDIRECT($Q$5),MATCH($A30,INDIRECT($Q$4):INDIRECT($Q$6),0),COLUMN()),0)+IFERROR(INDEX(INDIRECT($Q$7):INDIRECT($Q$8),MATCH($A30,INDIRECT($Q$7):INDIRECT($Q$9),0),COLUMN()),0)+IFERROR(INDEX(INDIRECT($Q$10):INDIRECT($Q$11),MATCH($A30,INDIRECT($Q$10):INDIRECT($Q$12),0),COLUMN()),0)+IFERROR(INDEX(INDIRECT($Q$13):INDIRECT($Q$14),MATCH($A30,INDIRECT($Q$13):INDIRECT($Q$15),0),COLUMN()),0)+IFERROR(INDEX(INDIRECT($Q$16):INDIRECT($Q$17),MATCH($A30,INDIRECT($Q$16):INDIRECT($Q$18),0),COLUMN()),0) -> 0 | I30: =IFERROR(INDEX(INDIRECT($Q$1):INDIRECT($Q$2),MATCH($A30,INDIRECT($Q$1):INDIRECT($Q$3),0),COLUMN()),0)+IFERROR(INDEX(INDIRECT($Q$4):INDIRECT($Q$5),MATCH($A30,INDIRECT($Q$4):INDIRECT($Q$6),0),COLUMN()),0)+IFERROR(INDEX(INDIRECT($Q$7):INDIRECT($Q$8),MATCH($A30,INDIRECT($Q$7):INDIRECT($Q$9),0),COLUMN()),0)+IFERROR(INDEX(INDIRECT($Q$10):INDIRECT($Q$11),MATCH($A30,INDIRECT($Q$10):INDIRECT($Q$12),0),COLUMN()),0)+IFERROR(INDEX(INDIRECT($Q$13):INDIRECT($Q$14),MATCH($A30,INDIRECT($Q$13):INDIRECT($Q$15),0),COLUMN()),0)+IFERROR(INDEX(INDIRECT($Q$16):INDIRECT($Q$17),MATCH($A30,INDIRECT($Q$16):INDIRECT($Q$18),0),COLUMN()),0) -> 0 | K30: =IFERROR(VLOOKUP($A30,INDIRECT($Q$16):INDIRECT($Q$17),11,FALSE),0) -> 0 | L30: 0 | M30: 0
C31: =IFERROR(VLOOKUP($A31,INDIRECT($Q$1):INDIRECT($Q$2),11,FALSE),0) -> 0 | D31: =IFERROR(INDEX(INDIRECT($Q$1):INDIRECT($Q$2),MATCH($A31,INDIRECT($Q$1):INDIRECT($Q$3),0),COLUMN()),0)+IFERROR(INDEX(INDIRECT($Q$4):INDIRECT($Q$5),MATCH($A31,INDIRECT($Q$4):INDIRECT($Q$6),0),COLUMN()),0)+IFERROR(INDEX(INDIRECT($Q$7):INDIRECT($Q$8),MATCH($A31,INDIRECT($Q$7):INDIRECT($Q$9),0),COLUMN()),0)+IFERROR(INDEX(INDIRECT($Q$10):INDIRECT($Q$11),MATCH($A31,INDIRECT($Q$10):INDIRECT($Q$12),0),COLUMN()),0)+IFERROR(INDEX(INDIRECT($Q$13):INDIRECT($Q$14),MATCH($A31,INDIRECT($Q$13):INDIRECT($Q$15),0),COLUMN()),0)+IFERROR(INDEX(INDIRECT($Q$16):INDIRECT($Q$17),MATCH($A31,INDIRECT($Q$16):INDIRECT($Q$18),0),COLUMN()),0) -> 0 | E31: =IFERROR(INDEX(INDIRECT($Q$1):INDIRECT($Q$2),MATCH($A31,INDIRECT($Q$1):INDIRECT($Q$3),0),COLUMN()),0)+IFERROR(INDEX(INDIRECT($Q$4):INDIRECT($Q$5),MATCH($A31,INDIRECT($Q$4):INDIRECT($Q$6),0),COLUMN()),0)+IFERROR(INDEX(INDIRECT($Q$7):INDIRECT($Q$8),MATCH($A31,INDIRECT($Q$7):INDIRECT($Q$9),0),COLUMN()),0)+IFERROR(INDEX(INDIRECT($Q$10):INDIRECT($Q$11),MATCH($A31,INDIRECT($Q$10):INDIRECT($Q$12),0),COLUMN()),0)+IFERROR(INDEX(INDIRECT($Q$13):INDIRECT($Q$14),MATCH($A31,INDIRECT($Q$13):INDIRECT($Q$15),0),COLUMN()),0)+IFERROR(INDEX(INDIRECT($Q$16):INDIRECT($Q$17),MATCH($A31,INDIRECT($Q$16):INDIRECT($Q$18),0),COLUMN()),0) -> 0 | F31: =IFERROR(INDEX(INDIRECT($Q$1):INDIRECT($Q$2),MATCH($A31,INDIRECT($Q$1):INDIRECT($Q$3),0),COLUMN()),0)+IFERROR(INDEX(INDIRECT($Q$4):INDIRECT($Q$5),MATCH($A31,INDIRECT($Q$4):INDIRECT($Q$6),0),COLUMN()),0)+IFERROR(INDEX(INDIRECT($Q$7):INDIRECT($Q$8),MATCH($A31,INDIRECT($Q$7):INDIRECT($Q$9),0),COLUMN()),0)+IFERROR(INDEX(INDIRECT($Q$10):INDIRECT($Q$11),MATCH($A31,INDIRECT($Q$10):INDIRECT($Q$12),0),COLUMN()),0)+IFERROR(INDEX(INDIRECT($Q$13):INDIRECT($Q$14),MATCH($A31,INDIRECT($Q$13):INDIRECT($Q$15),0),COLUMN()),0)+IFERROR(INDEX(INDIRECT($Q$16):INDIRECT($Q$17),MATCH($A31,INDIRECT($Q$16):INDIRECT($Q$18),0),COLUMN()),0) -> 0 | G31: =IFERROR(INDEX(INDIRECT($Q$1):INDIRECT($Q$2),MATCH($A31,INDIRECT($Q$1):INDIRECT($Q$3),0),COLUMN()),0)+IFERROR(INDEX(INDIRECT($Q$4):INDIRECT($Q$5),MATCH($A31,INDIRECT($Q$4):INDIRECT($Q$6),0),COLUMN()),0)+IFERROR(INDEX(INDIRECT($Q$7):INDIRECT($Q$8),MATCH($A31,INDIRECT($Q$7):INDIRECT($Q$9),0),COLUMN()),0)+IFERROR(INDEX(INDIRECT($Q$10):INDIRECT($Q$11),MATCH($A31,INDIRECT($Q$10):INDIRECT($Q$12),0),COLUMN()),0)+IFERROR(INDEX(INDIRECT($Q$13):INDIRECT($Q$14),MATCH($A31,INDIRECT($Q$13):INDIRECT($Q$15),0),COLUMN()),0)+IFERROR(INDEX(INDIRECT($Q$16):INDIRECT($Q$17),MATCH($A31,INDIRECT($Q$16):INDIRECT($Q$18),0),COLUMN()),0) -> 0 | H31: =IFERROR(INDEX(INDIRECT($Q$1):INDIRECT($Q$2),MATCH($A31,INDIRECT($Q$1):INDIRECT($Q$3),0),COLUMN()),0)+IFERROR(INDEX(INDIRECT($Q$4):INDIRECT($Q$5),MATCH($A31,INDIRECT($Q$4):INDIRECT($Q$6),0),COLUMN()),0)+IFERROR(INDEX(INDIRECT($Q$7):INDIRECT($Q$8),MATCH($A31,INDIRECT($Q$7):INDIRECT($Q$9),0),COLUMN()),0)+IFERROR(INDEX(INDIRECT($Q$10):INDIRECT($Q$11),MATCH($A31,INDIRECT($Q$10):INDIRECT($Q$12),0),COLUMN()),0)+IFERROR(INDEX(INDIRECT($Q$13):INDIRECT($Q$14),MATCH($A31,INDIRECT($Q$13):INDIRECT($Q$15),0),COLUMN()),0)+IFERROR(INDEX(INDIRECT($Q$16):INDIRECT($Q$17),MATCH($A31,INDIRECT($Q$16):INDIRECT($Q$18),0),COLUMN()),0) -> 0 | I31: =IFERROR(INDEX(INDIRECT($Q$1):INDIRECT($Q$2),MATCH($A31,INDIRECT($Q$1):INDIRECT($Q$3),0),COLUMN()),0)+IFERROR(INDEX(INDIRECT($Q$4):INDIRECT($Q$5),MATCH($A31,INDIRECT($Q$4):INDIRECT($Q$6),0),COLUMN()),0)+IFERROR(INDEX(INDIRECT($Q$7):INDIRECT($Q$8),MATCH($A31,INDIRECT($Q$7):INDIRECT($Q$9),0),COLUMN()),0)+IFERROR(INDEX(INDIRECT($Q$10):INDIRECT($Q$11),MATCH($A31,INDIRECT($Q$10):INDIRECT($Q$12),0),COLUMN()),0)+IFERROR(INDEX(INDIRECT($Q$13):INDIRECT($Q$14),MATCH($A31,INDIRECT($Q$13):INDIRECT($Q$15),0),COLUMN()),0)+IFERROR(INDEX(INDIRECT($Q$16):INDIRECT($Q$17),MATCH($A31,INDIRECT($Q$16):INDIRECT($Q$18),0),COLUMN()),0) -> 0 | K31: =IFERROR(VLOOKUP($A31,INDIRECT($Q$16):INDIRECT($Q$17),11,FALSE),0) -> 0 | L31: 0 | M31: 0
C32: =IFERROR(VLOOKUP($A32,INDIRECT($Q$1):INDIRECT($Q$2),11,FALSE),0) -> 0 | D32: =IFERROR(INDEX(INDIRECT($Q$1):INDIRECT($Q$2),MATCH($A32,INDIRECT($Q$1):INDIRECT($Q$3),0),COLUMN()),0)+IFERROR(INDEX(INDIRECT($Q$4):INDIRECT($Q$5),MATCH($A32,INDIRECT($Q$4):INDIRECT($Q$6),0),COLUMN()),0)+IFERROR(INDEX(INDIRECT($Q$7):INDIRECT($Q$8),MATCH($A32,INDIRECT($Q$7):INDIRECT($Q$9),0),COLUMN()),0)+IFERROR(INDEX(INDIRECT($Q$10):INDIRECT($Q$11),MATCH($A32,INDIRECT($Q$10):INDIRECT($Q$12),0),COLUMN()),0)+IFERROR(INDEX(INDIRECT($Q$13):INDIRECT($Q$14),MATCH($A32,INDIRECT($Q$13):INDIRECT($Q$15),0),COLUMN()),0)+IFERROR(INDEX(INDIRECT($Q$16):INDIRECT($Q$17),MATCH($A32,INDIRECT($Q$16):INDIRECT($Q$18),0),COLUMN()),0) -> 0 | E32: =IFERROR(INDEX(INDIRECT($Q$1):INDIRECT($Q$2),MATCH($A32,INDIRECT($Q$1):INDIRECT($Q$3),0),COLUMN()),0)+IFERROR(INDEX(INDIRECT($Q$4):INDIRECT($Q$5),MATCH($A32,INDIRECT($Q$4):INDIRECT($Q$6),0),COLUMN()),0)+IFERROR(INDEX(INDIRECT($Q$7):INDIRECT($Q$8),MATCH($A32,INDIRECT($Q$7):INDIRECT($Q$9),0),COLUMN()),0)+IFERROR(INDEX(INDIRECT($Q$10):INDIRECT($Q$11),MATCH($A32,INDIRECT($Q$10):INDIRECT($Q$12),0),COLUMN()),0)+IFERROR(INDEX(INDIRECT($Q$13):INDIRECT($Q$14),MATCH($A32,INDIRECT($Q$13):INDIRECT($Q$15),0),COLUMN()),0)+IFERROR(INDEX(INDIRECT($Q$16):INDIRECT($Q$17),MATCH($A32,INDIRECT($Q$16):INDIRECT($Q$18),0),COLUMN()),0) -> 0 | F32: =IFERROR(INDEX(INDIRECT($Q$1):INDIRECT($Q$2),MATCH($A32,INDIRECT($Q$1):INDIRECT($Q$3),0),COLUMN()),0)+IFERROR(INDEX(INDIRECT($Q$4):INDIRECT($Q$5),MATCH($A32,INDIRECT($Q$4):INDIRECT($Q$6),0),COLUMN()),0)+IFERROR(INDEX(INDIRECT($Q$7):INDIRECT($Q$8),MATCH($A32,INDIRECT($Q$7):INDIRECT($Q$9),0),COLUMN()),0)+IFERROR(INDEX(INDIRECT($Q$10):INDIRECT($Q$11),MATCH($A32,INDIRECT($Q$10):INDIRECT($Q$12),0),COLUMN()),0)+IFERROR(INDEX(INDIRECT($Q$13):INDIRECT($Q$14),MATCH($A32,INDIRECT($Q$13):INDIRECT($Q$15),0),COLUMN()),0)+IFERROR(INDEX(INDIRECT($Q$16):INDIRECT($Q$17),MATCH($A32,INDIRECT($Q$16):INDIRECT($Q$18),0),COLUMN()),0) -> 0 | G32: =IFERROR(INDEX(INDIRECT($Q$1):INDIRECT($Q$2),MATCH($A32,INDIRECT($Q$1):INDIRECT($Q$3),0),COLUMN()),0)+IFERROR(INDEX(INDIRECT($Q$4):INDIRECT($Q$5),MATCH($A32,INDIRECT($Q$4):INDIRECT($Q$6),0),COLUMN()),0)+IFERROR(INDEX(INDIRECT($Q$7):INDIRECT($Q$8),MATCH($A32,INDIRECT($Q$7):INDIRECT($Q$9),0),COLUMN()),0)+IFERROR(INDEX(INDIRECT($Q$10):INDIRECT($Q$11),MATCH($A32,INDIRECT($Q$10):INDIRECT($Q$12),0),COLUMN()),0)+IFERROR(INDEX(INDIRECT($Q$13):INDIRECT($Q$14),MATCH($A32,INDIRECT($Q$13):INDIRECT($Q$15),0),COLUMN()),0)+IFERROR(INDEX(INDIRECT($Q$16):INDIRECT($Q$17),MATCH($A32,INDIRECT($Q$16):INDIRECT($Q$18),0),COLUMN()),0) -> 0 | H32: =IFERROR(INDEX(INDIRECT($Q$1):INDIRECT($Q$2),MATCH($A32,INDIRECT($Q$1):INDIRECT($Q$3),0),COLUMN()),0)+IFERROR(INDEX(INDIRECT($Q$4):INDIRECT($Q$5),MATCH($A32,INDIRECT($Q$4):INDIRECT($Q$6),0),COLUMN()),0)+IFERROR(INDEX(INDIRECT($Q$7):INDIRECT($Q$8),MATCH($A32,INDIRECT($Q$7):INDIRECT($Q$9),0),COLUMN()),0)+IFERROR(INDEX(INDIRECT($Q$10):INDIRECT($Q$11),MATCH($A32,INDIRECT($Q$10):INDIRECT($Q$12),0),COLUMN()),0)+IFERROR(INDEX(INDIRECT($Q$13):INDIRECT($Q$14),MATCH($A32,INDIRECT($Q$13):INDIRECT($Q$15),0),COLUMN()),0)+IFERROR(INDEX(INDIRECT($Q$16):INDIRECT($Q$17),MATCH($A32,INDIRECT($Q$16):INDIRECT($Q$18),0),COLUMN()),0) -> 0 | I32: =IFERROR(INDEX(INDIRECT($Q$1):INDIRECT($Q$2),MATCH($A32,INDIRECT($Q$1):INDIRECT($Q$3),0),COLUMN()),0)+IFERROR(INDEX(INDIRECT($Q$4):INDIRECT($Q$5),MATCH($A32,INDIRECT($Q$4):INDIRECT($Q$6),0),COLUMN()),0)+IFERROR(INDEX(INDIRECT($Q$7):INDIRECT($Q$8),MATCH($A32,INDIRECT($Q$7):INDIRECT($Q$9),0),COLUMN()),0)+IFERROR(INDEX(INDIRECT($Q$10):INDIRECT($Q$11),MATCH($A32,INDIRECT($Q$10):INDIRECT($Q$12),0),COLUMN()),0)+IFERROR(INDEX(INDIRECT($Q$13):INDIRECT($Q$14),MATCH($A32,INDIRECT($Q$13):INDIRECT($Q$15),0),COLUMN()),0)+IFERROR(INDEX(INDIRECT($Q$16):INDIRECT($Q$17),MATCH($A32,INDIRECT($Q$16):INDIRECT($Q$18),0),COLUMN()),0) -> 0 | K32: =IFERROR(VLOOKUP($A32,INDIRECT($Q$16):INDIRECT($Q$17),11,FALSE),0) -> 0 | L32: 0 | M32: 0
C33: =IFERROR(VLOOKUP($A33,INDIRECT($Q$1):INDIRECT($Q$2),11,FALSE),0) -> 0 | D33: =IFERROR(INDEX(INDIRECT($Q$1):INDIRECT($Q$2),MATCH($A33,INDIRECT($Q$1):INDIRECT($Q$3),0),COLUMN()),0)+IFERROR(INDEX(INDIRECT($Q$4):INDIRECT($Q$5),MATCH($A33,INDIRECT($Q$4):INDIRECT($Q$6),0),COLUMN()),0)+IFERROR(INDEX(INDIRECT($Q$7):INDIRECT($Q$8),MATCH($A33,INDIRECT($Q$7):INDIRECT($Q$9),0),COLUMN()),0)+IFERROR(INDEX(INDIRECT($Q$10):INDIRECT($Q$11),MATCH($A33,INDIRECT($Q$10):INDIRECT($Q$12),0),COLUMN()),0)+IFERROR(INDEX(INDIRECT($Q$13):INDIRECT($Q$14),MATCH($A33,INDIRECT($Q$13):INDIRECT($Q$15),0),COLUMN()),0)+IFERROR(INDEX(INDIRECT($Q$16):INDIRECT($Q$17),MATCH($A33,INDIRECT($Q$16):INDIRECT($Q$18),0),COLUMN()),0) -> 0 | E33: =IFERROR(INDEX(INDIRECT($Q$1):INDIRECT($Q$2),MATCH($A33,INDIRECT($Q$1):INDIRECT($Q$3),0),COLUMN()),0)+IFERROR(INDEX(INDIRECT($Q$4):INDIRECT($Q$5),MATCH($A33,INDIRECT($Q$4):INDIRECT($Q$6),0),COLUMN()),0)+IFERROR(INDEX(INDIRECT($Q$7):INDIRECT($Q$8),MATCH($A33,INDIRECT($Q$7):INDIRECT($Q$9),0),COLUMN()),0)+IFERROR(INDEX(INDIRECT($Q$10):INDIRECT($Q$11),MATCH($A33,INDIRECT($Q$10):INDIRECT($Q$12),0),COLUMN()),0)+IFERROR(INDEX(INDIRECT($Q$13):INDIRECT($Q$14),MATCH($A33,INDIRECT($Q$13):INDIRECT($Q$15),0),COLUMN()),0)+IFERROR(INDEX(INDIRECT($Q$16):INDIRECT($Q$17),MATCH($A33,INDIRECT($Q$16):INDIRECT($Q$18),0),COLUMN()),0) -> 0 | F33: =IFERROR(INDEX(INDIRECT($Q$1):INDIRECT($Q$2),MATCH($A33,INDIRECT($Q$1):INDIRECT($Q$3),0),COLUMN()),0)+IFERROR(INDEX(INDIRECT($Q$4):INDIRECT($Q$5),MATCH($A33,INDIRECT($Q$4):INDIRECT($Q$6),0),COLUMN()),0)+IFERROR(INDEX(INDIRECT($Q$7):INDIRECT($Q$8),MATCH($A33,INDIRECT($Q$7):INDIRECT($Q$9),0),COLUMN()),0)+IFERROR(INDEX(INDIRECT($Q$10):INDIRECT($Q$11),MATCH($A33,INDIRECT($Q$10):INDIRECT($Q$12),0),COLUMN()),0)+IFERROR(INDEX(INDIRECT($Q$13):INDIRECT($Q$14),MATCH($A33,INDIRECT($Q$13):INDIRECT($Q$15),0),COLUMN()),0)+IFERROR(INDEX(INDIRECT($Q$16):INDIRECT($Q$17),MATCH($A33,INDIRECT($Q$16):INDIRECT($Q$18),0),COLUMN()),0) -> 0 | G33: =IFERROR(INDEX(INDIRECT($Q$1):INDIRECT($Q$2),MATCH($A33,INDIRECT($Q$1):INDIRECT($Q$3),0),COLUMN()),0)+IFERROR(INDEX(INDIRECT($Q$4):INDIRECT($Q$5),MATCH($A33,INDIRECT($Q$4):INDIRECT($Q$6),0),COLUMN()),0)+IFERROR(INDEX(INDIRECT($Q$7):INDIRECT($Q$8),MATCH($A33,INDIRECT($Q$7):INDIRECT($Q$9),0),COLUMN()),0)+IFERROR(INDEX(INDIRECT($Q$10):INDIRECT($Q$11),MATCH($A33,INDIRECT($Q$10):INDIRECT($Q$12),0),COLUMN()),0)+IFERROR(INDEX(INDIRECT($Q$13):INDIRECT($Q$14),MATCH($A33,INDIRECT($Q$13):INDIRECT($Q$15),0),COLUMN()),0)+IFERROR(INDEX(INDIRECT($Q$16):INDIRECT($Q$17),MATCH($A33,INDIRECT($Q$16):INDIRECT($Q$18),0),COLUMN()),0) -> 0 | H33: =IFERROR(INDEX(INDIRECT($Q$1):INDIRECT($Q$2),MATCH($A33,INDIRECT($Q$1):INDIRECT($Q$3),0),COLUMN()),0)+IFERROR(INDEX(INDIRECT($Q$4):INDIRECT($Q$5),MATCH($A33,INDIRECT($Q$4):INDIRECT($Q$6),0),COLUMN()),0)+IFERROR(INDEX(INDIRECT($Q$7):INDIRECT($Q$8),MATCH($A33,INDIRECT($Q$7):INDIRECT($Q$9),0),COLUMN()),0)+IFERROR(INDEX(INDIRECT($Q$10):INDIRECT($Q$11),MATCH($A33,INDIRECT($Q$10):INDIRECT($Q$12),0),COLUMN()),0)+IFERROR(INDEX(INDIRECT($Q$13):INDIRECT($Q$14),MATCH($A33,INDIRECT($Q$13):INDIRECT($Q$15),0),COLUMN()),0)+IFERROR(INDEX(INDIRECT($Q$16):INDIRECT($Q$17),MATCH($A33,INDIRECT($Q$16):INDIRECT($Q$18),0),COLUMN()),0) -> 0 | I33: =IFERROR(INDEX(INDIRECT($Q$1):INDIRECT($Q$2),MATCH($A33,INDIRECT($Q$1):INDIRECT($Q$3),0),COLUMN()),0)+IFERROR(INDEX(INDIRECT($Q$4):INDIRECT($Q$5),MATCH($A33,INDIRECT($Q$4):INDIRECT($Q$6),0),COLUMN()),0)+IFERROR(INDEX(INDIRECT($Q$7):INDIRECT($Q$8),MATCH($A33,INDIRECT($Q$7):INDIRECT($Q$9),0),COLUMN()),0)+IFERROR(INDEX(INDIRECT($Q$10):INDIRECT($Q$11),MATCH($A33,INDIRECT($Q$10):INDIRECT($Q$12),0),COLUMN()),0)+IFERROR(INDEX(INDIRECT($Q$13):INDIRECT($Q$14),MATCH($A33,INDIRECT($Q$13):INDIRECT($Q$15),0),COLUMN()),0)+IFERROR(INDEX(INDIRECT($Q$16):INDIRECT($Q$17),MATCH($A33,INDIRECT($Q$16):INDIRECT($Q$18),0),COLUMN()),0) -> 0 | K33: =IFERROR(VLOOKUP($A33,INDIRECT($Q$16):INDIRECT($Q$17),11,FALSE),0) -> 0 | L33: 0 | M33: 0
C34: =IFERROR(VLOOKUP($A34,INDIRECT($Q$1):INDIRECT($Q$2),11,FALSE),0) -> 0 | D34: =IFERROR(INDEX(INDIRECT($Q$1):INDIRECT($Q$2),MATCH($A34,INDIRECT($Q$1):INDIRECT($Q$3),0),COLUMN()),0)+IFERROR(INDEX(INDIRECT($Q$4):INDIRECT($Q$5),MATCH($A34,INDIRECT($Q$4):INDIRECT($Q$6),0),COLUMN()),0)+IFERROR(INDEX(INDIRECT($Q$7):INDIRECT($Q$8),MATCH($A34,INDIRECT($Q$7):INDIRECT($Q$9),0),COLUMN()),0)+IFERROR(INDEX(INDIRECT($Q$10):INDIRECT($Q$11),MATCH($A34,INDIRECT($Q$10):INDIRECT($Q$12),0),COLUMN()),0)+IFERROR(INDEX(INDIRECT($Q$13):INDIRECT($Q$14),MATCH($A34,INDIRECT($Q$13):INDIRECT($Q$15),0),COLUMN()),0)+IFERROR(INDEX(INDIRECT($Q$16):INDIRECT($Q$17),MATCH($A34,INDIRECT($Q$16):INDIRECT($Q$18),0),COLUMN()),0) -> 0 | E34: =IFERROR(INDEX(INDIRECT($Q$1):INDIRECT($Q$2),MATCH($A34,INDIRECT($Q$1):INDIRECT($Q$3),0),COLUMN()),0)+IFERROR(INDEX(INDIRECT($Q$4):INDIRECT($Q$5),MATCH($A34,INDIRECT($Q$4):INDIRECT($Q$6),0),COLUMN()),0)+IFERROR(INDEX(INDIRECT($Q$7):INDIRECT($Q$8),MATCH($A34,INDIRECT($Q$7):INDIRECT($Q$9),0),COLUMN()),0)+IFERROR(INDEX(INDIRECT($Q$10):INDIRECT($Q$11),MATCH($A34,INDIRECT($Q$10):INDIRECT($Q$12),0),COLUMN()),0)+IFERROR(INDEX(INDIRECT($Q$13):INDIRECT($Q$14),MATCH($A34,INDIRECT($Q$13):INDIRECT($Q$15),0),COLUMN()),0)+IFERROR(INDEX(INDIRECT($Q$16):INDIRECT($Q$17),MATCH($A34,INDIRECT($Q$16):INDIRECT($Q$18),0),COLUMN()),0) -> 0 | F34: =IFERROR(INDEX(INDIRECT($Q$1):INDIRECT($Q$2),MATCH($A34,INDIRECT($Q$1):INDIRECT($Q$3),0),COLUMN()),0)+IFERROR(INDEX(INDIRECT($Q$4):INDIRECT($Q$5),MATCH($A34,INDIRECT($Q$4):INDIRECT($Q$6),0),COLUMN()),0)+IFERROR(INDEX(INDIRECT($Q$7):INDIRECT($Q$8),MATCH($A34,INDIRECT($Q$7):INDIRECT($Q$9),0),COLUMN()),0)+IFERROR(INDEX(INDIRECT($Q$10):INDIRECT($Q$11),MATCH($A34,INDIRECT($Q$10):INDIRECT($Q$12),0),COLUMN()),0)+IFERROR(INDEX(INDIRECT($Q$13):INDIRECT($Q$14),MATCH($A34,INDIRECT($Q$13):INDIRECT($Q$15),0),COLUMN()),0)+IFERROR(INDEX(INDIRECT($Q$16):INDIRECT($Q$17),MATCH($A34,INDIRECT($Q$16):INDIRECT($Q$18),0),COLUMN()),0) -> 0 | G34: =IFERROR(INDEX(INDIRECT($Q$1):INDIRECT($Q$2),MATCH($A34,INDIRECT($Q$1):INDIRECT($Q$3),0),COLUMN()),0)+IFERROR(INDEX(INDIRECT($Q$4):INDIRECT($Q$5),MATCH($A34,INDIRECT($Q$4):INDIRECT($Q$6),0),COLUMN()),0)+IFERROR(INDEX(INDIRECT($Q$7):INDIRECT($Q$8),MATCH($A34,INDIRECT($Q$7):INDIRECT($Q$9),0),COLUMN()),0)+IFERROR(INDEX(INDIRECT($Q$10):INDIRECT($Q$11),MATCH($A34,INDIRECT($Q$10):INDIRECT($Q$12),0),COLUMN()),0)+IFERROR(INDEX(INDIRECT($Q$13):INDIRECT($Q$14),MATCH($A34,INDIRECT($Q$13):INDIRECT($Q$15),0),COLUMN()),0)+IFERROR(INDEX(INDIRECT($Q$16):INDIRECT($Q$17),MATCH($A34,INDIRECT($Q$16):INDIRECT($Q$18),0),COLUMN()),0) -> 0 | H34: =IFERROR(INDEX(INDIRECT($Q$1):INDIRECT($Q$2),MATCH($A34,INDIRECT($Q$1):INDIRECT($Q$3),0),COLUMN()),0)+IFERROR(INDEX(INDIRECT($Q$4):INDIRECT($Q$5),MATCH($A34,INDIRECT($Q$4):INDIRECT($Q$6),0),COLUMN()),0)+IFERROR(INDEX(INDIRECT($Q$7):INDIRECT($Q$8),MATCH($A34,INDIRECT($Q$7):INDIRECT($Q$9),0),COLUMN()),0)+IFERROR(INDEX(INDIRECT($Q$10):INDIRECT($Q$11),MATCH($A34,INDIRECT($Q$10):INDIRECT($Q$12),0),COLUMN()),0)+IFERROR(INDEX(INDIRECT($Q$13):INDIRECT($Q$14),MATCH($A34,INDIRECT($Q$13):INDIRECT($Q$15),0),COLUMN()),0)+IFERROR(INDEX(INDIRECT($Q$16):INDIRECT($Q$17),MATCH($A34,INDIRECT($Q$16):INDIRECT($Q$18),0),COLUMN()),0) -> 0 | I34: =IFERROR(INDEX(INDIRECT($Q$1):INDIRECT($Q$2),MATCH($A34,INDIRECT($Q$1):INDIRECT($Q$3),0),COLUMN()),0)+IFERROR(INDEX(INDIRECT($Q$4):INDIRECT($Q$5),MATCH($A34,INDIRECT($Q$4):INDIRECT($Q$6),0),COLUMN()),0)+IFERROR(INDEX(INDIRECT($Q$7):INDIRECT($Q$8),MATCH($A34,INDIRECT($Q$7):INDIRECT($Q$9),0),COLUMN()),0)+IFERROR(INDEX(INDIRECT($Q$10):INDIRECT($Q$11),MATCH($A34,INDIRECT($Q$10):INDIRECT($Q$12),0),COLUMN()),0)+IFERROR(INDEX(INDIRECT($Q$13):INDIRECT($Q$14),MATCH($A34,INDIRECT($Q$13):INDIRECT($Q$15),0),COLUMN()),0)+IFERROR(INDEX(INDIRECT($Q$16):INDIRECT($Q$17),MATCH($A34,INDIRECT($Q$16):INDIRECT($Q$18),0),COLUMN()),0) -> 0 | K34: =IFERROR(VLOOKUP($A34,INDIRECT($Q$16):INDIRECT($Q$17),11,FALSE),0) -> 0 | L34: 0 | M34: 0
C35: =IFERROR(VLOOKUP($A35,INDIRECT($Q$1):INDIRECT($Q$2),11,FALSE),0) -> 0 | D35: =IFERROR(INDEX(INDIRECT($Q$1):INDIRECT($Q$2),MATCH($A35,INDIRECT($Q$1):INDIRECT($Q$3),0),COLUMN()),0)+IFERROR(INDEX(INDIRECT($Q$4):INDIRECT($Q$5),MATCH($A35,INDIRECT($Q$4):INDIRECT($Q$6),0),COLUMN()),0)+IFERROR(INDEX(INDIRECT($Q$7):INDIRECT($Q$8),MATCH($A35,INDIRECT($Q$7):INDIRECT($Q$9),0),COLUMN()),0)+IFERROR(INDEX(INDIRECT($Q$10):INDIRECT($Q$11),MATCH($A35,INDIRECT($Q$10):INDIRECT($Q$12),0),COLUMN()),0)+IFERROR(INDEX(INDIRECT($Q$13):INDIRECT($Q$14),MATCH($A35,INDIRECT($Q$13):INDIRECT($Q$15),0),COLUMN()),0)+IFERROR(INDEX(INDIRECT($Q$16):INDIRECT($Q$17),MATCH($A35,INDIRECT($Q$16):INDIRECT($Q$18),0),COLUMN()),0) -> 0 | E35: =IFERROR(INDEX(INDIRECT($Q$1):INDIRECT($Q$2),MATCH($A35,INDIRECT($Q$1):INDIRECT($Q$3),0),COLUMN()),0)+IFERROR(INDEX(INDIRECT($Q$4):INDIRECT($Q$5),MATCH($A35,INDIRECT($Q$4):INDIRECT($Q$6),0),COLUMN()),0)+IFERROR(INDEX(INDIRECT($Q$7):INDIRECT($Q$8),MATCH($A35,INDIRECT($Q$7):INDIRECT($Q$9),0),COLUMN()),0)+IFERROR(INDEX(INDIRECT($Q$10):INDIRECT($Q$11),MATCH($A35,INDIRECT($Q$10):INDIRECT($Q$12),0),COLUMN()),0)+IFERROR(INDEX(INDIRECT($Q$13):INDIRECT($Q$14),MATCH($A35,INDIRECT($Q$13):INDIRECT($Q$15),0),COLUMN()),0)+IFERROR(INDEX(INDIRECT($Q$16):INDIRECT($Q$17),MATCH($A35,INDIRECT($Q$16):INDIRECT($Q$18),0),COLUMN()),0) -> 0 | F35: =IFERROR(INDEX(INDIRECT($Q$1):INDIRECT($Q$2),MATCH($A35,INDIRECT($Q$1):INDIRECT($Q$3),0),COLUMN()),0)+IFERROR(INDEX(INDIRECT($Q$4):INDIRECT($Q$5),MATCH($A35,INDIRECT($Q$4):INDIRECT($Q$6),0),COLUMN()),0)+IFERROR(INDEX(INDIRECT($Q$7):INDIRECT($Q$8),MATCH($A35,INDIRECT($Q$7):INDIRECT($Q$9),0),COLUMN()),0)+IFERROR(INDEX(INDIRECT($Q$10):INDIRECT($Q$11),MATCH($A35,INDIRECT($Q$10):INDIRECT($Q$12),0),COLUMN()),0)+IFERROR(INDEX(INDIRECT($Q$13):INDIRECT($Q$14),MATCH($A35,INDIRECT($Q$13):INDIRECT($Q$15),0),COLUMN()),0)+IFERROR(INDEX(INDIRECT($Q$16):INDIRECT($Q$17),MATCH($A35,INDIRECT($Q$16):INDIRECT($Q$18),0),COLUMN()),0) -> 0 | G35: =IFERROR(INDEX(INDIRECT($Q$1):INDIRECT($Q$2),MATCH($A35,INDIRECT($Q$1):INDIRECT($Q$3),0),COLUMN()),0)+IFERROR(INDEX(INDIRECT($Q$4):INDIRECT($Q$5),MATCH($A35,INDIRECT($Q$4):INDIRECT($Q$6),0),COLUMN()),0)+IFERROR(INDEX(INDIRECT($Q$7):INDIRECT($Q$8),MATCH($A35,INDIRECT($Q$7):INDIRECT($Q$9),0),COLUMN()),0)+IFERROR(INDEX(INDIRECT($Q$10):INDIRECT($Q$11),MATCH($A35,INDIRECT($Q$10):INDIRECT($Q$12),0),COLUMN()),0)+IFERROR(INDEX(INDIRECT($Q$13):INDIRECT($Q$14),MATCH($A35,INDIRECT($Q$13):INDIRECT($Q$15),0),COLUMN()),0)+IFERROR(INDEX(INDIRECT($Q$16):INDIRECT($Q$17),MATCH($A35,INDIRECT($Q$16):INDIRECT($Q$18),0),COLUMN()),0) -> 0 | H35: =IFERROR(INDEX(INDIRECT($Q$1):INDIRECT($Q$2),MATCH($A35,INDIRECT($Q$1):INDIRECT($Q$3),0),COLUMN()),0)+IFERROR(INDEX(INDIRECT($Q$4):INDIRECT($Q$5),MATCH($A35,INDIRECT($Q$4):INDIRECT($Q$6),0),COLUMN()),0)+IFERROR(INDEX(INDIRECT($Q$7):INDIRECT($Q$8),MATCH($A35,INDIRECT($Q$7):INDIRECT($Q$9),0),COLUMN()),0)+IFERROR(INDEX(INDIRECT($Q$10):INDIRECT($Q$11),MATCH($A35,INDIRECT($Q$10):INDIRECT($Q$12),0),COLUMN()),0)+IFERROR(INDEX(INDIRECT($Q$13):INDIRECT($Q$14),MATCH($A35,INDIRECT($Q$13):INDIRECT($Q$15),0),COLUMN()),0)+IFERROR(INDEX(INDIRECT($Q$16):INDIRECT($Q$17),MATCH($A35,INDIRECT($Q$16):INDIRECT($Q$18),0),COLUMN()),0) -> 0 | I35: =IFERROR(INDEX(INDIRECT($Q$1):INDIRECT($Q$2),MATCH($A35,INDIRECT($Q$1):INDIRECT($Q$3),0),COLUMN()),0)+IFERROR(INDEX(INDIRECT($Q$4):INDIRECT($Q$5),MATCH($A35,INDIRECT($Q$4):INDIRECT($Q$6),0),COLUMN()),0)+IFERROR(INDEX(INDIRECT($Q$7):INDIRECT($Q$8),MATCH($A35,INDIRECT($Q$7):INDIRECT($Q$9),0),COLUMN()),0)+IFERROR(INDEX(INDIRECT($Q$10):INDIRECT($Q$11),MATCH($A35,INDIRECT($Q$10):INDIRECT($Q$12),0),COLUMN()),0)+IFERROR(INDEX(INDIRECT($Q$13):INDIRECT($Q$14),MATCH($A35,INDIRECT($Q$13):INDIRECT($Q$15),0),COLUMN()),0)+IFERROR(INDEX(INDIRECT($Q$16):INDIRECT($Q$17),MATCH($A35,INDIRECT($Q$16):INDIRECT($Q$18),0),COLUMN()),0) -> 0 | K35: =IFERROR(VLOOKUP($A35,INDIRECT($Q$16):INDIRECT($Q$17),11,FALSE),0) -> 0 | L35: 0 | M35: 0
C36: =IFERROR(VLOOKUP($A36,INDIRECT($Q$1):INDIRECT($Q$2),11,FALSE),0) -> 0 | D36: =IFERROR(INDEX(INDIRECT($Q$1):INDIRECT($Q$2),MATCH($A36,INDIRECT($Q$1):INDIRECT($Q$3),0),COLUMN()),0)+IFERROR(INDEX(INDIRECT($Q$4):INDIRECT($Q$5),MATCH($A36,INDIRECT($Q$4):INDIRECT($Q$6),0),COLUMN()),0)+IFERROR(INDEX(INDIRECT($Q$7):INDIRECT($Q$8),MATCH($A36,INDIRECT($Q$7):INDIRECT($Q$9),0),COLUMN()),0)+IFERROR(INDEX(INDIRECT($Q$10):INDIRECT($Q$11),MATCH($A36,INDIRECT($Q$10):INDIRECT($Q$12),0),COLUMN()),0)+IFERROR(INDEX(INDIRECT($Q$13):INDIRECT($Q$14),MATCH($A36,INDIRECT($Q$13):INDIRECT($Q$15),0),COLUMN()),0)+IFERROR(INDEX(INDIRECT($Q$16):INDIRECT($Q$17),MATCH($A36,INDIRECT($Q$16):INDIRECT($Q$18),0),COLUMN()),0) -> 0 | E36: =IFERROR(INDEX(INDIRECT($Q$1):INDIRECT($Q$2),MATCH($A36,INDIRECT($Q$1):INDIRECT($Q$3),0),COLUMN()),0)+IFERROR(INDEX(INDIRECT($Q$4):INDIRECT($Q$5),MATCH($A36,INDIRECT($Q$4):INDIRECT($Q$6),0),COLUMN()),0)+IFERROR(INDEX(INDIRECT($Q$7):INDIRECT($Q$8),MATCH($A36,INDIRECT($Q$7):INDIRECT($Q$9),0),COLUMN()),0)+IFERROR(INDEX(INDIRECT($Q$10):INDIRECT($Q$11),MATCH($A36,INDIRECT($Q$10):INDIRECT($Q$12),0),COLUMN()),0)+IFERROR(INDEX(INDIRECT($Q$13):INDIRECT($Q$14),MATCH($A36,INDIRECT($Q$13):INDIRECT($Q$15),0),COLUMN()),0)+IFERROR(INDEX(INDIRECT($Q$16):INDIRECT($Q$17),MATCH($A36,INDIRECT($Q$16):INDIRECT($Q$18),0),COLUMN()),0) -> 0 | F36: =IFERROR(INDEX(INDIRECT($Q$1):INDIRECT($Q$2),MATCH($A36,INDIRECT($Q$1):INDIRECT($Q$3),0),COLUMN()),0)+IFERROR(INDEX(INDIRECT($Q$4):INDIRECT($Q$5),MATCH($A36,INDIRECT($Q$4):INDIRECT($Q$6),0),COLUMN()),0)+IFERROR(INDEX(INDIRECT($Q$7):INDIRECT($Q$8),MATCH($A36,INDIRECT($Q$7):INDIRECT($Q$9),0),COLUMN()),0)+IFERROR(INDEX(INDIRECT($Q$10):INDIRECT($Q$11),MATCH($A36,INDIRECT($Q$10):INDIRECT($Q$12),0),COLUMN()),0)+IFERROR(INDEX(INDIRECT($Q$13):INDIRECT($Q$14),MATCH($A36,INDIRECT($Q$13):INDIRECT($Q$15),0),COLUMN()),0)+IFERROR(INDEX(INDIRECT($Q$16):INDIRECT($Q$17),MATCH($A36,INDIRECT($Q$16):INDIRECT($Q$18),0),COLUMN()),0) -> 0 | G36: =IFERROR(INDEX(INDIRECT($Q$1):INDIRECT($Q$2),MATCH($A36,INDIRECT($Q$1):INDIRECT($Q$3),0),COLUMN()),0)+IFERROR(INDEX(INDIRECT($Q$4):INDIRECT($Q$5),MATCH($A36,INDIRECT($Q$4):INDIRECT($Q$6),0),COLUMN()),0)+IFERROR(INDEX(INDIRECT($Q$7):INDIRECT($Q$8),MATCH($A36,INDIRECT($Q$7):INDIRECT($Q$9),0),COLUMN()),0)+IFERROR(INDEX(INDIRECT($Q$10):INDIRECT($Q$11),MATCH($A36,INDIRECT($Q$10):INDIRECT($Q$12),0),COLUMN()),0)+IFERROR(INDEX(INDIRECT($Q$13):INDIRECT($Q$14),MATCH($A36,INDIRECT($Q$13):INDIRECT($Q$15),0),COLUMN()),0)+IFERROR(INDEX(INDIRECT($Q$16):INDIRECT($Q$17),MATCH($A36,INDIRECT($Q$16):INDIRECT($Q$18),0),COLUMN()),0) -> 0 | H36: =IFERROR(INDEX(INDIRECT($Q$1):INDIRECT($Q$2),MATCH($A36,INDIRECT($Q$1):INDIRECT($Q$3),0),COLUMN()),0)+IFERROR(INDEX(INDIRECT($Q$4):INDIRECT($Q$5),MATCH($A36,INDIRECT($Q$4):INDIRECT($Q$6),0),COLUMN()),0)+IFERROR(INDEX(INDIRECT($Q$7):INDIRECT($Q$8),MATCH($A36,INDIRECT($Q$7):INDIRECT($Q$9),0),COLUMN()),0)+IFERROR(INDEX(INDIRECT($Q$10):INDIRECT($Q$11),MATCH($A36,INDIRECT($Q$10):INDIRECT($Q$12),0),COLUMN()),0)+IFERROR(INDEX(INDIRECT($Q$13):INDIRECT($Q$14),MATCH($A36,INDIRECT($Q$13):INDIRECT($Q$15),0),COLUMN()),0)+IFERROR(INDEX(INDIRECT($Q$16):INDIRECT($Q$17),MATCH($A36,INDIRECT($Q$16):INDIRECT($Q$18),0),COLUMN()),0) -> 0 | I36: =IFERROR(INDEX(INDIRECT($Q$1):INDIRECT($Q$2),MATCH($A36,INDIRECT($Q$1):INDIRECT($Q$3),0),COLUMN()),0)+IFERROR(INDEX(INDIRECT($Q$4):INDIRECT($Q$5),MATCH($A36,INDIRECT($Q$4):INDIRECT($Q$6),0),COLUMN()),0)+IFERROR(INDEX(INDIRECT($Q$7):INDIRECT($Q$8),MATCH($A36,INDIRECT($Q$7):INDIRECT($Q$9),0),COLUMN()),0)+IFERROR(INDEX(INDIRECT($Q$10):INDIRECT($Q$11),MATCH($A36,INDIRECT($Q$10):INDIRECT($Q$12),0),COLUMN()),0)+IFERROR(INDEX(INDIRECT($Q$13):INDIRECT($Q$14),MATCH($A36,INDIRECT($Q$13):INDIRECT($Q$15),0),COLUMN()),0)+IFERROR(INDEX(INDIRECT($Q$16):INDIRECT($Q$17),MATCH($A36,INDIRECT($Q$16):INDIRECT($Q$18),0),COLUMN()),0) -> 0 | K36: =IFERROR(VLOOKUP($A36,INDIRECT($Q$16):INDIRECT($Q$17),11,FALSE),0) -> 0 | L36: 0 | M36: 0
C37: =IFERROR(VLOOKUP($A37,INDIRECT($Q$1):INDIRECT($Q$2),11,FALSE),0) -> 0 | D37: =IFERROR(INDEX(INDIRECT($Q$1):INDIRECT($Q$2),MATCH($A37,INDIRECT($Q$1):INDIRECT($Q$3),0),COLUMN()),0)+IFERROR(INDEX(INDIRECT($Q$4):INDIRECT($Q$5),MATCH($A37,INDIRECT($Q$4):INDIRECT($Q$6),0),COLUMN()),0)+IFERROR(INDEX(INDIRECT($Q$7):INDIRECT($Q$8),MATCH($A37,INDIRECT($Q$7):INDIRECT($Q$9),0),COLUMN()),0)+IFERROR(INDEX(INDIRECT($Q$10):INDIRECT($Q$11),MATCH($A37,INDIRECT($Q$10):INDIRECT($Q$12),0),COLUMN()),0)+IFERROR(INDEX(INDIRECT($Q$13):INDIRECT($Q$14),MATCH($A37,INDIRECT($Q$13):INDIRECT($Q$15),0),COLUMN()),0)+IFERROR(INDEX(INDIRECT($Q$16):INDIRECT($Q$17),MATCH($A37,INDIRECT($Q$16):INDIRECT($Q$18),0),COLUMN()),0) -> 0 | E37: =IFERROR(INDEX(INDIRECT($Q$1):INDIRECT($Q$2),MATCH($A37,INDIRECT($Q$1):INDIRECT($Q$3),0),COLUMN()),0)+IFERROR(INDEX(INDIRECT($Q$4):INDIRECT($Q$5),MATCH($A37,INDIRECT($Q$4):INDIRECT($Q$6),0),COLUMN()),0)+IFERROR(INDEX(INDIRECT($Q$7):INDIRECT($Q$8),MATCH($A37,INDIRECT($Q$7):INDIRECT($Q$9),0),COLUMN()),0)+IFERROR(INDEX(INDIRECT($Q$10):INDIRECT($Q$11),MATCH($A37,INDIRECT($Q$10):INDIRECT($Q$12),0),COLUMN()),0)+IFERROR(INDEX(INDIRECT($Q$13):INDIRECT($Q$14),MATCH($A37,INDIRECT($Q$13):INDIRECT($Q$15),0),COLUMN()),0)+IFERROR(INDEX(INDIRECT($Q$16):INDIRECT($Q$17),MATCH($A37,INDIRECT($Q$16):INDIRECT($Q$18),0),COLUMN()),0) -> 0 | F37: =IFERROR(INDEX(INDIRECT($Q$1):INDIRECT($Q$2),MATCH($A37,INDIRECT($Q$1):INDIRECT($Q$3),0),COLUMN()),0)+IFERROR(INDEX(INDIRECT($Q$4):INDIRECT($Q$5),MATCH($A37,INDIRECT($Q$4):INDIRECT($Q$6),0),COLUMN()),0)+IFERROR(INDEX(INDIRECT($Q$7):INDIRECT($Q$8),MATCH($A37,INDIRECT($Q$7):INDIRECT($Q$9),0),COLUMN()),0)+IFERROR(INDEX(INDIRECT($Q$10):INDIRECT($Q$11),MATCH($A37,INDIRECT($Q$10):INDIRECT($Q$12),0),COLUMN()),0)+IFERROR(INDEX(INDIRECT($Q$13):INDIRECT($Q$14),MATCH($A37,INDIRECT($Q$13):INDIRECT($Q$15),0),COLUMN()),0)+IFERROR(INDEX(INDIRECT($Q$16):INDIRECT($Q$17),MATCH($A37,INDIRECT($Q$16):INDIRECT($Q$18),0),COLUMN()),0) -> 0 | G37: =IFERROR(INDEX(INDIRECT($Q$1):INDIRECT($Q$2),MATCH($A37,INDIRECT($Q$1):INDIRECT($Q$3),0),COLUMN()),0)+IFERROR(INDEX(INDIRECT($Q$4):INDIRECT($Q$5),MATCH($A37,INDIRECT($Q$4):INDIRECT($Q$6),0),COLUMN()),0)+IFERROR(INDEX(INDIRECT($Q$7):INDIRECT($Q$8),MATCH($A37,INDIRECT($Q$7):INDIRECT($Q$9),0),COLUMN()),0)+IFERROR(INDEX(INDIRECT($Q$10):INDIRECT($Q$11),MATCH($A37,INDIRECT($Q$10):INDIRECT($Q$12),0),COLUMN()),0)+IFERROR(INDEX(INDIRECT($Q$13):INDIRECT($Q$14),MATCH($A37,INDIRECT($Q$13):INDIRECT($Q$15),0),COLUMN()),0)+IFERROR(INDEX(INDIRECT($Q$16):INDIRECT($Q$17),MATCH($A37,INDIRECT($Q$16):INDIRECT($Q$18),0),COLUMN()),0) -> 0 | H37: =IFERROR(INDEX(INDIRECT($Q$1):INDIRECT($Q$2),MATCH($A37,INDIRECT($Q$1):INDIRECT($Q$3),0),COLUMN()),0)+IFERROR(INDEX(INDIRECT($Q$4):INDIRECT($Q$5),MATCH($A37,INDIRECT($Q$4):INDIRECT($Q$6),0),COLUMN()),0)+IFERROR(INDEX(INDIRECT($Q$7):INDIRECT($Q$8),MATCH($A37,INDIRECT($Q$7):INDIRECT($Q$9),0),COLUMN()),0)+IFERROR(INDEX(INDIRECT($Q$10):INDIRECT($Q$11),MATCH($A37,INDIRECT($Q$10):INDIRECT($Q$12),0),COLUMN()),0)+IFERROR(INDEX(INDIRECT($Q$13):INDIRECT($Q$14),MATCH($A37,INDIRECT($Q$13):INDIRECT($Q$15),0),COLUMN()),0)+IFERROR(INDEX(INDIRECT($Q$16):INDIRECT($Q$17),MATCH($A37,INDIRECT($Q$16):INDIRECT($Q$18),0),COLUMN()),0) -> 0 | I37: =IFERROR(INDEX(INDIRECT($Q$1):INDIRECT($Q$2),MATCH($A37,INDIRECT($Q$1):INDIRECT($Q$3),0),COLUMN()),0)+IFERROR(INDEX(INDIRECT($Q$4):INDIRECT($Q$5),MATCH($A37,INDIRECT($Q$4):INDIRECT($Q$6),0),COLUMN()),0)+IFERROR(INDEX(INDIRECT($Q$7):INDIRECT($Q$8),MATCH($A37,INDIRECT($Q$7):INDIRECT($Q$9),0),COLUMN()),0)+IFERROR(INDEX(INDIRECT($Q$10):INDIRECT($Q$11),MATCH($A37,INDIRECT($Q$10):INDIRECT($Q$12),0),COLUMN()),0)+IFERROR(INDEX(INDIRECT($Q$13):INDIRECT($Q$14),MATCH($A37,INDIRECT($Q$13):INDIRECT($Q$15),0),COLUMN()),0)+IFERROR(INDEX(INDIRECT($Q$16):INDIRECT($Q$17),MATCH($A37,INDIRECT($Q$16):INDIRECT($Q$18),0),COLUMN()),0) -> 0 | K37: =IFERROR(VLOOKUP($A37,INDIRECT($Q$16):INDIRECT($Q$17),11,FALSE),0) -> 0 | L37: 0 | M37: 0
C38: =IFERROR(VLOOKUP($A38,INDIRECT($Q$1):INDIRECT($Q$2),11,FALSE),0) -> 0 | D38: =IFERROR(INDEX(INDIRECT($Q$1):INDIRECT($Q$2),MATCH($A38,INDIRECT($Q$1):INDIRECT($Q$3),0),COLUMN()),0)+IFERROR(INDEX(INDIRECT($Q$4):INDIRECT($Q$5),MATCH($A38,INDIRECT($Q$4):INDIRECT($Q$6),0),COLUMN()),0)+IFERROR(INDEX(INDIRECT($Q$7):INDIRECT($Q$8),MATCH($A38,INDIRECT($Q$7):INDIRECT($Q$9),0),COLUMN()),0)+IFERROR(INDEX(INDIRECT($Q$10):INDIRECT($Q$11),MATCH($A38,INDIRECT($Q$10):INDIRECT($Q$12),0),COLUMN()),0)+IFERROR(INDEX(INDIRECT($Q$13):INDIRECT($Q$14),MATCH($A38,INDIRECT($Q$13):INDIRECT($Q$15),0),COLUMN()),0)+IFERROR(INDEX(INDIRECT($Q$16):INDIRECT($Q$17),MATCH($A38,INDIRECT($Q$16):INDIRECT($Q$18),0),COLUMN()),0) -> 0 | E38: =IFERROR(INDEX(INDIRECT($Q$1):INDIRECT($Q$2),MATCH($A38,INDIRECT($Q$1):INDIRECT($Q$3),0),COLUMN()),0)+IFERROR(INDEX(INDIRECT($Q$4):INDIRECT($Q$5),MATCH($A38,INDIRECT($Q$4):INDIRECT($Q$6),0),COLUMN()),0)+IFERROR(INDEX(INDIRECT($Q$7):INDIRECT($Q$8),MATCH($A38,INDIRECT($Q$7):INDIRECT($Q$9),0),COLUMN()),0)+IFERROR(INDEX(INDIRECT($Q$10):INDIRECT($Q$11),MATCH($A38,INDIRECT($Q$10):INDIRECT($Q$12),0),COLUMN()),0)+IFERROR(INDEX(INDIRECT($Q$13):INDIRECT($Q$14),MATCH($A38,INDIRECT($Q$13):INDIRECT($Q$15),0),COLUMN()),0)+IFERROR(INDEX(INDIRECT($Q$16):INDIRECT($Q$17),MATCH($A38,INDIRECT($Q$16):INDIRECT($Q$18),0),COLUMN()),0) -> 0 | F38: =IFERROR(INDEX(INDIRECT($Q$1):INDIRECT($Q$2),MATCH($A38,INDIRECT($Q$1):INDIRECT($Q$3),0),COLUMN()),0)+IFERROR(INDEX(INDIRECT($Q$4):INDIRECT($Q$5),MATCH($A38,INDIRECT($Q$4):INDIRECT($Q$6),0),COLUMN()),0)+IFERROR(INDEX(INDIRECT($Q$7):INDIRECT($Q$8),MATCH($A38,INDIRECT($Q$7):INDIRECT($Q$9),0),COLUMN()),0)+IFERROR(INDEX(INDIRECT($Q$10):INDIRECT($Q$11),MATCH($A38,INDIRECT($Q$10):INDIRECT($Q$12),0),COLUMN()),0)+IFERROR(INDEX(INDIRECT($Q$13):INDIRECT($Q$14),MATCH($A38,INDIRECT($Q$13):INDIRECT($Q$15),0),COLUMN()),0)+IFERROR(INDEX(INDIRECT($Q$16):INDIRECT($Q$17),MATCH($A38,INDIRECT($Q$16):INDIRECT($Q$18),0),COLUMN()),0) -> 0 | G38: =IFERROR(INDEX(INDIRECT($Q$1):INDIRECT($Q$2),MATCH($A38,INDIRECT($Q$1):INDIRECT($Q$3),0),COLUMN()),0)+IFERROR(INDEX(INDIRECT($Q$4):INDIRECT($Q$5),MATCH($A38,INDIRECT($Q$4):INDIRECT($Q$6),0),COLUMN()),0)+IFERROR(INDEX(INDIRECT($Q$7):INDIRECT($Q$8),MATCH($A38,INDIRECT($Q$7):INDIRECT($Q$9),0),COLUMN()),0)+IFERROR(INDEX(INDIRECT($Q$10):INDIRECT($Q$11),MATCH($A38,INDIRECT($Q$10):INDIRECT($Q$12),0),COLUMN()),0)+IFERROR(INDEX(INDIRECT($Q$13):INDIRECT($Q$14),MATCH($A38,INDIRECT($Q$13):INDIRECT($Q$15),0),COLUMN()),0)+IFERROR(INDEX(INDIRECT($Q$16):INDIRECT($Q$17),MATCH($A38,INDIRECT($Q$16):INDIRECT($Q$18),0),COLUMN()),0) -> 0 | H38: =IFERROR(INDEX(INDIRECT($Q$1):INDIRECT($Q$2),MATCH($A38,INDIRECT($Q$1):INDIRECT($Q$3),0),COLUMN()),0)+IFERROR(INDEX(INDIRECT($Q$4):INDIRECT($Q$5),MATCH($A38,INDIRECT($Q$4):INDIRECT($Q$6),0),COLUMN()),0)+IFERROR(INDEX(INDIRECT($Q$7):INDIRECT($Q$8),MATCH($A38,INDIRECT($Q$7):INDIRECT($Q$9),0),COLUMN()),0)+IFERROR(INDEX(INDIRECT($Q$10):INDIRECT($Q$11),MATCH($A38,INDIRECT($Q$10):INDIRECT($Q$12),0),COLUMN()),0)+IFERROR(INDEX(INDIRECT($Q$13):INDIRECT($Q$14),MATCH($A38,INDIRECT($Q$13):INDIRECT($Q$15),0),COLUMN()),0)+IFERROR(INDEX(INDIRECT($Q$16):INDIRECT($Q$17),MATCH($A38,INDIRECT($Q$16):INDIRECT($Q$18),0),COLUMN()),0) -> 0 | I38: =IFERROR(INDEX(INDIRECT($Q$1):INDIRECT($Q$2),MATCH($A38,INDIRECT($Q$1):INDIRECT($Q$3),0),COLUMN()),0)+IFERROR(INDEX(INDIRECT($Q$4):INDIRECT($Q$5),MATCH($A38,INDIRECT($Q$4):INDIRECT($Q$6),0),COLUMN()),0)+IFERROR(INDEX(INDIRECT($Q$7):INDIRECT($Q$8),MATCH($A38,INDIRECT($Q$7):INDIRECT($Q$9),0),COLUMN()),0)+IFERROR(INDEX(INDIRECT($Q$10):INDIRECT($Q$11),MATCH($A38,INDIRECT($Q$10):INDIRECT($Q$12),0),COLUMN()),0)+IFERROR(INDEX(INDIRECT($Q$13):INDIRECT($Q$14),MATCH($A38,INDIRECT($Q$13):INDIRECT($Q$15),0),COLUMN()),0)+IFERROR(INDEX(INDIRECT($Q$16):INDIRECT($Q$17),MATCH($A38,INDIRECT($Q$16):INDIRECT($Q$18),0),COLUMN()),0) -> 0 | K38: =IFERROR(VLOOKUP($A38,INDIRECT($Q$16):INDIRECT($Q$17),11,FALSE),0) -> 0 | L38: 0 | M38: 0
C39: =IFERROR(VLOOKUP($A39,INDIRECT($Q$1):INDIRECT($Q$2),11,FALSE),0) -> 0 | D39: =IFERROR(INDEX(INDIRECT($Q$1):INDIRECT($Q$2),MATCH($A39,INDIRECT($Q$1):INDIRECT($Q$3),0),COLUMN()),0)+IFERROR(INDEX(INDIRECT($Q$4):INDIRECT($Q$5),MATCH($A39,INDIRECT($Q$4):INDIRECT($Q$6),0),COLUMN()),0)+IFERROR(INDEX(INDIRECT($Q$7):INDIRECT($Q$8),MATCH($A39,INDIRECT($Q$7):INDIRECT($Q$9),0),COLUMN()),0)+IFERROR(INDEX(INDIRECT($Q$10):INDIRECT($Q$11),MATCH($A39,INDIRECT($Q$10):INDIRECT($Q$12),0),COLUMN()),0)+IFERROR(INDEX(INDIRECT($Q$13):INDIRECT($Q$14),MATCH($A39,INDIRECT($Q$13):INDIRECT($Q$15),0),COLUMN()),0)+IFERROR(INDEX(INDIRECT($Q$16):INDIRECT($Q$17),MATCH($A39,INDIRECT($Q$16):INDIRECT($Q$18),0),COLUMN()),0) -> 0 | E39: =IFERROR(INDEX(INDIRECT($Q$1):INDIRECT($Q$2),MATCH($A39,INDIRECT($Q$1):INDIRECT($Q$3),0),COLUMN()),0)+IFERROR(INDEX(INDIRECT($Q$4):INDIRECT($Q$5),MATCH($A39,INDIRECT($Q$4):INDIRECT($Q$6),0),COLUMN()),0)+IFERROR(INDEX(INDIRECT($Q$7):INDIRECT($Q$8),MATCH($A39,INDIRECT($Q$7):INDIRECT($Q$9),0),COLUMN()),0)+IFERROR(INDEX(INDIRECT($Q$10):INDIRECT($Q$11),MATCH($A39,INDIRECT($Q$10):INDIRECT($Q$12),0),COLUMN()),0)+IFERROR(INDEX(INDIRECT($Q$13):INDIRECT($Q$14),MATCH($A39,INDIRECT($Q$13):INDIRECT($Q$15),0),COLUMN()),0)+IFERROR(INDEX(INDIRECT($Q$16):INDIRECT($Q$17),MATCH($A39,INDIRECT($Q$16):INDIRECT($Q$18),0),COLUMN()),0) -> 0 | F39: =IFERROR(INDEX(INDIRECT($Q$1):INDIRECT($Q$2),MATCH($A39,INDIRECT($Q$1):INDIRECT($Q$3),0),COLUMN()),0)+IFERROR(INDEX(INDIRECT($Q$4):INDIRECT($Q$5),MATCH($A39,INDIRECT($Q$4):INDIRECT($Q$6),0),COLUMN()),0)+IFERROR(INDEX(INDIRECT($Q$7):INDIRECT($Q$8),MATCH($A39,INDIRECT($Q$7):INDIRECT($Q$9),0),COLUMN()),0)+IFERROR(INDEX(INDIRECT($Q$10):INDIRECT($Q$11),MATCH($A39,INDIRECT($Q$10):INDIRECT($Q$12),0),COLUMN()),0)+IFERROR(INDEX(INDIRECT($Q$13):INDIRECT($Q$14),MATCH($A39,INDIRECT($Q$13):INDIRECT($Q$15),0),COLUMN()),0)+IFERROR(INDEX(INDIRECT($Q$16):INDIRECT($Q$17),MATCH($A39,INDIRECT($Q$16):INDIRECT($Q$18),0),COLUMN()),0) -> 0 | G39: =IFERROR(INDEX(INDIRECT($Q$1):INDIRECT($Q$2),MATCH($A39,INDIRECT($Q$1):INDIRECT($Q$3),0),COLUMN()),0)+IFERROR(INDEX(INDIRECT($Q$4):INDIRECT($Q$5),MATCH($A39,INDIRECT($Q$4):INDIRECT($Q$6),0),COLUMN()),0)+IFERROR(INDEX(INDIRECT($Q$7):INDIRECT($Q$8),MATCH($A39,INDIRECT($Q$7):INDIRECT($Q$9),0),COLUMN()),0)+IFERROR(INDEX(INDIRECT($Q$10):INDIRECT($Q$11),MATCH($A39,INDIRECT($Q$10):INDIRECT($Q$12),0),COLUMN()),0)+IFERROR(INDEX(INDIRECT($Q$13):INDIRECT($Q$14),MATCH($A39,INDIRECT($Q$13):INDIRECT($Q$15),0),COLUMN()),0)+IFERROR(INDEX(INDIRECT($Q$16):INDIRECT($Q$17),MATCH($A39,INDIRECT($Q$16):INDIRECT($Q$18),0),COLUMN()),0) -> 0 | H39: =IFERROR(INDEX(INDIRECT($Q$1):INDIRECT($Q$2),MATCH($A39,INDIRECT($Q$1):INDIRECT($Q$3),0),COLUMN()),0)+IFERROR(INDEX(INDIRECT($Q$4):INDIRECT($Q$5),MATCH($A39,INDIRECT($Q$4):INDIRECT($Q$6),0),COLUMN()),0)+IFERROR(INDEX(INDIRECT($Q$7):INDIRECT($Q$8),MATCH($A39,INDIRECT($Q$7):INDIRECT($Q$9),0),COLUMN()),0)+IFERROR(INDEX(INDIRECT($Q$10):INDIRECT($Q$11),MATCH($A39,INDIRECT($Q$10):INDIRECT($Q$12),0),COLUMN()),0)+IFERROR(INDEX(INDIRECT($Q$13):INDIRECT($Q$14),MATCH($A39,INDIRECT($Q$13):INDIRECT($Q$15),0),COLUMN()),0)+IFERROR(INDEX(INDIRECT($Q$16):INDIRECT($Q$17),MATCH($A39,INDIRECT($Q$16):INDIRECT($Q$18),0),COLUMN()),0) -> 0 | I39: =IFERROR(INDEX(INDIRECT($Q$1):INDIRECT($Q$2),MATCH($A39,INDIRECT($Q$1):INDIRECT($Q$3),0),COLUMN()),0)+IFERROR(INDEX(INDIRECT($Q$4):INDIRECT($Q$5),MATCH($A39,INDIRECT($Q$4):INDIRECT($Q$6),0),COLUMN()),0)+IFERROR(INDEX(INDIRECT($Q$7):INDIRECT($Q$8),MATCH($A39,INDIRECT($Q$7):INDIRECT($Q$9),0),COLUMN()),0)+IFERROR(INDEX(INDIRECT($Q$10):INDIRECT($Q$11),MATCH($A39,INDIRECT($Q$10):INDIRECT($Q$12),0),COLUMN()),0)+IFERROR(INDEX(INDIRECT($Q$13):INDIRECT($Q$14),MATCH($A39,INDIRECT($Q$13):INDIRECT($Q$15),0),COLUMN()),0)+IFERROR(INDEX(INDIRECT($Q$16):INDIRECT($Q$17),MATCH($A39,INDIRECT($Q$16):INDIRECT($Q$18),0),COLUMN()),0) -> 0 | K39: =IFERROR(VLOOKUP($A39,INDIRECT($Q$16):INDIRECT($Q$17),11,FALSE),0) -> 0 | L39: 0 | M39: 0
C40: =IFERROR(VLOOKUP($A40,INDIRECT($Q$1):INDIRECT($Q$2),11,FALSE),0) -> 0 | D40: =IFERROR(INDEX(INDIRECT($Q$1):INDIRECT($Q$2),MATCH($A40,INDIRECT($Q$1):INDIRECT($Q$3),0),COLUMN()),0)+IFERROR(INDEX(INDIRECT($Q$4):INDIRECT($Q$5),MATCH($A40,INDIRECT($Q$4):INDIRECT($Q$6),0),COLUMN()),0)+IFERROR(INDEX(INDIRECT($Q$7):INDIRECT($Q$8),MATCH($A40,INDIRECT($Q$7):INDIRECT($Q$9),0),COLUMN()),0)+IFERROR(INDEX(INDIRECT($Q$10):INDIRECT($Q$11),MATCH($A40,INDIRECT($Q$10):INDIRECT($Q$12),0),COLUMN()),0)+IFERROR(INDEX(INDIRECT($Q$13):INDIRECT($Q$14),MATCH($A40,INDIRECT($Q$13):INDIRECT($Q$15),0),COLUMN()),0)+IFERROR(INDEX(INDIRECT($Q$16):INDIRECT($Q$17),MATCH($A40,INDIRECT($Q$16):INDIRECT($Q$18),0),COLUMN()),0) -> 0 | E40: =IFERROR(INDEX(INDIRECT($Q$1):INDIRECT($Q$2),MATCH($A40,INDIRECT($Q$1):INDIRECT($Q$3),0),COLUMN()),0)+IFERROR(INDEX(INDIRECT($Q$4):INDIRECT($Q$5),MATCH($A40,INDIRECT($Q$4):INDIRECT($Q$6),0),COLUMN()),0)+IFERROR(INDEX(INDIRECT($Q$7):INDIRECT($Q$8),MATCH($A40,INDIRECT($Q$7):INDIRECT($Q$9),0),COLUMN()),0)+IFERROR(INDEX(INDIRECT($Q$10):INDIRECT($Q$11),MATCH($A40,INDIRECT($Q$10):INDIRECT($Q$12),0),COLUMN()),0)+IFERROR(INDEX(INDIRECT($Q$13):INDIRECT($Q$14),MATCH($A40,INDIRECT($Q$13):INDIRECT($Q$15),0),COLUMN()),0)+IFERROR(INDEX(INDIRECT($Q$16):INDIRECT($Q$17),MATCH($A40,INDIRECT($Q$16):INDIRECT($Q$18),0),COLUMN()),0) -> 0 | F40: =IFERROR(INDEX(INDIRECT($Q$1):INDIRECT($Q$2),MATCH($A40,INDIRECT($Q$1):INDIRECT($Q$3),0),COLUMN()),0)+IFERROR(INDEX(INDIRECT($Q$4):INDIRECT($Q$5),MATCH($A40,INDIRECT($Q$4):INDIRECT($Q$6),0),COLUMN()),0)+IFERROR(INDEX(INDIRECT($Q$7):INDIRECT($Q$8),MATCH($A40,INDIRECT($Q$7):INDIRECT($Q$9),0),COLUMN()),0)+IFERROR(INDEX(INDIRECT($Q$10):INDIRECT($Q$11),MATCH($A40,INDIRECT($Q$10):INDIRECT($Q$12),0),COLUMN()),0)+IFERROR(INDEX(INDIRECT($Q$13):INDIRECT($Q$14),MATCH($A40,INDIRECT($Q$13):INDIRECT($Q$15),0),COLUMN()),0)+IFERROR(INDEX(INDIRECT($Q$16):INDIRECT($Q$17),MATCH($A40,INDIRECT($Q$16):INDIRECT($Q$18),0),COLUMN()),0) -> 0 | G40: =IFERROR(INDEX(INDIRECT($Q$1):INDIRECT($Q$2),MATCH($A40,INDIRECT($Q$1):INDIRECT($Q$3),0),COLUMN()),0)+IFERROR(INDEX(INDIRECT($Q$4):INDIRECT($Q$5),MATCH($A40,INDIRECT($Q$4):INDIRECT($Q$6),0),COLUMN()),0)+IFERROR(INDEX(INDIRECT($Q$7):INDIRECT($Q$8),MATCH($A40,INDIRECT($Q$7):INDIRECT($Q$9),0),COLUMN()),0)+IFERROR(INDEX(INDIRECT($Q$10):INDIRECT($Q$11),MATCH($A40,INDIRECT($Q$10):INDIRECT($Q$12),0),COLUMN()),0)+IFERROR(INDEX(INDIRECT($Q$13):INDIRECT($Q$14),MATCH($A40,INDIRECT($Q$13):INDIRECT($Q$15),0),COLUMN()),0)+IFERROR(INDEX(INDIRECT($Q$16):INDIRECT($Q$17),MATCH($A40,INDIRECT($Q$16):INDIRECT($Q$18),0),COLUMN()),0) -> 0 | H40: =IFERROR(INDEX(INDIRECT($Q$1):INDIRECT($Q$2),MATCH($A40,INDIRECT($Q$1):INDIRECT($Q$3),0),COLUMN()),0)+IFERROR(INDEX(INDIRECT($Q$4):INDIRECT($Q$5),MATCH($A40,INDIRECT($Q$4):INDIRECT($Q$6),0),COLUMN()),0)+IFERROR(INDEX(INDIRECT($Q$7):INDIRECT($Q$8),MATCH($A40,INDIRECT($Q$7):INDIRECT($Q$9),0),COLUMN()),0)+IFERROR(INDEX(INDIRECT($Q$10):INDIRECT($Q$11),MATCH($A40,INDIRECT($Q$10):INDIRECT($Q$12),0),COLUMN()),0)+IFERROR(INDEX(INDIRECT($Q$13):INDIRECT($Q$14),MATCH($A40,INDIRECT($Q$13):INDIRECT($Q$15),0),COLUMN()),0)+IFERROR(INDEX(INDIRECT($Q$16):INDIRECT($Q$17),MATCH($A40,INDIRECT($Q$16):INDIRECT($Q$18),0),COLUMN()),0) -> 0 | I40: =IFERROR(INDEX(INDIRECT($Q$1):INDIRECT($Q$2),MATCH($A40,INDIRECT($Q$1):INDIRECT($Q$3),0),COLUMN()),0)+IFERROR(INDEX(INDIRECT($Q$4):INDIRECT($Q$5),MATCH($A40,INDIRECT($Q$4):INDIRECT($Q$6),0),COLUMN()),0)+IFERROR(INDEX(INDIRECT($Q$7):INDIRECT($Q$8),MATCH($A40,INDIRECT($Q$7):INDIRECT($Q$9),0),COLUMN()),0)+IFERROR(INDEX(INDIRECT($Q$10):INDIRECT($Q$11),MATCH($A40,INDIRECT($Q$10):INDIRECT($Q$12),0),COLUMN()),0)+IFERROR(INDEX(INDIRECT($Q$13):INDIRECT($Q$14),MATCH($A40,INDIRECT($Q$13):INDIRECT($Q$15),0),COLUMN()),0)+IFERROR(INDEX(INDIRECT($Q$16):INDIRECT($Q$17),MATCH($A40,INDIRECT($Q$16):INDIRECT($Q$18),0),COLUMN()),0) -> 0 | K40: =IFERROR(VLOOKUP($A40,INDIRECT($Q$16):INDIRECT($Q$17),11,FALSE),0) -> 0 | L40: 0 | M40: 0
C41: =IFERROR(VLOOKUP($A41,INDIRECT($Q$1):INDIRECT($Q$2),11,FALSE),0) -> 0 | D41: =IFERROR(INDEX(INDIRECT($Q$1):INDIRECT($Q$2),MATCH($A41,INDIRECT($Q$1):INDIRECT($Q$3),0),COLUMN()),0)+IFERROR(INDEX(INDIRECT($Q$4):INDIRECT($Q$5),MATCH($A41,INDIRECT($Q$4):INDIRECT($Q$6),0),COLUMN()),0)+IFERROR(INDEX(INDIRECT($Q$7):INDIRECT($Q$8),MATCH($A41,INDIRECT($Q$7):INDIRECT($Q$9),0),COLUMN()),0)+IFERROR(INDEX(INDIRECT($Q$10):INDIRECT($Q$11),MATCH($A41,INDIRECT($Q$10):INDIRECT($Q$12),0),COLUMN()),0)+IFERROR(INDEX(INDIRECT($Q$13):INDIRECT($Q$14),MATCH($A41,INDIRECT($Q$13):INDIRECT($Q$15),0),COLUMN()),0)+IFERROR(INDEX(INDIRECT($Q$16):INDIRECT($Q$17),MATCH($A41,INDIRECT($Q$16):INDIRECT($Q$18),0),COLUMN()),0) -> 0 | E41: =IFERROR(INDEX(INDIRECT($Q$1):INDIRECT($Q$2),MATCH($A41,INDIRECT($Q$1):INDIRECT($Q$3),0),COLUMN()),0)+IFERROR(INDEX(INDIRECT($Q$4):INDIRECT($Q$5),MATCH($A41,INDIRECT($Q$4):INDIRECT($Q$6),0),COLUMN()),0)+IFERROR(INDEX(INDIRECT($Q$7):INDIRECT($Q$8),MATCH($A41,INDIRECT($Q$7):INDIRECT($Q$9),0),COLUMN()),0)+IFERROR(INDEX(INDIRECT($Q$10):INDIRECT($Q$11),MATCH($A41,INDIRECT($Q$10):INDIRECT($Q$12),0),COLUMN()),0)+IFERROR(INDEX(INDIRECT($Q$13):INDIRECT($Q$14),MATCH($A41,INDIRECT($Q$13):INDIRECT($Q$15),0),COLUMN()),0)+IFERROR(INDEX(INDIRECT($Q$16):INDIRECT($Q$17),MATCH($A41,INDIRECT($Q$16):INDIRECT($Q$18),0),COLUMN()),0) -> 0 | F41: =IFERROR(INDEX(INDIRECT($Q$1):INDIRECT($Q$2),MATCH($A41,INDIRECT($Q$1):INDIRECT($Q$3),0),COLUMN()),0)+IFERROR(INDEX(INDIRECT($Q$4):INDIRECT($Q$5),MATCH($A41,INDIRECT($Q$4):INDIRECT($Q$6),0),COLUMN()),0)+IFERROR(INDEX(INDIRECT($Q$7):INDIRECT($Q$8),MATCH($A41,INDIRECT($Q$7):INDIRECT($Q$9),0),COLUMN()),0)+IFERROR(INDEX(INDIRECT($Q$10):INDIRECT($Q$11),MATCH($A41,INDIRECT($Q$10):INDIRECT($Q$12),0),COLUMN()),0)+IFERROR(INDEX(INDIRECT($Q$13):INDIRECT($Q$14),MATCH($A41,INDIRECT($Q$13):INDIRECT($Q$15),0),COLUMN()),0)+IFERROR(INDEX(INDIRECT($Q$16):INDIRECT($Q$17),MATCH($A41,INDIRECT($Q$16):INDIRECT($Q$18),0),COLUMN()),0) -> 0 | G41: =IFERROR(INDEX(INDIRECT($Q$1):INDIRECT($Q$2),MATCH($A41,INDIRECT($Q$1):INDIRECT($Q$3),0),COLUMN()),0)+IFERROR(INDEX(INDIRECT($Q$4):INDIRECT($Q$5),MATCH($A41,INDIRECT($Q$4):INDIRECT($Q$6),0),COLUMN()),0)+IFERROR(INDEX(INDIRECT($Q$7):INDIRECT($Q$8),MATCH($A41,INDIRECT($Q$7):INDIRECT($Q$9),0),COLUMN()),0)+IFERROR(INDEX(INDIRECT($Q$10):INDIRECT($Q$11),MATCH($A41,INDIRECT($Q$10):INDIRECT($Q$12),0),COLUMN()),0)+IFERROR(INDEX(INDIRECT($Q$13):INDIRECT($Q$14),MATCH($A41,INDIRECT($Q$13):INDIRECT($Q$15),0),COLUMN()),0)+IFERROR(INDEX(INDIRECT($Q$16):INDIRECT($Q$17),MATCH($A41,INDIRECT($Q$16):INDIRECT($Q$18),0),COLUMN()),0) -> 0 | H41: =IFERROR(INDEX(INDIRECT($Q$1):INDIRECT($Q$2),MATCH($A41,INDIRECT($Q$1):INDIRECT($Q$3),0),COLUMN()),0)+IFERROR(INDEX(INDIRECT($Q$4):INDIRECT($Q$5),MATCH($A41,INDIRECT($Q$4):INDIRECT($Q$6),0),COLUMN()),0)+IFERROR(INDEX(INDIRECT($Q$7):INDIRECT($Q$8),MATCH($A41,INDIRECT($Q$7):INDIRECT($Q$9),0),COLUMN()),0)+IFERROR(INDEX(INDIRECT($Q$10):INDIRECT($Q$11),MATCH($A41,INDIRECT($Q$10):INDIRECT($Q$12),0),COLUMN()),0)+IFERROR(INDEX(INDIRECT($Q$13):INDIRECT($Q$14),MATCH($A41,INDIRECT($Q$13):INDIRECT($Q$15),0),COLUMN()),0)+IFERROR(INDEX(INDIRECT($Q$16):INDIRECT($Q$17),MATCH($A41,INDIRECT($Q$16):INDIRECT($Q$18),0),COLUMN()),0) -> 0 | I41: =IFERROR(INDEX(INDIRECT($Q$1):INDIRECT($Q$2),MATCH($A41,INDIRECT($Q$1):INDIRECT($Q$3),0),COLUMN()),0)+IFERROR(INDEX(INDIRECT($Q$4):INDIRECT($Q$5),MATCH($A41,INDIRECT($Q$4):INDIRECT($Q$6),0),COLUMN()),0)+IFERROR(INDEX(INDIRECT($Q$7):INDIRECT($Q$8),MATCH($A41,INDIRECT($Q$7):INDIRECT($Q$9),0),COLUMN()),0)+IFERROR(INDEX(INDIRECT($Q$10):INDIRECT($Q$11),MATCH($A41,INDIRECT($Q$10):INDIRECT($Q$12),0),COLUMN()),0)+IFERROR(INDEX(INDIRECT($Q$13):INDIRECT($Q$14),MATCH($A41,INDIRECT($Q$13):INDIRECT($Q$15),0),COLUMN()),0)+IFERROR(INDEX(INDIRECT($Q$16):INDIRECT($Q$17),MATCH($A41,INDIRECT($Q$16):INDIRECT($Q$18),0),COLUMN()),0) -> 0 | K41: =IFERROR(VLOOKUP($A41,INDIRECT($Q$16):INDIRECT($Q$17),11,FALSE),0) -> 0 | L41: 0 | M41: 0
C42: =IFERROR(VLOOKUP($A42,INDIRECT($Q$1):INDIRECT($Q$2),11,FALSE),0) -> 0 | D42: =IFERROR(INDEX(INDIRECT($Q$1):INDIRECT($Q$2),MATCH($A42,INDIRECT($Q$1):INDIRECT($Q$3),0),COLUMN()),0)+IFERROR(INDEX(INDIRECT($Q$4):INDIRECT($Q$5),MATCH($A42,INDIRECT($Q$4):INDIRECT($Q$6),0),COLUMN()),0)+IFERROR(INDEX(INDIRECT($Q$7):INDIRECT($Q$8),MATCH($A42,INDIRECT($Q$7):INDIRECT($Q$9),0),COLUMN()),0)+IFERROR(INDEX(INDIRECT($Q$10):INDIRECT($Q$11),MATCH($A42,INDIRECT($Q$10):INDIRECT($Q$12),0),COLUMN()),0)+IFERROR(INDEX(INDIRECT($Q$13):INDIRECT($Q$14),MATCH($A42,INDIRECT($Q$13):INDIRECT($Q$15),0),COLUMN()),0)+IFERROR(INDEX(INDIRECT($Q$16):INDIRECT($Q$17),MATCH($A42,INDIRECT($Q$16):INDIRECT($Q$18),0),COLUMN()),0) -> 0 | E42: =IFERROR(INDEX(INDIRECT($Q$1):INDIRECT($Q$2),MATCH($A42,INDIRECT($Q$1):INDIRECT($Q$3),0),COLUMN()),0)+IFERROR(INDEX(INDIRECT($Q$4):INDIRECT($Q$5),MATCH($A42,INDIRECT($Q$4):INDIRECT($Q$6),0),COLUMN()),0)+IFERROR(INDEX(INDIRECT($Q$7):INDIRECT($Q$8),MATCH($A42,INDIRECT($Q$7):INDIRECT($Q$9),0),COLUMN()),0)+IFERROR(INDEX(INDIRECT($Q$10):INDIRECT($Q$11),MATCH($A42,INDIRECT($Q$10):INDIRECT($Q$12),0),COLUMN()),0)+IFERROR(INDEX(INDIRECT($Q$13):INDIRECT($Q$14),MATCH($A42,INDIRECT($Q$13):INDIRECT($Q$15),0),COLUMN()),0)+IFERROR(INDEX(INDIRECT($Q$16):INDIRECT($Q$17),MATCH($A42,INDIRECT($Q$16):INDIRECT($Q$18),0),COLUMN()),0) -> 0 | F42: =IFERROR(INDEX(INDIRECT($Q$1):INDIRECT($Q$2),MATCH($A42,INDIRECT($Q$1):INDIRECT($Q$3),0),COLUMN()),0)+IFERROR(INDEX(INDIRECT($Q$4):INDIRECT($Q$5),MATCH($A42,INDIRECT($Q$4):INDIRECT($Q$6),0),COLUMN()),0)+IFERROR(INDEX(INDIRECT($Q$7):INDIRECT($Q$8),MATCH($A42,INDIRECT($Q$7):INDIRECT($Q$9),0),COLUMN()),0)+IFERROR(INDEX(INDIRECT($Q$10):INDIRECT($Q$11),MATCH($A42,INDIRECT($Q$10):INDIRECT($Q$12),0),COLUMN()),0)+IFERROR(INDEX(INDIRECT($Q$13):INDIRECT($Q$14),MATCH($A42,INDIRECT($Q$13):INDIRECT($Q$15),0),COLUMN()),0)+IFERROR(INDEX(INDIRECT($Q$16):INDIRECT($Q$17),MATCH($A42,INDIRECT($Q$16):INDIRECT($Q$18),0),COLUMN()),0) -> 0 | G42: =IFERROR(INDEX(INDIRECT($Q$1):INDIRECT($Q$2),MATCH($A42,INDIRECT($Q$1):INDIRECT($Q$3),0),COLUMN()),0)+IFERROR(INDEX(INDIRECT($Q$4):INDIRECT($Q$5),MATCH($A42,INDIRECT($Q$4):INDIRECT($Q$6),0),COLUMN()),0)+IFERROR(INDEX(INDIRECT($Q$7):INDIRECT($Q$8),MATCH($A42,INDIRECT($Q$7):INDIRECT($Q$9),0),COLUMN()),0)+IFERROR(INDEX(INDIRECT($Q$10):INDIRECT($Q$11),MATCH($A42,INDIRECT($Q$10):INDIRECT($Q$12),0),COLUMN()),0)+IFERROR(INDEX(INDIRECT($Q$13):INDIRECT($Q$14),MATCH($A42,INDIRECT($Q$13):INDIRECT($Q$15),0),COLUMN()),0)+IFERROR(INDEX(INDIRECT($Q$16):INDIRECT($Q$17),MATCH($A42,INDIRECT($Q$16):INDIRECT($Q$18),0),COLUMN()),0) -> 0 | H42: =IFERROR(INDEX(INDIRECT($Q$1):INDIRECT($Q$2),MATCH($A42,INDIRECT($Q$1):INDIRECT($Q$3),0),COLUMN()),0)+IFERROR(INDEX(INDIRECT($Q$4):INDIRECT($Q$5),MATCH($A42,INDIRECT($Q$4):INDIRECT($Q$6),0),COLUMN()),0)+IFERROR(INDEX(INDIRECT($Q$7):INDIRECT($Q$8),MATCH($A42,INDIRECT($Q$7):INDIRECT($Q$9),0),COLUMN()),0)+IFERROR(INDEX(INDIRECT($Q$10):INDIRECT($Q$11),MATCH($A42,INDIRECT($Q$10):INDIRECT($Q$12),0),COLUMN()),0)+IFERROR(INDEX(INDIRECT($Q$13):INDIRECT($Q$14),MATCH($A42,INDIRECT($Q$13):INDIRECT($Q$15),0),COLUMN()),0)+IFERROR(INDEX(INDIRECT($Q$16):INDIRECT($Q$17),MATCH($A42,INDIRECT($Q$16):INDIRECT($Q$18),0),COLUMN()),0) -> 0 | I42: =IFERROR(INDEX(INDIRECT($Q$1):INDIRECT($Q$2),MATCH($A42,INDIRECT($Q$1):INDIRECT($Q$3),0),COLUMN()),0)+IFERROR(INDEX(INDIRECT($Q$4):INDIRECT($Q$5),MATCH($A42,INDIRECT($Q$4):INDIRECT($Q$6),0),COLUMN()),0)+IFERROR(INDEX(INDIRECT($Q$7):INDIRECT($Q$8),MATCH($A42,INDIRECT($Q$7):INDIRECT($Q$9),0),COLUMN()),0)+IFERROR(INDEX(INDIRECT($Q$10):INDIRECT($Q$11),MATCH($A42,INDIRECT($Q$10):INDIRECT($Q$12),0),COLUMN()),0)+IFERROR(INDEX(INDIRECT($Q$13):INDIRECT($Q$14),MATCH($A42,INDIRECT($Q$13):INDIRECT($Q$15),0),COLUMN()),0)+IFERROR(INDEX(INDIRECT($Q$16):INDIRECT($Q$17),MATCH($A42,INDIRECT($Q$16):INDIRECT($Q$18),0),COLUMN()),0) -> 0 | K42: =IFERROR(VLOOKUP($A42,INDIRECT($Q$16):INDIRECT($Q$17),11,FALSE),0) -> 0 | L42: 0 | M42: 0
C43: =IFERROR(VLOOKUP($A43,INDIRECT($Q$1):INDIRECT($Q$2),11,FALSE),0) -> 0 | D43: =IFERROR(INDEX(INDIRECT($Q$1):INDIRECT($Q$2),MATCH($A43,INDIRECT($Q$1):INDIRECT($Q$3),0),COLUMN()),0)+IFERROR(INDEX(INDIRECT($Q$4):INDIRECT($Q$5),MATCH($A43,INDIRECT($Q$4):INDIRECT($Q$6),0),COLUMN()),0)+IFERROR(INDEX(INDIRECT($Q$7):INDIRECT($Q$8),MATCH($A43,INDIRECT($Q$7):INDIRECT($Q$9),0),COLUMN()),0)+IFERROR(INDEX(INDIRECT($Q$10):INDIRECT($Q$11),MATCH($A43,INDIRECT($Q$10):INDIRECT($Q$12),0),COLUMN()),0)+IFERROR(INDEX(INDIRECT($Q$13):INDIRECT($Q$14),MATCH($A43,INDIRECT($Q$13):INDIRECT($Q$15),0),COLUMN()),0)+IFERROR(INDEX(INDIRECT($Q$16):INDIRECT($Q$17),MATCH($A43,INDIRECT($Q$16):INDIRECT($Q$18),0),COLUMN()),0) -> 0 | E43: =IFERROR(INDEX(INDIRECT($Q$1):INDIRECT($Q$2),MATCH($A43,INDIRECT($Q$1):INDIRECT($Q$3),0),COLUMN()),0)+IFERROR(INDEX(INDIRECT($Q$4):INDIRECT($Q$5),MATCH($A43,INDIRECT($Q$4):INDIRECT($Q$6),0),COLUMN()),0)+IFERROR(INDEX(INDIRECT($Q$7):INDIRECT($Q$8),MATCH($A43,INDIRECT($Q$7):INDIRECT($Q$9),0),COLUMN()),0)+IFERROR(INDEX(INDIRECT($Q$10):INDIRECT($Q$11),MATCH($A43,INDIRECT($Q$10):INDIRECT($Q$12),0),COLUMN()),0)+IFERROR(INDEX(INDIRECT($Q$13):INDIRECT($Q$14),MATCH($A43,INDIRECT($Q$13):INDIRECT($Q$15),0),COLUMN()),0)+IFERROR(INDEX(INDIRECT($Q$16):INDIRECT($Q$17),MATCH($A43,INDIRECT($Q$16):INDIRECT($Q$18),0),COLUMN()),0) -> 0 | F43: =IFERROR(INDEX(INDIRECT($Q$1):INDIRECT($Q$2),MATCH($A43,INDIRECT($Q$1):INDIRECT($Q$3),0),COLUMN()),0)+IFERROR(INDEX(INDIRECT($Q$4):INDIRECT($Q$5),MATCH($A43,INDIRECT($Q$4):INDIRECT($Q$6),0),COLUMN()),0)+IFERROR(INDEX(INDIRECT($Q$7):INDIRECT($Q$8),MATCH($A43,INDIRECT($Q$7):INDIRECT($Q$9),0),COLUMN()),0)+IFERROR(INDEX(INDIRECT($Q$10):INDIRECT($Q$11),MATCH($A43,INDIRECT($Q$10):INDIRECT($Q$12),0),COLUMN()),0)+IFERROR(INDEX(INDIRECT($Q$13):INDIRECT($Q$14),MATCH($A43,INDIRECT($Q$13):INDIRECT($Q$15),0),COLUMN()),0)+IFERROR(INDEX(INDIRECT($Q$16):INDIRECT($Q$17),MATCH($A43,INDIRECT($Q$16):INDIRECT($Q$18),0),COLUMN()),0) -> 0 | G43: =IFERROR(INDEX(INDIRECT($Q$1):INDIRECT($Q$2),MATCH($A43,INDIRECT($Q$1):INDIRECT($Q$3),0),COLUMN()),0)+IFERROR(INDEX(INDIRECT($Q$4):INDIRECT($Q$5),MATCH($A43,INDIRECT($Q$4):INDIRECT($Q$6),0),COLUMN()),0)+IFERROR(INDEX(INDIRECT($Q$7):INDIRECT($Q$8),MATCH($A43,INDIRECT($Q$7):INDIRECT($Q$9),0),COLUMN()),0)+IFERROR(INDEX(INDIRECT($Q$10):INDIRECT($Q$11),MATCH($A43,INDIRECT($Q$10):INDIRECT($Q$12),0),COLUMN()),0)+IFERROR(INDEX(INDIRECT($Q$13):INDIRECT($Q$14),MATCH($A43,INDIRECT($Q$13):INDIRECT($Q$15),0),COLUMN()),0)+IFERROR(INDEX(INDIRECT($Q$16):INDIRECT($Q$17),MATCH($A43,INDIRECT($Q$16):INDIRECT($Q$18),0),COLUMN()),0) -> 0 | H43: =IFERROR(INDEX(INDIRECT($Q$1):INDIRECT($Q$2),MATCH($A43,INDIRECT($Q$1):INDIRECT($Q$3),0),COLUMN()),0)+IFERROR(INDEX(INDIRECT($Q$4):INDIRECT($Q$5),MATCH($A43,INDIRECT($Q$4):INDIRECT($Q$6),0),COLUMN()),0)+IFERROR(INDEX(INDIRECT($Q$7):INDIRECT($Q$8),MATCH($A43,INDIRECT($Q$7):INDIRECT($Q$9),0),COLUMN()),0)+IFERROR(INDEX(INDIRECT($Q$10):INDIRECT($Q$11),MATCH($A43,INDIRECT($Q$10):INDIRECT($Q$12),0),COLUMN()),0)+IFERROR(INDEX(INDIRECT($Q$13):INDIRECT($Q$14),MATCH($A43,INDIRECT($Q$13):INDIRECT($Q$15),0),COLUMN()),0)+IFERROR(INDEX(INDIRECT($Q$16):INDIRECT($Q$17),MATCH($A43,INDIRECT($Q$16):INDIRECT($Q$18),0),COLUMN()),0) -> 0 | I43: =IFERROR(INDEX(INDIRECT($Q$1):INDIRECT($Q$2),MATCH($A43,INDIRECT($Q$1):INDIRECT($Q$3),0),COLUMN()),0)+IFERROR(INDEX(INDIRECT($Q$4):INDIRECT($Q$5),MATCH($A43,INDIRECT($Q$4):INDIRECT($Q$6),0),COLUMN()),0)+IFERROR(INDEX(INDIRECT($Q$7):INDIRECT($Q$8),MATCH($A43,INDIRECT($Q$7):INDIRECT($Q$9),0),COLUMN()),0)+IFERROR(INDEX(INDIRECT($Q$10):INDIRECT($Q$11),MATCH($A43,INDIRECT($Q$10):INDIRECT($Q$12),0),COLUMN()),0)+IFERROR(INDEX(INDIRECT($Q$13):INDIRECT($Q$14),MATCH($A43,INDIRECT($Q$13):INDIRECT($Q$15),0),COLUMN()),0)+IFERROR(INDEX(INDIRECT($Q$16):INDIRECT($Q$17),MATCH($A43,INDIRECT($Q$16):INDIRECT($Q$18),0),COLUMN()),0) -> 0 | K43: =IFERROR(VLOOKUP($A43,INDIRECT($Q$16):INDIRECT($Q$17),11,FALSE),0) -> 0 | L43: 0 | M43: 0
C44: =IFERROR(VLOOKUP($A44,INDIRECT($Q$1):INDIRECT($Q$2),11,FALSE),0) -> 0 | D44: =IFERROR(INDEX(INDIRECT($Q$1):INDIRECT($Q$2),MATCH($A44,INDIRECT($Q$1):INDIRECT($Q$3),0),COLUMN()),0)+IFERROR(INDEX(INDIRECT($Q$4):INDIRECT($Q$5),MATCH($A44,INDIRECT($Q$4):INDIRECT($Q$6),0),COLUMN()),0)+IFERROR(INDEX(INDIRECT($Q$7):INDIRECT($Q$8),MATCH($A44,INDIRECT($Q$7):INDIRECT($Q$9),0),COLUMN()),0)+IFERROR(INDEX(INDIRECT($Q$10):INDIRECT($Q$11),MATCH($A44,INDIRECT($Q$10):INDIRECT($Q$12),0),COLUMN()),0)+IFERROR(INDEX(INDIRECT($Q$13):INDIRECT($Q$14),MATCH($A44,INDIRECT($Q$13):INDIRECT($Q$15),0),COLUMN()),0)+IFERROR(INDEX(INDIRECT($Q$16):INDIRECT($Q$17),MATCH($A44,INDIRECT($Q$16):INDIRECT($Q$18),0),COLUMN()),0) -> 0 | E44: =IFERROR(INDEX(INDIRECT($Q$1):INDIRECT($Q$2),MATCH($A44,INDIRECT($Q$1):INDIRECT($Q$3),0),COLUMN()),0)+IFERROR(INDEX(INDIRECT($Q$4):INDIRECT($Q$5),MATCH($A44,INDIRECT($Q$4):INDIRECT($Q$6),0),COLUMN()),0)+IFERROR(INDEX(INDIRECT($Q$7):INDIRECT($Q$8),MATCH($A44,INDIRECT($Q$7):INDIRECT($Q$9),0),COLUMN()),0)+IFERROR(INDEX(INDIRECT($Q$10):INDIRECT($Q$11),MATCH($A44,INDIRECT($Q$10):INDIRECT($Q$12),0),COLUMN()),0)+IFERROR(INDEX(INDIRECT($Q$13):INDIRECT($Q$14),MATCH($A44,INDIRECT($Q$13):INDIRECT($Q$15),0),COLUMN()),0)+IFERROR(INDEX(INDIRECT($Q$16):INDIRECT($Q$17),MATCH($A44,INDIRECT($Q$16):INDIRECT($Q$18),0),COLUMN()),0) -> 0 | F44: =IFERROR(INDEX(INDIRECT($Q$1):INDIRECT($Q$2),MATCH($A44,INDIRECT($Q$1):INDIRECT($Q$3),0),COLUMN()),0)+IFERROR(INDEX(INDIRECT($Q$4):INDIRECT($Q$5),MATCH($A44,INDIRECT($Q$4):INDIRECT($Q$6),0),COLUMN()),0)+IFERROR(INDEX(INDIRECT($Q$7):INDIRECT($Q$8),MATCH($A44,INDIRECT($Q$7):INDIRECT($Q$9),0),COLUMN()),0)+IFERROR(INDEX(INDIRECT($Q$10):INDIRECT($Q$11),MATCH($A44,INDIRECT($Q$10):INDIRECT($Q$12),0),COLUMN()),0)+IFERROR(INDEX(INDIRECT($Q$13):INDIRECT($Q$14),MATCH($A44,INDIRECT($Q$13):INDIRECT($Q$15),0),COLUMN()),0)+IFERROR(INDEX(INDIRECT($Q$16):INDIRECT($Q$17),MATCH($A44,INDIRECT($Q$16):INDIRECT($Q$18),0),COLUMN()),0) -> 0 | G44: =IFERROR(INDEX(INDIRECT($Q$1):INDIRECT($Q$2),MATCH($A44,INDIRECT($Q$1):INDIRECT($Q$3),0),COLUMN()),0)+IFERROR(INDEX(INDIRECT($Q$4):INDIRECT($Q$5),MATCH($A44,INDIRECT($Q$4):INDIRECT($Q$6),0),COLUMN()),0)+IFERROR(INDEX(INDIRECT($Q$7):INDIRECT($Q$8),MATCH($A44,INDIRECT($Q$7):INDIRECT($Q$9),0),COLUMN()),0)+IFERROR(INDEX(INDIRECT($Q$10):INDIRECT($Q$11),MATCH($A44,INDIRECT($Q$10):INDIRECT($Q$12),0),COLUMN()),0)+IFERROR(INDEX(INDIRECT($Q$13):INDIRECT($Q$14),MATCH($A44,INDIRECT($Q$13):INDIRECT($Q$15),0),COLUMN()),0)+IFERROR(INDEX(INDIRECT($Q$16):INDIRECT($Q$17),MATCH($A44,INDIRECT($Q$16):INDIRECT($Q$18),0),COLUMN()),0) -> 0 | H44: =IFERROR(INDEX(INDIRECT($Q$1):INDIRECT($Q$2),MATCH($A44,INDIRECT($Q$1):INDIRECT($Q$3),0),COLUMN()),0)+IFERROR(INDEX(INDIRECT($Q$4):INDIRECT($Q$5),MATCH($A44,INDIRECT($Q$4):INDIRECT($Q$6),0),COLUMN()),0)+IFERROR(INDEX(INDIRECT($Q$7):INDIRECT($Q$8),MATCH($A44,INDIRECT($Q$7):INDIRECT($Q$9),0),COLUMN()),0)+IFERROR(INDEX(INDIRECT($Q$10):INDIRECT($Q$11),MATCH($A44,INDIRECT($Q$10):INDIRECT($Q$12),0),COLUMN()),0)+IFERROR(INDEX(INDIRECT($Q$13):INDIRECT($Q$14),MATCH($A44,INDIRECT($Q$13):INDIRECT($Q$15),0),COLUMN()),0)+IFERROR(INDEX(INDIRECT($Q$16):INDIRECT($Q$17),MATCH($A44,INDIRECT($Q$16):INDIRECT($Q$18),0),COLUMN()),0) -> 0 | I44: =IFERROR(INDEX(INDIRECT($Q$1):INDIRECT($Q$2),MATCH($A44,INDIRECT($Q$1):INDIRECT($Q$3),0),COLUMN()),0)+IFERROR(INDEX(INDIRECT($Q$4):INDIRECT($Q$5),MATCH($A44,INDIRECT($Q$4):INDIRECT($Q$6),0),COLUMN()),0)+IFERROR(INDEX(INDIRECT($Q$7):INDIRECT($Q$8),MATCH($A44,INDIRECT($Q$7):INDIRECT($Q$9),0),COLUMN()),0)+IFERROR(INDEX(INDIRECT($Q$10):INDIRECT($Q$11),MATCH($A44,INDIRECT($Q$10):INDIRECT($Q$12),0),COLUMN()),0)+IFERROR(INDEX(INDIRECT($Q$13):INDIRECT($Q$14),MATCH($A44,INDIRECT($Q$13):INDIRECT($Q$15),0),COLUMN()),0)+IFERROR(INDEX(INDIRECT($Q$16):INDIRECT($Q$17),MATCH($A44,INDIRECT($Q$16):INDIRECT($Q$18),0),COLUMN()),0) -> 0 | K44: =IFERROR(VLOOKUP($A44,INDIRECT($Q$16):INDIRECT($Q$17),11,FALSE),0) -> 0 | L44: 0 | M44: 0
C45: =IFERROR(VLOOKUP($A45,INDIRECT($Q$1):INDIRECT($Q$2),11,FALSE),0) -> 0 | D45: =IFERROR(INDEX(INDIRECT($Q$1):INDIRECT($Q$2),MATCH($A45,INDIRECT($Q$1):INDIRECT($Q$3),0),COLUMN()),0)+IFERROR(INDEX(INDIRECT($Q$4):INDIRECT($Q$5),MATCH($A45,INDIRECT($Q$4):INDIRECT($Q$6),0),COLUMN()),0)+IFERROR(INDEX(INDIRECT($Q$7):INDIRECT($Q$8),MATCH($A45,INDIRECT($Q$7):INDIRECT($Q$9),0),COLUMN()),0)+IFERROR(INDEX(INDIRECT($Q$10):INDIRECT($Q$11),MATCH($A45,INDIRECT($Q$10):INDIRECT($Q$12),0),COLUMN()),0)+IFERROR(INDEX(INDIRECT($Q$13):INDIRECT($Q$14),MATCH($A45,INDIRECT($Q$13):INDIRECT($Q$15),0),COLUMN()),0)+IFERROR(INDEX(INDIRECT($Q$16):INDIRECT($Q$17),MATCH($A45,INDIRECT($Q$16):INDIRECT($Q$18),0),COLUMN()),0) -> 0 | E45: =IFERROR(INDEX(INDIRECT($Q$1):INDIRECT($Q$2),MATCH($A45,INDIRECT($Q$1):INDIRECT($Q$3),0),COLUMN()),0)+IFERROR(INDEX(INDIRECT($Q$4):INDIRECT($Q$5),MATCH($A45,INDIRECT($Q$4):INDIRECT($Q$6),0),COLUMN()),0)+IFERROR(INDEX(INDIRECT($Q$7):INDIRECT($Q$8),MATCH($A45,INDIRECT($Q$7):INDIRECT($Q$9),0),COLUMN()),0)+IFERROR(INDEX(INDIRECT($Q$10):INDIRECT($Q$11),MATCH($A45,INDIRECT($Q$10):INDIRECT($Q$12),0),COLUMN()),0)+IFERROR(INDEX(INDIRECT($Q$13):INDIRECT($Q$14),MATCH($A45,INDIRECT($Q$13):INDIRECT($Q$15),0),COLUMN()),0)+IFERROR(INDEX(INDIRECT($Q$16):INDIRECT($Q$17),MATCH($A45,INDIRECT($Q$16):INDIRECT($Q$18),0),COLUMN()),0) -> 0 | F45: =IFERROR(INDEX(INDIRECT($Q$1):INDIRECT($Q$2),MATCH($A45,INDIRECT($Q$1):INDIRECT($Q$3),0),COLUMN()),0)+IFERROR(INDEX(INDIRECT($Q$4):INDIRECT($Q$5),MATCH($A45,INDIRECT($Q$4):INDIRECT($Q$6),0),COLUMN()),0)+IFERROR(INDEX(INDIRECT($Q$7):INDIRECT($Q$8),MATCH($A45,INDIRECT($Q$7):INDIRECT($Q$9),0),COLUMN()),0)+IFERROR(INDEX(INDIRECT($Q$10):INDIRECT($Q$11),MATCH($A45,INDIRECT($Q$10):INDIRECT($Q$12),0),COLUMN()),0)+IFERROR(INDEX(INDIRECT($Q$13):INDIRECT($Q$14),MATCH($A45,INDIRECT($Q$13):INDIRECT($Q$15),0),COLUMN()),0)+IFERROR(INDEX(INDIRECT($Q$16):INDIRECT($Q$17),MATCH($A45,INDIRECT($Q$16):INDIRECT($Q$18),0),COLUMN()),0) -> 0 | G45: =IFERROR(INDEX(INDIRECT($Q$1):INDIRECT($Q$2),MATCH($A45,INDIRECT($Q$1):INDIRECT($Q$3),0),COLUMN()),0)+IFERROR(INDEX(INDIRECT($Q$4):INDIRECT($Q$5),MATCH($A45,INDIRECT($Q$4):INDIRECT($Q$6),0),COLUMN()),0)+IFERROR(INDEX(INDIRECT($Q$7):INDIRECT($Q$8),MATCH($A45,INDIRECT($Q$7):INDIRECT($Q$9),0),COLUMN()),0)+IFERROR(INDEX(INDIRECT($Q$10):INDIRECT($Q$11),MATCH($A45,INDIRECT($Q$10):INDIRECT($Q$12),0),COLUMN()),0)+IFERROR(INDEX(INDIRECT($Q$13):INDIRECT($Q$14),MATCH($A45,INDIRECT($Q$13):INDIRECT($Q$15),0),COLUMN()),0)+IFERROR(INDEX(INDIRECT($Q$16):INDIRECT($Q$17),MATCH($A45,INDIRECT($Q$16):INDIRECT($Q$18),0),COLUMN()),0) -> 0 | H45: =IFERROR(INDEX(INDIRECT($Q$1):INDIRECT($Q$2),MATCH($A45,INDIRECT($Q$1):INDIRECT($Q$3),0),COLUMN()),0)+IFERROR(INDEX(INDIRECT($Q$4):INDIRECT($Q$5),MATCH($A45,INDIRECT($Q$4):INDIRECT($Q$6),0),COLUMN()),0)+IFERROR(INDEX(INDIRECT($Q$7):INDIRECT($Q$8),MATCH($A45,INDIRECT($Q$7):INDIRECT($Q$9),0),COLUMN()),0)+IFERROR(INDEX(INDIRECT($Q$10):INDIRECT($Q$11),MATCH($A45,INDIRECT($Q$10):INDIRECT($Q$12),0),COLUMN()),0)+IFERROR(INDEX(INDIRECT($Q$13):INDIRECT($Q$14),MATCH($A45,INDIRECT($Q$13):INDIRECT($Q$15),0),COLUMN()),0)+IFERROR(INDEX(INDIRECT($Q$16):INDIRECT($Q$17),MATCH($A45,INDIRECT($Q$16):INDIRECT($Q$18),0),COLUMN()),0) -> 0 | I45: =IFERROR(INDEX(INDIRECT($Q$1):INDIRECT($Q$2),MATCH($A45,INDIRECT($Q$1):INDIRECT($Q$3),0),COLUMN()),0)+IFERROR(INDEX(INDIRECT($Q$4):INDIRECT($Q$5),MATCH($A45,INDIRECT($Q$4):INDIRECT($Q$6),0),COLUMN()),0)+IFERROR(INDEX(INDIRECT($Q$7):INDIRECT($Q$8),MATCH($A45,INDIRECT($Q$7):INDIRECT($Q$9),0),COLUMN()),0)+IFERROR(INDEX(INDIRECT($Q$10):INDIRECT($Q$11),MATCH($A45,INDIRECT($Q$10):INDIRECT($Q$12),0),COLUMN()),0)+IFERROR(INDEX(INDIRECT($Q$13):INDIRECT($Q$14),MATCH($A45,INDIRECT($Q$13):INDIRECT($Q$15),0),COLUMN()),0)+IFERROR(INDEX(INDIRECT($Q$16):INDIRECT($Q$17),MATCH($A45,INDIRECT($Q$16):INDIRECT($Q$18),0),COLUMN()),0) -> 0 | K45: =IFERROR(VLOOKUP($A45,INDIRECT($Q$16):INDIRECT($Q$17),11,FALSE),0) -> 0 | L45: 0 | M45: 0
C46: =IFERROR(VLOOKUP($A46,INDIRECT($Q$1):INDIRECT($Q$2),11,FALSE),0) -> 0 | D46: =IFERROR(INDEX(INDIRECT($Q$1):INDIRECT($Q$2),MATCH($A46,INDIRECT($Q$1):INDIRECT($Q$3),0),COLUMN()),0)+IFERROR(INDEX(INDIRECT($Q$4):INDIRECT($Q$5),MATCH($A46,INDIRECT($Q$4):INDIRECT($Q$6),0),COLUMN()),0)+IFERROR(INDEX(INDIRECT($Q$7):INDIRECT($Q$8),MATCH($A46,INDIRECT($Q$7):INDIRECT($Q$9),0),COLUMN()),0)+IFERROR(INDEX(INDIRECT($Q$10):INDIRECT($Q$11),MATCH($A46,INDIRECT($Q$10):INDIRECT($Q$12),0),COLUMN()),0)+IFERROR(INDEX(INDIRECT($Q$13):INDIRECT($Q$14),MATCH($A46,INDIRECT($Q$13):INDIRECT($Q$15),0),COLUMN()),0)+IFERROR(INDEX(INDIRECT($Q$16):INDIRECT($Q$17),MATCH($A46,INDIRECT($Q$16):INDIRECT($Q$18),0),COLUMN()),0) -> 0 | E46: =IFERROR(INDEX(INDIRECT($Q$1):INDIRECT($Q$2),MATCH($A46,INDIRECT($Q$1):INDIRECT($Q$3),0),COLUMN()),0)+IFERROR(INDEX(INDIRECT($Q$4):INDIRECT($Q$5),MATCH($A46,INDIRECT($Q$4):INDIRECT($Q$6),0),COLUMN()),0)+IFERROR(INDEX(INDIRECT($Q$7):INDIRECT($Q$8),MATCH($A46,INDIRECT($Q$7):INDIRECT($Q$9),0),COLUMN()),0)+IFERROR(INDEX(INDIRECT($Q$10):INDIRECT($Q$11),MATCH($A46,INDIRECT($Q$10):INDIRECT($Q$12),0),COLUMN()),0)+IFERROR(INDEX(INDIRECT($Q$13):INDIRECT($Q$14),MATCH($A46,INDIRECT($Q$13):INDIRECT($Q$15),0),COLUMN()),0)+IFERROR(INDEX(INDIRECT($Q$16):INDIRECT($Q$17),MATCH($A46,INDIRECT($Q$16):INDIRECT($Q$18),0),COLUMN()),0) -> 0 | F46: =IFERROR(INDEX(INDIRECT($Q$1):INDIRECT($Q$2),MATCH($A46,INDIRECT($Q$1):INDIRECT($Q$3),0),COLUMN()),0)+IFERROR(INDEX(INDIRECT($Q$4):INDIRECT($Q$5),MATCH($A46,INDIRECT($Q$4):INDIRECT($Q$6),0),COLUMN()),0)+IFERROR(INDEX(INDIRECT($Q$7):INDIRECT($Q$8),MATCH($A46,INDIRECT($Q$7):INDIRECT($Q$9),0),COLUMN()),0)+IFERROR(INDEX(INDIRECT($Q$10):INDIRECT($Q$11),MATCH($A46,INDIRECT($Q$10):INDIRECT($Q$12),0),COLUMN()),0)+IFERROR(INDEX(INDIRECT($Q$13):INDIRECT($Q$14),MATCH($A46,INDIRECT($Q$13):INDIRECT($Q$15),0),COLUMN()),0)+IFERROR(INDEX(INDIRECT($Q$16):INDIRECT($Q$17),MATCH($A46,INDIRECT($Q$16):INDIRECT($Q$18),0),COLUMN()),0) -> 0 | G46: =IFERROR(INDEX(INDIRECT($Q$1):INDIRECT($Q$2),MATCH($A46,INDIRECT($Q$1):INDIRECT($Q$3),0),COLUMN()),0)+IFERROR(INDEX(INDIRECT($Q$4):INDIRECT($Q$5),MATCH($A46,INDIRECT($Q$4):INDIRECT($Q$6),0),COLUMN()),0)+IFERROR(INDEX(INDIRECT($Q$7):INDIRECT($Q$8),MATCH($A46,INDIRECT($Q$7):INDIRECT($Q$9),0),COLUMN()),0)+IFERROR(INDEX(INDIRECT($Q$10):INDIRECT($Q$11),MATCH($A46,INDIRECT($Q$10):INDIRECT($Q$12),0),COLUMN()),0)+IFERROR(INDEX(INDIRECT($Q$13):INDIRECT($Q$14),MATCH($A46,INDIRECT($Q$13):INDIRECT($Q$15),0),COLUMN()),0)+IFERROR(INDEX(INDIRECT($Q$16):INDIRECT($Q$17),MATCH($A46,INDIRECT($Q$16):INDIRECT($Q$18),0),COLUMN()),0) -> 0 | H46: =IFERROR(INDEX(INDIRECT($Q$1):INDIRECT($Q$2),MATCH($A46,INDIRECT($Q$1):INDIRECT($Q$3),0),COLUMN()),0)+IFERROR(INDEX(INDIRECT($Q$4):INDIRECT($Q$5),MATCH($A46,INDIRECT($Q$4):INDIRECT($Q$6),0),COLUMN()),0)+IFERROR(INDEX(INDIRECT($Q$7):INDIRECT($Q$8),MATCH($A46,INDIRECT($Q$7):INDIRECT($Q$9),0),COLUMN()),0)+IFERROR(INDEX(INDIRECT($Q$10):INDIRECT($Q$11),MATCH($A46,INDIRECT($Q$10):INDIRECT($Q$12),0),COLUMN()),0)+IFERROR(INDEX(INDIRECT($Q$13):INDIRECT($Q$14),MATCH($A46,INDIRECT($Q$13):INDIRECT($Q$15),0),COLUMN()),0)+IFERROR(INDEX(INDIRECT($Q$16):INDIRECT($Q$17),MATCH($A46,INDIRECT($Q$16):INDIRECT($Q$18),0),COLUMN()),0) -> 0 | I46: =IFERROR(INDEX(INDIRECT($Q$1):INDIRECT($Q$2),MATCH($A46,INDIRECT($Q$1):INDIRECT($Q$3),0),COLUMN()),0)+IFERROR(INDEX(INDIRECT($Q$4):INDIRECT($Q$5),MATCH($A46,INDIRECT($Q$4):INDIRECT($Q$6),0),COLUMN()),0)+IFERROR(INDEX(INDIRECT($Q$7):INDIRECT($Q$8),MATCH($A46,INDIRECT($Q$7):INDIRECT($Q$9),0),COLUMN()),0)+IFERROR(INDEX(INDIRECT($Q$10):INDIRECT($Q$11),MATCH($A46,INDIRECT($Q$10):INDIRECT($Q$12),0),COLUMN()),0)+IFERROR(INDEX(INDIRECT($Q$13):INDIRECT($Q$14),MATCH($A46,INDIRECT($Q$13):INDIRECT($Q$15),0),COLUMN()),0)+IFERROR(INDEX(INDIRECT($Q$16):INDIRECT($Q$17),MATCH($A46,INDIRECT($Q$16):INDIRECT($Q$18),0),COLUMN()),0) -> 0 | K46: =IFERROR(VLOOKUP($A46,INDIRECT($Q$16):INDIRECT($Q$17),11,FALSE),0) -> 0 | L46: 0 | M46: 0
C47: =IFERROR(VLOOKUP($A47,INDIRECT($Q$1):INDIRECT($Q$2),11,FALSE),0) -> 0 | D47: =IFERROR(INDEX(INDIRECT($Q$1):INDIRECT($Q$2),MATCH($A47,INDIRECT($Q$1):INDIRECT($Q$3),0),COLUMN()),0)+IFERROR(INDEX(INDIRECT($Q$4):INDIRECT($Q$5),MATCH($A47,INDIRECT($Q$4):INDIRECT($Q$6),0),COLUMN()),0)+IFERROR(INDEX(INDIRECT($Q$7):INDIRECT($Q$8),MATCH($A47,INDIRECT($Q$7):INDIRECT($Q$9),0),COLUMN()),0)+IFERROR(INDEX(INDIRECT($Q$10):INDIRECT($Q$11),MATCH($A47,INDIRECT($Q$10):INDIRECT($Q$12),0),COLUMN()),0)+IFERROR(INDEX(INDIRECT($Q$13):INDIRECT($Q$14),MATCH($A47,INDIRECT($Q$13):INDIRECT($Q$15),0),COLUMN()),0)+IFERROR(INDEX(INDIRECT($Q$16):INDIRECT($Q$17),MATCH($A47,INDIRECT($Q$16):INDIRECT($Q$18),0),COLUMN()),0) -> 0 | E47: =IFERROR(INDEX(INDIRECT($Q$1):INDIRECT($Q$2),MATCH($A47,INDIRECT($Q$1):INDIRECT($Q$3),0),COLUMN()),0)+IFERROR(INDEX(INDIRECT($Q$4):INDIRECT($Q$5),MATCH($A47,INDIRECT($Q$4):INDIRECT($Q$6),0),COLUMN()),0)+IFERROR(INDEX(INDIRECT($Q$7):INDIRECT($Q$8),MATCH($A47,INDIRECT($Q$7):INDIRECT($Q$9),0),COLUMN()),0)+IFERROR(INDEX(INDIRECT($Q$10):INDIRECT($Q$11),MATCH($A47,INDIRECT($Q$10):INDIRECT($Q$12),0),COLUMN()),0)+IFERROR(INDEX(INDIRECT($Q$13):INDIRECT($Q$14),MATCH($A47,INDIRECT($Q$13):INDIRECT($Q$15),0),COLUMN()),0)+IFERROR(INDEX(INDIRECT($Q$16):INDIRECT($Q$17),MATCH($A47,INDIRECT($Q$16):INDIRECT($Q$18),0),COLUMN()),0) -> 0 | F47: =IFERROR(INDEX(INDIRECT($Q$1):INDIRECT($Q$2),MATCH($A47,INDIRECT($Q$1):INDIRECT($Q$3),0),COLUMN()),0)+IFERROR(INDEX(INDIRECT($Q$4):INDIRECT($Q$5),MATCH($A47,INDIRECT($Q$4):INDIRECT($Q$6),0),COLUMN()),0)+IFERROR(INDEX(INDIRECT($Q$7):INDIRECT($Q$8),MATCH($A47,INDIRECT($Q$7):INDIRECT($Q$9),0),COLUMN()),0)+IFERROR(INDEX(INDIRECT($Q$10):INDIRECT($Q$11),MATCH($A47,INDIRECT($Q$10):INDIRECT($Q$12),0),COLUMN()),0)+IFERROR(INDEX(INDIRECT($Q$13):INDIRECT($Q$14),MATCH($A47,INDIRECT($Q$13):INDIRECT($Q$15),0),COLUMN()),0)+IFERROR(INDEX(INDIRECT($Q$16):INDIRECT($Q$17),MATCH($A47,INDIRECT($Q$16):INDIRECT($Q$18),0),COLUMN()),0) -> 0 | G47: =IFERROR(INDEX(INDIRECT($Q$1):INDIRECT($Q$2),MATCH($A47,INDIRECT($Q$1):INDIRECT($Q$3),0),COLUMN()),0)+IFERROR(INDEX(INDIRECT($Q$4):INDIRECT($Q$5),MATCH($A47,INDIRECT($Q$4):INDIRECT($Q$6),0),COLUMN()),0)+IFERROR(INDEX(INDIRECT($Q$7):INDIRECT($Q$8),MATCH($A47,INDIRECT($Q$7):INDIRECT($Q$9),0),COLUMN()),0)+IFERROR(INDEX(INDIRECT($Q$10):INDIRECT($Q$11),MATCH($A47,INDIRECT($Q$10):INDIRECT($Q$12),0),COLUMN()),0)+IFERROR(INDEX(INDIRECT($Q$13):INDIRECT($Q$14),MATCH($A47,INDIRECT($Q$13):INDIRECT($Q$15),0),COLUMN()),0)+IFERROR(INDEX(INDIRECT($Q$16):INDIRECT($Q$17),MATCH($A47,INDIRECT($Q$16):INDIRECT($Q$18),0),COLUMN()),0) -> 0 | H47: =IFERROR(INDEX(INDIRECT($Q$1):INDIRECT($Q$2),MATCH($A47,INDIRECT($Q$1):INDIRECT($Q$3),0),COLUMN()),0)+IFERROR(INDEX(INDIRECT($Q$4):INDIRECT($Q$5),MATCH($A47,INDIRECT($Q$4):INDIRECT($Q$6),0),COLUMN()),0)+IFERROR(INDEX(INDIRECT($Q$7):INDIRECT($Q$8),MATCH($A47,INDIRECT($Q$7):INDIRECT($Q$9),0),COLUMN()),0)+IFERROR(INDEX(INDIRECT($Q$10):INDIRECT($Q$11),MATCH($A47,INDIRECT($Q$10):INDIRECT($Q$12),0),COLUMN()),0)+IFERROR(INDEX(INDIRECT($Q$13):INDIRECT($Q$14),MATCH($A47,INDIRECT($Q$13):INDIRECT($Q$15),0),COLUMN()),0)+IFERROR(INDEX(INDIRECT($Q$16):INDIRECT($Q$17),MATCH($A47,INDIRECT($Q$16):INDIRECT($Q$18),0),COLUMN()),0) -> 0 | I47: =IFERROR(INDEX(INDIRECT($Q$1):INDIRECT($Q$2),MATCH($A47,INDIRECT($Q$1):INDIRECT($Q$3),0),COLUMN()),0)+IFERROR(INDEX(INDIRECT($Q$4):INDIRECT($Q$5),MATCH($A47,INDIRECT($Q$4):INDIRECT($Q$6),0),COLUMN()),0)+IFERROR(INDEX(INDIRECT($Q$7):INDIRECT($Q$8),MATCH($A47,INDIRECT($Q$7):INDIRECT($Q$9),0),COLUMN()),0)+IFERROR(INDEX(INDIRECT($Q$10):INDIRECT($Q$11),MATCH($A47,INDIRECT($Q$10):INDIRECT($Q$12),0),COLUMN()),0)+IFERROR(INDEX(INDIRECT($Q$13):INDIRECT($Q$14),MATCH($A47,INDIRECT($Q$13):INDIRECT($Q$15),0),COLUMN()),0)+IFERROR(INDEX(INDIRECT($Q$16):INDIRECT($Q$17),MATCH($A47,INDIRECT($Q$16):INDIRECT($Q$18),0),COLUMN()),0) -> 0 | K47: =IFERROR(VLOOKUP($A47,INDIRECT($Q$16):INDIRECT($Q$17),11,FALSE),0) -> 0 | L47: 0 | M47: 0
C48: =IFERROR(VLOOKUP($A48,INDIRECT($Q$1):INDIRECT($Q$2),11,FALSE),0) -> 0 | D48: =IFERROR(INDEX(INDIRECT($Q$1):INDIRECT($Q$2),MATCH($A48,INDIRECT($Q$1):INDIRECT($Q$3),0),COLUMN()),0)+IFERROR(INDEX(INDIRECT($Q$4):INDIRECT($Q$5),MATCH($A48,INDIRECT($Q$4):INDIRECT($Q$6),0),COLUMN()),0)+IFERROR(INDEX(INDIRECT($Q$7):INDIRECT($Q$8),MATCH($A48,INDIRECT($Q$7):INDIRECT($Q$9),0),COLUMN()),0)+IFERROR(INDEX(INDIRECT($Q$10):INDIRECT($Q$11),MATCH($A48,INDIRECT($Q$10):INDIRECT($Q$12),0),COLUMN()),0)+IFERROR(INDEX(INDIRECT($Q$13):INDIRECT($Q$14),MATCH($A48,INDIRECT($Q$13):INDIRECT($Q$15),0),COLUMN()),0)+IFERROR(INDEX(INDIRECT($Q$16):INDIRECT($Q$17),MATCH($A48,INDIRECT($Q$16):INDIRECT($Q$18),0),COLUMN()),0) -> 0 | E48: =IFERROR(INDEX(INDIRECT($Q$1):INDIRECT($Q$2),MATCH($A48,INDIRECT($Q$1):INDIRECT($Q$3),0),COLUMN()),0)+IFERROR(INDEX(INDIRECT($Q$4):INDIRECT($Q$5),MATCH($A48,INDIRECT($Q$4):INDIRECT($Q$6),0),COLUMN()),0)+IFERROR(INDEX(INDIRECT($Q$7):INDIRECT($Q$8),MATCH($A48,INDIRECT($Q$7):INDIRECT($Q$9),0),COLUMN()),0)+IFERROR(INDEX(INDIRECT($Q$10):INDIRECT($Q$11),MATCH($A48,INDIRECT($Q$10):INDIRECT($Q$12),0),COLUMN()),0)+IFERROR(INDEX(INDIRECT($Q$13):INDIRECT($Q$14),MATCH($A48,INDIRECT($Q$13):INDIRECT($Q$15),0),COLUMN()),0)+IFERROR(INDEX(INDIRECT($Q$16):INDIRECT($Q$17),MATCH($A48,INDIRECT($Q$16):INDIRECT($Q$18),0),COLUMN()),0) -> 0 | F48: =IFERROR(INDEX(INDIRECT($Q$1):INDIRECT($Q$2),MATCH($A48,INDIRECT($Q$1):INDIRECT($Q$3),0),COLUMN()),0)+IFERROR(INDEX(INDIRECT($Q$4):INDIRECT($Q$5),MATCH($A48,INDIRECT($Q$4):INDIRECT($Q$6),0),COLUMN()),0)+IFERROR(INDEX(INDIRECT($Q$7):INDIRECT($Q$8),MATCH($A48,INDIRECT($Q$7):INDIRECT($Q$9),0),COLUMN()),0)+IFERROR(INDEX(INDIRECT($Q$10):INDIRECT($Q$11),MATCH($A48,INDIRECT($Q$10):INDIRECT($Q$12),0),COLUMN()),0)+IFERROR(INDEX(INDIRECT($Q$13):INDIRECT($Q$14),MATCH($A48,INDIRECT($Q$13):INDIRECT($Q$15),0),COLUMN()),0)+IFERROR(INDEX(INDIRECT($Q$16):INDIRECT($Q$17),MATCH($A48,INDIRECT($Q$16):INDIRECT($Q$18),0),COLUMN()),0) -> 0 | G48: =IFERROR(INDEX(INDIRECT($Q$1):INDIRECT($Q$2),MATCH($A48,INDIRECT($Q$1):INDIRECT($Q$3),0),COLUMN()),0)+IFERROR(INDEX(INDIRECT($Q$4):INDIRECT($Q$5),MATCH($A48,INDIRECT($Q$4):INDIRECT($Q$6),0),COLUMN()),0)+IFERROR(INDEX(INDIRECT($Q$7):INDIRECT($Q$8),MATCH($A48,INDIRECT($Q$7):INDIRECT($Q$9),0),COLUMN()),0)+IFERROR(INDEX(INDIRECT($Q$10):INDIRECT($Q$11),MATCH($A48,INDIRECT($Q$10):INDIRECT($Q$12),0),COLUMN()),0)+IFERROR(INDEX(INDIRECT($Q$13):INDIRECT($Q$14),MATCH($A48,INDIRECT($Q$13):INDIRECT($Q$15),0),COLUMN()),0)+IFERROR(INDEX(INDIRECT($Q$16):INDIRECT($Q$17),MATCH($A48,INDIRECT($Q$16):INDIRECT($Q$18),0),COLUMN()),0) -> 0 | H48: =IFERROR(INDEX(INDIRECT($Q$1):INDIRECT($Q$2),MATCH($A48,INDIRECT($Q$1):INDIRECT($Q$3),0),COLUMN()),0)+IFERROR(INDEX(INDIRECT($Q$4):INDIRECT($Q$5),MATCH($A48,INDIRECT($Q$4):INDIRECT($Q$6),0),COLUMN()),0)+IFERROR(INDEX(INDIRECT($Q$7):INDIRECT($Q$8),MATCH($A48,INDIRECT($Q$7):INDIRECT($Q$9),0),COLUMN()),0)+IFERROR(INDEX(INDIRECT($Q$10):INDIRECT($Q$11),MATCH($A48,INDIRECT($Q$10):INDIRECT($Q$12),0),COLUMN()),0)+IFERROR(INDEX(INDIRECT($Q$13):INDIRECT($Q$14),MATCH($A48,INDIRECT($Q$13):INDIRECT($Q$15),0),COLUMN()),0)+IFERROR(INDEX(INDIRECT($Q$16):INDIRECT($Q$17),MATCH($A48,INDIRECT($Q$16):INDIRECT($Q$18),0),COLUMN()),0) -> 0 | I48: =IFERROR(INDEX(INDIRECT($Q$1):INDIRECT($Q$2),MATCH($A48,INDIRECT($Q$1):INDIRECT($Q$3),0),COLUMN()),0)+IFERROR(INDEX(INDIRECT($Q$4):INDIRECT($Q$5),MATCH($A48,INDIRECT($Q$4):INDIRECT($Q$6),0),COLUMN()),0)+IFERROR(INDEX(INDIRECT($Q$7):INDIRECT($Q$8),MATCH($A48,INDIRECT($Q$7):INDIRECT($Q$9),0),COLUMN()),0)+IFERROR(INDEX(INDIRECT($Q$10):INDIRECT($Q$11),MATCH($A48,INDIRECT($Q$10):INDIRECT($Q$12),0),COLUMN()),0)+IFERROR(INDEX(INDIRECT($Q$13):INDIRECT($Q$14),MATCH($A48,INDIRECT($Q$13):INDIRECT($Q$15),0),COLUMN()),0)+IFERROR(INDEX(INDIRECT($Q$16):INDIRECT($Q$17),MATCH($A48,INDIRECT($Q$16):INDIRECT($Q$18),0),COLUMN()),0) -> 0 | K48: =IFERROR(VLOOKUP($A48,INDIRECT($Q$16):INDIRECT($Q$17),11,FALSE),0) -> 0 | L48: 0 | M48: 0
C49: =IFERROR(VLOOKUP($A49,INDIRECT($Q$1):INDIRECT($Q$2),11,FALSE),0) -> 0 | D49: =IFERROR(INDEX(INDIRECT($Q$1):INDIRECT($Q$2),MATCH($A49,INDIRECT($Q$1):INDIRECT($Q$3),0),COLUMN()),0)+IFERROR(INDEX(INDIRECT($Q$4):INDIRECT($Q$5),MATCH($A49,INDIRECT($Q$4):INDIRECT($Q$6),0),COLUMN()),0)+IFERROR(INDEX(INDIRECT($Q$7):INDIRECT($Q$8),MATCH($A49,INDIRECT($Q$7):INDIRECT($Q$9),0),COLUMN()),0)+IFERROR(INDEX(INDIRECT($Q$10):INDIRECT($Q$11),MATCH($A49,INDIRECT($Q$10):INDIRECT($Q$12),0),COLUMN()),0)+IFERROR(INDEX(INDIRECT($Q$13):INDIRECT($Q$14),MATCH($A49,INDIRECT($Q$13):INDIRECT($Q$15),0),COLUMN()),0)+IFERROR(INDEX(INDIRECT($Q$16):INDIRECT($Q$17),MATCH($A49,INDIRECT($Q$16):INDIRECT($Q$18),0),COLUMN()),0) -> 0 | E49: =IFERROR(INDEX(INDIRECT($Q$1):INDIRECT($Q$2),MATCH($A49,INDIRECT($Q$1):INDIRECT($Q$3),0),COLUMN()),0)+IFERROR(INDEX(INDIRECT($Q$4):INDIRECT($Q$5),MATCH($A49,INDIRECT($Q$4):INDIRECT($Q$6),0),COLUMN()),0)+IFERROR(INDEX(INDIRECT($Q$7):INDIRECT($Q$8),MATCH($A49,INDIRECT($Q$7):INDIRECT($Q$9),0),COLUMN()),0)+IFERROR(INDEX(INDIRECT($Q$10):INDIRECT($Q$11),MATCH($A49,INDIRECT($Q$10):INDIRECT($Q$12),0),COLUMN()),0)+IFERROR(INDEX(INDIRECT($Q$13):INDIRECT($Q$14),MATCH($A49,INDIRECT($Q$13):INDIRECT($Q$15),0),COLUMN()),0)+IFERROR(INDEX(INDIRECT($Q$16):INDIRECT($Q$17),MATCH($A49,INDIRECT($Q$16):INDIRECT($Q$18),0),COLUMN()),0) -> 0 | F49: =IFERROR(INDEX(INDIRECT($Q$1):INDIRECT($Q$2),MATCH($A49,INDIRECT($Q$1):INDIRECT($Q$3),0),COLUMN()),0)+IFERROR(INDEX(INDIRECT($Q$4):INDIRECT($Q$5),MATCH($A49,INDIRECT($Q$4):INDIRECT($Q$6),0),COLUMN()),0)+IFERROR(INDEX(INDIRECT($Q$7):INDIRECT($Q$8),MATCH($A49,INDIRECT($Q$7):INDIRECT($Q$9),0),COLUMN()),0)+IFERROR(INDEX(INDIRECT($Q$10):INDIRECT($Q$11),MATCH($A49,INDIRECT($Q$10):INDIRECT($Q$12),0),COLUMN()),0)+IFERROR(INDEX(INDIRECT($Q$13):INDIRECT($Q$14),MATCH($A49,INDIRECT($Q$13):INDIRECT($Q$15),0),COLUMN()),0)+IFERROR(INDEX(INDIRECT($Q$16):INDIRECT($Q$17),MATCH($A49,INDIRECT($Q$16):INDIRECT($Q$18),0),COLUMN()),0) -> 0 | G49: =IFERROR(INDEX(INDIRECT($Q$1):INDIRECT($Q$2),MATCH($A49,INDIRECT($Q$1):INDIRECT($Q$3),0),COLUMN()),0)+IFERROR(INDEX(INDIRECT($Q$4):INDIRECT($Q$5),MATCH($A49,INDIRECT($Q$4):INDIRECT($Q$6),0),COLUMN()),0)+IFERROR(INDEX(INDIRECT($Q$7):INDIRECT($Q$8),MATCH($A49,INDIRECT($Q$7):INDIRECT($Q$9),0),COLUMN()),0)+IFERROR(INDEX(INDIRECT($Q$10):INDIRECT($Q$11),MATCH($A49,INDIRECT($Q$10):INDIRECT($Q$12),0),COLUMN()),0)+IFERROR(INDEX(INDIRECT($Q$13):INDIRECT($Q$14),MATCH($A49,INDIRECT($Q$13):INDIRECT($Q$15),0),COLUMN()),0)+IFERROR(INDEX(INDIRECT($Q$16):INDIRECT($Q$17),MATCH($A49,INDIRECT($Q$16):INDIRECT($Q$18),0),COLUMN()),0) -> 0 | H49: =IFERROR(INDEX(INDIRECT($Q$1):INDIRECT($Q$2),MATCH($A49,INDIRECT($Q$1):INDIRECT($Q$3),0),COLUMN()),0)+IFERROR(INDEX(INDIRECT($Q$4):INDIRECT($Q$5),MATCH($A49,INDIRECT($Q$4):INDIRECT($Q$6),0),COLUMN()),0)+IFERROR(INDEX(INDIRECT($Q$7):INDIRECT($Q$8),MATCH($A49,INDIRECT($Q$7):INDIRECT($Q$9),0),COLUMN()),0)+IFERROR(INDEX(INDIRECT($Q$10):INDIRECT($Q$11),MATCH($A49,INDIRECT($Q$10):INDIRECT($Q$12),0),COLUMN()),0)+IFERROR(INDEX(INDIRECT($Q$13):INDIRECT($Q$14),MATCH($A49,INDIRECT($Q$13):INDIRECT($Q$15),0),COLUMN()),0)+IFERROR(INDEX(INDIRECT($Q$16):INDIRECT($Q$17),MATCH($A49,INDIRECT($Q$16):INDIRECT($Q$18),0),COLUMN()),0) -> 0 | I49: =IFERROR(INDEX(INDIRECT($Q$1):INDIRECT($Q$2),MATCH($A49,INDIRECT($Q$1):INDIRECT($Q$3),0),COLUMN()),0)+IFERROR(INDEX(INDIRECT($Q$4):INDIRECT($Q$5),MATCH($A49,INDIRECT($Q$4):INDIRECT($Q$6),0),COLUMN()),0)+IFERROR(INDEX(INDIRECT($Q$7):INDIRECT($Q$8),MATCH($A49,INDIRECT($Q$7):INDIRECT($Q$9),0),COLUMN()),0)+IFERROR(INDEX(INDIRECT($Q$10):INDIRECT($Q$11),MATCH($A49,INDIRECT($Q$10):INDIRECT($Q$12),0),COLUMN()),0)+IFERROR(INDEX(INDIRECT($Q$13):INDIRECT($Q$14),MATCH($A49,INDIRECT($Q$13):INDIRECT($Q$15),0),COLUMN()),0)+IFERROR(INDEX(INDIRECT($Q$16):INDIRECT($Q$17),MATCH($A49,INDIRECT($Q$16):INDIRECT($Q$18),0),COLUMN()),0) -> 0 | K49: =IFERROR(VLOOKUP($A49,INDIRECT($Q$16):INDIRECT($Q$17),11,FALSE),0) -> 0 | L49: 0 | M49: 0
C50: =IFERROR(VLOOKUP($A50,INDIRECT($Q$1):INDIRECT($Q$2),11,FALSE),0) -> 0 | D50: =IFERROR(INDEX(INDIRECT($Q$1):INDIRECT($Q$2),MATCH($A50,INDIRECT($Q$1):INDIRECT($Q$3),0),COLUMN()),0)+IFERROR(INDEX(INDIRECT($Q$4):INDIRECT($Q$5),MATCH($A50,INDIRECT($Q$4):INDIRECT($Q$6),0),COLUMN()),0)+IFERROR(INDEX(INDIRECT($Q$7):INDIRECT($Q$8),MATCH($A50,INDIRECT($Q$7):INDIRECT($Q$9),0),COLUMN()),0)+IFERROR(INDEX(INDIRECT($Q$10):INDIRECT($Q$11),MATCH($A50,INDIRECT($Q$10):INDIRECT($Q$12),0),COLUMN()),0)+IFERROR(INDEX(INDIRECT($Q$13):INDIRECT($Q$14),MATCH($A50,INDIRECT($Q$13):INDIRECT($Q$15),0),COLUMN()),0)+IFERROR(INDEX(INDIRECT($Q$16):INDIRECT($Q$17),MATCH($A50,INDIRECT($Q$16):INDIRECT($Q$18),0),COLUMN()),0) -> 0 | E50: =IFERROR(INDEX(INDIRECT($Q$1):INDIRECT($Q$2),MATCH($A50,INDIRECT($Q$1):INDIRECT($Q$3),0),COLUMN()),0)+IFERROR(INDEX(INDIRECT($Q$4):INDIRECT($Q$5),MATCH($A50,INDIRECT($Q$4):INDIRECT($Q$6),0),COLUMN()),0)+IFERROR(INDEX(INDIRECT($Q$7):INDIRECT($Q$8),MATCH($A50,INDIRECT($Q$7):INDIRECT($Q$9),0),COLUMN()),0)+IFERROR(INDEX(INDIRECT($Q$10):INDIRECT($Q$11),MATCH($A50,INDIRECT($Q$10):INDIRECT($Q$12),0),COLUMN()),0)+IFERROR(INDEX(INDIRECT($Q$13):INDIRECT($Q$14),MATCH($A50,INDIRECT($Q$13):INDIRECT($Q$15),0),COLUMN()),0)+IFERROR(INDEX(INDIRECT($Q$16):INDIRECT($Q$17),MATCH($A50,INDIRECT($Q$16):INDIRECT($Q$18),0),COLUMN()),0) -> 0 | F50: =IFERROR(INDEX(INDIRECT($Q$1):INDIRECT($Q$2),MATCH($A50,INDIRECT($Q$1):INDIRECT($Q$3),0),COLUMN()),0)+IFERROR(INDEX(INDIRECT($Q$4):INDIRECT($Q$5),MATCH($A50,INDIRECT($Q$4):INDIRECT($Q$6),0),COLUMN()),0)+IFERROR(INDEX(INDIRECT($Q$7):INDIRECT($Q$8),MATCH($A50,INDIRECT($Q$7):INDIRECT($Q$9),0),COLUMN()),0)+IFERROR(INDEX(INDIRECT($Q$10):INDIRECT($Q$11),MATCH($A50,INDIRECT($Q$10):INDIRECT($Q$12),0),COLUMN()),0)+IFERROR(INDEX(INDIRECT($Q$13):INDIRECT($Q$14),MATCH($A50,INDIRECT($Q$13):INDIRECT($Q$15),0),COLUMN()),0)+IFERROR(INDEX(INDIRECT($Q$16):INDIRECT($Q$17),MATCH($A50,INDIRECT($Q$16):INDIRECT($Q$18),0),COLUMN()),0) -> 0 | G50: =IFERROR(INDEX(INDIRECT($Q$1):INDIRECT($Q$2),MATCH($A50,INDIRECT($Q$1):INDIRECT($Q$3),0),COLUMN()),0)+IFERROR(INDEX(INDIRECT($Q$4):INDIRECT($Q$5),MATCH($A50,INDIRECT($Q$4):INDIRECT($Q$6),0),COLUMN()),0)+IFERROR(INDEX(INDIRECT($Q$7):INDIRECT($Q$8),MATCH($A50,INDIRECT($Q$7):INDIRECT($Q$9),0),COLUMN()),0)+IFERROR(INDEX(INDIRECT($Q$10):INDIRECT($Q$11),MATCH($A50,INDIRECT($Q$10):INDIRECT($Q$12),0),COLUMN()),0)+IFERROR(INDEX(INDIRECT($Q$13):INDIRECT($Q$14),MATCH($A50,INDIRECT($Q$13):INDIRECT($Q$15),0),COLUMN()),0)+IFERROR(INDEX(INDIRECT($Q$16):INDIRECT($Q$17),MATCH($A50,INDIRECT($Q$16):INDIRECT($Q$18),0),COLUMN()),0) -> 0 | H50: =IFERROR(INDEX(INDIRECT($Q$1):INDIRECT($Q$2),MATCH($A50,INDIRECT($Q$1):INDIRECT($Q$3),0),COLUMN()),0)+IFERROR(INDEX(INDIRECT($Q$4):INDIRECT($Q$5),MATCH($A50,INDIRECT($Q$4):INDIRECT($Q$6),0),COLUMN()),0)+IFERROR(INDEX(INDIRECT($Q$7):INDIRECT($Q$8),MATCH($A50,INDIRECT($Q$7):INDIRECT($Q$9),0),COLUMN()),0)+IFERROR(INDEX(INDIRECT($Q$10):INDIRECT($Q$11),MATCH($A50,INDIRECT($Q$10):INDIRECT($Q$12),0),COLUMN()),0)+IFERROR(INDEX(INDIRECT($Q$13):INDIRECT($Q$14),MATCH($A50,INDIRECT($Q$13):INDIRECT($Q$15),0),COLUMN()),0)+IFERROR(INDEX(INDIRECT($Q$16):INDIRECT($Q$17),MATCH($A50,INDIRECT($Q$16):INDIRECT($Q$18),0),COLUMN()),0) -> 0 | I50: =IFERROR(INDEX(INDIRECT($Q$1):INDIRECT($Q$2),MATCH($A50,INDIRECT($Q$1):INDIRECT($Q$3),0),COLUMN()),0)+IFERROR(INDEX(INDIRECT($Q$4):INDIRECT($Q$5),MATCH($A50,INDIRECT($Q$4):INDIRECT($Q$6),0),COLUMN()),0)+IFERROR(INDEX(INDIRECT($Q$7):INDIRECT($Q$8),MATCH($A50,INDIRECT($Q$7):INDIRECT($Q$9),0),COLUMN()),0)+IFERROR(INDEX(INDIRECT($Q$10):INDIRECT($Q$11),MATCH($A50,INDIRECT($Q$10):INDIRECT($Q$12),0),COLUMN()),0)+IFERROR(INDEX(INDIRECT($Q$13):INDIRECT($Q$14),MATCH($A50,INDIRECT($Q$13):INDIRECT($Q$15),0),COLUMN()),0)+IFERROR(INDEX(INDIRECT($Q$16):INDIRECT($Q$17),MATCH($A50,INDIRECT($Q$16):INDIRECT($Q$18),0),COLUMN()),0) -> 0 | K50: =IFERROR(VLOOKUP($A50,INDIRECT($Q$16):INDIRECT($Q$17),11,FALSE),0) -> 0 | L50: 0 | M50: 0
C51: =IFERROR(VLOOKUP($A51,INDIRECT($Q$1):INDIRECT($Q$2),11,FALSE),0) -> 0 | D51: =IFERROR(INDEX(INDIRECT($Q$1):INDIRECT($Q$2),MATCH($A51,INDIRECT($Q$1):INDIRECT($Q$3),0),COLUMN()),0)+IFERROR(INDEX(INDIRECT($Q$4):INDIRECT($Q$5),MATCH($A51,INDIRECT($Q$4):INDIRECT($Q$6),0),COLUMN()),0)+IFERROR(INDEX(INDIRECT($Q$7):INDIRECT($Q$8),MATCH($A51,INDIRECT($Q$7):INDIRECT($Q$9),0),COLUMN()),0)+IFERROR(INDEX(INDIRECT($Q$10):INDIRECT($Q$11),MATCH($A51,INDIRECT($Q$10):INDIRECT($Q$12),0),COLUMN()),0)+IFERROR(INDEX(INDIRECT($Q$13):INDIRECT($Q$14),MATCH($A51,INDIRECT($Q$13):INDIRECT($Q$15),0),COLUMN()),0)+IFERROR(INDEX(INDIRECT($Q$16):INDIRECT($Q$17),MATCH($A51,INDIRECT($Q$16):INDIRECT($Q$18),0),COLUMN()),0) -> 0 | E51: =IFERROR(INDEX(INDIRECT($Q$1):INDIRECT($Q$2),MATCH($A51,INDIRECT($Q$1):INDIRECT($Q$3),0),COLUMN()),0)+IFERROR(INDEX(INDIRECT($Q$4):INDIRECT($Q$5),MATCH($A51,INDIRECT($Q$4):INDIRECT($Q$6),0),COLUMN()),0)+IFERROR(INDEX(INDIRECT($Q$7):INDIRECT($Q$8),MATCH($A51,INDIRECT($Q$7):INDIRECT($Q$9),0),COLUMN()),0)+IFERROR(INDEX(INDIRECT($Q$10):INDIRECT($Q$11),MATCH($A51,INDIRECT($Q$10):INDIRECT($Q$12),0),COLUMN()),0)+IFERROR(INDEX(INDIRECT($Q$13):INDIRECT($Q$14),MATCH($A51,INDIRECT($Q$13):INDIRECT($Q$15),0),COLUMN()),0)+IFERROR(INDEX(INDIRECT($Q$16):INDIRECT($Q$17),MATCH($A51,INDIRECT($Q$16):INDIRECT($Q$18),0),COLUMN()),0) -> 0 | F51: =IFERROR(INDEX(INDIRECT($Q$1):INDIRECT($Q$2),MATCH($A51,INDIRECT($Q$1):INDIRECT($Q$3),0),COLUMN()),0)+IFERROR(INDEX(INDIRECT($Q$4):INDIRECT($Q$5),MATCH($A51,INDIRECT($Q$4):INDIRECT($Q$6),0),COLUMN()),0)+IFERROR(INDEX(INDIRECT($Q$7):INDIRECT($Q$8),MATCH($A51,INDIRECT($Q$7):INDIRECT($Q$9),0),COLUMN()),0)+IFERROR(INDEX(INDIRECT($Q$10):INDIRECT($Q$11),MATCH($A51,INDIRECT($Q$10):INDIRECT($Q$12),0),COLUMN()),0)+IFERROR(INDEX(INDIRECT($Q$13):INDIRECT($Q$14),MATCH($A51,INDIRECT($Q$13):INDIRECT($Q$15),0),COLUMN()),0)+IFERROR(INDEX(INDIRECT($Q$16):INDIRECT($Q$17),MATCH($A51,INDIRECT($Q$16):INDIRECT($Q$18),0),COLUMN()),0) -> 0 | G51: =IFERROR(INDEX(INDIRECT($Q$1):INDIRECT($Q$2),MATCH($A51,INDIRECT($Q$1):INDIRECT($Q$3),0),COLUMN()),0)+IFERROR(INDEX(INDIRECT($Q$4):INDIRECT($Q$5),MATCH($A51,INDIRECT($Q$4):INDIRECT($Q$6),0),COLUMN()),0)+IFERROR(INDEX(INDIRECT($Q$7):INDIRECT($Q$8),MATCH($A51,INDIRECT($Q$7):INDIRECT($Q$9),0),COLUMN()),0)+IFERROR(INDEX(INDIRECT($Q$10):INDIRECT($Q$11),MATCH($A51,INDIRECT($Q$10):INDIRECT($Q$12),0),COLUMN()),0)+IFERROR(INDEX(INDIRECT($Q$13):INDIRECT($Q$14),MATCH($A51,INDIRECT($Q$13):INDIRECT($Q$15),0),COLUMN()),0)+IFERROR(INDEX(INDIRECT($Q$16):INDIRECT($Q$17),MATCH($A51,INDIRECT($Q$16):INDIRECT($Q$18),0),COLUMN()),0) -> 0 | H51: =IFERROR(INDEX(INDIRECT($Q$1):INDIRECT($Q$2),MATCH($A51,INDIRECT($Q$1):INDIRECT($Q$3),0),COLUMN()),0)+IFERROR(INDEX(INDIRECT($Q$4):INDIRECT($Q$5),MATCH($A51,INDIRECT($Q$4):INDIRECT($Q$6),0),COLUMN()),0)+IFERROR(INDEX(INDIRECT($Q$7):INDIRECT($Q$8),MATCH($A51,INDIRECT($Q$7):INDIRECT($Q$9),0),COLUMN()),0)+IFERROR(INDEX(INDIRECT($Q$10):INDIRECT($Q$11),MATCH($A51,INDIRECT($Q$10):INDIRECT($Q$12),0),COLUMN()),0)+IFERROR(INDEX(INDIRECT($Q$13):INDIRECT($Q$14),MATCH($A51,INDIRECT($Q$13):INDIRECT($Q$15),0),COLUMN()),0)+IFERROR(INDEX(INDIRECT($Q$16):INDIRECT($Q$17),MATCH($A51,INDIRECT($Q$16):INDIRECT($Q$18),0),COLUMN()),0) -> 0 | I51: =IFERROR(INDEX(INDIRECT($Q$1):INDIRECT($Q$2),MATCH($A51,INDIRECT($Q$1):INDIRECT($Q$3),0),COLUMN()),0)+IFERROR(INDEX(INDIRECT($Q$4):INDIRECT($Q$5),MATCH($A51,INDIRECT($Q$4):INDIRECT($Q$6),0),COLUMN()),0)+IFERROR(INDEX(INDIRECT($Q$7):INDIRECT($Q$8),MATCH($A51,INDIRECT($Q$7):INDIRECT($Q$9),0),COLUMN()),0)+IFERROR(INDEX(INDIRECT($Q$10):INDIRECT($Q$11),MATCH($A51,INDIRECT($Q$10):INDIRECT($Q$12),0),COLUMN()),0)+IFERROR(INDEX(INDIRECT($Q$13):INDIRECT($Q$14),MATCH($A51,INDIRECT($Q$13):INDIRECT($Q$15),0),COLUMN()),0)+IFERROR(INDEX(INDIRECT($Q$16):INDIRECT($Q$17),MATCH($A51,INDIRECT($Q$16):INDIRECT($Q$18),0),COLUMN()),0) -> 0 | K51: =IFERROR(VLOOKUP($A51,INDIRECT($Q$16):INDIRECT($Q$17),11,FALSE),0) -> 0 | L51: 0 | M51: 0
C52: =IFERROR(VLOOKUP($A52,INDIRECT($Q$1):INDIRECT($Q$2),11,FALSE),0) -> 0 | D52: =IFERROR(INDEX(INDIRECT($Q$1):INDIRECT($Q$2),MATCH($A52,INDIRECT($Q$1):INDIRECT($Q$3),0),COLUMN()),0)+IFERROR(INDEX(INDIRECT($Q$4):INDIRECT($Q$5),MATCH($A52,INDIRECT($Q$4):INDIRECT($Q$6),0),COLUMN()),0)+IFERROR(INDEX(INDIRECT($Q$7):INDIRECT($Q$8),MATCH($A52,INDIRECT($Q$7):INDIRECT($Q$9),0),COLUMN()),0)+IFERROR(INDEX(INDIRECT($Q$10):INDIRECT($Q$11),MATCH($A52,INDIRECT($Q$10):INDIRECT($Q$12),0),COLUMN()),0)+IFERROR(INDEX(INDIRECT($Q$13):INDIRECT($Q$14),MATCH($A52,INDIRECT($Q$13):INDIRECT($Q$15),0),COLUMN()),0)+IFERROR(INDEX(INDIRECT($Q$16):INDIRECT($Q$17),MATCH($A52,INDIRECT($Q$16):INDIRECT($Q$18),0),COLUMN()),0) -> 0 | E52: =IFERROR(INDEX(INDIRECT($Q$1):INDIRECT($Q$2),MATCH($A52,INDIRECT($Q$1):INDIRECT($Q$3),0),COLUMN()),0)+IFERROR(INDEX(INDIRECT($Q$4):INDIRECT($Q$5),MATCH($A52,INDIRECT($Q$4):INDIRECT($Q$6),0),COLUMN()),0)+IFERROR(INDEX(INDIRECT($Q$7):INDIRECT($Q$8),MATCH($A52,INDIRECT($Q$7):INDIRECT($Q$9),0),COLUMN()),0)+IFERROR(INDEX(INDIRECT($Q$10):INDIRECT($Q$11),MATCH($A52,INDIRECT($Q$10):INDIRECT($Q$12),0),COLUMN()),0)+IFERROR(INDEX(INDIRECT($Q$13):INDIRECT($Q$14),MATCH($A52,INDIRECT($Q$13):INDIRECT($Q$15),0),COLUMN()),0)+IFERROR(INDEX(INDIRECT($Q$16):INDIRECT($Q$17),MATCH($A52,INDIRECT($Q$16):INDIRECT($Q$18),0),COLUMN()),0) -> 0 | F52: =IFERROR(INDEX(INDIRECT($Q$1):INDIRECT($Q$2),MATCH($A52,INDIRECT($Q$1):INDIRECT($Q$3),0),COLUMN()),0)+IFERROR(INDEX(INDIRECT($Q$4):INDIRECT($Q$5),MATCH($A52,INDIRECT($Q$4):INDIRECT($Q$6),0),COLUMN()),0)+IFERROR(INDEX(INDIRECT($Q$7):INDIRECT($Q$8),MATCH($A52,INDIRECT($Q$7):INDIRECT($Q$9),0),COLUMN()),0)+IFERROR(INDEX(INDIRECT($Q$10):INDIRECT($Q$11),MATCH($A52,INDIRECT($Q$10):INDIRECT($Q$12),0),COLUMN()),0)+IFERROR(INDEX(INDIRECT($Q$13):INDIRECT($Q$14),MATCH($A52,INDIRECT($Q$13):INDIRECT($Q$15),0),COLUMN()),0)+IFERROR(INDEX(INDIRECT($Q$16):INDIRECT($Q$17),MATCH($A52,INDIRECT($Q$16):INDIRECT($Q$18),0),COLUMN()),0) -> 0 | G52: =IFERROR(INDEX(INDIRECT($Q$1):INDIRECT($Q$2),MATCH($A52,INDIRECT($Q$1):INDIRECT($Q$3),0),COLUMN()),0)+IFERROR(INDEX(INDIRECT($Q$4):INDIRECT($Q$5),MATCH($A52,INDIRECT($Q$4):INDIRECT($Q$6),0),COLUMN()),0)+IFERROR(INDEX(INDIRECT($Q$7):INDIRECT($Q$8),MATCH($A52,INDIRECT($Q$7):INDIRECT($Q$9),0),COLUMN()),0)+IFERROR(INDEX(INDIRECT($Q$10):INDIRECT($Q$11),MATCH($A52,INDIRECT($Q$10):INDIRECT($Q$12),0),COLUMN()),0)+IFERROR(INDEX(INDIRECT($Q$13):INDIRECT($Q$14),MATCH($A52,INDIRECT($Q$13):INDIRECT($Q$15),0),COLUMN()),0)+IFERROR(INDEX(INDIRECT($Q$16):INDIRECT($Q$17),MATCH($A52,INDIRECT($Q$16):INDIRECT($Q$18),0),COLUMN()),0) -> 0 | H52: =IFERROR(INDEX(INDIRECT($Q$1):INDIRECT($Q$2),MATCH($A52,INDIRECT($Q$1):INDIRECT($Q$3),0),COLUMN()),0)+IFERROR(INDEX(INDIRECT($Q$4):INDIRECT($Q$5),MATCH($A52,INDIRECT($Q$4):INDIRECT($Q$6),0),COLUMN()),0)+IFERROR(INDEX(INDIRECT($Q$7):INDIRECT($Q$8),MATCH($A52,INDIRECT($Q$7):INDIRECT($Q$9),0),COLUMN()),0)+IFERROR(INDEX(INDIRECT($Q$10):INDIRECT($Q$11),MATCH($A52,INDIRECT($Q$10):INDIRECT($Q$12),0),COLUMN()),0)+IFERROR(INDEX(INDIRECT($Q$13):INDIRECT($Q$14),MATCH($A52,INDIRECT($Q$13):INDIRECT($Q$15),0),COLUMN()),0)+IFERROR(INDEX(INDIRECT($Q$16):INDIRECT($Q$17),MATCH($A52,INDIRECT($Q$16):INDIRECT($Q$18),0),COLUMN()),0) -> 0 | I52: =IFERROR(INDEX(INDIRECT($Q$1):INDIRECT($Q$2),MATCH($A52,INDIRECT($Q$1):INDIRECT($Q$3),0),COLUMN()),0)+IFERROR(INDEX(INDIRECT($Q$4):INDIRECT($Q$5),MATCH($A52,INDIRECT($Q$4):INDIRECT($Q$6),0),COLUMN()),0)+IFERROR(INDEX(INDIRECT($Q$7):INDIRECT($Q$8),MATCH($A52,INDIRECT($Q$7):INDIRECT($Q$9),0),COLUMN()),0)+IFERROR(INDEX(INDIRECT($Q$10):INDIRECT($Q$11),MATCH($A52,INDIRECT($Q$10):INDIRECT($Q$12),0),COLUMN()),0)+IFERROR(INDEX(INDIRECT($Q$13):INDIRECT($Q$14),MATCH($A52,INDIRECT($Q$13):INDIRECT($Q$15),0),COLUMN()),0)+IFERROR(INDEX(INDIRECT($Q$16):INDIRECT($Q$17),MATCH($A52,INDIRECT($Q$16):INDIRECT($Q$18),0),COLUMN()),0) -> 0 | K52: =IFERROR(VLOOKUP($A52,INDIRECT($Q$16):INDIRECT($Q$17),11,FALSE),0) -> 0 | L52: 0 | M52: 0
C53: =IFERROR(VLOOKUP($A53,INDIRECT($Q$1):INDIRECT($Q$2),11,FALSE),0) -> 0 | D53: =IFERROR(INDEX(INDIRECT($Q$1):INDIRECT($Q$2),MATCH($A53,INDIRECT($Q$1):INDIRECT($Q$3),0),COLUMN()),0)+IFERROR(INDEX(INDIRECT($Q$4):INDIRECT($Q$5),MATCH($A53,INDIRECT($Q$4):INDIRECT($Q$6),0),COLUMN()),0)+IFERROR(INDEX(INDIRECT($Q$7):INDIRECT($Q$8),MATCH($A53,INDIRECT($Q$7):INDIRECT($Q$9),0),COLUMN()),0)+IFERROR(INDEX(INDIRECT($Q$10):INDIRECT($Q$11),MATCH($A53,INDIRECT($Q$10):INDIRECT($Q$12),0),COLUMN()),0)+IFERROR(INDEX(INDIRECT($Q$13):INDIRECT($Q$14),MATCH($A53,INDIRECT($Q$13):INDIRECT($Q$15),0),COLUMN()),0)+IFERROR(INDEX(INDIRECT($Q$16):INDIRECT($Q$17),MATCH($A53,INDIRECT($Q$16):INDIRECT($Q$18),0),COLUMN()),0) -> 0 | E53: =IFERROR(INDEX(INDIRECT($Q$1):INDIRECT($Q$2),MATCH($A53,INDIRECT($Q$1):INDIRECT($Q$3),0),COLUMN()),0)+IFERROR(INDEX(INDIRECT($Q$4):INDIRECT($Q$5),MATCH($A53,INDIRECT($Q$4):INDIRECT($Q$6),0),COLUMN()),0)+IFERROR(INDEX(INDIRECT($Q$7):INDIRECT($Q$8),MATCH($A53,INDIRECT($Q$7):INDIRECT($Q$9),0),COLUMN()),0)+IFERROR(INDEX(INDIRECT($Q$10):INDIRECT($Q$11),MATCH($A53,INDIRECT($Q$10):INDIRECT($Q$12),0),COLUMN()),0)+IFERROR(INDEX(INDIRECT($Q$13):INDIRECT($Q$14),MATCH($A53,INDIRECT($Q$13):INDIRECT($Q$15),0),COLUMN()),0)+IFERROR(INDEX(INDIRECT($Q$16):INDIRECT($Q$17),MATCH($A53,INDIRECT($Q$16):INDIRECT($Q$18),0),COLUMN()),0) -> 0 | F53: =IFERROR(INDEX(INDIRECT($Q$1):INDIRECT($Q$2),MATCH($A53,INDIRECT($Q$1):INDIRECT($Q$3),0),COLUMN()),0)+IFERROR(INDEX(INDIRECT($Q$4):INDIRECT($Q$5),MATCH($A53,INDIRECT($Q$4):INDIRECT($Q$6),0),COLUMN()),0)+IFERROR(INDEX(INDIRECT($Q$7):INDIRECT($Q$8),MATCH($A53,INDIRECT($Q$7):INDIRECT($Q$9),0),COLUMN()),0)+IFERROR(INDEX(INDIRECT($Q$10):INDIRECT($Q$11),MATCH($A53,INDIRECT($Q$10):INDIRECT($Q$12),0),COLUMN()),0)+IFERROR(INDEX(INDIRECT($Q$13):INDIRECT($Q$14),MATCH($A53,INDIRECT($Q$13):INDIRECT($Q$15),0),COLUMN()),0)+IFERROR(INDEX(INDIRECT($Q$16):INDIRECT($Q$17),MATCH($A53,INDIRECT($Q$16):INDIRECT($Q$18),0),COLUMN()),0) -> 0 | G53: =IFERROR(INDEX(INDIRECT($Q$1):INDIRECT($Q$2),MATCH($A53,INDIRECT($Q$1):INDIRECT($Q$3),0),COLUMN()),0)+IFERROR(INDEX(INDIRECT($Q$4):INDIRECT($Q$5),MATCH($A53,INDIRECT($Q$4):INDIRECT($Q$6),0),COLUMN()),0)+IFERROR(INDEX(INDIRECT($Q$7):INDIRECT($Q$8),MATCH($A53,INDIRECT($Q$7):INDIRECT($Q$9),0),COLUMN()),0)+IFERROR(INDEX(INDIRECT($Q$10):INDIRECT($Q$11),MATCH($A53,INDIRECT($Q$10):INDIRECT($Q$12),0),COLUMN()),0)+IFERROR(INDEX(INDIRECT($Q$13):INDIRECT($Q$14),MATCH($A53,INDIRECT($Q$13):INDIRECT($Q$15),0),COLUMN()),0)+IFERROR(INDEX(INDIRECT($Q$16):INDIRECT($Q$17),MATCH($A53,INDIRECT($Q$16):INDIRECT($Q$18),0),COLUMN()),0) -> 0 | H53: =IFERROR(INDEX(INDIRECT($Q$1):INDIRECT($Q$2),MATCH($A53,INDIRECT($Q$1):INDIRECT($Q$3),0),COLUMN()),0)+IFERROR(INDEX(INDIRECT($Q$4):INDIRECT($Q$5),MATCH($A53,INDIRECT($Q$4):INDIRECT($Q$6),0),COLUMN()),0)+IFERROR(INDEX(INDIRECT($Q$7):INDIRECT($Q$8),MATCH($A53,INDIRECT($Q$7):INDIRECT($Q$9),0),COLUMN()),0)+IFERROR(INDEX(INDIRECT($Q$10):INDIRECT($Q$11),MATCH($A53,INDIRECT($Q$10):INDIRECT($Q$12),0),COLUMN()),0)+IFERROR(INDEX(INDIRECT($Q$13):INDIRECT($Q$14),MATCH($A53,INDIRECT($Q$13):INDIRECT($Q$15),0),COLUMN()),0)+IFERROR(INDEX(INDIRECT($Q$16):INDIRECT($Q$17),MATCH($A53,INDIRECT($Q$16):INDIRECT($Q$18),0),COLUMN()),0) -> 0 | I53: =IFERROR(INDEX(INDIRECT($Q$1):INDIRECT($Q$2),MATCH($A53,INDIRECT($Q$1):INDIRECT($Q$3),0),COLUMN()),0)+IFERROR(INDEX(INDIRECT($Q$4):INDIRECT($Q$5),MATCH($A53,INDIRECT($Q$4):INDIRECT($Q$6),0),COLUMN()),0)+IFERROR(INDEX(INDIRECT($Q$7):INDIRECT($Q$8),MATCH($A53,INDIRECT($Q$7):INDIRECT($Q$9),0),COLUMN()),0)+IFERROR(INDEX(INDIRECT($Q$10):INDIRECT($Q$11),MATCH($A53,INDIRECT($Q$10):INDIRECT($Q$12),0),COLUMN()),0)+IFERROR(INDEX(INDIRECT($Q$13):INDIRECT($Q$14),MATCH($A53,INDIRECT($Q$13):INDIRECT($Q$15),0),COLUMN()),0)+IFERROR(INDEX(INDIRECT($Q$16):INDIRECT($Q$17),MATCH($A53,INDIRECT($Q$16):INDIRECT($Q$18),0),COLUMN()),0) -> 0 | K53: =IFERROR(VLOOKUP($A53,INDIRECT($Q$16):INDIRECT($Q$17),11,FALSE),0) -> 0 | L53: 0 | M53: 0
C54: =IFERROR(VLOOKUP($A54,INDIRECT($Q$1):INDIRECT($Q$2),11,FALSE),0) -> 0 | D54: =IFERROR(INDEX(INDIRECT($Q$1):INDIRECT($Q$2),MATCH($A54,INDIRECT($Q$1):INDIRECT($Q$3),0),COLUMN()),0)+IFERROR(INDEX(INDIRECT($Q$4):INDIRECT($Q$5),MATCH($A54,INDIRECT($Q$4):INDIRECT($Q$6),0),COLUMN()),0)+IFERROR(INDEX(INDIRECT($Q$7):INDIRECT($Q$8),MATCH($A54,INDIRECT($Q$7):INDIRECT($Q$9),0),COLUMN()),0)+IFERROR(INDEX(INDIRECT($Q$10):INDIRECT($Q$11),MATCH($A54,INDIRECT($Q$10):INDIRECT($Q$12),0),COLUMN()),0)+IFERROR(INDEX(INDIRECT($Q$13):INDIRECT($Q$14),MATCH($A54,INDIRECT($Q$13):INDIRECT($Q$15),0),COLUMN()),0)+IFERROR(INDEX(INDIRECT($Q$16):INDIRECT($Q$17),MATCH($A54,INDIRECT($Q$16):INDIRECT($Q$18),0),COLUMN()),0) -> 0 | E54: =IFERROR(INDEX(INDIRECT($Q$1):INDIRECT($Q$2),MATCH($A54,INDIRECT($Q$1):INDIRECT($Q$3),0),COLUMN()),0)+IFERROR(INDEX(INDIRECT($Q$4):INDIRECT($Q$5),MATCH($A54,INDIRECT($Q$4):INDIRECT($Q$6),0),COLUMN()),0)+IFERROR(INDEX(INDIRECT($Q$7):INDIRECT($Q$8),MATCH($A54,INDIRECT($Q$7):INDIRECT($Q$9),0),COLUMN()),0)+IFERROR(INDEX(INDIRECT($Q$10):INDIRECT($Q$11),MATCH($A54,INDIRECT($Q$10):INDIRECT($Q$12),0),COLUMN()),0)+IFERROR(INDEX(INDIRECT($Q$13):INDIRECT($Q$14),MATCH($A54,INDIRECT($Q$13):INDIRECT($Q$15),0),COLUMN()),0)+IFERROR(INDEX(INDIRECT($Q$16):INDIRECT($Q$17),MATCH($A54,INDIRECT($Q$16):INDIRECT($Q$18),0),COLUMN()),0) -> 0 | F54: =IFERROR(INDEX(INDIRECT($Q$1):INDIRECT($Q$2),MATCH($A54,INDIRECT($Q$1):INDIRECT($Q$3),0),COLUMN()),0)+IFERROR(INDEX(INDIRECT($Q$4):INDIRECT($Q$5),MATCH($A54,INDIRECT($Q$4):INDIRECT($Q$6),0),COLUMN()),0)+IFERROR(INDEX(INDIRECT($Q$7):INDIRECT($Q$8),MATCH($A54,INDIRECT($Q$7):INDIRECT($Q$9),0),COLUMN()),0)+IFERROR(INDEX(INDIRECT($Q$10):INDIRECT($Q$11),MATCH($A54,INDIRECT($Q$10):INDIRECT($Q$12),0),COLUMN()),0)+IFERROR(INDEX(INDIRECT($Q$13):INDIRECT($Q$14),MATCH($A54,INDIRECT($Q$13):INDIRECT($Q$15),0),COLUMN()),0)+IFERROR(INDEX(INDIRECT($Q$16):INDIRECT($Q$17),MATCH($A54,INDIRECT($Q$16):INDIRECT($Q$18),0),COLUMN()),0) -> 0 | G54: =IFERROR(INDEX(INDIRECT($Q$1):INDIRECT($Q$2),MATCH($A54,INDIRECT($Q$1):INDIRECT($Q$3),0),COLUMN()),0)+IFERROR(INDEX(INDIRECT($Q$4):INDIRECT($Q$5),MATCH($A54,INDIRECT($Q$4):INDIRECT($Q$6),0),COLUMN()),0)+IFERROR(INDEX(INDIRECT($Q$7):INDIRECT($Q$8),MATCH($A54,INDIRECT($Q$7):INDIRECT($Q$9),0),COLUMN()),0)+IFERROR(INDEX(INDIRECT($Q$10):INDIRECT($Q$11),MATCH($A54,INDIRECT($Q$10):INDIRECT($Q$12),0),COLUMN()),0)+IFERROR(INDEX(INDIRECT($Q$13):INDIRECT($Q$14),MATCH($A54,INDIRECT($Q$13):INDIRECT($Q$15),0),COLUMN()),0)+IFERROR(INDEX(INDIRECT($Q$16):INDIRECT($Q$17),MATCH($A54,INDIRECT($Q$16):INDIRECT($Q$18),0),COLUMN()),0) -> 0 | H54: =IFERROR(INDEX(INDIRECT($Q$1):INDIRECT($Q$2),MATCH($A54,INDIRECT($Q$1):INDIRECT($Q$3),0),COLUMN()),0)+IFERROR(INDEX(INDIRECT($Q$4):INDIRECT($Q$5),MATCH($A54,INDIRECT($Q$4):INDIRECT($Q$6),0),COLUMN()),0)+IFERROR(INDEX(INDIRECT($Q$7):INDIRECT($Q$8),MATCH($A54,INDIRECT($Q$7):INDIRECT($Q$9),0),COLUMN()),0)+IFERROR(INDEX(INDIRECT($Q$10):INDIRECT($Q$11),MATCH($A54,INDIRECT($Q$10):INDIRECT($Q$12),0),COLUMN()),0)+IFERROR(INDEX(INDIRECT($Q$13):INDIRECT($Q$14),MATCH($A54,INDIRECT($Q$13):INDIRECT($Q$15),0),COLUMN()),0)+IFERROR(INDEX(INDIRECT($Q$16):INDIRECT($Q$17),MATCH($A54,INDIRECT($Q$16):INDIRECT($Q$18),0),COLUMN()),0) -> 0 | I54: =IFERROR(INDEX(INDIRECT($Q$1):INDIRECT($Q$2),MATCH($A54,INDIRECT($Q$1):INDIRECT($Q$3),0),COLUMN()),0)+IFERROR(INDEX(INDIRECT($Q$4):INDIRECT($Q$5),MATCH($A54,INDIRECT($Q$4):INDIRECT($Q$6),0),COLUMN()),0)+IFERROR(INDEX(INDIRECT($Q$7):INDIRECT($Q$8),MATCH($A54,INDIRECT($Q$7):INDIRECT($Q$9),0),COLUMN()),0)+IFERROR(INDEX(INDIRECT($Q$10):INDIRECT($Q$11),MATCH($A54,INDIRECT($Q$10):INDIRECT($Q$12),0),COLUMN()),0)+IFERROR(INDEX(INDIRECT($Q$13):INDIRECT($Q$14),MATCH($A54,INDIRECT($Q$13):INDIRECT($Q$15),0),COLUMN()),0)+IFERROR(INDEX(INDIRECT($Q$16):INDIRECT($Q$17),MATCH($A54,INDIRECT($Q$16):INDIRECT($Q$18),0),COLUMN()),0) -> 0 | K54: =IFERROR(VLOOKUP($A54,INDIRECT($Q$16):INDIRECT($Q$17),11,FALSE),0) -> 0 | L54: 0 | M54: 0
C55: =IFERROR(VLOOKUP($A55,INDIRECT($Q$1):INDIRECT($Q$2),11,FALSE),0) -> 0 | D55: =IFERROR(INDEX(INDIRECT($Q$1):INDIRECT($Q$2),MATCH($A55,INDIRECT($Q$1):INDIRECT($Q$3),0),COLUMN()),0)+IFERROR(INDEX(INDIRECT($Q$4):INDIRECT($Q$5),MATCH($A55,INDIRECT($Q$4):INDIRECT($Q$6),0),COLUMN()),0)+IFERROR(INDEX(INDIRECT($Q$7):INDIRECT($Q$8),MATCH($A55,INDIRECT($Q$7):INDIRECT($Q$9),0),COLUMN()),0)+IFERROR(INDEX(INDIRECT($Q$10):INDIRECT($Q$11),MATCH($A55,INDIRECT($Q$10):INDIRECT($Q$12),0),COLUMN()),0)+IFERROR(INDEX(INDIRECT($Q$13):INDIRECT($Q$14),MATCH($A55,INDIRECT($Q$13):INDIRECT($Q$15),0),COLUMN()),0)+IFERROR(INDEX(INDIRECT($Q$16):INDIRECT($Q$17),MATCH($A55,INDIRECT($Q$16):INDIRECT($Q$18),0),COLUMN()),0) -> 0 | E55: =IFERROR(INDEX(INDIRECT($Q$1):INDIRECT($Q$2),MATCH($A55,INDIRECT($Q$1):INDIRECT($Q$3),0),COLUMN()),0)+IFERROR(INDEX(INDIRECT($Q$4):INDIRECT($Q$5),MATCH($A55,INDIRECT($Q$4):INDIRECT($Q$6),0),COLUMN()),0)+IFERROR(INDEX(INDIRECT($Q$7):INDIRECT($Q$8),MATCH($A55,INDIRECT($Q$7):INDIRECT($Q$9),0),COLUMN()),0)+IFERROR(INDEX(INDIRECT($Q$10):INDIRECT($Q$11),MATCH($A55,INDIRECT($Q$10):INDIRECT($Q$12),0),COLUMN()),0)+IFERROR(INDEX(INDIRECT($Q$13):INDIRECT($Q$14),MATCH($A55,INDIRECT($Q$13):INDIRECT($Q$15),0),COLUMN()),0)+IFERROR(INDEX(INDIRECT($Q$16):INDIRECT($Q$17),MATCH($A55,INDIRECT($Q$16):INDIRECT($Q$18),0),COLUMN()),0) -> 0 | F55: =IFERROR(INDEX(INDIRECT($Q$1):INDIRECT($Q$2),MATCH($A55,INDIRECT($Q$1):INDIRECT($Q$3),0),COLUMN()),0)+IFERROR(INDEX(INDIRECT($Q$4):INDIRECT($Q$5),MATCH($A55,INDIRECT($Q$4):INDIRECT($Q$6),0),COLUMN()),0)+IFERROR(INDEX(INDIRECT($Q$7):INDIRECT($Q$8),MATCH($A55,INDIRECT($Q$7):INDIRECT($Q$9),0),COLUMN()),0)+IFERROR(INDEX(INDIRECT($Q$10):INDIRECT($Q$11),MATCH($A55,INDIRECT($Q$10):INDIRECT($Q$12),0),COLUMN()),0)+IFERROR(INDEX(INDIRECT($Q$13):INDIRECT($Q$14),MATCH($A55,INDIRECT($Q$13):INDIRECT($Q$15),0),COLUMN()),0)+IFERROR(INDEX(INDIRECT($Q$16):INDIRECT($Q$17),MATCH($A55,INDIRECT($Q$16):INDIRECT($Q$18),0),COLUMN()),0) -> 0 | G55: =IFERROR(INDEX(INDIRECT($Q$1):INDIRECT($Q$2),MATCH($A55,INDIRECT($Q$1):INDIRECT($Q$3),0),COLUMN()),0)+IFERROR(INDEX(INDIRECT($Q$4):INDIRECT($Q$5),MATCH($A55,INDIRECT($Q$4):INDIRECT($Q$6),0),COLUMN()),0)+IFERROR(INDEX(INDIRECT($Q$7):INDIRECT($Q$8),MATCH($A55,INDIRECT($Q$7):INDIRECT($Q$9),0),COLUMN()),0)+IFERROR(INDEX(INDIRECT($Q$10):INDIRECT($Q$11),MATCH($A55,INDIRECT($Q$10):INDIRECT($Q$12),0),COLUMN()),0)+IFERROR(INDEX(INDIRECT($Q$13):INDIRECT($Q$14),MATCH($A55,INDIRECT($Q$13):INDIRECT($Q$15),0),COLUMN()),0)+IFERROR(INDEX(INDIRECT($Q$16):INDIRECT($Q$17),MATCH($A55,INDIRECT($Q$16):INDIRECT($Q$18),0),COLUMN()),0) -> 0 | H55: =IFERROR(INDEX(INDIRECT($Q$1):INDIRECT($Q$2),MATCH($A55,INDIRECT($Q$1):INDIRECT($Q$3),0),COLUMN()),0)+IFERROR(INDEX(INDIRECT($Q$4):INDIRECT($Q$5),MATCH($A55,INDIRECT($Q$4):INDIRECT($Q$6),0),COLUMN()),0)+IFERROR(INDEX(INDIRECT($Q$7):INDIRECT($Q$8),MATCH($A55,INDIRECT($Q$7):INDIRECT($Q$9),0),COLUMN()),0)+IFERROR(INDEX(INDIRECT($Q$10):INDIRECT($Q$11),MATCH($A55,INDIRECT($Q$10):INDIRECT($Q$12),0),COLUMN()),0)+IFERROR(INDEX(INDIRECT($Q$13):INDIRECT($Q$14),MATCH($A55,INDIRECT($Q$13):INDIRECT($Q$15),0),COLUMN()),0)+IFERROR(INDEX(INDIRECT($Q$16):INDIRECT($Q$17),MATCH($A55,INDIRECT($Q$16):INDIRECT($Q$18),0),COLUMN()),0) -> 0 | I55: =IFERROR(INDEX(INDIRECT($Q$1):INDIRECT($Q$2),MATCH($A55,INDIRECT($Q$1):INDIRECT($Q$3),0),COLUMN()),0)+IFERROR(INDEX(INDIRECT($Q$4):INDIRECT($Q$5),MATCH($A55,INDIRECT($Q$4):INDIRECT($Q$6),0),COLUMN()),0)+IFERROR(INDEX(INDIRECT($Q$7):INDIRECT($Q$8),MATCH($A55,INDIRECT($Q$7):INDIRECT($Q$9),0),COLUMN()),0)+IFERROR(INDEX(INDIRECT($Q$10):INDIRECT($Q$11),MATCH($A55,INDIRECT($Q$10):INDIRECT($Q$12),0),COLUMN()),0)+IFERROR(INDEX(INDIRECT($Q$13):INDIRECT($Q$14),MATCH($A55,INDIRECT($Q$13):INDIRECT($Q$15),0),COLUMN()),0)+IFERROR(INDEX(INDIRECT($Q$16):INDIRECT($Q$17),MATCH($A55,INDIRECT($Q$16):INDIRECT($Q$18),0),COLUMN()),0) -> 0 | K55: =IFERROR(VLOOKUP($A55,INDIRECT($Q$16):INDIRECT($Q$17),11,FALSE),0) -> 0 | L55: 0 | M55: 0
C56: =IFERROR(VLOOKUP($A56,INDIRECT($Q$1):INDIRECT($Q$2),11,FALSE),0) -> 0 | D56: =IFERROR(INDEX(INDIRECT($Q$1):INDIRECT($Q$2),MATCH($A56,INDIRECT($Q$1):INDIRECT($Q$3),0),COLUMN()),0)+IFERROR(INDEX(INDIRECT($Q$4):INDIRECT($Q$5),MATCH($A56,INDIRECT($Q$4):INDIRECT($Q$6),0),COLUMN()),0)+IFERROR(INDEX(INDIRECT($Q$7):INDIRECT($Q$8),MATCH($A56,INDIRECT($Q$7):INDIRECT($Q$9),0),COLUMN()),0)+IFERROR(INDEX(INDIRECT($Q$10):INDIRECT($Q$11),MATCH($A56,INDIRECT($Q$10):INDIRECT($Q$12),0),COLUMN()),0)+IFERROR(INDEX(INDIRECT($Q$13):INDIRECT($Q$14),MATCH($A56,INDIRECT($Q$13):INDIRECT($Q$15),0),COLUMN()),0)+IFERROR(INDEX(INDIRECT($Q$16):INDIRECT($Q$17),MATCH($A56,INDIRECT($Q$16):INDIRECT($Q$18),0),COLUMN()),0) -> 0 | E56: =IFERROR(INDEX(INDIRECT($Q$1):INDIRECT($Q$2),MATCH($A56,INDIRECT($Q$1):INDIRECT($Q$3),0),COLUMN()),0)+IFERROR(INDEX(INDIRECT($Q$4):INDIRECT($Q$5),MATCH($A56,INDIRECT($Q$4):INDIRECT($Q$6),0),COLUMN()),0)+IFERROR(INDEX(INDIRECT($Q$7):INDIRECT($Q$8),MATCH($A56,INDIRECT($Q$7):INDIRECT($Q$9),0),COLUMN()),0)+IFERROR(INDEX(INDIRECT($Q$10):INDIRECT($Q$11),MATCH($A56,INDIRECT($Q$10):INDIRECT($Q$12),0),COLUMN()),0)+IFERROR(INDEX(INDIRECT($Q$13):INDIRECT($Q$14),MATCH($A56,INDIRECT($Q$13):INDIRECT($Q$15),0),COLUMN()),0)+IFERROR(INDEX(INDIRECT($Q$16):INDIRECT($Q$17),MATCH($A56,INDIRECT($Q$16):INDIRECT($Q$18),0),COLUMN()),0) -> 0 | F56: =IFERROR(INDEX(INDIRECT($Q$1):INDIRECT($Q$2),MATCH($A56,INDIRECT($Q$1):INDIRECT($Q$3),0),COLUMN()),0)+IFERROR(INDEX(INDIRECT($Q$4):INDIRECT($Q$5),MATCH($A56,INDIRECT($Q$4):INDIRECT($Q$6),0),COLUMN()),0)+IFERROR(INDEX(INDIRECT($Q$7):INDIRECT($Q$8),MATCH($A56,INDIRECT($Q$7):INDIRECT($Q$9),0),COLUMN()),0)+IFERROR(INDEX(INDIRECT($Q$10):INDIRECT($Q$11),MATCH($A56,INDIRECT($Q$10):INDIRECT($Q$12),0),COLUMN()),0)+IFERROR(INDEX(INDIRECT($Q$13):INDIRECT($Q$14),MATCH($A56,INDIRECT($Q$13):INDIRECT($Q$15),0),COLUMN()),0)+IFERROR(INDEX(INDIRECT($Q$16):INDIRECT($Q$17),MATCH($A56,INDIRECT($Q$16):INDIRECT($Q$18),0),COLUMN()),0) -> 0 | G56: =IFERROR(INDEX(INDIRECT($Q$1):INDIRECT($Q$2),MATCH($A56,INDIRECT($Q$1):INDIRECT($Q$3),0),COLUMN()),0)+IFERROR(INDEX(INDIRECT($Q$4):INDIRECT($Q$5),MATCH($A56,INDIRECT($Q$4):INDIRECT($Q$6),0),COLUMN()),0)+IFERROR(INDEX(INDIRECT($Q$7):INDIRECT($Q$8),MATCH($A56,INDIRECT($Q$7):INDIRECT($Q$9),0),COLUMN()),0)+IFERROR(INDEX(INDIRECT($Q$10):INDIRECT($Q$11),MATCH($A56,INDIRECT($Q$10):INDIRECT($Q$12),0),COLUMN()),0)+IFERROR(INDEX(INDIRECT($Q$13):INDIRECT($Q$14),MATCH($A56,INDIRECT($Q$13):INDIRECT($Q$15),0),COLUMN()),0)+IFERROR(INDEX(INDIRECT($Q$16):INDIRECT($Q$17),MATCH($A56,INDIRECT($Q$16):INDIRECT($Q$18),0),COLUMN()),0) -> 0 | H56: =IFERROR(INDEX(INDIRECT($Q$1):INDIRECT($Q$2),MATCH($A56,INDIRECT($Q$1):INDIRECT($Q$3),0),COLUMN()),0)+IFERROR(INDEX(INDIRECT($Q$4):INDIRECT($Q$5),MATCH($A56,INDIRECT($Q$4):INDIRECT($Q$6),0),COLUMN()),0)+IFERROR(INDEX(INDIRECT($Q$7):INDIRECT($Q$8),MATCH($A56,INDIRECT($Q$7):INDIRECT($Q$9),0),COLUMN()),0)+IFERROR(INDEX(INDIRECT($Q$10):INDIRECT($Q$11),MATCH($A56,INDIRECT($Q$10):INDIRECT($Q$12),0),COLUMN()),0)+IFERROR(INDEX(INDIRECT($Q$13):INDIRECT($Q$14),MATCH($A56,INDIRECT($Q$13):INDIRECT($Q$15),0),COLUMN()),0)+IFERROR(INDEX(INDIRECT($Q$16):INDIRECT($Q$17),MATCH($A56,INDIRECT($Q$16):INDIRECT($Q$18),0),COLUMN()),0) -> 0 | I56: =IFERROR(INDEX(INDIRECT($Q$1):INDIRECT($Q$2),MATCH($A56,INDIRECT($Q$1):INDIRECT($Q$3),0),COLUMN()),0)+IFERROR(INDEX(INDIRECT($Q$4):INDIRECT($Q$5),MATCH($A56,INDIRECT($Q$4):INDIRECT($Q$6),0),COLUMN()),0)+IFERROR(INDEX(INDIRECT($Q$7):INDIRECT($Q$8),MATCH($A56,INDIRECT($Q$7):INDIRECT($Q$9),0),COLUMN()),0)+IFERROR(INDEX(INDIRECT($Q$10):INDIRECT($Q$11),MATCH($A56,INDIRECT($Q$10):INDIRECT($Q$12),0),COLUMN()),0)+IFERROR(INDEX(INDIRECT($Q$13):INDIRECT($Q$14),MATCH($A56,INDIRECT($Q$13):INDIRECT($Q$15),0),COLUMN()),0)+IFERROR(INDEX(INDIRECT($Q$16):INDIRECT($Q$17),MATCH($A56,INDIRECT($Q$16):INDIRECT($Q$18),0),COLUMN()),0) -> 0 | K56: =IFERROR(VLOOKUP($A56,INDIRECT($Q$16):INDIRECT($Q$17),11,FALSE),0) -> 0 | L56: 0 | M56: 0
C57: =IFERROR(VLOOKUP($A57,INDIRECT($Q$1):INDIRECT($Q$2),11,FALSE),0) -> 0 | D57: =IFERROR(INDEX(INDIRECT($Q$1):INDIRECT($Q$2),MATCH($A57,INDIRECT($Q$1):INDIRECT($Q$3),0),COLUMN()),0)+IFERROR(INDEX(INDIRECT($Q$4):INDIRECT($Q$5),MATCH($A57,INDIRECT($Q$4):INDIRECT($Q$6),0),COLUMN()),0)+IFERROR(INDEX(INDIRECT($Q$7):INDIRECT($Q$8),MATCH($A57,INDIRECT($Q$7):INDIRECT($Q$9),0),COLUMN()),0)+IFERROR(INDEX(INDIRECT($Q$10):INDIRECT($Q$11),MATCH($A57,INDIRECT($Q$10):INDIRECT($Q$12),0),COLUMN()),0)+IFERROR(INDEX(INDIRECT($Q$13):INDIRECT($Q$14),MATCH($A57,INDIRECT($Q$13):INDIRECT($Q$15),0),COLUMN()),0)+IFERROR(INDEX(INDIRECT($Q$16):INDIRECT($Q$17),MATCH($A57,INDIRECT($Q$16):INDIRECT($Q$18),0),COLUMN()),0) -> 0 | E57: =IFERROR(INDEX(INDIRECT($Q$1):INDIRECT($Q$2),MATCH($A57,INDIRECT($Q$1):INDIRECT($Q$3),0),COLUMN()),0)+IFERROR(INDEX(INDIRECT($Q$4):INDIRECT($Q$5),MATCH($A57,INDIRECT($Q$4):INDIRECT($Q$6),0),COLUMN()),0)+IFERROR(INDEX(INDIRECT($Q$7):INDIRECT($Q$8),MATCH($A57,INDIRECT($Q$7):INDIRECT($Q$9),0),COLUMN()),0)+IFERROR(INDEX(INDIRECT($Q$10):INDIRECT($Q$11),MATCH($A57,INDIRECT($Q$10):INDIRECT($Q$12),0),COLUMN()),0)+IFERROR(INDEX(INDIRECT($Q$13):INDIRECT($Q$14),MATCH($A57,INDIRECT($Q$13):INDIRECT($Q$15),0),COLUMN()),0)+IFERROR(INDEX(INDIRECT($Q$16):INDIRECT($Q$17),MATCH($A57,INDIRECT($Q$16):INDIRECT($Q$18),0),COLUMN()),0) -> 0 | F57: =IFERROR(INDEX(INDIRECT($Q$1):INDIRECT($Q$2),MATCH($A57,INDIRECT($Q$1):INDIRECT($Q$3),0),COLUMN()),0)+IFERROR(INDEX(INDIRECT($Q$4):INDIRECT($Q$5),MATCH($A57,INDIRECT($Q$4):INDIRECT($Q$6),0),COLUMN()),0)+IFERROR(INDEX(INDIRECT($Q$7):INDIRECT($Q$8),MATCH($A57,INDIRECT($Q$7):INDIRECT($Q$9),0),COLUMN()),0)+IFERROR(INDEX(INDIRECT($Q$10):INDIRECT($Q$11),MATCH($A57,INDIRECT($Q$10):INDIRECT($Q$12),0),COLUMN()),0)+IFERROR(INDEX(INDIRECT($Q$13):INDIRECT($Q$14),MATCH($A57,INDIRECT($Q$13):INDIRECT($Q$15),0),COLUMN()),0)+IFERROR(INDEX(INDIRECT($Q$16):INDIRECT($Q$17),MATCH($A57,INDIRECT($Q$16):INDIRECT($Q$18),0),COLUMN()),0) -> 0 | G57: =IFERROR(INDEX(INDIRECT($Q$1):INDIRECT($Q$2),MATCH($A57,INDIRECT($Q$1):INDIRECT($Q$3),0),COLUMN()),0)+IFERROR(INDEX(INDIRECT($Q$4):INDIRECT($Q$5),MATCH($A57,INDIRECT($Q$4):INDIRECT($Q$6),0),COLUMN()),0)+IFERROR(INDEX(INDIRECT($Q$7):INDIRECT($Q$8),MATCH($A57,INDIRECT($Q$7):INDIRECT($Q$9),0),COLUMN()),0)+IFERROR(INDEX(INDIRECT($Q$10):INDIRECT($Q$11),MATCH($A57,INDIRECT($Q$10):INDIRECT($Q$12),0),COLUMN()),0)+IFERROR(INDEX(INDIRECT($Q$13):INDIRECT($Q$14),MATCH($A57,INDIRECT($Q$13):INDIRECT($Q$15),0),COLUMN()),0)+IFERROR(INDEX(INDIRECT($Q$16):INDIRECT($Q$17),MATCH($A57,INDIRECT($Q$16):INDIRECT($Q$18),0),COLUMN()),0) -> 0 | H57: =IFERROR(INDEX(INDIRECT($Q$1):INDIRECT($Q$2),MATCH($A57,INDIRECT($Q$1):INDIRECT($Q$3),0),COLUMN()),0)+IFERROR(INDEX(INDIRECT($Q$4):INDIRECT($Q$5),MATCH($A57,INDIRECT($Q$4):INDIRECT($Q$6),0),COLUMN()),0)+IFERROR(INDEX(INDIRECT($Q$7):INDIRECT($Q$8),MATCH($A57,INDIRECT($Q$7):INDIRECT($Q$9),0),COLUMN()),0)+IFERROR(INDEX(INDIRECT($Q$10):INDIRECT($Q$11),MATCH($A57,INDIRECT($Q$10):INDIRECT($Q$12),0),COLUMN()),0)+IFERROR(INDEX(INDIRECT($Q$13):INDIRECT($Q$14),MATCH($A57,INDIRECT($Q$13):INDIRECT($Q$15),0),COLUMN()),0)+IFERROR(INDEX(INDIRECT($Q$16):INDIRECT($Q$17),MATCH($A57,INDIRECT($Q$16):INDIRECT($Q$18),0),COLUMN()),0) -> 0 | I57: =IFERROR(INDEX(INDIRECT($Q$1):INDIRECT($Q$2),MATCH($A57,INDIRECT($Q$1):INDIRECT($Q$3),0),COLUMN()),0)+IFERROR(INDEX(INDIRECT($Q$4):INDIRECT($Q$5),MATCH($A57,INDIRECT($Q$4):INDIRECT($Q$6),0),COLUMN()),0)+IFERROR(INDEX(INDIRECT($Q$7):INDIRECT($Q$8),MATCH($A57,INDIRECT($Q$7):INDIRECT($Q$9),0),COLUMN()),0)+IFERROR(INDEX(INDIRECT($Q$10):INDIRECT($Q$11),MATCH($A57,INDIRECT($Q$10):INDIRECT($Q$12),0),COLUMN()),0)+IFERROR(INDEX(INDIRECT($Q$13):INDIRECT($Q$14),MATCH($A57,INDIRECT($Q$13):INDIRECT($Q$15),0),COLUMN()),0)+IFERROR(INDEX(INDIRECT($Q$16):INDIRECT($Q$17),MATCH($A57,INDIRECT($Q$16):INDIRECT($Q$18),0),COLUMN()),0) -> 0 | K57: =IFERROR(VLOOKUP($A57,INDIRECT($Q$16):INDIRECT($Q$17),11,FALSE),0) -> 0 | L57: 0 | M57: 0
C58: =IFERROR(VLOOKUP($A58,INDIRECT($Q$1):INDIRECT($Q$2),11,FALSE),0) -> 0 | D58: =IFERROR(INDEX(INDIRECT($Q$1):INDIRECT($Q$2),MATCH($A58,INDIRECT($Q$1):INDIRECT($Q$3),0),COLUMN()),0)+IFERROR(INDEX(INDIRECT($Q$4):INDIRECT($Q$5),MATCH($A58,INDIRECT($Q$4):INDIRECT($Q$6),0),COLUMN()),0)+IFERROR(INDEX(INDIRECT($Q$7):INDIRECT($Q$8),MATCH($A58,INDIRECT($Q$7):INDIRECT($Q$9),0),COLUMN()),0)+IFERROR(INDEX(INDIRECT($Q$10):INDIRECT($Q$11),MATCH($A58,INDIRECT($Q$10):INDIRECT($Q$12),0),COLUMN()),0)+IFERROR(INDEX(INDIRECT($Q$13):INDIRECT($Q$14),MATCH($A58,INDIRECT($Q$13):INDIRECT($Q$15),0),COLUMN()),0)+IFERROR(INDEX(INDIRECT($Q$16):INDIRECT($Q$17),MATCH($A58,INDIRECT($Q$16):INDIRECT($Q$18),0),COLUMN()),0) -> 0 | E58: =IFERROR(INDEX(INDIRECT($Q$1):INDIRECT($Q$2),MATCH($A58,INDIRECT($Q$1):INDIRECT($Q$3),0),COLUMN()),0)+IFERROR(INDEX(INDIRECT($Q$4):INDIRECT($Q$5),MATCH($A58,INDIRECT($Q$4):INDIRECT($Q$6),0),COLUMN()),0)+IFERROR(INDEX(INDIRECT($Q$7):INDIRECT($Q$8),MATCH($A58,INDIRECT($Q$7):INDIRECT($Q$9),0),COLUMN()),0)+IFERROR(INDEX(INDIRECT($Q$10):INDIRECT($Q$11),MATCH($A58,INDIRECT($Q$10):INDIRECT($Q$12),0),COLUMN()),0)+IFERROR(INDEX(INDIRECT($Q$13):INDIRECT($Q$14),MATCH($A58,INDIRECT($Q$13):INDIRECT($Q$15),0),COLUMN()),0)+IFERROR(INDEX(INDIRECT($Q$16):INDIRECT($Q$17),MATCH($A58,INDIRECT($Q$16):INDIRECT($Q$18),0),COLUMN()),0) -> 0 | F58: =IFERROR(INDEX(INDIRECT($Q$1):INDIRECT($Q$2),MATCH($A58,INDIRECT($Q$1):INDIRECT($Q$3),0),COLUMN()),0)+IFERROR(INDEX(INDIRECT($Q$4):INDIRECT($Q$5),MATCH($A58,INDIRECT($Q$4):INDIRECT($Q$6),0),COLUMN()),0)+IFERROR(INDEX(INDIRECT($Q$7):INDIRECT($Q$8),MATCH($A58,INDIRECT($Q$7):INDIRECT($Q$9),0),COLUMN()),0)+IFERROR(INDEX(INDIRECT($Q$10):INDIRECT($Q$11),MATCH($A58,INDIRECT($Q$10):INDIRECT($Q$12),0),COLUMN()),0)+IFERROR(INDEX(INDIRECT($Q$13):INDIRECT($Q$14),MATCH($A58,INDIRECT($Q$13):INDIRECT($Q$15),0),COLUMN()),0)+IFERROR(INDEX(INDIRECT($Q$16):INDIRECT($Q$17),MATCH($A58,INDIRECT($Q$16):INDIRECT($Q$18),0),COLUMN()),0) -> 0 | G58: =IFERROR(INDEX(INDIRECT($Q$1):INDIRECT($Q$2),MATCH($A58,INDIRECT($Q$1):INDIRECT($Q$3),0),COLUMN()),0)+IFERROR(INDEX(INDIRECT($Q$4):INDIRECT($Q$5),MATCH($A58,INDIRECT($Q$4):INDIRECT($Q$6),0),COLUMN()),0)+IFERROR(INDEX(INDIRECT($Q$7):INDIRECT($Q$8),MATCH($A58,INDIRECT($Q$7):INDIRECT($Q$9),0),COLUMN()),0)+IFERROR(INDEX(INDIRECT($Q$10):INDIRECT($Q$11),MATCH($A58,INDIRECT($Q$10):INDIRECT($Q$12),0),COLUMN()),0)+IFERROR(INDEX(INDIRECT($Q$13):INDIRECT($Q$14),MATCH($A58,INDIRECT($Q$13):INDIRECT($Q$15),0),COLUMN()),0)+IFERROR(INDEX(INDIRECT($Q$16):INDIRECT($Q$17),MATCH($A58,INDIRECT($Q$16):INDIRECT($Q$18),0),COLUMN()),0) -> 0 | H58: =IFERROR(INDEX(INDIRECT($Q$1):INDIRECT($Q$2),MATCH($A58,INDIRECT($Q$1):INDIRECT($Q$3),0),COLUMN()),0)+IFERROR(INDEX(INDIRECT($Q$4):INDIRECT($Q$5),MATCH($A58,INDIRECT($Q$4):INDIRECT($Q$6),0),COLUMN()),0)+IFERROR(INDEX(INDIRECT($Q$7):INDIRECT($Q$8),MATCH($A58,INDIRECT($Q$7):INDIRECT($Q$9),0),COLUMN()),0)+IFERROR(INDEX(INDIRECT($Q$10):INDIRECT($Q$11),MATCH($A58,INDIRECT($Q$10):INDIRECT($Q$12),0),COLUMN()),0)+IFERROR(INDEX(INDIRECT($Q$13):INDIRECT($Q$14),MATCH($A58,INDIRECT($Q$13):INDIRECT($Q$15),0),COLUMN()),0)+IFERROR(INDEX(INDIRECT($Q$16):INDIRECT($Q$17),MATCH($A58,INDIRECT($Q$16):INDIRECT($Q$18),0),COLUMN()),0) -> 0 | I58: =IFERROR(INDEX(INDIRECT($Q$1):INDIRECT($Q$2),MATCH($A58,INDIRECT($Q$1):INDIRECT($Q$3),0),COLUMN()),0)+IFERROR(INDEX(INDIRECT($Q$4):INDIRECT($Q$5),MATCH($A58,INDIRECT($Q$4):INDIRECT($Q$6),0),COLUMN()),0)+IFERROR(INDEX(INDIRECT($Q$7):INDIRECT($Q$8),MATCH($A58,INDIRECT($Q$7):INDIRECT($Q$9),0),COLUMN()),0)+IFERROR(INDEX(INDIRECT($Q$10):INDIRECT($Q$11),MATCH($A58,INDIRECT($Q$10):INDIRECT($Q$12),0),COLUMN()),0)+IFERROR(INDEX(INDIRECT($Q$13):INDIRECT($Q$14),MATCH($A58,INDIRECT($Q$13):INDIRECT($Q$15),0),COLUMN()),0)+IFERROR(INDEX(INDIRECT($Q$16):INDIRECT($Q$17),MATCH($A58,INDIRECT($Q$16):INDIRECT($Q$18),0),COLUMN()),0) -> 0 | K58: =IFERROR(VLOOKUP($A58,INDIRECT($Q$16):INDIRECT($Q$17),11,FALSE),0) -> 0 | L58: 0 | M58: 0
C59: =IFERROR(VLOOKUP($A59,INDIRECT($Q$1):INDIRECT($Q$2),11,FALSE),0) -> 0 | D59: =IFERROR(INDEX(INDIRECT($Q$1):INDIRECT($Q$2),MATCH($A59,INDIRECT($Q$1):INDIRECT($Q$3),0),COLUMN()),0)+IFERROR(INDEX(INDIRECT($Q$4):INDIRECT($Q$5),MATCH($A59,INDIRECT($Q$4):INDIRECT($Q$6),0),COLUMN()),0)+IFERROR(INDEX(INDIRECT($Q$7):INDIRECT($Q$8),MATCH($A59,INDIRECT($Q$7):INDIRECT($Q$9),0),COLUMN()),0)+IFERROR(INDEX(INDIRECT($Q$10):INDIRECT($Q$11),MATCH($A59,INDIRECT($Q$10):INDIRECT($Q$12),0),COLUMN()),0)+IFERROR(INDEX(INDIRECT($Q$13):INDIRECT($Q$14),MATCH($A59,INDIRECT($Q$13):INDIRECT($Q$15),0),COLUMN()),0)+IFERROR(INDEX(INDIRECT($Q$16):INDIRECT($Q$17),MATCH($A59,INDIRECT($Q$16):INDIRECT($Q$18),0),COLUMN()),0) -> 0 | E59: =IFERROR(INDEX(INDIRECT($Q$1):INDIRECT($Q$2),MATCH($A59,INDIRECT($Q$1):INDIRECT($Q$3),0),COLUMN()),0)+IFERROR(INDEX(INDIRECT($Q$4):INDIRECT($Q$5),MATCH($A59,INDIRECT($Q$4):INDIRECT($Q$6),0),COLUMN()),0)+IFERROR(INDEX(INDIRECT($Q$7):INDIRECT($Q$8),MATCH($A59,INDIRECT($Q$7):INDIRECT($Q$9),0),COLUMN()),0)+IFERROR(INDEX(INDIRECT($Q$10):INDIRECT($Q$11),MATCH($A59,INDIRECT($Q$10):INDIRECT($Q$12),0),COLUMN()),0)+IFERROR(INDEX(INDIRECT($Q$13):INDIRECT($Q$14),MATCH($A59,INDIRECT($Q$13):INDIRECT($Q$15),0),COLUMN()),0)+IFERROR(INDEX(INDIRECT($Q$16):INDIRECT($Q$17),MATCH($A59,INDIRECT($Q$16):INDIRECT($Q$18),0),COLUMN()),0) -> 0 | F59: =IFERROR(INDEX(INDIRECT($Q$1):INDIRECT($Q$2),MATCH($A59,INDIRECT($Q$1):INDIRECT($Q$3),0),COLUMN()),0)+IFERROR(INDEX(INDIRECT($Q$4):INDIRECT($Q$5),MATCH($A59,INDIRECT($Q$4):INDIRECT($Q$6),0),COLUMN()),0)+IFERROR(INDEX(INDIRECT($Q$7):INDIRECT($Q$8),MATCH($A59,INDIRECT($Q$7):INDIRECT($Q$9),0),COLUMN()),0)+IFERROR(INDEX(INDIRECT($Q$10):INDIRECT($Q$11),MATCH($A59,INDIRECT($Q$10):INDIRECT($Q$12),0),COLUMN()),0)+IFERROR(INDEX(INDIRECT($Q$13):INDIRECT($Q$14),MATCH($A59,INDIRECT($Q$13):INDIRECT($Q$15),0),COLUMN()),0)+IFERROR(INDEX(INDIRECT($Q$16):INDIRECT($Q$17),MATCH($A59,INDIRECT($Q$16):INDIRECT($Q$18),0),COLUMN()),0) -> 0 | G59: =IFERROR(INDEX(INDIRECT($Q$1):INDIRECT($Q$2),MATCH($A59,INDIRECT($Q$1):INDIRECT($Q$3),0),COLUMN()),0)+IFERROR(INDEX(INDIRECT($Q$4):INDIRECT($Q$5),MATCH($A59,INDIRECT($Q$4):INDIRECT($Q$6),0),COLUMN()),0)+IFERROR(INDEX(INDIRECT($Q$7):INDIRECT($Q$8),MATCH($A59,INDIRECT($Q$7):INDIRECT($Q$9),0),COLUMN()),0)+IFERROR(INDEX(INDIRECT($Q$10):INDIRECT($Q$11),MATCH($A59,INDIRECT($Q$10):INDIRECT($Q$12),0),COLUMN()),0)+IFERROR(INDEX(INDIRECT($Q$13):INDIRECT($Q$14),MATCH($A59,INDIRECT($Q$13):INDIRECT($Q$15),0),COLUMN()),0)+IFERROR(INDEX(INDIRECT($Q$16):INDIRECT($Q$17),MATCH($A59,INDIRECT($Q$16):INDIRECT($Q$18),0),COLUMN()),0) -> 0 | H59: =IFERROR(INDEX(INDIRECT($Q$1):INDIRECT($Q$2),MATCH($A59,INDIRECT($Q$1):INDIRECT($Q$3),0),COLUMN()),0)+IFERROR(INDEX(INDIRECT($Q$4):INDIRECT($Q$5),MATCH($A59,INDIRECT($Q$4):INDIRECT($Q$6),0),COLUMN()),0)+IFERROR(INDEX(INDIRECT($Q$7):INDIRECT($Q$8),MATCH($A59,INDIRECT($Q$7):INDIRECT($Q$9),0),COLUMN()),0)+IFERROR(INDEX(INDIRECT($Q$10):INDIRECT($Q$11),MATCH($A59,INDIRECT($Q$10):INDIRECT($Q$12),0),COLUMN()),0)+IFERROR(INDEX(INDIRECT($Q$13):INDIRECT($Q$14),MATCH($A59,INDIRECT($Q$13):INDIRECT($Q$15),0),COLUMN()),0)+IFERROR(INDEX(INDIRECT($Q$16):INDIRECT($Q$17),MATCH($A59,INDIRECT($Q$16):INDIRECT($Q$18),0),COLUMN()),0) -> 0 | I59: =IFERROR(INDEX(INDIRECT($Q$1):INDIRECT($Q$2),MATCH($A59,INDIRECT($Q$1):INDIRECT($Q$3),0),COLUMN()),0)+IFERROR(INDEX(INDIRECT($Q$4):INDIRECT($Q$5),MATCH($A59,INDIRECT($Q$4):INDIRECT($Q$6),0),COLUMN()),0)+IFERROR(INDEX(INDIRECT($Q$7):INDIRECT($Q$8),MATCH($A59,INDIRECT($Q$7):INDIRECT($Q$9),0),COLUMN()),0)+IFERROR(INDEX(INDIRECT($Q$10):INDIRECT($Q$11),MATCH($A59,INDIRECT($Q$10):INDIRECT($Q$12),0),COLUMN()),0)+IFERROR(INDEX(INDIRECT($Q$13):INDIRECT($Q$14),MATCH($A59,INDIRECT($Q$13):INDIRECT($Q$15),0),COLUMN()),0)+IFERROR(INDEX(INDIRECT($Q$16):INDIRECT($Q$17),MATCH($A59,INDIRECT($Q$16):INDIRECT($Q$18),0),COLUMN()),0) -> 0 | K59: =IFERROR(VLOOKUP($A59,INDIRECT($Q$16):INDIRECT($Q$17),11,FALSE),0) -> 0 | L59: 0 | M59: 0
C60: =IFERROR(VLOOKUP($A60,INDIRECT($Q$1):INDIRECT($Q$2),11,FALSE),0) -> 0 | D60: =IFERROR(INDEX(INDIRECT($Q$1):INDIRECT($Q$2),MATCH($A60,INDIRECT($Q$1):INDIRECT($Q$3),0),COLUMN()),0)+IFERROR(INDEX(INDIRECT($Q$4):INDIRECT($Q$5),MATCH($A60,INDIRECT($Q$4):INDIRECT($Q$6),0),COLUMN()),0)+IFERROR(INDEX(INDIRECT($Q$7):INDIRECT($Q$8),MATCH($A60,INDIRECT($Q$7):INDIRECT($Q$9),0),COLUMN()),0)+IFERROR(INDEX(INDIRECT($Q$10):INDIRECT($Q$11),MATCH($A60,INDIRECT($Q$10):INDIRECT($Q$12),0),COLUMN()),0)+IFERROR(INDEX(INDIRECT($Q$13):INDIRECT($Q$14),MATCH($A60,INDIRECT($Q$13):INDIRECT($Q$15),0),COLUMN()),0)+IFERROR(INDEX(INDIRECT($Q$16):INDIRECT($Q$17),MATCH($A60,INDIRECT($Q$16):INDIRECT($Q$18),0),COLUMN()),0) -> 0 | E60: =IFERROR(INDEX(INDIRECT($Q$1):INDIRECT($Q$2),MATCH($A60,INDIRECT($Q$1):INDIRECT($Q$3),0),COLUMN()),0)+IFERROR(INDEX(INDIRECT($Q$4):INDIRECT($Q$5),MATCH($A60,INDIRECT($Q$4):INDIRECT($Q$6),0),COLUMN()),0)+IFERROR(INDEX(INDIRECT($Q$7):INDIRECT($Q$8),MATCH($A60,INDIRECT($Q$7):INDIRECT($Q$9),0),COLUMN()),0)+IFERROR(INDEX(INDIRECT($Q$10):INDIRECT($Q$11),MATCH($A60,INDIRECT($Q$10):INDIRECT($Q$12),0),COLUMN()),0)+IFERROR(INDEX(INDIRECT($Q$13):INDIRECT($Q$14),MATCH($A60,INDIRECT($Q$13):INDIRECT($Q$15),0),COLUMN()),0)+IFERROR(INDEX(INDIRECT($Q$16):INDIRECT($Q$17),MATCH($A60,INDIRECT($Q$16):INDIRECT($Q$18),0),COLUMN()),0) -> 0 | F60: =IFERROR(INDEX(INDIRECT($Q$1):INDIRECT($Q$2),MATCH($A60,INDIRECT($Q$1):INDIRECT($Q$3),0),COLUMN()),0)+IFERROR(INDEX(INDIRECT($Q$4):INDIRECT($Q$5),MATCH($A60,INDIRECT($Q$4):INDIRECT($Q$6),0),COLUMN()),0)+IFERROR(INDEX(INDIRECT($Q$7):INDIRECT($Q$8),MATCH($A60,INDIRECT($Q$7):INDIRECT($Q$9),0),COLUMN()),0)+IFERROR(INDEX(INDIRECT($Q$10):INDIRECT($Q$11),MATCH($A60,INDIRECT($Q$10):INDIRECT($Q$12),0),COLUMN()),0)+IFERROR(INDEX(INDIRECT($Q$13):INDIRECT($Q$14),MATCH($A60,INDIRECT($Q$13):INDIRECT($Q$15),0),COLUMN()),0)+IFERROR(INDEX(INDIRECT($Q$16):INDIRECT($Q$17),MATCH($A60,INDIRECT($Q$16):INDIRECT($Q$18),0),COLUMN()),0) -> 0 | G60: =IFERROR(INDEX(INDIRECT($Q$1):INDIRECT($Q$2),MATCH($A60,INDIRECT($Q$1):INDIRECT($Q$3),0),COLUMN()),0)+IFERROR(INDEX(INDIRECT($Q$4):INDIRECT($Q$5),MATCH($A60,INDIRECT($Q$4):INDIRECT($Q$6),0),COLUMN()),0)+IFERROR(INDEX(INDIRECT($Q$7):INDIRECT($Q$8),MATCH($A60,INDIRECT($Q$7):INDIRECT($Q$9),0),COLUMN()),0)+IFERROR(INDEX(INDIRECT($Q$10):INDIRECT($Q$11),MATCH($A60,INDIRECT($Q$10):INDIRECT($Q$12),0),COLUMN()),0)+IFERROR(INDEX(INDIRECT($Q$13):INDIRECT($Q$14),MATCH($A60,INDIRECT($Q$13):INDIRECT($Q$15),0),COLUMN()),0)+IFERROR(INDEX(INDIRECT($Q$16):INDIRECT($Q$17),MATCH($A60,INDIRECT($Q$16):INDIRECT($Q$18),0),COLUMN()),0) -> 0 | H60: =IFERROR(INDEX(INDIRECT($Q$1):INDIRECT($Q$2),MATCH($A60,INDIRECT($Q$1):INDIRECT($Q$3),0),COLUMN()),0)+IFERROR(INDEX(INDIRECT($Q$4):INDIRECT($Q$5),MATCH($A60,INDIRECT($Q$4):INDIRECT($Q$6),0),COLUMN()),0)+IFERROR(INDEX(INDIRECT($Q$7):INDIRECT($Q$8),MATCH($A60,INDIRECT($Q$7):INDIRECT($Q$9),0),COLUMN()),0)+IFERROR(INDEX(INDIRECT($Q$10):INDIRECT($Q$11),MATCH($A60,INDIRECT($Q$10):INDIRECT($Q$12),0),COLUMN()),0)+IFERROR(INDEX(INDIRECT($Q$13):INDIRECT($Q$14),MATCH($A60,INDIRECT($Q$13):INDIRECT($Q$15),0),COLUMN()),0)+IFERROR(INDEX(INDIRECT($Q$16):INDIRECT($Q$17),MATCH($A60,INDIRECT($Q$16):INDIRECT($Q$18),0),COLUMN()),0) -> 0 | I60: =IFERROR(INDEX(INDIRECT($Q$1):INDIRECT($Q$2),MATCH($A60,INDIRECT($Q$1):INDIRECT($Q$3),0),COLUMN()),0)+IFERROR(INDEX(INDIRECT($Q$4):INDIRECT($Q$5),MATCH($A60,INDIRECT($Q$4):INDIRECT($Q$6),0),COLUMN()),0)+IFERROR(INDEX(INDIRECT($Q$7):INDIRECT($Q$8),MATCH($A60,INDIRECT($Q$7):INDIRECT($Q$9),0),COLUMN()),0)+IFERROR(INDEX(INDIRECT($Q$10):INDIRECT($Q$11),MATCH($A60,INDIRECT($Q$10):INDIRECT($Q$12),0),COLUMN()),0)+IFERROR(INDEX(INDIRECT($Q$13):INDIRECT($Q$14),MATCH($A60,INDIRECT($Q$13):INDIRECT($Q$15),0),COLUMN()),0)+IFERROR(INDEX(INDIRECT($Q$16):INDIRECT($Q$17),MATCH($A60,INDIRECT($Q$16):INDIRECT($Q$18),0),COLUMN()),0) -> 0 | K60: =IFERROR(VLOOKUP($A60,INDIRECT($Q$16):INDIRECT($Q$17),11,FALSE),0) -> 0 | L60: 0 | M60: 0
C61: =IFERROR(VLOOKUP($A61,INDIRECT($Q$1):INDIRECT($Q$2),11,FALSE),0) -> 0 | D61: =IFERROR(INDEX(INDIRECT($Q$1):INDIRECT($Q$2),MATCH($A61,INDIRECT($Q$1):INDIRECT($Q$3),0),COLUMN()),0)+IFERROR(INDEX(INDIRECT($Q$4):INDIRECT($Q$5),MATCH($A61,INDIRECT($Q$4):INDIRECT($Q$6),0),COLUMN()),0)+IFERROR(INDEX(INDIRECT($Q$7):INDIRECT($Q$8),MATCH($A61,INDIRECT($Q$7):INDIRECT($Q$9),0),COLUMN()),0)+IFERROR(INDEX(INDIRECT($Q$10):INDIRECT($Q$11),MATCH($A61,INDIRECT($Q$10):INDIRECT($Q$12),0),COLUMN()),0)+IFERROR(INDEX(INDIRECT($Q$13):INDIRECT($Q$14),MATCH($A61,INDIRECT($Q$13):INDIRECT($Q$15),0),COLUMN()),0)+IFERROR(INDEX(INDIRECT($Q$16):INDIRECT($Q$17),MATCH($A61,INDIRECT($Q$16):INDIRECT($Q$18),0),COLUMN()),0) -> 0 | E61: =IFERROR(INDEX(INDIRECT($Q$1):INDIRECT($Q$2),MATCH($A61,INDIRECT($Q$1):INDIRECT($Q$3),0),COLUMN()),0)+IFERROR(INDEX(INDIRECT($Q$4):INDIRECT($Q$5),MATCH($A61,INDIRECT($Q$4):INDIRECT($Q$6),0),COLUMN()),0)+IFERROR(INDEX(INDIRECT($Q$7):INDIRECT($Q$8),MATCH($A61,INDIRECT($Q$7):INDIRECT($Q$9),0),COLUMN()),0)+IFERROR(INDEX(INDIRECT($Q$10):INDIRECT($Q$11),MATCH($A61,INDIRECT($Q$10):INDIRECT($Q$12),0),COLUMN()),0)+IFERROR(INDEX(INDIRECT($Q$13):INDIRECT($Q$14),MATCH($A61,INDIRECT($Q$13):INDIRECT($Q$15),0),COLUMN()),0)+IFERROR(INDEX(INDIRECT($Q$16):INDIRECT($Q$17),MATCH($A61,INDIRECT($Q$16):INDIRECT($Q$18),0),COLUMN()),0) -> 0 | F61: =IFERROR(INDEX(INDIRECT($Q$1):INDIRECT($Q$2),MATCH($A61,INDIRECT($Q$1):INDIRECT($Q$3),0),COLUMN()),0)+IFERROR(INDEX(INDIRECT($Q$4):INDIRECT($Q$5),MATCH($A61,INDIRECT($Q$4):INDIRECT($Q$6),0),COLUMN()),0)+IFERROR(INDEX(INDIRECT($Q$7):INDIRECT($Q$8),MATCH($A61,INDIRECT($Q$7):INDIRECT($Q$9),0),COLUMN()),0)+IFERROR(INDEX(INDIRECT($Q$10):INDIRECT($Q$11),MATCH($A61,INDIRECT($Q$10):INDIRECT($Q$12),0),COLUMN()),0)+IFERROR(INDEX(INDIRECT($Q$13):INDIRECT($Q$14),MATCH($A61,INDIRECT($Q$13):INDIRECT($Q$15),0),COLUMN()),0)+IFERROR(INDEX(INDIRECT($Q$16):INDIRECT($Q$17),MATCH($A61,INDIRECT($Q$16):INDIRECT($Q$18),0),COLUMN()),0) -> 0 | G61: =IFERROR(INDEX(INDIRECT($Q$1):INDIRECT($Q$2),MATCH($A61,INDIRECT($Q$1):INDIRECT($Q$3),0),COLUMN()),0)+IFERROR(INDEX(INDIRECT($Q$4):INDIRECT($Q$5),MATCH($A61,INDIRECT($Q$4):INDIRECT($Q$6),0),COLUMN()),0)+IFERROR(INDEX(INDIRECT($Q$7):INDIRECT($Q$8),MATCH($A61,INDIRECT($Q$7):INDIRECT($Q$9),0),COLUMN()),0)+IFERROR(INDEX(INDIRECT($Q$10):INDIRECT($Q$11),MATCH($A61,INDIRECT($Q$10):INDIRECT($Q$12),0),COLUMN()),0)+IFERROR(INDEX(INDIRECT($Q$13):INDIRECT($Q$14),MATCH($A61,INDIRECT($Q$13):INDIRECT($Q$15),0),COLUMN()),0)+IFERROR(INDEX(INDIRECT($Q$16):INDIRECT($Q$17),MATCH($A61,INDIRECT($Q$16):INDIRECT($Q$18),0),COLUMN()),0) -> 0 | H61: =IFERROR(INDEX(INDIRECT($Q$1):INDIRECT($Q$2),MATCH($A61,INDIRECT($Q$1):INDIRECT($Q$3),0),COLUMN()),0)+IFERROR(INDEX(INDIRECT($Q$4):INDIRECT($Q$5),MATCH($A61,INDIRECT($Q$4):INDIRECT($Q$6),0),COLUMN()),0)+IFERROR(INDEX(INDIRECT($Q$7):INDIRECT($Q$8),MATCH($A61,INDIRECT($Q$7):INDIRECT($Q$9),0),COLUMN()),0)+IFERROR(INDEX(INDIRECT($Q$10):INDIRECT($Q$11),MATCH($A61,INDIRECT($Q$10):INDIRECT($Q$12),0),COLUMN()),0)+IFERROR(INDEX(INDIRECT($Q$13):INDIRECT($Q$14),MATCH($A61,INDIRECT($Q$13):INDIRECT($Q$15),0),COLUMN()),0)+IFERROR(INDEX(INDIRECT($Q$16):INDIRECT($Q$17),MATCH($A61,INDIRECT($Q$16):INDIRECT($Q$18),0),COLUMN()),0) -> 0 | I61: =IFERROR(INDEX(INDIRECT($Q$1):INDIRECT($Q$2),MATCH($A61,INDIRECT($Q$1):INDIRECT($Q$3),0),COLUMN()),0)+IFERROR(INDEX(INDIRECT($Q$4):INDIRECT($Q$5),MATCH($A61,INDIRECT($Q$4):INDIRECT($Q$6),0),COLUMN()),0)+IFERROR(INDEX(INDIRECT($Q$7):INDIRECT($Q$8),MATCH($A61,INDIRECT($Q$7):INDIRECT($Q$9),0),COLUMN()),0)+IFERROR(INDEX(INDIRECT($Q$10):INDIRECT($Q$11),MATCH($A61,INDIRECT($Q$10):INDIRECT($Q$12),0),COLUMN()),0)+IFERROR(INDEX(INDIRECT($Q$13):INDIRECT($Q$14),MATCH($A61,INDIRECT($Q$13):INDIRECT($Q$15),0),COLUMN()),0)+IFERROR(INDEX(INDIRECT($Q$16):INDIRECT($Q$17),MATCH($A61,INDIRECT($Q$16):INDIRECT($Q$18),0),COLUMN()),0) -> 0 | K61: =IFERROR(VLOOKUP($A61,INDIRECT($Q$16):INDIRECT($Q$17),11,FALSE),0) -> 0 | L61: 0 | M61: 0
C62: =IFERROR(VLOOKUP($A62,INDIRECT($Q$1):INDIRECT($Q$2),11,FALSE),0) -> 0 | D62: =IFERROR(INDEX(INDIRECT($Q$1):INDIRECT($Q$2),MATCH($A62,INDIRECT($Q$1):INDIRECT($Q$3),0),COLUMN()),0)+IFERROR(INDEX(INDIRECT($Q$4):INDIRECT($Q$5),MATCH($A62,INDIRECT($Q$4):INDIRECT($Q$6),0),COLUMN()),0)+IFERROR(INDEX(INDIRECT($Q$7):INDIRECT($Q$8),MATCH($A62,INDIRECT($Q$7):INDIRECT($Q$9),0),COLUMN()),0)+IFERROR(INDEX(INDIRECT($Q$10):INDIRECT($Q$11),MATCH($A62,INDIRECT($Q$10):INDIRECT($Q$12),0),COLUMN()),0)+IFERROR(INDEX(INDIRECT($Q$13):INDIRECT($Q$14),MATCH($A62,INDIRECT($Q$13):INDIRECT($Q$15),0),COLUMN()),0)+IFERROR(INDEX(INDIRECT($Q$16):INDIRECT($Q$17),MATCH($A62,INDIRECT($Q$16):INDIRECT($Q$18),0),COLUMN()),0) -> 0 | E62: =IFERROR(INDEX(INDIRECT($Q$1):INDIRECT($Q$2),MATCH($A62,INDIRECT($Q$1):INDIRECT($Q$3),0),COLUMN()),0)+IFERROR(INDEX(INDIRECT($Q$4):INDIRECT($Q$5),MATCH($A62,INDIRECT($Q$4):INDIRECT($Q$6),0),COLUMN()),0)+IFERROR(INDEX(INDIRECT($Q$7):INDIRECT($Q$8),MATCH($A62,INDIRECT($Q$7):INDIRECT($Q$9),0),COLUMN()),0)+IFERROR(INDEX(INDIRECT($Q$10):INDIRECT($Q$11),MATCH($A62,INDIRECT($Q$10):INDIRECT($Q$12),0),COLUMN()),0)+IFERROR(INDEX(INDIRECT($Q$13):INDIRECT($Q$14),MATCH($A62,INDIRECT($Q$13):INDIRECT($Q$15),0),COLUMN()),0)+IFERROR(INDEX(INDIRECT($Q$16):INDIRECT($Q$17),MATCH($A62,INDIRECT($Q$16):INDIRECT($Q$18),0),COLUMN()),0) -> 0 | F62: =IFERROR(INDEX(INDIRECT($Q$1):INDIRECT($Q$2),MATCH($A62,INDIRECT($Q$1):INDIRECT($Q$3),0),COLUMN()),0)+IFERROR(INDEX(INDIRECT($Q$4):INDIRECT($Q$5),MATCH($A62,INDIRECT($Q$4):INDIRECT($Q$6),0),COLUMN()),0)+IFERROR(INDEX(INDIRECT($Q$7):INDIRECT($Q$8),MATCH($A62,INDIRECT($Q$7):INDIRECT($Q$9),0),COLUMN()),0)+IFERROR(INDEX(INDIRECT($Q$10):INDIRECT($Q$11),MATCH($A62,INDIRECT($Q$10):INDIRECT($Q$12),0),COLUMN()),0)+IFERROR(INDEX(INDIRECT($Q$13):INDIRECT($Q$14),MATCH($A62,INDIRECT($Q$13):INDIRECT($Q$15),0),COLUMN()),0)+IFERROR(INDEX(INDIRECT($Q$16):INDIRECT($Q$17),MATCH($A62,INDIRECT($Q$16):INDIRECT($Q$18),0),COLUMN()),0) -> 0 | G62: =IFERROR(INDEX(INDIRECT($Q$1):INDIRECT($Q$2),MATCH($A62,INDIRECT($Q$1):INDIRECT($Q$3),0),COLUMN()),0)+IFERROR(INDEX(INDIRECT($Q$4):INDIRECT($Q$5),MATCH($A62,INDIRECT($Q$4):INDIRECT($Q$6),0),COLUMN()),0)+IFERROR(INDEX(INDIRECT($Q$7):INDIRECT($Q$8),MATCH($A62,INDIRECT($Q$7):INDIRECT($Q$9),0),COLUMN()),0)+IFERROR(INDEX(INDIRECT($Q$10):INDIRECT($Q$11),MATCH($A62,INDIRECT($Q$10):INDIRECT($Q$12),0),COLUMN()),0)+IFERROR(INDEX(INDIRECT($Q$13):INDIRECT($Q$14),MATCH($A62,INDIRECT($Q$13):INDIRECT($Q$15),0),COLUMN()),0)+IFERROR(INDEX(INDIRECT($Q$16):INDIRECT($Q$17),MATCH($A62,INDIRECT($Q$16):INDIRECT($Q$18),0),COLUMN()),0) -> 0 | H62: =IFERROR(INDEX(INDIRECT($Q$1):INDIRECT($Q$2),MATCH($A62,INDIRECT($Q$1):INDIRECT($Q$3),0),COLUMN()),0)+IFERROR(INDEX(INDIRECT($Q$4):INDIRECT($Q$5),MATCH($A62,INDIRECT($Q$4):INDIRECT($Q$6),0),COLUMN()),0)+IFERROR(INDEX(INDIRECT($Q$7):INDIRECT($Q$8),MATCH($A62,INDIRECT($Q$7):INDIRECT($Q$9),0),COLUMN()),0)+IFERROR(INDEX(INDIRECT($Q$10):INDIRECT($Q$11),MATCH($A62,INDIRECT($Q$10):INDIRECT($Q$12),0),COLUMN()),0)+IFERROR(INDEX(INDIRECT($Q$13):INDIRECT($Q$14),MATCH($A62,INDIRECT($Q$13):INDIRECT($Q$15),0),COLUMN()),0)+IFERROR(INDEX(INDIRECT($Q$16):INDIRECT($Q$17),MATCH($A62,INDIRECT($Q$16):INDIRECT($Q$18),0),COLUMN()),0) -> 0 | I62: =IFERROR(INDEX(INDIRECT($Q$1):INDIRECT($Q$2),MATCH($A62,INDIRECT($Q$1):INDIRECT($Q$3),0),COLUMN()),0)+IFERROR(INDEX(INDIRECT($Q$4):INDIRECT($Q$5),MATCH($A62,INDIRECT($Q$4):INDIRECT($Q$6),0),COLUMN()),0)+IFERROR(INDEX(INDIRECT($Q$7):INDIRECT($Q$8),MATCH($A62,INDIRECT($Q$7):INDIRECT($Q$9),0),COLUMN()),0)+IFERROR(INDEX(INDIRECT($Q$10):INDIRECT($Q$11),MATCH($A62,INDIRECT($Q$10):INDIRECT($Q$12),0),COLUMN()),0)+IFERROR(INDEX(INDIRECT($Q$13):INDIRECT($Q$14),MATCH($A62,INDIRECT($Q$13):INDIRECT($Q$15),0),COLUMN()),0)+IFERROR(INDEX(INDIRECT($Q$16):INDIRECT($Q$17),MATCH($A62,INDIRECT($Q$16):INDIRECT($Q$18),0),COLUMN()),0) -> 0 | K62: =IFERROR(VLOOKUP($A62,INDIRECT($Q$16):INDIRECT($Q$17),11,FALSE),0) -> 0 | L62: 0 | M62: 0
C63: =IFERROR(VLOOKUP($A63,INDIRECT($Q$1):INDIRECT($Q$2),11,FALSE),0) -> 0 | D63: =IFERROR(INDEX(INDIRECT($Q$1):INDIRECT($Q$2),MATCH($A63,INDIRECT($Q$1):INDIRECT($Q$3),0),COLUMN()),0)+IFERROR(INDEX(INDIRECT($Q$4):INDIRECT($Q$5),MATCH($A63,INDIRECT($Q$4):INDIRECT($Q$6),0),COLUMN()),0)+IFERROR(INDEX(INDIRECT($Q$7):INDIRECT($Q$8),MATCH($A63,INDIRECT($Q$7):INDIRECT($Q$9),0),COLUMN()),0)+IFERROR(INDEX(INDIRECT($Q$10):INDIRECT($Q$11),MATCH($A63,INDIRECT($Q$10):INDIRECT($Q$12),0),COLUMN()),0)+IFERROR(INDEX(INDIRECT($Q$13):INDIRECT($Q$14),MATCH($A63,INDIRECT($Q$13):INDIRECT($Q$15),0),COLUMN()),0)+IFERROR(INDEX(INDIRECT($Q$16):INDIRECT($Q$17),MATCH($A63,INDIRECT($Q$16):INDIRECT($Q$18),0),COLUMN()),0) -> 0 | E63: =IFERROR(INDEX(INDIRECT($Q$1):INDIRECT($Q$2),MATCH($A63,INDIRECT($Q$1):INDIRECT($Q$3),0),COLUMN()),0)+IFERROR(INDEX(INDIRECT($Q$4):INDIRECT($Q$5),MATCH($A63,INDIRECT($Q$4):INDIRECT($Q$6),0),COLUMN()),0)+IFERROR(INDEX(INDIRECT($Q$7):INDIRECT($Q$8),MATCH($A63,INDIRECT($Q$7):INDIRECT($Q$9),0),COLUMN()),0)+IFERROR(INDEX(INDIRECT($Q$10):INDIRECT($Q$11),MATCH($A63,INDIRECT($Q$10):INDIRECT($Q$12),0),COLUMN()),0)+IFERROR(INDEX(INDIRECT($Q$13):INDIRECT($Q$14),MATCH($A63,INDIRECT($Q$13):INDIRECT($Q$15),0),COLUMN()),0)+IFERROR(INDEX(INDIRECT($Q$16):INDIRECT($Q$17),MATCH($A63,INDIRECT($Q$16):INDIRECT($Q$18),0),COLUMN()),0) -> 0 | F63: =IFERROR(INDEX(INDIRECT($Q$1):INDIRECT($Q$2),MATCH($A63,INDIRECT($Q$1):INDIRECT($Q$3),0),COLUMN()),0)+IFERROR(INDEX(INDIRECT($Q$4):INDIRECT($Q$5),MATCH($A63,INDIRECT($Q$4):INDIRECT($Q$6),0),COLUMN()),0)+IFERROR(INDEX(INDIRECT($Q$7):INDIRECT($Q$8),MATCH($A63,INDIRECT($Q$7):INDIRECT($Q$9),0),COLUMN()),0)+IFERROR(INDEX(INDIRECT($Q$10):INDIRECT($Q$11),MATCH($A63,INDIRECT($Q$10):INDIRECT($Q$12),0),COLUMN()),0)+IFERROR(INDEX(INDIRECT($Q$13):INDIRECT($Q$14),MATCH($A63,INDIRECT($Q$13):INDIRECT($Q$15),0),COLUMN()),0)+IFERROR(INDEX(INDIRECT($Q$16):INDIRECT($Q$17),MATCH($A63,INDIRECT($Q$16):INDIRECT($Q$18),0),COLUMN()),0) -> 0 | G63: =IFERROR(INDEX(INDIRECT($Q$1):INDIRECT($Q$2),MATCH($A63,INDIRECT($Q$1):INDIRECT($Q$3),0),COLUMN()),0)+IFERROR(INDEX(INDIRECT($Q$4):INDIRECT($Q$5),MATCH($A63,INDIRECT($Q$4):INDIRECT($Q$6),0),COLUMN()),0)+IFERROR(INDEX(INDIRECT($Q$7):INDIRECT($Q$8),MATCH($A63,INDIRECT($Q$7):INDIRECT($Q$9),0),COLUMN()),0)+IFERROR(INDEX(INDIRECT($Q$10):INDIRECT($Q$11),MATCH($A63,INDIRECT($Q$10):INDIRECT($Q$12),0),COLUMN()),0)+IFERROR(INDEX(INDIRECT($Q$13):INDIRECT($Q$14),MATCH($A63,INDIRECT($Q$13):INDIRECT($Q$15),0),COLUMN()),0)+IFERROR(INDEX(INDIRECT($Q$16):INDIRECT($Q$17),MATCH($A63,INDIRECT($Q$16):INDIRECT($Q$18),0),COLUMN()),0) -> 0 | H63: =IFERROR(INDEX(INDIRECT($Q$1):INDIRECT($Q$2),MATCH($A63,INDIRECT($Q$1):INDIRECT($Q$3),0),COLUMN()),0)+IFERROR(INDEX(INDIRECT($Q$4):INDIRECT($Q$5),MATCH($A63,INDIRECT($Q$4):INDIRECT($Q$6),0),COLUMN()),0)+IFERROR(INDEX(INDIRECT($Q$7):INDIRECT($Q$8),MATCH($A63,INDIRECT($Q$7):INDIRECT($Q$9),0),COLUMN()),0)+IFERROR(INDEX(INDIRECT($Q$10):INDIRECT($Q$11),MATCH($A63,INDIRECT($Q$10):INDIRECT($Q$12),0),COLUMN()),0)+IFERROR(INDEX(INDIRECT($Q$13):INDIRECT($Q$14),MATCH($A63,INDIRECT($Q$13):INDIRECT($Q$15),0),COLUMN()),0)+IFERROR(INDEX(INDIRECT($Q$16):INDIRECT($Q$17),MATCH($A63,INDIRECT($Q$16):INDIRECT($Q$18),0),COLUMN()),0) -> 0 | I63: =IFERROR(INDEX(INDIRECT($Q$1):INDIRECT($Q$2),MATCH($A63,INDIRECT($Q$1):INDIRECT($Q$3),0),COLUMN()),0)+IFERROR(INDEX(INDIRECT($Q$4):INDIRECT($Q$5),MATCH($A63,INDIRECT($Q$4):INDIRECT($Q$6),0),COLUMN()),0)+IFERROR(INDEX(INDIRECT($Q$7):INDIRECT($Q$8),MATCH($A63,INDIRECT($Q$7):INDIRECT($Q$9),0),COLUMN()),0)+IFERROR(INDEX(INDIRECT($Q$10):INDIRECT($Q$11),MATCH($A63,INDIRECT($Q$10):INDIRECT($Q$12),0),COLUMN()),0)+IFERROR(INDEX(INDIRECT($Q$13):INDIRECT($Q$14),MATCH($A63,INDIRECT($Q$13):INDIRECT($Q$15),0),COLUMN()),0)+IFERROR(INDEX(INDIRECT($Q$16):INDIRECT($Q$17),MATCH($A63,INDIRECT($Q$16):INDIRECT($Q$18),0),COLUMN()),0) -> 0 | K63: =IFERROR(VLOOKUP($A63,INDIRECT($Q$16):INDIRECT($Q$17),11,FALSE),0) -> 0 | L63: 0 | M63: 0
C64: =IFERROR(VLOOKUP($A64,INDIRECT($Q$1):INDIRECT($Q$2),11,FALSE),0) -> 0 | D64: =IFERROR(INDEX(INDIRECT($Q$1):INDIRECT($Q$2),MATCH($A64,INDIRECT($Q$1):INDIRECT($Q$3),0),COLUMN()),0)+IFERROR(INDEX(INDIRECT($Q$4):INDIRECT($Q$5),MATCH($A64,INDIRECT($Q$4):INDIRECT($Q$6),0),COLUMN()),0)+IFERROR(INDEX(INDIRECT($Q$7):INDIRECT($Q$8),MATCH($A64,INDIRECT($Q$7):INDIRECT($Q$9),0),COLUMN()),0)+IFERROR(INDEX(INDIRECT($Q$10):INDIRECT($Q$11),MATCH($A64,INDIRECT($Q$10):INDIRECT($Q$12),0),COLUMN()),0)+IFERROR(INDEX(INDIRECT($Q$13):INDIRECT($Q$14),MATCH($A64,INDIRECT($Q$13):INDIRECT($Q$15),0),COLUMN()),0)+IFERROR(INDEX(INDIRECT($Q$16):INDIRECT($Q$17),MATCH($A64,INDIRECT($Q$16):INDIRECT($Q$18),0),COLUMN()),0) -> 0 | E64: =IFERROR(INDEX(INDIRECT($Q$1):INDIRECT($Q$2),MATCH($A64,INDIRECT($Q$1):INDIRECT($Q$3),0),COLUMN()),0)+IFERROR(INDEX(INDIRECT($Q$4):INDIRECT($Q$5),MATCH($A64,INDIRECT($Q$4):INDIRECT($Q$6),0),COLUMN()),0)+IFERROR(INDEX(INDIRECT($Q$7):INDIRECT($Q$8),MATCH($A64,INDIRECT($Q$7):INDIRECT($Q$9),0),COLUMN()),0)+IFERROR(INDEX(INDIRECT($Q$10):INDIRECT($Q$11),MATCH($A64,INDIRECT($Q$10):INDIRECT($Q$12),0),COLUMN()),0)+IFERROR(INDEX(INDIRECT($Q$13):INDIRECT($Q$14),MATCH($A64,INDIRECT($Q$13):INDIRECT($Q$15),0),COLUMN()),0)+IFERROR(INDEX(INDIRECT($Q$16):INDIRECT($Q$17),MATCH($A64,INDIRECT($Q$16):INDIRECT($Q$18),0),COLUMN()),0) -> 0 | F64: =IFERROR(INDEX(INDIRECT($Q$1):INDIRECT($Q$2),MATCH($A64,INDIRECT($Q$1):INDIRECT($Q$3),0),COLUMN()),0)+IFERROR(INDEX(INDIRECT($Q$4):INDIRECT($Q$5),MATCH($A64,INDIRECT($Q$4):INDIRECT($Q$6),0),COLUMN()),0)+IFERROR(INDEX(INDIRECT($Q$7):INDIRECT($Q$8),MATCH($A64,INDIRECT($Q$7):INDIRECT($Q$9),0),COLUMN()),0)+IFERROR(INDEX(INDIRECT($Q$10):INDIRECT($Q$11),MATCH($A64,INDIRECT($Q$10):INDIRECT($Q$12),0),COLUMN()),0)+IFERROR(INDEX(INDIRECT($Q$13):INDIRECT($Q$14),MATCH($A64,INDIRECT($Q$13):INDIRECT($Q$15),0),COLUMN()),0)+IFERROR(INDEX(INDIRECT($Q$16):INDIRECT($Q$17),MATCH($A64,INDIRECT($Q$16):INDIRECT($Q$18),0),COLUMN()),0) -> 0 | G64: =IFERROR(INDEX(INDIRECT($Q$1):INDIRECT($Q$2),MATCH($A64,INDIRECT($Q$1):INDIRECT($Q$3),0),COLUMN()),0)+IFERROR(INDEX(INDIRECT($Q$4):INDIRECT($Q$5),MATCH($A64,INDIRECT($Q$4):INDIRECT($Q$6),0),COLUMN()),0)+IFERROR(INDEX(INDIRECT($Q$7):INDIRECT($Q$8),MATCH($A64,INDIRECT($Q$7):INDIRECT($Q$9),0),COLUMN()),0)+IFERROR(INDEX(INDIRECT($Q$10):INDIRECT($Q$11),MATCH($A64,INDIRECT($Q$10):INDIRECT($Q$12),0),COLUMN()),0)+IFERROR(INDEX(INDIRECT($Q$13):INDIRECT($Q$14),MATCH($A64,INDIRECT($Q$13):INDIRECT($Q$15),0),COLUMN()),0)+IFERROR(INDEX(INDIRECT($Q$16):INDIRECT($Q$17),MATCH($A64,INDIRECT($Q$16):INDIRECT($Q$18),0),COLUMN()),0) -> 0 | H64: =IFERROR(INDEX(INDIRECT($Q$1):INDIRECT($Q$2),MATCH($A64,INDIRECT($Q$1):INDIRECT($Q$3),0),COLUMN()),0)+IFERROR(INDEX(INDIRECT($Q$4):INDIRECT($Q$5),MATCH($A64,INDIRECT($Q$4):INDIRECT($Q$6),0),COLUMN()),0)+IFERROR(INDEX(INDIRECT($Q$7):INDIRECT($Q$8),MATCH($A64,INDIRECT($Q$7):INDIRECT($Q$9),0),COLUMN()),0)+IFERROR(INDEX(INDIRECT($Q$10):INDIRECT($Q$11),MATCH($A64,INDIRECT($Q$10):INDIRECT($Q$12),0),COLUMN()),0)+IFERROR(INDEX(INDIRECT($Q$13):INDIRECT($Q$14),MATCH($A64,INDIRECT($Q$13):INDIRECT($Q$15),0),COLUMN()),0)+IFERROR(INDEX(INDIRECT($Q$16):INDIRECT($Q$17),MATCH($A64,INDIRECT($Q$16):INDIRECT($Q$18),0),COLUMN()),0) -> 0 | I64: =IFERROR(INDEX(INDIRECT($Q$1):INDIRECT($Q$2),MATCH($A64,INDIRECT($Q$1):INDIRECT($Q$3),0),COLUMN()),0)+IFERROR(INDEX(INDIRECT($Q$4):INDIRECT($Q$5),MATCH($A64,INDIRECT($Q$4):INDIRECT($Q$6),0),COLUMN()),0)+IFERROR(INDEX(INDIRECT($Q$7):INDIRECT($Q$8),MATCH($A64,INDIRECT($Q$7):INDIRECT($Q$9),0),COLUMN()),0)+IFERROR(INDEX(INDIRECT($Q$10):INDIRECT($Q$11),MATCH($A64,INDIRECT($Q$10):INDIRECT($Q$12),0),COLUMN()),0)+IFERROR(INDEX(INDIRECT($Q$13):INDIRECT($Q$14),MATCH($A64,INDIRECT($Q$13):INDIRECT($Q$15),0),COLUMN()),0)+IFERROR(INDEX(INDIRECT($Q$16):INDIRECT($Q$17),MATCH($A64,INDIRECT($Q$16):INDIRECT($Q$18),0),COLUMN()),0) -> 0 | K64: =IFERROR(VLOOKUP($A64,INDIRECT($Q$16):INDIRECT($Q$17),11,FALSE),0) -> 0 | L64: 0 | M64: 0
C65: =IFERROR(VLOOKUP($A65,INDIRECT($Q$1):INDIRECT($Q$2),11,FALSE),0) -> 0 | D65: =IFERROR(INDEX(INDIRECT($Q$1):INDIRECT($Q$2),MATCH($A65,INDIRECT($Q$1):INDIRECT($Q$3),0),COLUMN()),0)+IFERROR(INDEX(INDIRECT($Q$4):INDIRECT($Q$5),MATCH($A65,INDIRECT($Q$4):INDIRECT($Q$6),0),COLUMN()),0)+IFERROR(INDEX(INDIRECT($Q$7):INDIRECT($Q$8),MATCH($A65,INDIRECT($Q$7):INDIRECT($Q$9),0),COLUMN()),0)+IFERROR(INDEX(INDIRECT($Q$10):INDIRECT($Q$11),MATCH($A65,INDIRECT($Q$10):INDIRECT($Q$12),0),COLUMN()),0)+IFERROR(INDEX(INDIRECT($Q$13):INDIRECT($Q$14),MATCH($A65,INDIRECT($Q$13):INDIRECT($Q$15),0),COLUMN()),0)+IFERROR(INDEX(INDIRECT($Q$16):INDIRECT($Q$17),MATCH($A65,INDIRECT($Q$16):INDIRECT($Q$18),0),COLUMN()),0) -> 0 | E65: =IFERROR(INDEX(INDIRECT($Q$1):INDIRECT($Q$2),MATCH($A65,INDIRECT($Q$1):INDIRECT($Q$3),0),COLUMN()),0)+IFERROR(INDEX(INDIRECT($Q$4):INDIRECT($Q$5),MATCH($A65,INDIRECT($Q$4):INDIRECT($Q$6),0),COLUMN()),0)+IFERROR(INDEX(INDIRECT($Q$7):INDIRECT($Q$8),MATCH($A65,INDIRECT($Q$7):INDIRECT($Q$9),0),COLUMN()),0)+IFERROR(INDEX(INDIRECT($Q$10):INDIRECT($Q$11),MATCH($A65,INDIRECT($Q$10):INDIRECT($Q$12),0),COLUMN()),0)+IFERROR(INDEX(INDIRECT($Q$13):INDIRECT($Q$14),MATCH($A65,INDIRECT($Q$13):INDIRECT($Q$15),0),COLUMN()),0)+IFERROR(INDEX(INDIRECT($Q$16):INDIRECT($Q$17),MATCH($A65,INDIRECT($Q$16):INDIRECT($Q$18),0),COLUMN()),0) -> 0 | F65: =IFERROR(INDEX(INDIRECT($Q$1):INDIRECT($Q$2),MATCH($A65,INDIRECT($Q$1):INDIRECT($Q$3),0),COLUMN()),0)+IFERROR(INDEX(INDIRECT($Q$4):INDIRECT($Q$5),MATCH($A65,INDIRECT($Q$4):INDIRECT($Q$6),0),COLUMN()),0)+IFERROR(INDEX(INDIRECT($Q$7):INDIRECT($Q$8),MATCH($A65,INDIRECT($Q$7):INDIRECT($Q$9),0),COLUMN()),0)+IFERROR(INDEX(INDIRECT($Q$10):INDIRECT($Q$11),MATCH($A65,INDIRECT($Q$10):INDIRECT($Q$12),0),COLUMN()),0)+IFERROR(INDEX(INDIRECT($Q$13):INDIRECT($Q$14),MATCH($A65,INDIRECT($Q$13):INDIRECT($Q$15),0),COLUMN()),0)+IFERROR(INDEX(INDIRECT($Q$16):INDIRECT($Q$17),MATCH($A65,INDIRECT($Q$16):INDIRECT($Q$18),0),COLUMN()),0) -> 0 | G65: =IFERROR(INDEX(INDIRECT($Q$1):INDIRECT($Q$2),MATCH($A65,INDIRECT($Q$1):INDIRECT($Q$3),0),COLUMN()),0)+IFERROR(INDEX(INDIRECT($Q$4):INDIRECT($Q$5),MATCH($A65,INDIRECT($Q$4):INDIRECT($Q$6),0),COLUMN()),0)+IFERROR(INDEX(INDIRECT($Q$7):INDIRECT($Q$8),MATCH($A65,INDIRECT($Q$7):INDIRECT($Q$9),0),COLUMN()),0)+IFERROR(INDEX(INDIRECT($Q$10):INDIRECT($Q$11),MATCH($A65,INDIRECT($Q$10):INDIRECT($Q$12),0),COLUMN()),0)+IFERROR(INDEX(INDIRECT($Q$13):INDIRECT($Q$14),MATCH($A65,INDIRECT($Q$13):INDIRECT($Q$15),0),COLUMN()),0)+IFERROR(INDEX(INDIRECT($Q$16):INDIRECT($Q$17),MATCH($A65,INDIRECT($Q$16):INDIRECT($Q$18),0),COLUMN()),0) -> 0 | H65: =IFERROR(INDEX(INDIRECT($Q$1):INDIRECT($Q$2),MATCH($A65,INDIRECT($Q$1):INDIRECT($Q$3),0),COLUMN()),0)+IFERROR(INDEX(INDIRECT($Q$4):INDIRECT($Q$5),MATCH($A65,INDIRECT($Q$4):INDIRECT($Q$6),0),COLUMN()),0)+IFERROR(INDEX(INDIRECT($Q$7):INDIRECT($Q$8),MATCH($A65,INDIRECT($Q$7):INDIRECT($Q$9),0),COLUMN()),0)+IFERROR(INDEX(INDIRECT($Q$10):INDIRECT($Q$11),MATCH($A65,INDIRECT($Q$10):INDIRECT($Q$12),0),COLUMN()),0)+IFERROR(INDEX(INDIRECT($Q$13):INDIRECT($Q$14),MATCH($A65,INDIRECT($Q$13):INDIRECT($Q$15),0),COLUMN()),0)+IFERROR(INDEX(INDIRECT($Q$16):INDIRECT($Q$17),MATCH($A65,INDIRECT($Q$16):INDIRECT($Q$18),0),COLUMN()),0) -> 0 | I65: =IFERROR(INDEX(INDIRECT($Q$1):INDIRECT($Q$2),MATCH($A65,INDIRECT($Q$1):INDIRECT($Q$3),0),COLUMN()),0)+IFERROR(INDEX(INDIRECT($Q$4):INDIRECT($Q$5),MATCH($A65,INDIRECT($Q$4):INDIRECT($Q$6),0),COLUMN()),0)+IFERROR(INDEX(INDIRECT($Q$7):INDIRECT($Q$8),MATCH($A65,INDIRECT($Q$7):INDIRECT($Q$9),0),COLUMN()),0)+IFERROR(INDEX(INDIRECT($Q$10):INDIRECT($Q$11),MATCH($A65,INDIRECT($Q$10):INDIRECT($Q$12),0),COLUMN()),0)+IFERROR(INDEX(INDIRECT($Q$13):INDIRECT($Q$14),MATCH($A65,INDIRECT($Q$13):INDIRECT($Q$15),0),COLUMN()),0)+IFERROR(INDEX(INDIRECT($Q$16):INDIRECT($Q$17),MATCH($A65,INDIRECT($Q$16):INDIRECT($Q$18),0),COLUMN()),0) -> 0 | K65: =IFERROR(VLOOKUP($A65,INDIRECT($Q$16):INDIRECT($Q$17),11,FALSE),0) -> 0 | L65: 0 | M65: 0
C66: =IFERROR(VLOOKUP($A66,INDIRECT($Q$1):INDIRECT($Q$2),11,FALSE),0) -> 0 | D66: =IFERROR(INDEX(INDIRECT($Q$1):INDIRECT($Q$2),MATCH($A66,INDIRECT($Q$1):INDIRECT($Q$3),0),COLUMN()),0)+IFERROR(INDEX(INDIRECT($Q$4):INDIRECT($Q$5),MATCH($A66,INDIRECT($Q$4):INDIRECT($Q$6),0),COLUMN()),0)+IFERROR(INDEX(INDIRECT($Q$7):INDIRECT($Q$8),MATCH($A66,INDIRECT($Q$7):INDIRECT($Q$9),0),COLUMN()),0)+IFERROR(INDEX(INDIRECT($Q$10):INDIRECT($Q$11),MATCH($A66,INDIRECT($Q$10):INDIRECT($Q$12),0),COLUMN()),0)+IFERROR(INDEX(INDIRECT($Q$13):INDIRECT($Q$14),MATCH($A66,INDIRECT($Q$13):INDIRECT($Q$15),0),COLUMN()),0)+IFERROR(INDEX(INDIRECT($Q$16):INDIRECT($Q$17),MATCH($A66,INDIRECT($Q$16):INDIRECT($Q$18),0),COLUMN()),0) -> 0 | E66: =IFERROR(INDEX(INDIRECT($Q$1):INDIRECT($Q$2),MATCH($A66,INDIRECT($Q$1):INDIRECT($Q$3),0),COLUMN()),0)+IFERROR(INDEX(INDIRECT($Q$4):INDIRECT($Q$5),MATCH($A66,INDIRECT($Q$4):INDIRECT($Q$6),0),COLUMN()),0)+IFERROR(INDEX(INDIRECT($Q$7):INDIRECT($Q$8),MATCH($A66,INDIRECT($Q$7):INDIRECT($Q$9),0),COLUMN()),0)+IFERROR(INDEX(INDIRECT($Q$10):INDIRECT($Q$11),MATCH($A66,INDIRECT($Q$10):INDIRECT($Q$12),0),COLUMN()),0)+IFERROR(INDEX(INDIRECT($Q$13):INDIRECT($Q$14),MATCH($A66,INDIRECT($Q$13):INDIRECT($Q$15),0),COLUMN()),0)+IFERROR(INDEX(INDIRECT($Q$16):INDIRECT($Q$17),MATCH($A66,INDIRECT($Q$16):INDIRECT($Q$18),0),COLUMN()),0) -> 0 | F66: =IFERROR(INDEX(INDIRECT($Q$1):INDIRECT($Q$2),MATCH($A66,INDIRECT($Q$1):INDIRECT($Q$3),0),COLUMN()),0)+IFERROR(INDEX(INDIRECT($Q$4):INDIRECT($Q$5),MATCH($A66,INDIRECT($Q$4):INDIRECT($Q$6),0),COLUMN()),0)+IFERROR(INDEX(INDIRECT($Q$7):INDIRECT($Q$8),MATCH($A66,INDIRECT($Q$7):INDIRECT($Q$9),0),COLUMN()),0)+IFERROR(INDEX(INDIRECT($Q$10):INDIRECT($Q$11),MATCH($A66,INDIRECT($Q$10):INDIRECT($Q$12),0),COLUMN()),0)+IFERROR(INDEX(INDIRECT($Q$13):INDIRECT($Q$14),MATCH($A66,INDIRECT($Q$13):INDIRECT($Q$15),0),COLUMN()),0)+IFERROR(INDEX(INDIRECT($Q$16):INDIRECT($Q$17),MATCH($A66,INDIRECT($Q$16):INDIRECT($Q$18),0),COLUMN()),0) -> 0 | G66: =IFERROR(INDEX(INDIRECT($Q$1):INDIRECT($Q$2),MATCH($A66,INDIRECT($Q$1):INDIRECT($Q$3),0),COLUMN()),0)+IFERROR(INDEX(INDIRECT($Q$4):INDIRECT($Q$5),MATCH($A66,INDIRECT($Q$4):INDIRECT($Q$6),0),COLUMN()),0)+IFERROR(INDEX(INDIRECT($Q$7):INDIRECT($Q$8),MATCH($A66,INDIRECT($Q$7):INDIRECT($Q$9),0),COLUMN()),0)+IFERROR(INDEX(INDIRECT($Q$10):INDIRECT($Q$11),MATCH($A66,INDIRECT($Q$10):INDIRECT($Q$12),0),COLUMN()),0)+IFERROR(INDEX(INDIRECT($Q$13):INDIRECT($Q$14),MATCH($A66,INDIRECT($Q$13):INDIRECT($Q$15),0),COLUMN()),0)+IFERROR(INDEX(INDIRECT($Q$16):INDIRECT($Q$17),MATCH($A66,INDIRECT($Q$16):INDIRECT($Q$18),0),COLUMN()),0) -> 0 | H66: =IFERROR(INDEX(INDIRECT($Q$1):INDIRECT($Q$2),MATCH($A66,INDIRECT($Q$1):INDIRECT($Q$3),0),COLUMN()),0)+IFERROR(INDEX(INDIRECT($Q$4):INDIRECT($Q$5),MATCH($A66,INDIRECT($Q$4):INDIRECT($Q$6),0),COLUMN()),0)+IFERROR(INDEX(INDIRECT($Q$7):INDIRECT($Q$8),MATCH($A66,INDIRECT($Q$7):INDIRECT($Q$9),0),COLUMN()),0)+IFERROR(INDEX(INDIRECT($Q$10):INDIRECT($Q$11),MATCH($A66,INDIRECT($Q$10):INDIRECT($Q$12),0),COLUMN()),0)+IFERROR(INDEX(INDIRECT($Q$13):INDIRECT($Q$14),MATCH($A66,INDIRECT($Q$13):INDIRECT($Q$15),0),COLUMN()),0)+IFERROR(INDEX(INDIRECT($Q$16):INDIRECT($Q$17),MATCH($A66,INDIRECT($Q$16):INDIRECT($Q$18),0),COLUMN()),0) -> 0 | I66: =IFERROR(INDEX(INDIRECT($Q$1):INDIRECT($Q$2),MATCH($A66,INDIRECT($Q$1):INDIRECT($Q$3),0),COLUMN()),0)+IFERROR(INDEX(INDIRECT($Q$4):INDIRECT($Q$5),MATCH($A66,INDIRECT($Q$4):INDIRECT($Q$6),0),COLUMN()),0)+IFERROR(INDEX(INDIRECT($Q$7):INDIRECT($Q$8),MATCH($A66,INDIRECT($Q$7):INDIRECT($Q$9),0),COLUMN()),0)+IFERROR(INDEX(INDIRECT($Q$10):INDIRECT($Q$11),MATCH($A66,INDIRECT($Q$10):INDIRECT($Q$12),0),COLUMN()),0)+IFERROR(INDEX(INDIRECT($Q$13):INDIRECT($Q$14),MATCH($A66,INDIRECT($Q$13):INDIRECT($Q$15),0),COLUMN()),0)+IFERROR(INDEX(INDIRECT($Q$16):INDIRECT($Q$17),MATCH($A66,INDIRECT($Q$16):INDIRECT($Q$18),0),COLUMN()),0) -> 0 | K66: =IFERROR(VLOOKUP($A66,INDIRECT($Q$16):INDIRECT($Q$17),11,FALSE),0) -> 0 | L66: 0 | M66: 0
C67: =IFERROR(VLOOKUP($A67,INDIRECT($Q$1):INDIRECT($Q$2),11,FALSE),0) -> 0 | D67: =IFERROR(INDEX(INDIRECT($Q$1):INDIRECT($Q$2),MATCH($A67,INDIRECT($Q$1):INDIRECT($Q$3),0),COLUMN()),0)+IFERROR(INDEX(INDIRECT($Q$4):INDIRECT($Q$5),MATCH($A67,INDIRECT($Q$4):INDIRECT($Q$6),0),COLUMN()),0)+IFERROR(INDEX(INDIRECT($Q$7):INDIRECT($Q$8),MATCH($A67,INDIRECT($Q$7):INDIRECT($Q$9),0),COLUMN()),0)+IFERROR(INDEX(INDIRECT($Q$10):INDIRECT($Q$11),MATCH($A67,INDIRECT($Q$10):INDIRECT($Q$12),0),COLUMN()),0)+IFERROR(INDEX(INDIRECT($Q$13):INDIRECT($Q$14),MATCH($A67,INDIRECT($Q$13):INDIRECT($Q$15),0),COLUMN()),0)+IFERROR(INDEX(INDIRECT($Q$16):INDIRECT($Q$17),MATCH($A67,INDIRECT($Q$16):INDIRECT($Q$18),0),COLUMN()),0) -> 0 | E67: =IFERROR(INDEX(INDIRECT($Q$1):INDIRECT($Q$2),MATCH($A67,INDIRECT($Q$1):INDIRECT($Q$3),0),COLUMN()),0)+IFERROR(INDEX(INDIRECT($Q$4):INDIRECT($Q$5),MATCH($A67,INDIRECT($Q$4):INDIRECT($Q$6),0),COLUMN()),0)+IFERROR(INDEX(INDIRECT($Q$7):INDIRECT($Q$8),MATCH($A67,INDIRECT($Q$7):INDIRECT($Q$9),0),COLUMN()),0)+IFERROR(INDEX(INDIRECT($Q$10):INDIRECT($Q$11),MATCH($A67,INDIRECT($Q$10):INDIRECT($Q$12),0),COLUMN()),0)+IFERROR(INDEX(INDIRECT($Q$13):INDIRECT($Q$14),MATCH($A67,INDIRECT($Q$13):INDIRECT($Q$15),0),COLUMN()),0)+IFERROR(INDEX(INDIRECT($Q$16):INDIRECT($Q$17),MATCH($A67,INDIRECT($Q$16):INDIRECT($Q$18),0),COLUMN()),0) -> 0 | F67: =IFERROR(INDEX(INDIRECT($Q$1):INDIRECT($Q$2),MATCH($A67,INDIRECT($Q$1):INDIRECT($Q$3),0),COLUMN()),0)+IFERROR(INDEX(INDIRECT($Q$4):INDIRECT($Q$5),MATCH($A67,INDIRECT($Q$4):INDIRECT($Q$6),0),COLUMN()),0)+IFERROR(INDEX(INDIRECT($Q$7):INDIRECT($Q$8),MATCH($A67,INDIRECT($Q$7):INDIRECT($Q$9),0),COLUMN()),0)+IFERROR(INDEX(INDIRECT($Q$10):INDIRECT($Q$11),MATCH($A67,INDIRECT($Q$10):INDIRECT($Q$12),0),COLUMN()),0)+IFERROR(INDEX(INDIRECT($Q$13):INDIRECT($Q$14),MATCH($A67,INDIRECT($Q$13):INDIRECT($Q$15),0),COLUMN()),0)+IFERROR(INDEX(INDIRECT($Q$16):INDIRECT($Q$17),MATCH($A67,INDIRECT($Q$16):INDIRECT($Q$18),0),COLUMN()),0) -> 0 | G67: =IFERROR(INDEX(INDIRECT($Q$1):INDIRECT($Q$2),MATCH($A67,INDIRECT($Q$1):INDIRECT($Q$3),0),COLUMN()),0)+IFERROR(INDEX(INDIRECT($Q$4):INDIRECT($Q$5),MATCH($A67,INDIRECT($Q$4):INDIRECT($Q$6),0),COLUMN()),0)+IFERROR(INDEX(INDIRECT($Q$7):INDIRECT($Q$8),MATCH($A67,INDIRECT($Q$7):INDIRECT($Q$9),0),COLUMN()),0)+IFERROR(INDEX(INDIRECT($Q$10):INDIRECT($Q$11),MATCH($A67,INDIRECT($Q$10):INDIRECT($Q$12),0),COLUMN()),0)+IFERROR(INDEX(INDIRECT($Q$13):INDIRECT($Q$14),MATCH($A67,INDIRECT($Q$13):INDIRECT($Q$15),0),COLUMN()),0)+IFERROR(INDEX(INDIRECT($Q$16):INDIRECT($Q$17),MATCH($A67,INDIRECT($Q$16):INDIRECT($Q$18),0),COLUMN()),0) -> 0 | H67: =IFERROR(INDEX(INDIRECT($Q$1):INDIRECT($Q$2),MATCH($A67,INDIRECT($Q$1):INDIRECT($Q$3),0),COLUMN()),0)+IFERROR(INDEX(INDIRECT($Q$4):INDIRECT($Q$5),MATCH($A67,INDIRECT($Q$4):INDIRECT($Q$6),0),COLUMN()),0)+IFERROR(INDEX(INDIRECT($Q$7):INDIRECT($Q$8),MATCH($A67,INDIRECT($Q$7):INDIRECT($Q$9),0),COLUMN()),0)+IFERROR(INDEX(INDIRECT($Q$10):INDIRECT($Q$11),MATCH($A67,INDIRECT($Q$10):INDIRECT($Q$12),0),COLUMN()),0)+IFERROR(INDEX(INDIRECT($Q$13):INDIRECT($Q$14),MATCH($A67,INDIRECT($Q$13):INDIRECT($Q$15),0),COLUMN()),0)+IFERROR(INDEX(INDIRECT($Q$16):INDIRECT($Q$17),MATCH($A67,INDIRECT($Q$16):INDIRECT($Q$18),0),COLUMN()),0) -> 0 | I67: =IFERROR(INDEX(INDIRECT($Q$1):INDIRECT($Q$2),MATCH($A67,INDIRECT($Q$1):INDIRECT($Q$3),0),COLUMN()),0)+IFERROR(INDEX(INDIRECT($Q$4):INDIRECT($Q$5),MATCH($A67,INDIRECT($Q$4):INDIRECT($Q$6),0),COLUMN()),0)+IFERROR(INDEX(INDIRECT($Q$7):INDIRECT($Q$8),MATCH($A67,INDIRECT($Q$7):INDIRECT($Q$9),0),COLUMN()),0)+IFERROR(INDEX(INDIRECT($Q$10):INDIRECT($Q$11),MATCH($A67,INDIRECT($Q$10):INDIRECT($Q$12),0),COLUMN()),0)+IFERROR(INDEX(INDIRECT($Q$13):INDIRECT($Q$14),MATCH($A67,INDIRECT($Q$13):INDIRECT($Q$15),0),COLUMN()),0)+IFERROR(INDEX(INDIRECT($Q$16):INDIRECT($Q$17),MATCH($A67,INDIRECT($Q$16):INDIRECT($Q$18),0),COLUMN()),0) -> 0 | K67: =IFERROR(VLOOKUP($A67,INDIRECT($Q$16):INDIRECT($Q$17),11,FALSE),0) -> 0 | L67: 0 | M67: 0
C68: =IFERROR(VLOOKUP($A68,INDIRECT($Q$1):INDIRECT($Q$2),11,FALSE),0) -> 0 | D68: =IFERROR(INDEX(INDIRECT($Q$1):INDIRECT($Q$2),MATCH($A68,INDIRECT($Q$1):INDIRECT($Q$3),0),COLUMN()),0)+IFERROR(INDEX(INDIRECT($Q$4):INDIRECT($Q$5),MATCH($A68,INDIRECT($Q$4):INDIRECT($Q$6),0),COLUMN()),0)+IFERROR(INDEX(INDIRECT($Q$7):INDIRECT($Q$8),MATCH($A68,INDIRECT($Q$7):INDIRECT($Q$9),0),COLUMN()),0)+IFERROR(INDEX(INDIRECT($Q$10):INDIRECT($Q$11),MATCH($A68,INDIRECT($Q$10):INDIRECT($Q$12),0),COLUMN()),0)+IFERROR(INDEX(INDIRECT($Q$13):INDIRECT($Q$14),MATCH($A68,INDIRECT($Q$13):INDIRECT($Q$15),0),COLUMN()),0)+IFERROR(INDEX(INDIRECT($Q$16):INDIRECT($Q$17),MATCH($A68,INDIRECT($Q$16):INDIRECT($Q$18),0),COLUMN()),0) -> 0 | E68: =IFERROR(INDEX(INDIRECT($Q$1):INDIRECT($Q$2),MATCH($A68,INDIRECT($Q$1):INDIRECT($Q$3),0),COLUMN()),0)+IFERROR(INDEX(INDIRECT($Q$4):INDIRECT($Q$5),MATCH($A68,INDIRECT($Q$4):INDIRECT($Q$6),0),COLUMN()),0)+IFERROR(INDEX(INDIRECT($Q$7):INDIRECT($Q$8),MATCH($A68,INDIRECT($Q$7):INDIRECT($Q$9),0),COLUMN()),0)+IFERROR(INDEX(INDIRECT($Q$10):INDIRECT($Q$11),MATCH($A68,INDIRECT($Q$10):INDIRECT($Q$12),0),COLUMN()),0)+IFERROR(INDEX(INDIRECT($Q$13):INDIRECT($Q$14),MATCH($A68,INDIRECT($Q$13):INDIRECT($Q$15),0),COLUMN()),0)+IFERROR(INDEX(INDIRECT($Q$16):INDIRECT($Q$17),MATCH($A68,INDIRECT($Q$16):INDIRECT($Q$18),0),COLUMN()),0) -> 0 | F68: =IFERROR(INDEX(INDIRECT($Q$1):INDIRECT($Q$2),MATCH($A68,INDIRECT($Q$1):INDIRECT($Q$3),0),COLUMN()),0)+IFERROR(INDEX(INDIRECT($Q$4):INDIRECT($Q$5),MATCH($A68,INDIRECT($Q$4):INDIRECT($Q$6),0),COLUMN()),0)+IFERROR(INDEX(INDIRECT($Q$7):INDIRECT($Q$8),MATCH($A68,INDIRECT($Q$7):INDIRECT($Q$9),0),COLUMN()),0)+IFERROR(INDEX(INDIRECT($Q$10):INDIRECT($Q$11),MATCH($A68,INDIRECT($Q$10):INDIRECT($Q$12),0),COLUMN()),0)+IFERROR(INDEX(INDIRECT($Q$13):INDIRECT($Q$14),MATCH($A68,INDIRECT($Q$13):INDIRECT($Q$15),0),COLUMN()),0)+IFERROR(INDEX(INDIRECT($Q$16):INDIRECT($Q$17),MATCH($A68,INDIRECT($Q$16):INDIRECT($Q$18),0),COLUMN()),0) -> 0 | G68: =IFERROR(INDEX(INDIRECT($Q$1):INDIRECT($Q$2),MATCH($A68,INDIRECT($Q$1):INDIRECT($Q$3),0),COLUMN()),0)+IFERROR(INDEX(INDIRECT($Q$4):INDIRECT($Q$5),MATCH($A68,INDIRECT($Q$4):INDIRECT($Q$6),0),COLUMN()),0)+IFERROR(INDEX(INDIRECT($Q$7):INDIRECT($Q$8),MATCH($A68,INDIRECT($Q$7):INDIRECT($Q$9),0),COLUMN()),0)+IFERROR(INDEX(INDIRECT($Q$10):INDIRECT($Q$11),MATCH($A68,INDIRECT($Q$10):INDIRECT($Q$12),0),COLUMN()),0)+IFERROR(INDEX(INDIRECT($Q$13):INDIRECT($Q$14),MATCH($A68,INDIRECT($Q$13):INDIRECT($Q$15),0),COLUMN()),0)+IFERROR(INDEX(INDIRECT($Q$16):INDIRECT($Q$17),MATCH($A68,INDIRECT($Q$16):INDIRECT($Q$18),0),COLUMN()),0) -> 0 | H68: =IFERROR(INDEX(INDIRECT($Q$1):INDIRECT($Q$2),MATCH($A68,INDIRECT($Q$1):INDIRECT($Q$3),0),COLUMN()),0)+IFERROR(INDEX(INDIRECT($Q$4):INDIRECT($Q$5),MATCH($A68,INDIRECT($Q$4):INDIRECT($Q$6),0),COLUMN()),0)+IFERROR(INDEX(INDIRECT($Q$7):INDIRECT($Q$8),MATCH($A68,INDIRECT($Q$7):INDIRECT($Q$9),0),COLUMN()),0)+IFERROR(INDEX(INDIRECT($Q$10):INDIRECT($Q$11),MATCH($A68,INDIRECT($Q$10):INDIRECT($Q$12),0),COLUMN()),0)+IFERROR(INDEX(INDIRECT($Q$13):INDIRECT($Q$14),MATCH($A68,INDIRECT($Q$13):INDIRECT($Q$15),0),COLUMN()),0)+IFERROR(INDEX(INDIRECT($Q$16):INDIRECT($Q$17),MATCH($A68,INDIRECT($Q$16):INDIRECT($Q$18),0),COLUMN()),0) -> 0 | I68: =IFERROR(INDEX(INDIRECT($Q$1):INDIRECT($Q$2),MATCH($A68,INDIRECT($Q$1):INDIRECT($Q$3),0),COLUMN()),0)+IFERROR(INDEX(INDIRECT($Q$4):INDIRECT($Q$5),MATCH($A68,INDIRECT($Q$4):INDIRECT($Q$6),0),COLUMN()),0)+IFERROR(INDEX(INDIRECT($Q$7):INDIRECT($Q$8),MATCH($A68,INDIRECT($Q$7):INDIRECT($Q$9),0),COLUMN()),0)+IFERROR(INDEX(INDIRECT($Q$10):INDIRECT($Q$11),MATCH($A68,INDIRECT($Q$10):INDIRECT($Q$12),0),COLUMN()),0)+IFERROR(INDEX(INDIRECT($Q$13):INDIRECT($Q$14),MATCH($A68,INDIRECT($Q$13):INDIRECT($Q$15),0),COLUMN()),0)+IFERROR(INDEX(INDIRECT($Q$16):INDIRECT($Q$17),MATCH($A68,INDIRECT($Q$16):INDIRECT($Q$18),0),COLUMN()),0) -> 0 | K68: =IFERROR(VLOOKUP($A68,INDIRECT($Q$16):INDIRECT($Q$17),11,FALSE),0) -> 0 | L68: 0 | M68: 0
C69: =IFERROR(VLOOKUP($A69,INDIRECT($Q$1):INDIRECT($Q$2),11,FALSE),0) -> 0 | D69: =IFERROR(INDEX(INDIRECT($Q$1):INDIRECT($Q$2),MATCH($A69,INDIRECT($Q$1):INDIRECT($Q$3),0),COLUMN()),0)+IFERROR(INDEX(INDIRECT($Q$4):INDIRECT($Q$5),MATCH($A69,INDIRECT($Q$4):INDIRECT($Q$6),0),COLUMN()),0)+IFERROR(INDEX(INDIRECT($Q$7):INDIRECT($Q$8),MATCH($A69,INDIRECT($Q$7):INDIRECT($Q$9),0),COLUMN()),0)+IFERROR(INDEX(INDIRECT($Q$10):INDIRECT($Q$11),MATCH($A69,INDIRECT($Q$10):INDIRECT($Q$12),0),COLUMN()),0)+IFERROR(INDEX(INDIRECT($Q$13):INDIRECT($Q$14),MATCH($A69,INDIRECT($Q$13):INDIRECT($Q$15),0),COLUMN()),0)+IFERROR(INDEX(INDIRECT($Q$16):INDIRECT($Q$17),MATCH($A69,INDIRECT($Q$16):INDIRECT($Q$18),0),COLUMN()),0) -> 0 | E69: =IFERROR(INDEX(INDIRECT($Q$1):INDIRECT($Q$2),MATCH($A69,INDIRECT($Q$1):INDIRECT($Q$3),0),COLUMN()),0)+IFERROR(INDEX(INDIRECT($Q$4):INDIRECT($Q$5),MATCH($A69,INDIRECT($Q$4):INDIRECT($Q$6),0),COLUMN()),0)+IFERROR(INDEX(INDIRECT($Q$7):INDIRECT($Q$8),MATCH($A69,INDIRECT($Q$7):INDIRECT($Q$9),0),COLUMN()),0)+IFERROR(INDEX(INDIRECT($Q$10):INDIRECT($Q$11),MATCH($A69,INDIRECT($Q$10):INDIRECT($Q$12),0),COLUMN()),0)+IFERROR(INDEX(INDIRECT($Q$13):INDIRECT($Q$14),MATCH($A69,INDIRECT($Q$13):INDIRECT($Q$15),0),COLUMN()),0)+IFERROR(INDEX(INDIRECT($Q$16):INDIRECT($Q$17),MATCH($A69,INDIRECT($Q$16):INDIRECT($Q$18),0),COLUMN()),0) -> 0 | F69: =IFERROR(INDEX(INDIRECT($Q$1):INDIRECT($Q$2),MATCH($A69,INDIRECT($Q$1):INDIRECT($Q$3),0),COLUMN()),0)+IFERROR(INDEX(INDIRECT($Q$4):INDIRECT($Q$5),MATCH($A69,INDIRECT($Q$4):INDIRECT($Q$6),0),COLUMN()),0)+IFERROR(INDEX(INDIRECT($Q$7):INDIRECT($Q$8),MATCH($A69,INDIRECT($Q$7):INDIRECT($Q$9),0),COLUMN()),0)+IFERROR(INDEX(INDIRECT($Q$10):INDIRECT($Q$11),MATCH($A69,INDIRECT($Q$10):INDIRECT($Q$12),0),COLUMN()),0)+IFERROR(INDEX(INDIRECT($Q$13):INDIRECT($Q$14),MATCH($A69,INDIRECT($Q$13):INDIRECT($Q$15),0),COLUMN()),0)+IFERROR(INDEX(INDIRECT($Q$16):INDIRECT($Q$17),MATCH($A69,INDIRECT($Q$16):INDIRECT($Q$18),0),COLUMN()),0) -> 0 | G69: =IFERROR(INDEX(INDIRECT($Q$1):INDIRECT($Q$2),MATCH($A69,INDIRECT($Q$1):INDIRECT($Q$3),0),COLUMN()),0)+IFERROR(INDEX(INDIRECT($Q$4):INDIRECT($Q$5),MATCH($A69,INDIRECT($Q$4):INDIRECT($Q$6),0),COLUMN()),0)+IFERROR(INDEX(INDIRECT($Q$7):INDIRECT($Q$8),MATCH($A69,INDIRECT($Q$7):INDIRECT($Q$9),0),COLUMN()),0)+IFERROR(INDEX(INDIRECT($Q$10):INDIRECT($Q$11),MATCH($A69,INDIRECT($Q$10):INDIRECT($Q$12),0),COLUMN()),0)+IFERROR(INDEX(INDIRECT($Q$13):INDIRECT($Q$14),MATCH($A69,INDIRECT($Q$13):INDIRECT($Q$15),0),COLUMN()),0)+IFERROR(INDEX(INDIRECT($Q$16):INDIRECT($Q$17),MATCH($A69,INDIRECT($Q$16):INDIRECT($Q$18),0),COLUMN()),0) -> 0 | H69: =IFERROR(INDEX(INDIRECT($Q$1):INDIRECT($Q$2),MATCH($A69,INDIRECT($Q$1):INDIRECT($Q$3),0),COLUMN()),0)+IFERROR(INDEX(INDIRECT($Q$4):INDIRECT($Q$5),MATCH($A69,INDIRECT($Q$4):INDIRECT($Q$6),0),COLUMN()),0)+IFERROR(INDEX(INDIRECT($Q$7):INDIRECT($Q$8),MATCH($A69,INDIRECT($Q$7):INDIRECT($Q$9),0),COLUMN()),0)+IFERROR(INDEX(INDIRECT($Q$10):INDIRECT($Q$11),MATCH($A69,INDIRECT($Q$10):INDIRECT($Q$12),0),COLUMN()),0)+IFERROR(INDEX(INDIRECT($Q$13):INDIRECT($Q$14),MATCH($A69,INDIRECT($Q$13):INDIRECT($Q$15),0),COLUMN()),0)+IFERROR(INDEX(INDIRECT($Q$16):INDIRECT($Q$17),MATCH($A69,INDIRECT($Q$16):INDIRECT($Q$18),0),COLUMN()),0) -> 0 | I69: =IFERROR(INDEX(INDIRECT($Q$1):INDIRECT($Q$2),MATCH($A69,INDIRECT($Q$1):INDIRECT($Q$3),0),COLUMN()),0)+IFERROR(INDEX(INDIRECT($Q$4):INDIRECT($Q$5),MATCH($A69,INDIRECT($Q$4):INDIRECT($Q$6),0),COLUMN()),0)+IFERROR(INDEX(INDIRECT($Q$7):INDIRECT($Q$8),MATCH($A69,INDIRECT($Q$7):INDIRECT($Q$9),0),COLUMN()),0)+IFERROR(INDEX(INDIRECT($Q$10):INDIRECT($Q$11),MATCH($A69,INDIRECT($Q$10):INDIRECT($Q$12),0),COLUMN()),0)+IFERROR(INDEX(INDIRECT($Q$13):INDIRECT($Q$14),MATCH($A69,INDIRECT($Q$13):INDIRECT($Q$15),0),COLUMN()),0)+IFERROR(INDEX(INDIRECT($Q$16):INDIRECT($Q$17),MATCH($A69,INDIRECT($Q$16):INDIRECT($Q$18),0),COLUMN()),0) -> 0 | K69: =IFERROR(VLOOKUP($A69,INDIRECT($Q$16):INDIRECT($Q$17),11,FALSE),0) -> 0 | L69: 0 | M69: 0
C70: =IFERROR(VLOOKUP($A70,INDIRECT($Q$1):INDIRECT($Q$2),11,FALSE),0) -> 0 | D70: =IFERROR(INDEX(INDIRECT($Q$1):INDIRECT($Q$2),MATCH($A70,INDIRECT($Q$1):INDIRECT($Q$3),0),COLUMN()),0)+IFERROR(INDEX(INDIRECT($Q$4):INDIRECT($Q$5),MATCH($A70,INDIRECT($Q$4):INDIRECT($Q$6),0),COLUMN()),0)+IFERROR(INDEX(INDIRECT($Q$7):INDIRECT($Q$8),MATCH($A70,INDIRECT($Q$7):INDIRECT($Q$9),0),COLUMN()),0)+IFERROR(INDEX(INDIRECT($Q$10):INDIRECT($Q$11),MATCH($A70,INDIRECT($Q$10):INDIRECT($Q$12),0),COLUMN()),0)+IFERROR(INDEX(INDIRECT($Q$13):INDIRECT($Q$14),MATCH($A70,INDIRECT($Q$13):INDIRECT($Q$15),0),COLUMN()),0)+IFERROR(INDEX(INDIRECT($Q$16):INDIRECT($Q$17),MATCH($A70,INDIRECT($Q$16):INDIRECT($Q$18),0),COLUMN()),0) -> 0 | E70: =IFERROR(INDEX(INDIRECT($Q$1):INDIRECT($Q$2),MATCH($A70,INDIRECT($Q$1):INDIRECT($Q$3),0),COLUMN()),0)+IFERROR(INDEX(INDIRECT($Q$4):INDIRECT($Q$5),MATCH($A70,INDIRECT($Q$4):INDIRECT($Q$6),0),COLUMN()),0)+IFERROR(INDEX(INDIRECT($Q$7):INDIRECT($Q$8),MATCH($A70,INDIRECT($Q$7):INDIRECT($Q$9),0),COLUMN()),0)+IFERROR(INDEX(INDIRECT($Q$10):INDIRECT($Q$11),MATCH($A70,INDIRECT($Q$10):INDIRECT($Q$12),0),COLUMN()),0)+IFERROR(INDEX(INDIRECT($Q$13):INDIRECT($Q$14),MATCH($A70,INDIRECT($Q$13):INDIRECT($Q$15),0),COLUMN()),0)+IFERROR(INDEX(INDIRECT($Q$16):INDIRECT($Q$17),MATCH($A70,INDIRECT($Q$16):INDIRECT($Q$18),0),COLUMN()),0) -> 0 | F70: =IFERROR(INDEX(INDIRECT($Q$1):INDIRECT($Q$2),MATCH($A70,INDIRECT($Q$1):INDIRECT($Q$3),0),COLUMN()),0)+IFERROR(INDEX(INDIRECT($Q$4):INDIRECT($Q$5),MATCH($A70,INDIRECT($Q$4):INDIRECT($Q$6),0),COLUMN()),0)+IFERROR(INDEX(INDIRECT($Q$7):INDIRECT($Q$8),MATCH($A70,INDIRECT($Q$7):INDIRECT($Q$9),0),COLUMN()),0)+IFERROR(INDEX(INDIRECT($Q$10):INDIRECT($Q$11),MATCH($A70,INDIRECT($Q$10):INDIRECT($Q$12),0),COLUMN()),0)+IFERROR(INDEX(INDIRECT($Q$13):INDIRECT($Q$14),MATCH($A70,INDIRECT($Q$13):INDIRECT($Q$15),0),COLUMN()),0)+IFERROR(INDEX(INDIRECT($Q$16):INDIRECT($Q$17),MATCH($A70,INDIRECT($Q$16):INDIRECT($Q$18),0),COLUMN()),0) -> 0 | G70: =IFERROR(INDEX(INDIRECT($Q$1):INDIRECT($Q$2),MATCH($A70,INDIRECT($Q$1):INDIRECT($Q$3),0),COLUMN()),0)+IFERROR(INDEX(INDIRECT($Q$4):INDIRECT($Q$5),MATCH($A70,INDIRECT($Q$4):INDIRECT($Q$6),0),COLUMN()),0)+IFERROR(INDEX(INDIRECT($Q$7):INDIRECT($Q$8),MATCH($A70,INDIRECT($Q$7):INDIRECT($Q$9),0),COLUMN()),0)+IFERROR(INDEX(INDIRECT($Q$10):INDIRECT($Q$11),MATCH($A70,INDIRECT($Q$10):INDIRECT($Q$12),0),COLUMN()),0)+IFERROR(INDEX(INDIRECT($Q$13):INDIRECT($Q$14),MATCH($A70,INDIRECT($Q$13):INDIRECT($Q$15),0),COLUMN()),0)+IFERROR(INDEX(INDIRECT($Q$16):INDIRECT($Q$17),MATCH($A70,INDIRECT($Q$16):INDIRECT($Q$18),0),COLUMN()),0) -> 0 | H70: =IFERROR(INDEX(INDIRECT($Q$1):INDIRECT($Q$2),MATCH($A70,INDIRECT($Q$1):INDIRECT($Q$3),0),COLUMN()),0)+IFERROR(INDEX(INDIRECT($Q$4):INDIRECT($Q$5),MATCH($A70,INDIRECT($Q$4):INDIRECT($Q$6),0),COLUMN()),0)+IFERROR(INDEX(INDIRECT($Q$7):INDIRECT($Q$8),MATCH($A70,INDIRECT($Q$7):INDIRECT($Q$9),0),COLUMN()),0)+IFERROR(INDEX(INDIRECT($Q$10):INDIRECT($Q$11),MATCH($A70,INDIRECT($Q$10):INDIRECT($Q$12),0),COLUMN()),0)+IFERROR(INDEX(INDIRECT($Q$13):INDIRECT($Q$14),MATCH($A70,INDIRECT($Q$13):INDIRECT($Q$15),0),COLUMN()),0)+IFERROR(INDEX(INDIRECT($Q$16):INDIRECT($Q$17),MATCH($A70,INDIRECT($Q$16):INDIRECT($Q$18),0),COLUMN()),0) -> 0 | I70: =IFERROR(INDEX(INDIRECT($Q$1):INDIRECT($Q$2),MATCH($A70,INDIRECT($Q$1):INDIRECT($Q$3),0),COLUMN()),0)+IFERROR(INDEX(INDIRECT($Q$4):INDIRECT($Q$5),MATCH($A70,INDIRECT($Q$4):INDIRECT($Q$6),0),COLUMN()),0)+IFERROR(INDEX(INDIRECT($Q$7):INDIRECT($Q$8),MATCH($A70,INDIRECT($Q$7):INDIRECT($Q$9),0),COLUMN()),0)+IFERROR(INDEX(INDIRECT($Q$10):INDIRECT($Q$11),MATCH($A70,INDIRECT($Q$10):INDIRECT($Q$12),0),COLUMN()),0)+IFERROR(INDEX(INDIRECT($Q$13):INDIRECT($Q$14),MATCH($A70,INDIRECT($Q$13):INDIRECT($Q$15),0),COLUMN()),0)+IFERROR(INDEX(INDIRECT($Q$16):INDIRECT($Q$17),MATCH($A70,INDIRECT($Q$16):INDIRECT($Q$18),0),COLUMN()),0) -> 0 | K70: =IFERROR(VLOOKUP($A70,INDIRECT($Q$16):INDIRECT($Q$17),11,FALSE),0) -> 0 | L70: 0 | M70: 0
C71: =IFERROR(VLOOKUP($A71,INDIRECT($Q$1):INDIRECT($Q$2),11,FALSE),0) -> 0 | D71: =IFERROR(INDEX(INDIRECT($Q$1):INDIRECT($Q$2),MATCH($A71,INDIRECT($Q$1):INDIRECT($Q$3),0),COLUMN()),0)+IFERROR(INDEX(INDIRECT($Q$4):INDIRECT($Q$5),MATCH($A71,INDIRECT($Q$4):INDIRECT($Q$6),0),COLUMN()),0)+IFERROR(INDEX(INDIRECT($Q$7):INDIRECT($Q$8),MATCH($A71,INDIRECT($Q$7):INDIRECT($Q$9),0),COLUMN()),0)+IFERROR(INDEX(INDIRECT($Q$10):INDIRECT($Q$11),MATCH($A71,INDIRECT($Q$10):INDIRECT($Q$12),0),COLUMN()),0)+IFERROR(INDEX(INDIRECT($Q$13):INDIRECT($Q$14),MATCH($A71,INDIRECT($Q$13):INDIRECT($Q$15),0),COLUMN()),0)+IFERROR(INDEX(INDIRECT($Q$16):INDIRECT($Q$17),MATCH($A71,INDIRECT($Q$16):INDIRECT($Q$18),0),COLUMN()),0) -> 0 | E71: =IFERROR(INDEX(INDIRECT($Q$1):INDIRECT($Q$2),MATCH($A71,INDIRECT($Q$1):INDIRECT($Q$3),0),COLUMN()),0)+IFERROR(INDEX(INDIRECT($Q$4):INDIRECT($Q$5),MATCH($A71,INDIRECT($Q$4):INDIRECT($Q$6),0),COLUMN()),0)+IFERROR(INDEX(INDIRECT($Q$7):INDIRECT($Q$8),MATCH($A71,INDIRECT($Q$7):INDIRECT($Q$9),0),COLUMN()),0)+IFERROR(INDEX(INDIRECT($Q$10):INDIRECT($Q$11),MATCH($A71,INDIRECT($Q$10):INDIRECT($Q$12),0),COLUMN()),0)+IFERROR(INDEX(INDIRECT($Q$13):INDIRECT($Q$14),MATCH($A71,INDIRECT($Q$13):INDIRECT($Q$15),0),COLUMN()),0)+IFERROR(INDEX(INDIRECT($Q$16):INDIRECT($Q$17),MATCH($A71,INDIRECT($Q$16):INDIRECT($Q$18),0),COLUMN()),0) -> 0 | F71: =IFERROR(INDEX(INDIRECT($Q$1):INDIRECT($Q$2),MATCH($A71,INDIRECT($Q$1):INDIRECT($Q$3),0),COLUMN()),0)+IFERROR(INDEX(INDIRECT($Q$4):INDIRECT($Q$5),MATCH($A71,INDIRECT($Q$4):INDIRECT($Q$6),0),COLUMN()),0)+IFERROR(INDEX(INDIRECT($Q$7):INDIRECT($Q$8),MATCH($A71,INDIRECT($Q$7):INDIRECT($Q$9),0),COLUMN()),0)+IFERROR(INDEX(INDIRECT($Q$10):INDIRECT($Q$11),MATCH($A71,INDIRECT($Q$10):INDIRECT($Q$12),0),COLUMN()),0)+IFERROR(INDEX(INDIRECT($Q$13):INDIRECT($Q$14),MATCH($A71,INDIRECT($Q$13):INDIRECT($Q$15),0),COLUMN()),0)+IFERROR(INDEX(INDIRECT($Q$16):INDIRECT($Q$17),MATCH($A71,INDIRECT($Q$16):INDIRECT($Q$18),0),COLUMN()),0) -> 0 | G71: =IFERROR(INDEX(INDIRECT($Q$1):INDIRECT($Q$2),MATCH($A71,INDIRECT($Q$1):INDIRECT($Q$3),0),COLUMN()),0)+IFERROR(INDEX(INDIRECT($Q$4):INDIRECT($Q$5),MATCH($A71,INDIRECT($Q$4):INDIRECT($Q$6),0),COLUMN()),0)+IFERROR(INDEX(INDIRECT($Q$7):INDIRECT($Q$8),MATCH($A71,INDIRECT($Q$7):INDIRECT($Q$9),0),COLUMN()),0)+IFERROR(INDEX(INDIRECT($Q$10):INDIRECT($Q$11),MATCH($A71,INDIRECT($Q$10):INDIRECT($Q$12),0),COLUMN()),0)+IFERROR(INDEX(INDIRECT($Q$13):INDIRECT($Q$14),MATCH($A71,INDIRECT($Q$13):INDIRECT($Q$15),0),COLUMN()),0)+IFERROR(INDEX(INDIRECT($Q$16):INDIRECT($Q$17),MATCH($A71,INDIRECT($Q$16):INDIRECT($Q$18),0),COLUMN()),0) -> 0 | H71: =IFERROR(INDEX(INDIRECT($Q$1):INDIRECT($Q$2),MATCH($A71,INDIRECT($Q$1):INDIRECT($Q$3),0),COLUMN()),0)+IFERROR(INDEX(INDIRECT($Q$4):INDIRECT($Q$5),MATCH($A71,INDIRECT($Q$4):INDIRECT($Q$6),0),COLUMN()),0)+IFERROR(INDEX(INDIRECT($Q$7):INDIRECT($Q$8),MATCH($A71,INDIRECT($Q$7):INDIRECT($Q$9),0),COLUMN()),0)+IFERROR(INDEX(INDIRECT($Q$10):INDIRECT($Q$11),MATCH($A71,INDIRECT($Q$10):INDIRECT($Q$12),0),COLUMN()),0)+IFERROR(INDEX(INDIRECT($Q$13):INDIRECT($Q$14),MATCH($A71,INDIRECT($Q$13):INDIRECT($Q$15),0),COLUMN()),0)+IFERROR(INDEX(INDIRECT($Q$16):INDIRECT($Q$17),MATCH($A71,INDIRECT($Q$16):INDIRECT($Q$18),0),COLUMN()),0) -> 0 | I71: =IFERROR(INDEX(INDIRECT($Q$1):INDIRECT($Q$2),MATCH($A71,INDIRECT($Q$1):INDIRECT($Q$3),0),COLUMN()),0)+IFERROR(INDEX(INDIRECT($Q$4):INDIRECT($Q$5),MATCH($A71,INDIRECT($Q$4):INDIRECT($Q$6),0),COLUMN()),0)+IFERROR(INDEX(INDIRECT($Q$7):INDIRECT($Q$8),MATCH($A71,INDIRECT($Q$7):INDIRECT($Q$9),0),COLUMN()),0)+IFERROR(INDEX(INDIRECT($Q$10):INDIRECT($Q$11),MATCH($A71,INDIRECT($Q$10):INDIRECT($Q$12),0),COLUMN()),0)+IFERROR(INDEX(INDIRECT($Q$13):INDIRECT($Q$14),MATCH($A71,INDIRECT($Q$13):INDIRECT($Q$15),0),COLUMN()),0)+IFERROR(INDEX(INDIRECT($Q$16):INDIRECT($Q$17),MATCH($A71,INDIRECT($Q$16):INDIRECT($Q$18),0),COLUMN()),0) -> 0 | K71: =IFERROR(VLOOKUP($A71,INDIRECT($Q$16):INDIRECT($Q$17),11,FALSE),0) -> 0 | L71: 0 | M71: 0
C72: =IFERROR(VLOOKUP($A72,INDIRECT($Q$1):INDIRECT($Q$2),11,FALSE),0) -> 0 | D72: =IFERROR(INDEX(INDIRECT($Q$1):INDIRECT($Q$2),MATCH($A72,INDIRECT($Q$1):INDIRECT($Q$3),0),COLUMN()),0)+IFERROR(INDEX(INDIRECT($Q$4):INDIRECT($Q$5),MATCH($A72,INDIRECT($Q$4):INDIRECT($Q$6),0),COLUMN()),0)+IFERROR(INDEX(INDIRECT($Q$7):INDIRECT($Q$8),MATCH($A72,INDIRECT($Q$7):INDIRECT($Q$9),0),COLUMN()),0)+IFERROR(INDEX(INDIRECT($Q$10):INDIRECT($Q$11),MATCH($A72,INDIRECT($Q$10):INDIRECT($Q$12),0),COLUMN()),0)+IFERROR(INDEX(INDIRECT($Q$13):INDIRECT($Q$14),MATCH($A72,INDIRECT($Q$13):INDIRECT($Q$15),0),COLUMN()),0)+IFERROR(INDEX(INDIRECT($Q$16):INDIRECT($Q$17),MATCH($A72,INDIRECT($Q$16):INDIRECT($Q$18),0),COLUMN()),0) -> 0 | E72: =IFERROR(INDEX(INDIRECT($Q$1):INDIRECT($Q$2),MATCH($A72,INDIRECT($Q$1):INDIRECT($Q$3),0),COLUMN()),0)+IFERROR(INDEX(INDIRECT($Q$4):INDIRECT($Q$5),MATCH($A72,INDIRECT($Q$4):INDIRECT($Q$6),0),COLUMN()),0)+IFERROR(INDEX(INDIRECT($Q$7):INDIRECT($Q$8),MATCH($A72,INDIRECT($Q$7):INDIRECT($Q$9),0),COLUMN()),0)+IFERROR(INDEX(INDIRECT($Q$10):INDIRECT($Q$11),MATCH($A72,INDIRECT($Q$10):INDIRECT($Q$12),0),COLUMN()),0)+IFERROR(INDEX(INDIRECT($Q$13):INDIRECT($Q$14),MATCH($A72,INDIRECT($Q$13):INDIRECT($Q$15),0),COLUMN()),0)+IFERROR(INDEX(INDIRECT($Q$16):INDIRECT($Q$17),MATCH($A72,INDIRECT($Q$16):INDIRECT($Q$18),0),COLUMN()),0) -> 0 | F72: =IFERROR(INDEX(INDIRECT($Q$1):INDIRECT($Q$2),MATCH($A72,INDIRECT($Q$1):INDIRECT($Q$3),0),COLUMN()),0)+IFERROR(INDEX(INDIRECT($Q$4):INDIRECT($Q$5),MATCH($A72,INDIRECT($Q$4):INDIRECT($Q$6),0),COLUMN()),0)+IFERROR(INDEX(INDIRECT($Q$7):INDIRECT($Q$8),MATCH($A72,INDIRECT($Q$7):INDIRECT($Q$9),0),COLUMN()),0)+IFERROR(INDEX(INDIRECT($Q$10):INDIRECT($Q$11),MATCH($A72,INDIRECT($Q$10):INDIRECT($Q$12),0),COLUMN()),0)+IFERROR(INDEX(INDIRECT($Q$13):INDIRECT($Q$14),MATCH($A72,INDIRECT($Q$13):INDIRECT($Q$15),0),COLUMN()),0)+IFERROR(INDEX(INDIRECT($Q$16):INDIRECT($Q$17),MATCH($A72,INDIRECT($Q$16):INDIRECT($Q$18),0),COLUMN()),0) -> 0 | G72: =IFERROR(INDEX(INDIRECT($Q$1):INDIRECT($Q$2),MATCH($A72,INDIRECT($Q$1):INDIRECT($Q$3),0),COLUMN()),0)+IFERROR(INDEX(INDIRECT($Q$4):INDIRECT($Q$5),MATCH($A72,INDIRECT($Q$4):INDIRECT($Q$6),0),COLUMN()),0)+IFERROR(INDEX(INDIRECT($Q$7):INDIRECT($Q$8),MATCH($A72,INDIRECT($Q$7):INDIRECT($Q$9),0),COLUMN()),0)+IFERROR(INDEX(INDIRECT($Q$10):INDIRECT($Q$11),MATCH($A72,INDIRECT($Q$10):INDIRECT($Q$12),0),COLUMN()),0)+IFERROR(INDEX(INDIRECT($Q$13):INDIRECT($Q$14),MATCH($A72,INDIRECT($Q$13):INDIRECT($Q$15),0),COLUMN()),0)+IFERROR(INDEX(INDIRECT($Q$16):INDIRECT($Q$17),MATCH($A72,INDIRECT($Q$16):INDIRECT($Q$18),0),COLUMN()),0) -> 0 | H72: =IFERROR(INDEX(INDIRECT($Q$1):INDIRECT($Q$2),MATCH($A72,INDIRECT($Q$1):INDIRECT($Q$3),0),COLUMN()),0)+IFERROR(INDEX(INDIRECT($Q$4):INDIRECT($Q$5),MATCH($A72,INDIRECT($Q$4):INDIRECT($Q$6),0),COLUMN()),0)+IFERROR(INDEX(INDIRECT($Q$7):INDIRECT($Q$8),MATCH($A72,INDIRECT($Q$7):INDIRECT($Q$9),0),COLUMN()),0)+IFERROR(INDEX(INDIRECT($Q$10):INDIRECT($Q$11),MATCH($A72,INDIRECT($Q$10):INDIRECT($Q$12),0),COLUMN()),0)+IFERROR(INDEX(INDIRECT($Q$13):INDIRECT($Q$14),MATCH($A72,INDIRECT($Q$13):INDIRECT($Q$15),0),COLUMN()),0)+IFERROR(INDEX(INDIRECT($Q$16):INDIRECT($Q$17),MATCH($A72,INDIRECT($Q$16):INDIRECT($Q$18),0),COLUMN()),0) -> 0 | I72: =IFERROR(INDEX(INDIRECT($Q$1):INDIRECT($Q$2),MATCH($A72,INDIRECT($Q$1):INDIRECT($Q$3),0),COLUMN()),0)+IFERROR(INDEX(INDIRECT($Q$4):INDIRECT($Q$5),MATCH($A72,INDIRECT($Q$4):INDIRECT($Q$6),0),COLUMN()),0)+IFERROR(INDEX(INDIRECT($Q$7):INDIRECT($Q$8),MATCH($A72,INDIRECT($Q$7):INDIRECT($Q$9),0),COLUMN()),0)+IFERROR(INDEX(INDIRECT($Q$10):INDIRECT($Q$11),MATCH($A72,INDIRECT($Q$10):INDIRECT($Q$12),0),COLUMN()),0)+IFERROR(INDEX(INDIRECT($Q$13):INDIRECT($Q$14),MATCH($A72,INDIRECT($Q$13):INDIRECT($Q$15),0),COLUMN()),0)+IFERROR(INDEX(INDIRECT($Q$16):INDIRECT($Q$17),MATCH($A72,INDIRECT($Q$16):INDIRECT($Q$18),0),COLUMN()),0) -> 0 | K72: =IFERROR(VLOOKUP($A72,INDIRECT($Q$16):INDIRECT($Q$17),11,FALSE),0) -> 0 | L72: =IF($K72>$J72,$K72-$J72,0) -> 0 | M72: =IF($K72<$J72,$J72-$K72,0) -> 0
C73: =IFERROR(VLOOKUP($A73,INDIRECT($Q$1):INDIRECT($Q$2),11,FALSE),0) -> 0 | D73: =IFERROR(INDEX(INDIRECT($Q$1):INDIRECT($Q$2),MATCH($A73,INDIRECT($Q$1):INDIRECT($Q$3),0),COLUMN()),0)+IFERROR(INDEX(INDIRECT($Q$4):INDIRECT($Q$5),MATCH($A73,INDIRECT($Q$4):INDIRECT($Q$6),0),COLUMN()),0)+IFERROR(INDEX(INDIRECT($Q$7):INDIRECT($Q$8),MATCH($A73,INDIRECT($Q$7):INDIRECT($Q$9),0),COLUMN()),0)+IFERROR(INDEX(INDIRECT($Q$10):INDIRECT($Q$11),MATCH($A73,INDIRECT($Q$10):INDIRECT($Q$12),0),COLUMN()),0)+IFERROR(INDEX(INDIRECT($Q$13):INDIRECT($Q$14),MATCH($A73,INDIRECT($Q$13):INDIRECT($Q$15),0),COLUMN()),0)+IFERROR(INDEX(INDIRECT($Q$16):INDIRECT($Q$17),MATCH($A73,INDIRECT($Q$16):INDIRECT($Q$18),0),COLUMN()),0) -> 0 | E73: =IFERROR(INDEX(INDIRECT($Q$1):INDIRECT($Q$2),MATCH($A73,INDIRECT($Q$1):INDIRECT($Q$3),0),COLUMN()),0)+IFERROR(INDEX(INDIRECT($Q$4):INDIRECT($Q$5),MATCH($A73,INDIRECT($Q$4):INDIRECT($Q$6),0),COLUMN()),0)+IFERROR(INDEX(INDIRECT($Q$7):INDIRECT($Q$8),MATCH($A73,INDIRECT($Q$7):INDIRECT($Q$9),0),COLUMN()),0)+IFERROR(INDEX(INDIRECT($Q$10):INDIRECT($Q$11),MATCH($A73,INDIRECT($Q$10):INDIRECT($Q$12),0),COLUMN()),0)+IFERROR(INDEX(INDIRECT($Q$13):INDIRECT($Q$14),MATCH($A73,INDIRECT($Q$13):INDIRECT($Q$15),0),COLUMN()),0)+IFERROR(INDEX(INDIRECT($Q$16):INDIRECT($Q$17),MATCH($A73,INDIRECT($Q$16):INDIRECT($Q$18),0),COLUMN()),0) -> 0 | F73: =IFERROR(INDEX(INDIRECT($Q$1):INDIRECT($Q$2),MATCH($A73,INDIRECT($Q$1):INDIRECT($Q$3),0),COLUMN()),0)+IFERROR(INDEX(INDIRECT($Q$4):INDIRECT($Q$5),MATCH($A73,INDIRECT($Q$4):INDIRECT($Q$6),0),COLUMN()),0)+IFERROR(INDEX(INDIRECT($Q$7):INDIRECT($Q$8),MATCH($A73,INDIRECT($Q$7):INDIRECT($Q$9),0),COLUMN()),0)+IFERROR(INDEX(INDIRECT($Q$10):INDIRECT($Q$11),MATCH($A73,INDIRECT($Q$10):INDIRECT($Q$12),0),COLUMN()),0)+IFERROR(INDEX(INDIRECT($Q$13):INDIRECT($Q$14),MATCH($A73,INDIRECT($Q$13):INDIRECT($Q$15),0),COLUMN()),0)+IFERROR(INDEX(INDIRECT($Q$16):INDIRECT($Q$17),MATCH($A73,INDIRECT($Q$16):INDIRECT($Q$18),0),COLUMN()),0) -> 0 | G73: =IFERROR(INDEX(INDIRECT($Q$1):INDIRECT($Q$2),MATCH($A73,INDIRECT($Q$1):INDIRECT($Q$3),0),COLUMN()),0)+IFERROR(INDEX(INDIRECT($Q$4):INDIRECT($Q$5),MATCH($A73,INDIRECT($Q$4):INDIRECT($Q$6),0),COLUMN()),0)+IFERROR(INDEX(INDIRECT($Q$7):INDIRECT($Q$8),MATCH($A73,INDIRECT($Q$7):INDIRECT($Q$9),0),COLUMN()),0)+IFERROR(INDEX(INDIRECT($Q$10):INDIRECT($Q$11),MATCH($A73,INDIRECT($Q$10):INDIRECT($Q$12),0),COLUMN()),0)+IFERROR(INDEX(INDIRECT($Q$13):INDIRECT($Q$14),MATCH($A73,INDIRECT($Q$13):INDIRECT($Q$15),0),COLUMN()),0)+IFERROR(INDEX(INDIRECT($Q$16):INDIRECT($Q$17),MATCH($A73,INDIRECT($Q$16):INDIRECT($Q$18),0),COLUMN()),0) -> 0 | H73: =IFERROR(INDEX(INDIRECT($Q$1):INDIRECT($Q$2),MATCH($A73,INDIRECT($Q$1):INDIRECT($Q$3),0),COLUMN()),0)+IFERROR(INDEX(INDIRECT($Q$4):INDIRECT($Q$5),MATCH($A73,INDIRECT($Q$4):INDIRECT($Q$6),0),COLUMN()),0)+IFERROR(INDEX(INDIRECT($Q$7):INDIRECT($Q$8),MATCH($A73,INDIRECT($Q$7):INDIRECT($Q$9),0),COLUMN()),0)+IFERROR(INDEX(INDIRECT($Q$10):INDIRECT($Q$11),MATCH($A73,INDIRECT($Q$10):INDIRECT($Q$12),0),COLUMN()),0)+IFERROR(INDEX(INDIRECT($Q$13):INDIRECT($Q$14),MATCH($A73,INDIRECT($Q$13):INDIRECT($Q$15),0),COLUMN()),0)+IFERROR(INDEX(INDIRECT($Q$16):INDIRECT($Q$17),MATCH($A73,INDIRECT($Q$16):INDIRECT($Q$18),0),COLUMN()),0) -> 0 | I73: =IFERROR(INDEX(INDIRECT($Q$1):INDIRECT($Q$2),MATCH($A73,INDIRECT($Q$1):INDIRECT($Q$3),0),COLUMN()),0)+IFERROR(INDEX(INDIRECT($Q$4):INDIRECT($Q$5),MATCH($A73,INDIRECT($Q$4):INDIRECT($Q$6),0),COLUMN()),0)+IFERROR(INDEX(INDIRECT($Q$7):INDIRECT($Q$8),MATCH($A73,INDIRECT($Q$7):INDIRECT($Q$9),0),COLUMN()),0)+IFERROR(INDEX(INDIRECT($Q$10):INDIRECT($Q$11),MATCH($A73,INDIRECT($Q$10):INDIRECT($Q$12),0),COLUMN()),0)+IFERROR(INDEX(INDIRECT($Q$13):INDIRECT($Q$14),MATCH($A73,INDIRECT($Q$13):INDIRECT($Q$15),0),COLUMN()),0)+IFERROR(INDEX(INDIRECT($Q$16):INDIRECT($Q$17),MATCH($A73,INDIRECT($Q$16):INDIRECT($Q$18),0),COLUMN()),0) -> 0 | K73: =IFERROR(VLOOKUP($A73,INDIRECT($Q$16):INDIRECT($Q$17),11,FALSE),0) -> 0 | L73: 0 | M73: 0
C74: =IFERROR(VLOOKUP($A74,INDIRECT($Q$1):INDIRECT($Q$2),11,FALSE),0) -> 0 | D74: =IFERROR(INDEX(INDIRECT($Q$1):INDIRECT($Q$2),MATCH($A74,INDIRECT($Q$1):INDIRECT($Q$3),0),COLUMN()),0)+IFERROR(INDEX(INDIRECT($Q$4):INDIRECT($Q$5),MATCH($A74,INDIRECT($Q$4):INDIRECT($Q$6),0),COLUMN()),0)+IFERROR(INDEX(INDIRECT($Q$7):INDIRECT($Q$8),MATCH($A74,INDIRECT($Q$7):INDIRECT($Q$9),0),COLUMN()),0)+IFERROR(INDEX(INDIRECT($Q$10):INDIRECT($Q$11),MATCH($A74,INDIRECT($Q$10):INDIRECT($Q$12),0),COLUMN()),0)+IFERROR(INDEX(INDIRECT($Q$13):INDIRECT($Q$14),MATCH($A74,INDIRECT($Q$13):INDIRECT($Q$15),0),COLUMN()),0)+IFERROR(INDEX(INDIRECT($Q$16):INDIRECT($Q$17),MATCH($A74,INDIRECT($Q$16):INDIRECT($Q$18),0),COLUMN()),0) -> 0 | E74: =IFERROR(INDEX(INDIRECT($Q$1):INDIRECT($Q$2),MATCH($A74,INDIRECT($Q$1):INDIRECT($Q$3),0),COLUMN()),0)+IFERROR(INDEX(INDIRECT($Q$4):INDIRECT($Q$5),MATCH($A74,INDIRECT($Q$4):INDIRECT($Q$6),0),COLUMN()),0)+IFERROR(INDEX(INDIRECT($Q$7):INDIRECT($Q$8),MATCH($A74,INDIRECT($Q$7):INDIRECT($Q$9),0),COLUMN()),0)+IFERROR(INDEX(INDIRECT($Q$10):INDIRECT($Q$11),MATCH($A74,INDIRECT($Q$10):INDIRECT($Q$12),0),COLUMN()),0)+IFERROR(INDEX(INDIRECT($Q$13):INDIRECT($Q$14),MATCH($A74,INDIRECT($Q$13):INDIRECT($Q$15),0),COLUMN()),0)+IFERROR(INDEX(INDIRECT($Q$16):INDIRECT($Q$17),MATCH($A74,INDIRECT($Q$16):INDIRECT($Q$18),0),COLUMN()),0) -> 0 | F74: =IFERROR(INDEX(INDIRECT($Q$1):INDIRECT($Q$2),MATCH($A74,INDIRECT($Q$1):INDIRECT($Q$3),0),COLUMN()),0)+IFERROR(INDEX(INDIRECT($Q$4):INDIRECT($Q$5),MATCH($A74,INDIRECT($Q$4):INDIRECT($Q$6),0),COLUMN()),0)+IFERROR(INDEX(INDIRECT($Q$7):INDIRECT($Q$8),MATCH($A74,INDIRECT($Q$7):INDIRECT($Q$9),0),COLUMN()),0)+IFERROR(INDEX(INDIRECT($Q$10):INDIRECT($Q$11),MATCH($A74,INDIRECT($Q$10):INDIRECT($Q$12),0),COLUMN()),0)+IFERROR(INDEX(INDIRECT($Q$13):INDIRECT($Q$14),MATCH($A74,INDIRECT($Q$13):INDIRECT($Q$15),0),COLUMN()),0)+IFERROR(INDEX(INDIRECT($Q$16):INDIRECT($Q$17),MATCH($A74,INDIRECT($Q$16):INDIRECT($Q$18),0),COLUMN()),0) -> 0 | G74: =IFERROR(INDEX(INDIRECT($Q$1):INDIRECT($Q$2),MATCH($A74,INDIRECT($Q$1):INDIRECT($Q$3),0),COLUMN()),0)+IFERROR(INDEX(INDIRECT($Q$4):INDIRECT($Q$5),MATCH($A74,INDIRECT($Q$4):INDIRECT($Q$6),0),COLUMN()),0)+IFERROR(INDEX(INDIRECT($Q$7):INDIRECT($Q$8),MATCH($A74,INDIRECT($Q$7):INDIRECT($Q$9),0),COLUMN()),0)+IFERROR(INDEX(INDIRECT($Q$10):INDIRECT($Q$11),MATCH($A74,INDIRECT($Q$10):INDIRECT($Q$12),0),COLUMN()),0)+IFERROR(INDEX(INDIRECT($Q$13):INDIRECT($Q$14),MATCH($A74,INDIRECT($Q$13):INDIRECT($Q$15),0),COLUMN()),0)+IFERROR(INDEX(INDIRECT($Q$16):INDIRECT($Q$17),MATCH($A74,INDIRECT($Q$16):INDIRECT($Q$18),0),COLUMN()),0) -> 0 | H74: =IFERROR(INDEX(INDIRECT($Q$1):INDIRECT($Q$2),MATCH($A74,INDIRECT($Q$1):INDIRECT($Q$3),0),COLUMN()),0)+IFERROR(INDEX(INDIRECT($Q$4):INDIRECT($Q$5),MATCH($A74,INDIRECT($Q$4):INDIRECT($Q$6),0),COLUMN()),0)+IFERROR(INDEX(INDIRECT($Q$7):INDIRECT($Q$8),MATCH($A74,INDIRECT($Q$7):INDIRECT($Q$9),0),COLUMN()),0)+IFERROR(INDEX(INDIRECT($Q$10):INDIRECT($Q$11),MATCH($A74,INDIRECT($Q$10):INDIRECT($Q$12),0),COLUMN()),0)+IFERROR(INDEX(INDIRECT($Q$13):INDIRECT($Q$14),MATCH($A74,INDIRECT($Q$13):INDIRECT($Q$15),0),COLUMN()),0)+IFERROR(INDEX(INDIRECT($Q$16):INDIRECT($Q$17),MATCH($A74,INDIRECT($Q$16):INDIRECT($Q$18),0),COLUMN()),0) -> 0 | I74: =IFERROR(INDEX(INDIRECT($Q$1):INDIRECT($Q$2),MATCH($A74,INDIRECT($Q$1):INDIRECT($Q$3),0),COLUMN()),0)+IFERROR(INDEX(INDIRECT($Q$4):INDIRECT($Q$5),MATCH($A74,INDIRECT($Q$4):INDIRECT($Q$6),0),COLUMN()),0)+IFERROR(INDEX(INDIRECT($Q$7):INDIRECT($Q$8),MATCH($A74,INDIRECT($Q$7):INDIRECT($Q$9),0),COLUMN()),0)+IFERROR(INDEX(INDIRECT($Q$10):INDIRECT($Q$11),MATCH($A74,INDIRECT($Q$10):INDIRECT($Q$12),0),COLUMN()),0)+IFERROR(INDEX(INDIRECT($Q$13):INDIRECT($Q$14),MATCH($A74,INDIRECT($Q$13):INDIRECT($Q$15),0),COLUMN()),0)+IFERROR(INDEX(INDIRECT($Q$16):INDIRECT($Q$17),MATCH($A74,INDIRECT($Q$16):INDIRECT($Q$18),0),COLUMN()),0) -> 0 | K74: =IFERROR(VLOOKUP($A74,INDIRECT($Q$16):INDIRECT($Q$17),11,FALSE),0) -> 0 | L74: 0 | M74: 0
C75: =IFERROR(VLOOKUP($A75,INDIRECT($Q$1):INDIRECT($Q$2),11,FALSE),0) -> 0 | D75: =IFERROR(INDEX(INDIRECT($Q$1):INDIRECT($Q$2),MATCH($A75,INDIRECT($Q$1):INDIRECT($Q$3),0),COLUMN()),0)+IFERROR(INDEX(INDIRECT($Q$4):INDIRECT($Q$5),MATCH($A75,INDIRECT($Q$4):INDIRECT($Q$6),0),COLUMN()),0)+IFERROR(INDEX(INDIRECT($Q$7):INDIRECT($Q$8),MATCH($A75,INDIRECT($Q$7):INDIRECT($Q$9),0),COLUMN()),0)+IFERROR(INDEX(INDIRECT($Q$10):INDIRECT($Q$11),MATCH($A75,INDIRECT($Q$10):INDIRECT($Q$12),0),COLUMN()),0)+IFERROR(INDEX(INDIRECT($Q$13):INDIRECT($Q$14),MATCH($A75,INDIRECT($Q$13):INDIRECT($Q$15),0),COLUMN()),0)+IFERROR(INDEX(INDIRECT($Q$16):INDIRECT($Q$17),MATCH($A75,INDIRECT($Q$16):INDIRECT($Q$18),0),COLUMN()),0) -> 0 | E75: =IFERROR(INDEX(INDIRECT($Q$1):INDIRECT($Q$2),MATCH($A75,INDIRECT($Q$1):INDIRECT($Q$3),0),COLUMN()),0)+IFERROR(INDEX(INDIRECT($Q$4):INDIRECT($Q$5),MATCH($A75,INDIRECT($Q$4):INDIRECT($Q$6),0),COLUMN()),0)+IFERROR(INDEX(INDIRECT($Q$7):INDIRECT($Q$8),MATCH($A75,INDIRECT($Q$7):INDIRECT($Q$9),0),COLUMN()),0)+IFERROR(INDEX(INDIRECT($Q$10):INDIRECT($Q$11),MATCH($A75,INDIRECT($Q$10):INDIRECT($Q$12),0),COLUMN()),0)+IFERROR(INDEX(INDIRECT($Q$13):INDIRECT($Q$14),MATCH($A75,INDIRECT($Q$13):INDIRECT($Q$15),0),COLUMN()),0)+IFERROR(INDEX(INDIRECT($Q$16):INDIRECT($Q$17),MATCH($A75,INDIRECT($Q$16):INDIRECT($Q$18),0),COLUMN()),0) -> 0 | F75: =IFERROR(INDEX(INDIRECT($Q$1):INDIRECT($Q$2),MATCH($A75,INDIRECT($Q$1):INDIRECT($Q$3),0),COLUMN()),0)+IFERROR(INDEX(INDIRECT($Q$4):INDIRECT($Q$5),MATCH($A75,INDIRECT($Q$4):INDIRECT($Q$6),0),COLUMN()),0)+IFERROR(INDEX(INDIRECT($Q$7):INDIRECT($Q$8),MATCH($A75,INDIRECT($Q$7):INDIRECT($Q$9),0),COLUMN()),0)+IFERROR(INDEX(INDIRECT($Q$10):INDIRECT($Q$11),MATCH($A75,INDIRECT($Q$10):INDIRECT($Q$12),0),COLUMN()),0)+IFERROR(INDEX(INDIRECT($Q$13):INDIRECT($Q$14),MATCH($A75,INDIRECT($Q$13):INDIRECT($Q$15),0),COLUMN()),0)+IFERROR(INDEX(INDIRECT($Q$16):INDIRECT($Q$17),MATCH($A75,INDIRECT($Q$16):INDIRECT($Q$18),0),COLUMN()),0) -> 0 | G75: =IFERROR(INDEX(INDIRECT($Q$1):INDIRECT($Q$2),MATCH($A75,INDIRECT($Q$1):INDIRECT($Q$3),0),COLUMN()),0)+IFERROR(INDEX(INDIRECT($Q$4):INDIRECT($Q$5),MATCH($A75,INDIRECT($Q$4):INDIRECT($Q$6),0),COLUMN()),0)+IFERROR(INDEX(INDIRECT($Q$7):INDIRECT($Q$8),MATCH($A75,INDIRECT($Q$7):INDIRECT($Q$9),0),COLUMN()),0)+IFERROR(INDEX(INDIRECT($Q$10):INDIRECT($Q$11),MATCH($A75,INDIRECT($Q$10):INDIRECT($Q$12),0),COLUMN()),0)+IFERROR(INDEX(INDIRECT($Q$13):INDIRECT($Q$14),MATCH($A75,INDIRECT($Q$13):INDIRECT($Q$15),0),COLUMN()),0)+IFERROR(INDEX(INDIRECT($Q$16):INDIRECT($Q$17),MATCH($A75,INDIRECT($Q$16):INDIRECT($Q$18),0),COLUMN()),0) -> 0 | H75: =IFERROR(INDEX(INDIRECT($Q$1):INDIRECT($Q$2),MATCH($A75,INDIRECT($Q$1):INDIRECT($Q$3),0),COLUMN()),0)+IFERROR(INDEX(INDIRECT($Q$4):INDIRECT($Q$5),MATCH($A75,INDIRECT($Q$4):INDIRECT($Q$6),0),COLUMN()),0)+IFERROR(INDEX(INDIRECT($Q$7):INDIRECT($Q$8),MATCH($A75,INDIRECT($Q$7):INDIRECT($Q$9),0),COLUMN()),0)+IFERROR(INDEX(INDIRECT($Q$10):INDIRECT($Q$11),MATCH($A75,INDIRECT($Q$10):INDIRECT($Q$12),0),COLUMN()),0)+IFERROR(INDEX(INDIRECT($Q$13):INDIRECT($Q$14),MATCH($A75,INDIRECT($Q$13):INDIRECT($Q$15),0),COLUMN()),0)+IFERROR(INDEX(INDIRECT($Q$16):INDIRECT($Q$17),MATCH($A75,INDIRECT($Q$16):INDIRECT($Q$18),0),COLUMN()),0) -> 0 | I75: =IFERROR(INDEX(INDIRECT($Q$1):INDIRECT($Q$2),MATCH($A75,INDIRECT($Q$1):INDIRECT($Q$3),0),COLUMN()),0)+IFERROR(INDEX(INDIRECT($Q$4):INDIRECT($Q$5),MATCH($A75,INDIRECT($Q$4):INDIRECT($Q$6),0),COLUMN()),0)+IFERROR(INDEX(INDIRECT($Q$7):INDIRECT($Q$8),MATCH($A75,INDIRECT($Q$7):INDIRECT($Q$9),0),COLUMN()),0)+IFERROR(INDEX(INDIRECT($Q$10):INDIRECT($Q$11),MATCH($A75,INDIRECT($Q$10):INDIRECT($Q$12),0),COLUMN()),0)+IFERROR(INDEX(INDIRECT($Q$13):INDIRECT($Q$14),MATCH($A75,INDIRECT($Q$13):INDIRECT($Q$15),0),COLUMN()),0)+IFERROR(INDEX(INDIRECT($Q$16):INDIRECT($Q$17),MATCH($A75,INDIRECT($Q$16):INDIRECT($Q$18),0),COLUMN()),0) -> 0 | K75: =IFERROR(VLOOKUP($A75,INDIRECT($Q$16):INDIRECT($Q$17),11,FALSE),0) -> 0 | L75: 0 | M75: 0
C76: =IFERROR(VLOOKUP($A76,INDIRECT($Q$1):INDIRECT($Q$2),11,FALSE),0) -> 0 | D76: =IFERROR(INDEX(INDIRECT($Q$1):INDIRECT($Q$2),MATCH($A76,INDIRECT($Q$1):INDIRECT($Q$3),0),COLUMN()),0)+IFERROR(INDEX(INDIRECT($Q$4):INDIRECT($Q$5),MATCH($A76,INDIRECT($Q$4):INDIRECT($Q$6),0),COLUMN()),0)+IFERROR(INDEX(INDIRECT($Q$7):INDIRECT($Q$8),MATCH($A76,INDIRECT($Q$7):INDIRECT($Q$9),0),COLUMN()),0)+IFERROR(INDEX(INDIRECT($Q$10):INDIRECT($Q$11),MATCH($A76,INDIRECT($Q$10):INDIRECT($Q$12),0),COLUMN()),0)+IFERROR(INDEX(INDIRECT($Q$13):INDIRECT($Q$14),MATCH($A76,INDIRECT($Q$13):INDIRECT($Q$15),0),COLUMN()),0)+IFERROR(INDEX(INDIRECT($Q$16):INDIRECT($Q$17),MATCH($A76,INDIRECT($Q$16):INDIRECT($Q$18),0),COLUMN()),0) -> 0 | E76: =IFERROR(INDEX(INDIRECT($Q$1):INDIRECT($Q$2),MATCH($A76,INDIRECT($Q$1):INDIRECT($Q$3),0),COLUMN()),0)+IFERROR(INDEX(INDIRECT($Q$4):INDIRECT($Q$5),MATCH($A76,INDIRECT($Q$4):INDIRECT($Q$6),0),COLUMN()),0)+IFERROR(INDEX(INDIRECT($Q$7):INDIRECT($Q$8),MATCH($A76,INDIRECT($Q$7):INDIRECT($Q$9),0),COLUMN()),0)+IFERROR(INDEX(INDIRECT($Q$10):INDIRECT($Q$11),MATCH($A76,INDIRECT($Q$10):INDIRECT($Q$12),0),COLUMN()),0)+IFERROR(INDEX(INDIRECT($Q$13):INDIRECT($Q$14),MATCH($A76,INDIRECT($Q$13):INDIRECT($Q$15),0),COLUMN()),0)+IFERROR(INDEX(INDIRECT($Q$16):INDIRECT($Q$17),MATCH($A76,INDIRECT($Q$16):INDIRECT($Q$18),0),COLUMN()),0) -> 0 | F76: =IFERROR(INDEX(INDIRECT($Q$1):INDIRECT($Q$2),MATCH($A76,INDIRECT($Q$1):INDIRECT($Q$3),0),COLUMN()),0)+IFERROR(INDEX(INDIRECT($Q$4):INDIRECT($Q$5),MATCH($A76,INDIRECT($Q$4):INDIRECT($Q$6),0),COLUMN()),0)+IFERROR(INDEX(INDIRECT($Q$7):INDIRECT($Q$8),MATCH($A76,INDIRECT($Q$7):INDIRECT($Q$9),0),COLUMN()),0)+IFERROR(INDEX(INDIRECT($Q$10):INDIRECT($Q$11),MATCH($A76,INDIRECT($Q$10):INDIRECT($Q$12),0),COLUMN()),0)+IFERROR(INDEX(INDIRECT($Q$13):INDIRECT($Q$14),MATCH($A76,INDIRECT($Q$13):INDIRECT($Q$15),0),COLUMN()),0)+IFERROR(INDEX(INDIRECT($Q$16):INDIRECT($Q$17),MATCH($A76,INDIRECT($Q$16):INDIRECT($Q$18),0),COLUMN()),0) -> 0 | G76: =IFERROR(INDEX(INDIRECT($Q$1):INDIRECT($Q$2),MATCH($A76,INDIRECT($Q$1):INDIRECT($Q$3),0),COLUMN()),0)+IFERROR(INDEX(INDIRECT($Q$4):INDIRECT($Q$5),MATCH($A76,INDIRECT($Q$4):INDIRECT($Q$6),0),COLUMN()),0)+IFERROR(INDEX(INDIRECT($Q$7):INDIRECT($Q$8),MATCH($A76,INDIRECT($Q$7):INDIRECT($Q$9),0),COLUMN()),0)+IFERROR(INDEX(INDIRECT($Q$10):INDIRECT($Q$11),MATCH($A76,INDIRECT($Q$10):INDIRECT($Q$12),0),COLUMN()),0)+IFERROR(INDEX(INDIRECT($Q$13):INDIRECT($Q$14),MATCH($A76,INDIRECT($Q$13):INDIRECT($Q$15),0),COLUMN()),0)+IFERROR(INDEX(INDIRECT($Q$16):INDIRECT($Q$17),MATCH($A76,INDIRECT($Q$16):INDIRECT($Q$18),0),COLUMN()),0) -> 0 | H76: =IFERROR(INDEX(INDIRECT($Q$1):INDIRECT($Q$2),MATCH($A76,INDIRECT($Q$1):INDIRECT($Q$3),0),COLUMN()),0)+IFERROR(INDEX(INDIRECT($Q$4):INDIRECT($Q$5),MATCH($A76,INDIRECT($Q$4):INDIRECT($Q$6),0),COLUMN()),0)+IFERROR(INDEX(INDIRECT($Q$7):INDIRECT($Q$8),MATCH($A76,INDIRECT($Q$7):INDIRECT($Q$9),0),COLUMN()),0)+IFERROR(INDEX(INDIRECT($Q$10):INDIRECT($Q$11),MATCH($A76,INDIRECT($Q$10):INDIRECT($Q$12),0),COLUMN()),0)+IFERROR(INDEX(INDIRECT($Q$13):INDIRECT($Q$14),MATCH($A76,INDIRECT($Q$13):INDIRECT($Q$15),0),COLUMN()),0)+IFERROR(INDEX(INDIRECT($Q$16):INDIRECT($Q$17),MATCH($A76,INDIRECT($Q$16):INDIRECT($Q$18),0),COLUMN()),0) -> 0 | I76: =IFERROR(INDEX(INDIRECT($Q$1):INDIRECT($Q$2),MATCH($A76,INDIRECT($Q$1):INDIRECT($Q$3),0),COLUMN()),0)+IFERROR(INDEX(INDIRECT($Q$4):INDIRECT($Q$5),MATCH($A76,INDIRECT($Q$4):INDIRECT($Q$6),0),COLUMN()),0)+IFERROR(INDEX(INDIRECT($Q$7):INDIRECT($Q$8),MATCH($A76,INDIRECT($Q$7):INDIRECT($Q$9),0),COLUMN()),0)+IFERROR(INDEX(INDIRECT($Q$10):INDIRECT($Q$11),MATCH($A76,INDIRECT($Q$10):INDIRECT($Q$12),0),COLUMN()),0)+IFERROR(INDEX(INDIRECT($Q$13):INDIRECT($Q$14),MATCH($A76,INDIRECT($Q$13):INDIRECT($Q$15),0),COLUMN()),0)+IFERROR(INDEX(INDIRECT($Q$16):INDIRECT($Q$17),MATCH($A76,INDIRECT($Q$16):INDIRECT($Q$18),0),COLUMN()),0) -> 0 | K76: =IFERROR(VLOOKUP($A76,INDIRECT($Q$16):INDIRECT($Q$17),11,FALSE),0) -> 0 | L76: 0 | M76: 0
C77: =IFERROR(VLOOKUP($A77,INDIRECT($Q$1):INDIRECT($Q$2),11,FALSE),0) -> 0 | D77: =IFERROR(INDEX(INDIRECT($Q$1):INDIRECT($Q$2),MATCH($A77,INDIRECT($Q$1):INDIRECT($Q$3),0),COLUMN()),0)+IFERROR(INDEX(INDIRECT($Q$4):INDIRECT($Q$5),MATCH($A77,INDIRECT($Q$4):INDIRECT($Q$6),0),COLUMN()),0)+IFERROR(INDEX(INDIRECT($Q$7):INDIRECT($Q$8),MATCH($A77,INDIRECT($Q$7):INDIRECT($Q$9),0),COLUMN()),0)+IFERROR(INDEX(INDIRECT($Q$10):INDIRECT($Q$11),MATCH($A77,INDIRECT($Q$10):INDIRECT($Q$12),0),COLUMN()),0)+IFERROR(INDEX(INDIRECT($Q$13):INDIRECT($Q$14),MATCH($A77,INDIRECT($Q$13):INDIRECT($Q$15),0),COLUMN()),0)+IFERROR(INDEX(INDIRECT($Q$16):INDIRECT($Q$17),MATCH($A77,INDIRECT($Q$16):INDIRECT($Q$18),0),COLUMN()),0) -> 0 | E77: =IFERROR(INDEX(INDIRECT($Q$1):INDIRECT($Q$2),MATCH($A77,INDIRECT($Q$1):INDIRECT($Q$3),0),COLUMN()),0)+IFERROR(INDEX(INDIRECT($Q$4):INDIRECT($Q$5),MATCH($A77,INDIRECT($Q$4):INDIRECT($Q$6),0),COLUMN()),0)+IFERROR(INDEX(INDIRECT($Q$7):INDIRECT($Q$8),MATCH($A77,INDIRECT($Q$7):INDIRECT($Q$9),0),COLUMN()),0)+IFERROR(INDEX(INDIRECT($Q$10):INDIRECT($Q$11),MATCH($A77,INDIRECT($Q$10):INDIRECT($Q$12),0),COLUMN()),0)+IFERROR(INDEX(INDIRECT($Q$13):INDIRECT($Q$14),MATCH($A77,INDIRECT($Q$13):INDIRECT($Q$15),0),COLUMN()),0)+IFERROR(INDEX(INDIRECT($Q$16):INDIRECT($Q$17),MATCH($A77,INDIRECT($Q$16):INDIRECT($Q$18),0),COLUMN()),0) -> 0 | F77: =IFERROR(INDEX(INDIRECT($Q$1):INDIRECT($Q$2),MATCH($A77,INDIRECT($Q$1):INDIRECT($Q$3),0),COLUMN()),0)+IFERROR(INDEX(INDIRECT($Q$4):INDIRECT($Q$5),MATCH($A77,INDIRECT($Q$4):INDIRECT($Q$6),0),COLUMN()),0)+IFERROR(INDEX(INDIRECT($Q$7):INDIRECT($Q$8),MATCH($A77,INDIRECT($Q$7):INDIRECT($Q$9),0),COLUMN()),0)+IFERROR(INDEX(INDIRECT($Q$10):INDIRECT($Q$11),MATCH($A77,INDIRECT($Q$10):INDIRECT($Q$12),0),COLUMN()),0)+IFERROR(INDEX(INDIRECT($Q$13):INDIRECT($Q$14),MATCH($A77,INDIRECT($Q$13):INDIRECT($Q$15),0),COLUMN()),0)+IFERROR(INDEX(INDIRECT($Q$16):INDIRECT($Q$17),MATCH($A77,INDIRECT($Q$16):INDIRECT($Q$18),0),COLUMN()),0) -> 0 | G77: =IFERROR(INDEX(INDIRECT($Q$1):INDIRECT($Q$2),MATCH($A77,INDIRECT($Q$1):INDIRECT($Q$3),0),COLUMN()),0)+IFERROR(INDEX(INDIRECT($Q$4):INDIRECT($Q$5),MATCH($A77,INDIRECT($Q$4):INDIRECT($Q$6),0),COLUMN()),0)+IFERROR(INDEX(INDIRECT($Q$7):INDIRECT($Q$8),MATCH($A77,INDIRECT($Q$7):INDIRECT($Q$9),0),COLUMN()),0)+IFERROR(INDEX(INDIRECT($Q$10):INDIRECT($Q$11),MATCH($A77,INDIRECT($Q$10):INDIRECT($Q$12),0),COLUMN()),0)+IFERROR(INDEX(INDIRECT($Q$13):INDIRECT($Q$14),MATCH($A77,INDIRECT($Q$13):INDIRECT($Q$15),0),COLUMN()),0)+IFERROR(INDEX(INDIRECT($Q$16):INDIRECT($Q$17),MATCH($A77,INDIRECT($Q$16):INDIRECT($Q$18),0),COLUMN()),0) -> 0 | H77: =IFERROR(INDEX(INDIRECT($Q$1):INDIRECT($Q$2),MATCH($A77,INDIRECT($Q$1):INDIRECT($Q$3),0),COLUMN()),0)+IFERROR(INDEX(INDIRECT($Q$4):INDIRECT($Q$5),MATCH($A77,INDIRECT($Q$4):INDIRECT($Q$6),0),COLUMN()),0)+IFERROR(INDEX(INDIRECT($Q$7):INDIRECT($Q$8),MATCH($A77,INDIRECT($Q$7):INDIRECT($Q$9),0),COLUMN()),0)+IFERROR(INDEX(INDIRECT($Q$10):INDIRECT($Q$11),MATCH($A77,INDIRECT($Q$10):INDIRECT($Q$12),0),COLUMN()),0)+IFERROR(INDEX(INDIRECT($Q$13):INDIRECT($Q$14),MATCH($A77,INDIRECT($Q$13):INDIRECT($Q$15),0),COLUMN()),0)+IFERROR(INDEX(INDIRECT($Q$16):INDIRECT($Q$17),MATCH($A77,INDIRECT($Q$16):INDIRECT($Q$18),0),COLUMN()),0) -> 0 | I77: =IFERROR(INDEX(INDIRECT($Q$1):INDIRECT($Q$2),MATCH($A77,INDIRECT($Q$1):INDIRECT($Q$3),0),COLUMN()),0)+IFERROR(INDEX(INDIRECT($Q$4):INDIRECT($Q$5),MATCH($A77,INDIRECT($Q$4):INDIRECT($Q$6),0),COLUMN()),0)+IFERROR(INDEX(INDIRECT($Q$7):INDIRECT($Q$8),MATCH($A77,INDIRECT($Q$7):INDIRECT($Q$9),0),COLUMN()),0)+IFERROR(INDEX(INDIRECT($Q$10):INDIRECT($Q$11),MATCH($A77,INDIRECT($Q$10):INDIRECT($Q$12),0),COLUMN()),0)+IFERROR(INDEX(INDIRECT($Q$13):INDIRECT($Q$14),MATCH($A77,INDIRECT($Q$13):INDIRECT($Q$15),0),COLUMN()),0)+IFERROR(INDEX(INDIRECT($Q$16):INDIRECT($Q$17),MATCH($A77,INDIRECT($Q$16):INDIRECT($Q$18),0),COLUMN()),0) -> 0 | K77: =IFERROR(VLOOKUP($A77,INDIRECT($Q$16):INDIRECT($Q$17),11,FALSE),0) -> 0 | L77: 0 | M77: 0
